Workbook

Sheet Farmland and Cropland Data
B5: Select State:
B6: Illinois
B49: Select Tabulation:
A50: (custom) | B50: Cropland | C50: =--(B50="cropland") -> 1 | D50: (Values in $/Acre)
A51: (=1 to ave) | B51: State Summaries | C51: 1968 | D51: 1969 | E51: 1970 | F51: 1971 | G51: 1972 | H51: 1973 | I51: 1974 | J51: 1975 | K51: 1976 | L51: 1977 | M51: 1978 | N51: 1979 | O51: 1980 | P51: 1981 | Q51: 1982 | R51: 1983 | S51: 1984 | T51: 1985 | U51: 1986 | V51: 1987 | W51: 1988 | X51: 1989 | Y51: 1990 | Z51: 1991 | AA51: 1992 | AB51: 1993 | AC51: 1994 | AD51: 1995 | AE51: 1996 | AF51: 1997 | AG51: 1998 | AH51: 1999 | AI51: 2000 | AJ51: 2001 | AK51: 2002 | AL51: 2003 | AM51: 2004 | AN51: 2005 | AO51: 2006 | AP51: 2007 | AQ51: 2008 | AR51: 2009 | AS51: 2010 | AT51: 2011 | AU51: 2012 | AV51: 2013 | AW51: 2014 | AX51: 2015 | AY51: 2016 | AZ51: 2017 | BA51: 2018 | BB51: 2019 | BC51: 2020 | BD51: 2021 | BE51: 2022 | BF51: 2023 | BG51: 2024 | BS51: 12 state for HS CERES
B52: Alabama | C52: =IF(IFERROR($C$50*C274+(1-$C$50)*C331,"")=0,"",$C$50*C274+(1-$C$50)*C331) -> 150 | D52: 165 | E52: 176.4705882 | F52: 199.4117647 | G52: 208.2352941 | H52: 235.5882353 | I52: 292.0588235 | J52: 321.1764706 | K52: 375 | L52: 420.8823529 | M52: 465 | N52: 563.8235294 | O52: 688.2352941 | P52: 802.9411765 | Q52: 780.8823529 | R52: 728.8235294 | S52: 727.0588235 | T52: 703.2352941 | U52: 708.5294118 | V52: 693.5294118 | W52: 705.8823529 | X52: 747.3529412 | Y52: 785.2941176 | Z52: 762.3529412 | AA52: 825.8823529 | AB52: 882.3529412 | AC52: 988.2352941 | AD52: 1111.764706 | AE52: 1164.705882 | AF52: 1200 | AG52: 1260 | AH52: 1350 | AI52: =IF(IFERROR($C$50*AI274+(1-$C$50)*AI331,"")=0,"",$C$50*AI274+(1-$C$50)*AI331) -> 1450 | AJ52: 1530 | AK52: 1600 | AL52: 1700 | AM52: 1750 | AN52: 2050 | AO52: 2300 | AP52: 2450 | AQ52: 2650 | AR52: 2620 | AS52: 2630 | AT52: 2680 | AU52: 2750 | AV52: 2750 | AW52: 2890 | AX52: 2940 | AY52: 3080 | AZ52: 3170 | BA52: 3300 | BB52: 3460 | BC52: 3570 | BD52: =IF(IFERROR($C$50*BD274+(1-$C$50)*BD331,"")=0,"",$C$50*BD274+(1-$C$50)*BD331) -> 3650 | BE52: 4040 | BF52: 4160 | BG52: =IF(IFERROR($C$50*BG274+(1-$C$50)*BG331,"")=0,"",$C$50*BG274+(1-$C$50)*BG331) -> 4440 | BK52: Alabama | BL52: 1 | BN52: 1 | BO52: Alabama | BT52: Alabama
B53: Alaska | C53: =IF(IFERROR($C$50*C275+(1-$C$50)*C332,"")=0,"",$C$50*C275+(1-$C$50)*C332) ->  | AI53: =IF(IFERROR($C$50*AI275+(1-$C$50)*AI332,"")=0,"",$C$50*AI275+(1-$C$50)*AI332) ->  | BD53: =IF(IFERROR($C$50*BD275+(1-$C$50)*BD332,"")=0,"",$C$50*BD275+(1-$C$50)*BD332) ->  | BG53: =IF(IFERROR($C$50*BG275+(1-$C$50)*BG332,"")=0,"",$C$50*BG275+(1-$C$50)*BG332) ->  | BK53: Arizona | BO53: Alaska | BT53: Alaska
B54: Arizona | C54: =IF(IFERROR($C$50*C276+(1-$C$50)*C333,"")=0,"",$C$50*C276+(1-$C$50)*C333) -> 261.4130435 | D54: 269.4565217 | E54: 281.5217391 | F54: 305.6521739 | G54: 345.8695652 | H54: 365.9782609 | I54: 442.3913043 | J54: 446.4130435 | K54: 490.6521739 | L54: 555 | M54: 619.3478261 | N54: 800.326087 | O54: 1073.804348 | P54: 1154.23913 | Q54: 1214.565217 | R54: 1162.282609 | S54: 1250.76087 | T54: 1186.413043 | U54: 1089.891304 | V54: 1202.5 | W54: 1122.065217 | X54: 1110 | Y54: 1073.804348 | Z54: 1170.326087 | AA54: 1250.76087 | AB54: 1270.869565 | AC54: 3257.608696 | AD54: 3378.26087 | AE54: 3539.130435 | AF54: 3700 | AG54: 3800 | AH54: 4100 | AI54: =IF(IFERROR($C$50*AI276+(1-$C$50)*AI333,"")=0,"",$C$50*AI276+(1-$C$50)*AI333) -> 4400 | AJ54: 4800 | AK54: 5600 | AL54: 6000 | AM54: 6400 | AN54: 9000 | AO54: 10500 | AP54: 10800 | AQ54: 11500 | AR54: 9830 | AS54: 7750 | AT54: 7610 | AU54: 7960 | AV54: 8290 | AW54: 8140 | AX54: 7970 | AY54: 7800 | AZ54: 7720 | BA54: 7610 | BB54: 7600 | BC54: 7600 | BD54: =IF(IFERROR($C$50*BD276+(1-$C$50)*BD333,"")=0,"",$C$50*BD276+(1-$C$50)*BD333) -> 7600 | BE54: 7900 | BF54: 8000 | BG54: =IF(IFERROR($C$50*BG276+(1-$C$50)*BG333,"")=0,"",$C$50*BG276+(1-$C$50)*BG333) -> 8000 | BK54: Arkansas | BL54: 1 | BO54: Arizona | BT54: Arizona
A55: 1 | B55: Arkansas | C55: =IF(IFERROR($C$50*C277+(1-$C$50)*C334,"")=0,"",$C$50*C277+(1-$C$50)*C334) -> 204.4560748 | D55: 222.5495327 | E55: 235.2149533 | F55: 230.6915888 | G55: 267.7831776 | H55: 304.8747664 | I55: 367.2971963 | J55: 379.0579439 | K55: 429.7196262 | L55: 490.3327103 | M55: 548.2317757 | N55: 696.5981308 | O55: 830.4897196 | P55: 955.3345794 | Q55: 991.5214953 | R55: 879.3420561 | S55: 872.1046729 | T55: 820.5383178 | U55: 704.7401869 | V55: 654.9831776 | W55: 688.4560748 | X55: 724.6429907 | Y55: 720.1196262 | Z55: 760.8299065 | AA55: 737.3084112 | AB55: 796.1121495 | AC55: 838.6317757 | AD55: 889.2934579 | AE55: 913.7196262 | AF55: 968 | AG55: 1030 | AH55: 1070 | AI55: =IF(IFERROR($C$50*AI277+(1-$C$50)*AI334,"")=0,"",$C$50*AI277+(1-$C$50)*AI334) -> 1100 | AJ55: 1140 | AK55: 1180 | AL55: 1220 | AM55: 1280 | AN55: 1440 | AO55: 1550 | AP55: 1680 | AQ55: 1770 | AR55: 1830 | AS55: 1910 | AT55: 1990 | AU55: 2180 | AV55: 2380 | AW55: 2530 | AX55: 2600 | AY55: 2660 | AZ55: 2730 | BA55: 2780 | BB55: 2900 | BC55: 2980 | BD55: =IF(IFERROR($C$50*BD277+(1-$C$50)*BD334,"")=0,"",$C$50*BD277+(1-$C$50)*BD334) -> 3080 | BE55: 3330 | BF55: 3460 | BG55: =IF(IFERROR($C$50*BG277+(1-$C$50)*BG334,"")=0,"",$C$50*BG277+(1-$C$50)*BG334) -> 3600 | BK55: California | BL55: 1 | BN55: 1 | BO55: Arkansas | BS55: 1 | BT55: Arkansas
B56: California | C56: =IF(IFERROR($C$50*C278+(1-$C$50)*C335,"")=0,"",$C$50*C278+(1-$C$50)*C335) -> 985.52 | D56: 989.584 | E56: 973.328 | F56: 957.072 | G56: 1003.808 | H56: 1034.288 | I56: 1158.24 | J56: 1326.896 | K56: 1444.752 | L56: 1542.288 | M56: 1857.248 | N56: 2409.952 | O56: 2893.568 | P56: 3519.424 | Q56: 3860.8 | R56: 3897.376 | S56: 4025.392 | T56: 3740.912 | U56: 3515.36 | V56: 3157.728 | W56: 3200.4 | X56: 3539.744 | Y56: 3828.288 | Z56: 4220.464 | AA56: 4383.024 | AB56: 4496.816 | AC56: 4490.72 | AD56: 4511.04 | AE56: 4876.8 | AF56: 5080 | AG56: 5260 | AH56: 5360 | AI56: =IF(IFERROR($C$50*AI278+(1-$C$50)*AI335,"")=0,"",$C$50*AI278+(1-$C$50)*AI335) -> 5450 | AJ56: 5550 | AK56: 5730 | AL56: 5920 | AM56: 5500 | AN56: 7730 | AO56: 8290 | AP56: 9700 | AQ56: 9880 | AR56: 9390 | AS56: 8960 | AT56: 9130 | AU56: 9400 | AV56: 9860 | AW56: 10230 | AX56: 10850 | AY56: 11160 | AZ56: 11630 | BA56: 12170 | BB56: 12990 | BC56: 13160 | BD56: =IF(IFERROR($C$50*BD278+(1-$C$50)*BD335,"")=0,"",$C$50*BD278+(1-$C$50)*BD335) -> 14370 | BE56: 16170 | BF56: 16820 | BG56: =IF(IFERROR($C$50*BG278+(1-$C$50)*BG335,"")=0,"",$C$50*BG278+(1-$C$50)*BG335) -> 17330 | BK56: Colorado | BL56: 1 | BN56: 1 | BO56: California | BT56: California
B57: Colorado | C57: =IF(IFERROR($C$50*C279+(1-$C$50)*C336,"")=0,"",$C$50*C279+(1-$C$50)*C336) -> 113.8372881 | D57: 120.379661 | E57: 124.3050847 | F57: 134.7728814 | G57: 151.7830508 | H57: 179.2610169 | I57: 228.9830508 | J57: 245.9932203 | K57: 286.5559322 | L57: 334.9694915 | M57: 357.2135593 | N57: 421.3288136 | O57: 506.379661 | P57: 567.8779661 | Q57: 590.1220339 | R57: 594.0474576 | S57: 613.6745763 | T57: 571.8033898 | U57: 471.0508475 | V57: 481.5186441 | W57: 482.8271186 | X57: 490.6779661 | Y57: 489.3694915 | Z57: 571.8033898 | AA57: 523.3898305 | AB57: 557.4101695 | AC57: 626.759322 | AD57: 680.4067797 | AE57: 730.1288136 | AF57: 772 | AG57: 809 | AH57: 867 | AI57: =IF(IFERROR($C$50*AI279+(1-$C$50)*AI336,"")=0,"",$C$50*AI279+(1-$C$50)*AI336) -> 922 | AJ57: 966 | AK57: 999 | AL57: 1050 | AM57: 891 | AN57: 1000 | AO57: 1170 | AP57: 1270 | AQ57: 1310 | AR57: 1300 | AS57: 1290 | AT57: 1340 | AU57: 1450 | AV57: 1770 | AW57: 1890 | AX57: 1990 | AY57: 2020 | AZ57: 2070 | BA57: 2100 | BB57: 2200 | BC57: 2280 | BD57: =IF(IFERROR($C$50*BD279+(1-$C$50)*BD336,"")=0,"",$C$50*BD279+(1-$C$50)*BD336) -> 2370 | BE57: 2670 | BF57: 2870 | BG57: =IF(IFERROR($C$50*BG279+(1-$C$50)*BG336,"")=0,"",$C$50*BG279+(1-$C$50)*BG336) -> 2810 | BK57: Delaware | BN57: 1 | BO57: Colorado | BT57: Colorado
B58: Connecticut | C58: =IF(IFERROR($C$50*C280+(1-$C$50)*C337,"")=0,"",$C$50*C280+(1-$C$50)*C337) ->  | AI58: =IF(IFERROR($C$50*AI280+(1-$C$50)*AI337,"")=0,"",$C$50*AI280+(1-$C$50)*AI337) ->  | BD58: =IF(IFERROR($C$50*BD280+(1-$C$50)*BD337,"")=0,"",$C$50*BD280+(1-$C$50)*BD337) ->  | BG58: =IF(IFERROR($C$50*BG280+(1-$C$50)*BG337,"")=0,"",$C$50*BG280+(1-$C$50)*BG337) ->  | BK58: Florida | BL58: 1 | BO58: Connecticut | BT58: Connecticut
B59: Delaware | C59: =IF(IFERROR($C$50*C281+(1-$C$50)*C338,"")=0,"",$C$50*C281+(1-$C$50)*C338) -> 416.6666667 | D59: 442.8294574 | E59: 483.5271318 | F59: 537.7906977 | G59: 548.4496124 | H59: 625 | I59: 784.8837209 | J59: 940.8914729 | K59: 1079.457364 | L59: 1211.24031 | M59: 1308.139535 | N59: 1453.488372 | O59: 1742.248062 | P59: 1868.217054 | Q59: 1731.589147 | R59: 1772.286822 | S59: 1782.945736 | T59: 1546.511628 | U59: 1631.782946 | V59: 1625 | W59: 1710.271318 | X59: 1973.837209 | Y59: 2145.348837 | Z59: 2113.372093 | AA59: 1978.682171 | AB59: 2176.356589 | AC59: 2277.131783 | AD59: 2364.341085 | AE59: 2470.930233 | AF59: 2500 | AG59: 2620 | AH59: 2800 | AI59: =IF(IFERROR($C$50*AI281+(1-$C$50)*AI338,"")=0,"",$C$50*AI281+(1-$C$50)*AI338) -> 3000 | AJ59: 3250 | AK59: 3500 | AL59: 3850 | AM59: 5800 | AN59: 8100 | AO59: 10000 | AP59: 10200 | AQ59: 9800 | AR59: 8510 | AS59: 7930 | AT59: 7840 | AU59: 7850 | AV59: 7870 | AW59: 7840 | AX59: 7880 | AY59: 8090 | AZ59: 7960 | BA59: 8120 | BB59: 8550 | BC59: 8500 | BD59: =IF(IFERROR($C$50*BD281+(1-$C$50)*BD338,"")=0,"",$C$50*BD281+(1-$C$50)*BD338) -> 8450 | BE59: 8980 | BF59: 9230 | BG59: =IF(IFERROR($C$50*BG281+(1-$C$50)*BG338,"")=0,"",$C$50*BG281+(1-$C$50)*BG338) -> 9294 | BK59: Georgia | BL59: 1 | BO59: Delaware | BT59: Delaware
B60: Florida | C60: =IF(IFERROR($C$50*C282+(1-$C$50)*C339,"")=0,"",$C$50*C282+(1-$C$50)*C339) -> 459.2 | D60: 475.6 | E60: 529.2727273 | F60: 562.0727273 | G60: 600.8363636 | H60: 691.7818182 | I60: 906.4727273 | J60: 1021.272727 | K60: 1137.563636 | L60: 1283.672727 | M60: 1462.581818 | N60: 1713.054545 | O60: 2058.945455 | P60: 2333.272727 | Q60: 2263.2 | R60: 2349.672727 | S60: 2452.545455 | T60: 2383.963636 | U60: 2291.527273 | V60: 2392.909091 | W60: 2668.727273 | X60: 2802.909091 | Y60: 3086.181818 | Z60: 3145.818182 | AA60: 3031.018182 | AB60: 3036.981818 | AC60: 3071.272727 | AD60: 3145.818182 | AE60: 3205.454545 | AF60: 3280 | AG60: 3230 | AH60: 3460 | AI60: =IF(IFERROR($C$50*AI282+(1-$C$50)*AI339,"")=0,"",$C$50*AI282+(1-$C$50)*AI339) -> 3550 | AJ60: 3720 | AK60: 3730 | AL60: 3690 | AM60: 3400 | AN60: 6260 | AO60: 6540 | AP60: 6860 | AQ60: 6980 | AR60: 6610 | AS60: 6550 | AT60: 6580 | AU60: 6420 | AV60: 6450 | AW60: 6550 | AX60: 6660 | AY60: 6860 | AZ60: 6940 | BA60: 7040 | BB60: 7270 | BC60: 7360 | BD60: =IF(IFERROR($C$50*BD282+(1-$C$50)*BD339,"")=0,"",$C$50*BD282+(1-$C$50)*BD339) -> 7570 | BE60: 8340 | BF60: 9290 | BG60: =IF(IFERROR($C$50*BG282+(1-$C$50)*BG339,"")=0,"",$C$50*BG282+(1-$C$50)*BG339) -> 10170 | BK60: Idaho | BL60: 1 | BN60: 1 | BO60: Florida | BT60: Florida
B61: Georgia | C61: =IF(IFERROR($C$50*C283+(1-$C$50)*C340,"")=0,"",$C$50*C283+(1-$C$50)*C340) -> 137.1328671 | D61: 158.6293706 | E61: 173.4545455 | F61: 189.020979 | G61: 214.965035 | H61: 243.8741259 | I61: 314.2937063 | J61: 351.3566434 | K61: 375.8181818 | L61: 430.6713287 | M61: 507.7622378 | N61: 575.958042 | O61: 664.1678322 | P61: 719.7622378 | Q61: 686.4055944 | R61: 688.6293706 | S61: 682.6993007 | T61: 656.7552448 | U61: 632.2937063 | V61: 658.979021 | W61: 681.958042 | X61: 763.4965035 | Y61: 799.8181818 | Z61: 811.6783217 | AA61: 759.7902098 | AB61: 838.3636364 | AC61: 852.4475524 | AD61: 933.986014 | AE61: 1008.111888 | AF61: 1060 | AG61: 1140 | AH61: 1380 | AI61: =IF(IFERROR($C$50*AI283+(1-$C$50)*AI340,"")=0,"",$C$50*AI283+(1-$C$50)*AI340) -> 1600 | AJ61: 1780 | AK61: 1970 | AL61: 2150 | AM61: 2240 | AN61: 2700 | AO61: 3620 | AP61: 4290 | AQ61: 4540 | AR61: 3980 | AS61: 3390 | AT61: 3360 | AU61: 3130 | AV61: 3080 | AW61: 3080 | AX61: 3160 | AY61: 3420 | AZ61: 3430 | BA61: 3430 | BB61: 3200 | BC61: 3290 | BD61: =IF(IFERROR($C$50*BD283+(1-$C$50)*BD340,"")=0,"",$C$50*BD283+(1-$C$50)*BD340) -> 3450 | BE61: 3760 | BF61: 4120 | BG61: =IF(IFERROR($C$50*BG283+(1-$C$50)*BG340,"")=0,"",$C$50*BG283+(1-$C$50)*BG340) -> 4330 | BK61: Illinois | BL61: 1 | BN61: 1 | BO61: Georgia | BT61: Georgia
B62: Hawaii | C62: =IF(IFERROR($C$50*C284+(1-$C$50)*C341,"")=0,"",$C$50*C284+(1-$C$50)*C341) ->  | AI62: =IF(IFERROR($C$50*AI284+(1-$C$50)*AI341,"")=0,"",$C$50*AI284+(1-$C$50)*AI341) ->  | BD62: =IF(IFERROR($C$50*BD284+(1-$C$50)*BD341,"")=0,"",$C$50*BD284+(1-$C$50)*BD341) ->  | BG62: =IF(IFERROR($C$50*BG284+(1-$C$50)*BG341,"")=0,"",$C$50*BG284+(1-$C$50)*BG341) ->  | BK62: Indiana | BL62: 1 | BO62: Hawaii | BT62: Hawaii
B63: Idaho | C63: =IF(IFERROR($C$50*C285+(1-$C$50)*C342,"")=0,"",$C$50*C285+(1-$C$50)*C342) -> 222.75 | D63: 231 | E63: 243.375 | F63: 258.5 | G63: 281.875 | H63: 314.875 | I63: 394.625 | J63: 466.125 | K63: 530.75 | L63: 624.25 | M63: 708.125 | N63: 804.375 | O63: 959.75 | P63: 1064.25 | Q63: 1153.625 | R63: 1119.25 | S63: 1111 | T63: 1016.125 | U63: 867.625 | V63: 759 | W63: 786.5 | X63: 815.375 | Y63: 904.75 | Z63: 899.25 | AA63: 935 | AB63: 937.75 | AC63: 1072.5 | AD63: 1155 | AE63: 1237.5 | AF63: 1320 | AG63: 1370 | AH63: 1410 | AI63: =IF(IFERROR($C$50*AI285+(1-$C$50)*AI342,"")=0,"",$C$50*AI285+(1-$C$50)*AI342) -> 1470 | AJ63: 1530 | AK63: 1600 | AL63: 1680 | AM63: 1500 | AN63: 1810 | AO63: 2450 | AP63: 2770 | AQ63: 2800 | AR63: 2610 | AS63: 2480 | AT63: 2470 | AU63: 2580 | AV63: 2850 | AW63: 3080 | AX63: 3280 | AY63: 3420 | AZ63: 3570 | BA63: 3740 | BB63: 4010 | BC63: 4220 | BD63: =IF(IFERROR($C$50*BD285+(1-$C$50)*BD342,"")=0,"",$C$50*BD285+(1-$C$50)*BD342) -> 4720 | BE63: 5330 | BF63: 5650 | BG63: =IF(IFERROR($C$50*BG285+(1-$C$50)*BG342,"")=0,"",$C$50*BG285+(1-$C$50)*BG342) -> 5820 | BK63: Iowa | BL63: 1 | BN63: 1 | BO63: Idaho | BT63: Idaho
A64: 1 | B64: Illinois | C64: =IF(IFERROR($C$50*C286+(1-$C$50)*C343,"")=0,"",$C$50*C286+(1-$C$50)*C343) -> 491.3636364 | D64: 515.4090909 | E64: 512.2727273 | F64: 516.4545455 | G64: 545.7272727 | H64: 592.7727273 | I64: 752.7272727 | J64: 884.4545455 | K64: 1110.272727 | L64: 1524.272727 | M64: 1698.863636 | N64: 1942.454545 | O64: 2133.772727 | P64: 2287.454545 | Q64: 2114.954545 | R64: 1920.5 | S64: 1928.863636 | T64: 1443.772727 | U64: 1288 | V64: 1201.227273 | W64: 1319.363636 | X64: 1454.227273 | Y64: 1468.863636 | Z64: 1525.318182 | AA64: 1605.818182 | AB64: 1618.363636 | AC64: 1745.909091 | AD64: 1902.727273 | AE64: 1986.363636 | AF64: 2070 | AG64: 2240 | AH64: 2320 | AI64: =IF(IFERROR($C$50*AI286+(1-$C$50)*AI343,"")=0,"",$C$50*AI286+(1-$C$50)*AI343) -> 2350 | AJ64: 2370 | AK64: 2430 | AL64: 2500 | AM64: 2650 | AN64: 3250 | AO64: 3640 | AP64: 4150 | AQ64: 4850 | AR64: 4590 | AS64: 4720 | AT64: 5480 | AU64: 6300 | AV64: 7190 | AW64: 7660 | AX64: 7580 | AY64: 7350 | AZ64: 7210 | BA64: 7280 | BB64: 7300 | BC64: 7300 | BD64: =IF(IFERROR($C$50*BD286+(1-$C$50)*BD343,"")=0,"",$C$50*BD286+(1-$C$50)*BD343) -> 7800 | BE64: 8700 | BF64: 9250 | BG64: =IF(IFERROR($C$50*BG286+(1-$C$50)*BG343,"")=0,"",$C$50*BG286+(1-$C$50)*BG343) -> 9550 | BK64: Kansas | BL64: 1 | BN64: 1 | BO64: Illinois | BS64: 1 | BT64: Illinois
A65: 1 | B65: Indiana | C65: =IF(IFERROR($C$50*C287+(1-$C$50)*C344,"")=0,"",$C$50*C287+(1-$C$50)*C344) -> 421.657754 | D65: 423.6898396 | E65: 412.513369 | F65: 428.7700535 | G65: 441.9786096 | H65: 501.9251337 | I65: 601.4973262 | J65: 731.5508021 | K65: 902.2459893 | L65: 1207.058824 | M65: 1378.770053 | N65: 1614.491979 | O65: 1892.887701 | P65: 2063.582888 | Q65: 1832.941176 | R65: 1635.828877 | S65: 1673.42246 | T65: 1365.561497 | U65: 1185.721925 | V65: 1078.02139 | W65: 1176.57754 | X65: 1269.037433 | Y65: 1274.117647 | Z65: 1311.71123 | AA65: 1346.256684 | AB65: 1417.379679 | AC65: 1524.064171 | AD65: 1645.989305 | AE65: 1767.914439 | AF65: 1900 | AG65: 2100 | AH65: 2180 | AI65: =IF(IFERROR($C$50*AI287+(1-$C$50)*AI344,"")=0,"",$C$50*AI287+(1-$C$50)*AI344) -> 2250 | AJ65: 2330 | AK65: 2440 | AL65: 2550 | AM65: 2730 | AN65: 2980 | AO65: 3250 | AP65: 3640 | AQ65: 4140 | AR65: 3890 | AS65: 4270 | AT65: 5070 | AU65: 5840 | AV65: 6590 | AW65: 6940 | AX65: 6780 | AY65: 6690 | AZ65: 6300 | BA65: 6210 | BB65: 6090 | BC65: 5970 | BD65: =IF(IFERROR($C$50*BD287+(1-$C$50)*BD344,"")=0,"",$C$50*BD287+(1-$C$50)*BD344) -> 6420 | BE65: 7170 | BF65: 7620 | BG65: =IF(IFERROR($C$50*BG287+(1-$C$50)*BG344,"")=0,"",$C$50*BG287+(1-$C$50)*BG344) -> 7870 | BK65: Kentucky | BL65: 1 | BN65: 1 | BO65: Indiana | BS65: 1 | BT65: Indiana
A66: 1 | B66: Iowa | C66: =IF(IFERROR($C$50*C288+(1-$C$50)*C345,"")=0,"",$C$50*C288+(1-$C$50)*C345) -> 387.8125 | D66: 405.875 | E66: 416.5 | F66: 416.5 | G66: 439.875 | H66: 495.125 | I66: 634.3125 | J66: 763.9375 | K66: 977.5 | L66: 1337.6875 | M66: 1414.1875 | N66: 1646.875 | O66: 1955 | P66: 2123.9375 | Q66: 2007.0625 | R66: 1789.25 | S66: 1612.875 | T66: 1159.1875 | U66: 927.5625 | V66: 835.125 | W66: 1006.1875 | X66: 1163.4375 | Y66: 1158.125 | Z66: 1210.1875 | AA66: 1225.0625 | AB66: 1287.75 | AC66: 1360 | AD66: 1434.375 | AE66: 1540.625 | AF66: 1700 | AG66: 1860 | AH66: 1900 | AI66: =IF(IFERROR($C$50*AI288+(1-$C$50)*AI345,"")=0,"",$C$50*AI288+(1-$C$50)*AI345) -> 1940 | AJ66: 1980 | AK66: 2040 | AL66: 2120 | AM66: 2310 | AN66: 2760 | AO66: 3100 | AP66: 3600 | AQ66: 4260 | AR66: 3980 | AS66: 4450 | AT66: 5600 | AU66: 6810 | AV66: 8000 | AW66: 8560 | AX66: 7860 | AY66: 7510 | AZ66: 7440 | BA66: 7290 | BB66: 7160 | BC66: 6970 | BD66: =IF(IFERROR($C$50*BD288+(1-$C$50)*BD345,"")=0,"",$C$50*BD288+(1-$C$50)*BD345) -> 7490 | BE66: 8830 | BF66: 9410 | BG66: =IF(IFERROR($C$50*BG288+(1-$C$50)*BG345,"")=0,"",$C$50*BG288+(1-$C$50)*BG345) -> 9800 | BK66: Louisiana | BL66: 1 | BN66: 1 | BO66: Iowa | BS66: 1 | BT66: Iowa
A67: 1 | B67: Kansas | C67: =IF(IFERROR($C$50*C289+(1-$C$50)*C346,"")=0,"",$C$50*C289+(1-$C$50)*C346) -> 179.1929204 | D67: 186.0849558 | E67: 182.6389381 | F67: 186.0849558 | G67: 199.8690265 | H67: 228.5858407 | I67: 290.6141593 | J67: 340.0070796 | K67: 392.8460177 | L67: 457.1716814 | M67: 480.1451327 | N67: 575.4849558 | O67: 674.2707965 | P67: 711.0283186 | Q67: 721.3663717 | R67: 690.3522124 | S67: 685.7575221 | T67: 560.5522124 | U67: 476.699115 | V67: 428.4548673 | W67: 474.4017699 | X67: 492.780531 | Y67: 516.9026549 | Z67: 515.7539823 | AA67: 528.3893805 | AB67: 531.8353982 | AC67: 577.7823009 | AD67: 614.539823 | AE67: 635.2159292 | AF67: 649 | AG67: 655 | AH67: 660 | AI67: =IF(IFERROR($C$50*AI289+(1-$C$50)*AI346,"")=0,"",$C$50*AI289+(1-$C$50)*AI346) -> 666 | AJ67: 673 | AK67: 679 | AL67: 684 | AM67: 688 | AN67: 806 | AO67: 854 | AP67: 914 | AQ67: 1020 | AR67: 1030 | AS67: 1110 | AT67: 1340 | AU67: 1650 | AV67: 1930 | AW67: 2270 | AX67: 2230 | AY67: 2080 | AZ67: 2010 | BA67: 2060 | BB67: 2110 | BC67: 1990 | BD67: =IF(IFERROR($C$50*BD289+(1-$C$50)*BD346,"")=0,"",$C$50*BD289+(1-$C$50)*BD346) -> 2230 | BE67: 2710 | BF67: 3080 | BG67: =IF(IFERROR($C$50*BG289+(1-$C$50)*BG346,"")=0,"",$C$50*BG289+(1-$C$50)*BG346) -> 3300 | BK67: Maryland | BN67: 1 | BO67: Kansas | BS67: 1 | BT67: Kansas
B68: Kentucky | C68: =IF(IFERROR($C$50*C290+(1-$C$50)*C347,"")=0,"",$C$50*C290+(1-$C$50)*C347) -> 254.4444444 | D68: 264.4444444 | E68: 281.1111111 | F68: 296.6666667 | G68: 327.7777778 | H68: 363.3333333 | I68: 427.7777778 | J68: 474.4444444 | K68: 571.1111111 | L68: 687.7777778 | M68: 794.4444444 | N68: 956.6666667 | O68: 1084.444444 | P68: 1147.777778 | Q68: 1175.555556 | R68: 1165.555556 | S68: 1148.888889 | T68: 1061.111111 | U68: 1045.555556 | V68: 975.5555556 | W68: 995.5555556 | X68: 1011.111111 | Y68: 1086.666667 | Z68: 1064.444444 | AA68: 1097.777778 | AB68: 1196.666667 | AC68: 1266.666667 | AD68: 1388.888889 | AE68: 1444.444444 | AF68: 1500 | AG68: 1620 | AH68: 1700 | AI68: =IF(IFERROR($C$50*AI290+(1-$C$50)*AI347,"")=0,"",$C$50*AI290+(1-$C$50)*AI347) -> 1800 | AJ68: 1900 | AK68: 2000 | AL68: 2100 | AM68: 2210 | AN68: 2450 | AO68: 2810 | AP68: 2930 | AQ68: 3100 | AR68: 3090 | AS68: 3070 | AT68: 3080 | AU68: 3210 | AV68: 3430 | AW68: 3620 | AX68: 3860 | AY68: 3980 | AZ68: 4140 | BA68: 4250 | BB68: 4350 | BC68: 4490 | BD68: =IF(IFERROR($C$50*BD290+(1-$C$50)*BD347,"")=0,"",$C$50*BD290+(1-$C$50)*BD347) -> 4650 | BE68: 5200 | BF68: 5720 | BG68: =IF(IFERROR($C$50*BG290+(1-$C$50)*BG347,"")=0,"",$C$50*BG290+(1-$C$50)*BG347) -> 6220 | BK68: Michigan | BL68: 1 | BN68: 1 | BO68: Kentucky | BT68: Kentucky
A69: 1 | B69: Louisiana | C69: =IF(IFERROR($C$50*C291+(1-$C$50)*C348,"")=0,"",$C$50*C291+(1-$C$50)*C348) -> 265.0084034 | D69: 274.0840336 | E69: 291.3277311 | F69: 316.7394958 | G69: 344.8739496 | H69: 365.7478992 | I69: 425.6470588 | J69: 464.6722689 | K69: 521.8487395 | L69: 603.5294118 | M69: 742.3865546 | N69: 908.4705882 | O69: 1139.89916 | P69: 1319.596639 | Q69: 1283.294118 | R69: 1226.117647 | S69: 1297.815126 | T69: 1276.941176 | U69: 1080.907563 | V69: 835.8655462 | W69: 853.1092437 | X69: 870.3529412 | Y69: 839.4957983 | Z69: 834.9579832 | AA69: 840.4033613 | AB69: 882.1512605 | AC69: 907.5630252 | AD69: 980.1680672 | AE69: 1070.92437 | AF69: 1080 | AG69: 1060 | AH69: 1090 | AI69: =IF(IFERROR($C$50*AI291+(1-$C$50)*AI348,"")=0,"",$C$50*AI291+(1-$C$50)*AI348) -> 1130 | AJ69: 1160 | AK69: 1190 | AL69: 1240 | AM69: 1280 | AN69: 1450 | AO69: 1530 | AP69: 1690 | AQ69: 1830 | AR69: 1740 | AS69: 1800 | AT69: 1970 | AU69: 2120 | AV69: 2260 | AW69: 2370 | AX69: 2480 | AY69: 2590 | AZ69: 2700 | BA69: 2790 | BB69: 2900 | BC69: 2970 | BD69: =IF(IFERROR($C$50*BD291+(1-$C$50)*BD348,"")=0,"",$C$50*BD291+(1-$C$50)*BD348) -> 3030 | BE69: 3250 | BF69: 3330 | BG69: =IF(IFERROR($C$50*BG291+(1-$C$50)*BG348,"")=0,"",$C$50*BG291+(1-$C$50)*BG348) -> 3480 | BK69: Minnesota | BL69: 1 | BN69: 1 | BO69: Louisiana | BS69: 1 | BT69: Louisiana
B70: Maine | C70: =IF(IFERROR($C$50*C292+(1-$C$50)*C349,"")=0,"",$C$50*C292+(1-$C$50)*C349) ->  | AI70: =IF(IFERROR($C$50*AI292+(1-$C$50)*AI349,"")=0,"",$C$50*AI292+(1-$C$50)*AI349) ->  | BD70: =IF(IFERROR($C$50*BD292+(1-$C$50)*BD349,"")=0,"",$C$50*BD292+(1-$C$50)*BD349) ->  | BG70: =IF(IFERROR($C$50*BG292+(1-$C$50)*BG349,"")=0,"",$C$50*BG292+(1-$C$50)*BG349) ->  | BK70: Mississippi | BL70: 1 | BO70: Maine | BT70: Maine
B71: Maryland | C71: =IF(IFERROR($C$50*C293+(1-$C$50)*C350,"")=0,"",$C$50*C293+(1-$C$50)*C350) -> 522.8571429 | D71: 559.6507937 | E71: 619.6825397 | F71: 664.2222222 | G71: 708.7619048 | H71: 816.2380952 | I71: 948.8888889 | J71: 1026.349206 | K71: 1239.365079 | L71: 1310.047619 | M71: 1528.873016 | N71: 1742.857143 | O71: 2166.952381 | P71: 2449.68254 | Q71: 2300.571429 | R71: 2053.666667 | S71: 2165.015873 | T71: 2127.253968 | U71: 1958.777778 | V71: 1945.222222 | W71: 2189.222222 | X71: 2453.555556 | Y71: 2481.634921 | Z71: 2318 | AA71: 2449.68254 | AB71: 2818.587302 | AC71: 2953.174603 | AD71: 3001.587302 | AE71: 3011.269841 | AF71: 3050 | AG71: 3100 | AH71: 3200 | AI71: =IF(IFERROR($C$50*AI293+(1-$C$50)*AI350,"")=0,"",$C$50*AI293+(1-$C$50)*AI350) -> 3500 | AJ71: 3700 | AK71: 3900 | AL71: 4000 | AM71: 5500 | AN71: 7200 | AO71: 8200 | AP71: 8400 | AQ71: 7800 | AR71: 7180 | AS71: 6790 | AT71: 6680 | AU71: 6570 | AV71: 6470 | AW71: 6590 | AX71: 6720 | AY71: 6910 | AZ71: 7050 | BA71: 7280 | BB71: 7310 | BC71: 7240 | BD71: =IF(IFERROR($C$50*BD293+(1-$C$50)*BD350,"")=0,"",$C$50*BD293+(1-$C$50)*BD350) -> 7740 | BE71: 8430 | BF71: 8540 | BG71: =IF(IFERROR($C$50*BG293+(1-$C$50)*BG350,"")=0,"",$C$50*BG293+(1-$C$50)*BG350) -> 8770 | BK71: Missouri | BL71: 1 | BO71: Maryland | BT71: Maryland
B72: Massachusetts | C72: =IF(IFERROR($C$50*C294+(1-$C$50)*C351,"")=0,"",$C$50*C294+(1-$C$50)*C351) ->  | AI72: =IF(IFERROR($C$50*AI294+(1-$C$50)*AI351,"")=0,"",$C$50*AI294+(1-$C$50)*AI351) ->  | BD72: =IF(IFERROR($C$50*BD294+(1-$C$50)*BD351,"")=0,"",$C$50*BD294+(1-$C$50)*BD351) ->  | BG72: =IF(IFERROR($C$50*BG294+(1-$C$50)*BG351,"")=0,"",$C$50*BG294+(1-$C$50)*BG351) ->  | BK72: Montana | BL72: 1 | BO72: Massachusetts | BT72: Massachusetts
B73: Michigan | C73: =IF(IFERROR($C$50*C295+(1-$C$50)*C352,"")=0,"",$C$50*C295+(1-$C$50)*C352) -> 261.3333333 | D73: 280.8888889 | E73: 289.7777778 | F73: 295.1111111 | G73: 328.8888889 | H73: 394.6666667 | I73: 463.1111111 | J73: 491.5555556 | K73: 541.3333333 | L73: 691.5555556 | M73: 779.5555556 | N73: 866.6666667 | O73: 987.5555556 | P73: 1145.777778 | Q73: 1136 | R73: 1087.111111 | S73: 1115.555556 | T73: 984.8888889 | U73: 899.5555556 | V73: 821.3333333 | W73: 863.1111111 | X73: 873.7777778 | Y73: 893.3333333 | Z73: 965.3333333 | AA73: 983.1111111 | AB73: 1005.333333 | AC73: 1075.555556 | AD73: 1182.222222 | AE73: 1262.222222 | AF73: 1360 | AG73: 1480 | AH73: 1650 | AI73: =IF(IFERROR($C$50*AI295+(1-$C$50)*AI352,"")=0,"",$C$50*AI295+(1-$C$50)*AI352) -> 1820 | AJ73: 1980 | AK73: 2150 | AL73: 2350 | AM73: 2520 | AN73: 2680 | AO73: 2900 | AP73: 3280 | AQ73: 3480 | AR73: 3300 | AS73: 3160 | AT73: 3370 | AU73: 3660 | AV73: 4120 | AW73: 4530 | AX73: 4620 | AY73: 4590 | AZ73: 4580 | BA73: 4510 | BB73: 4430 | BC73: 4330 | BD73: =IF(IFERROR($C$50*BD295+(1-$C$50)*BD352,"")=0,"",$C$50*BD295+(1-$C$50)*BD352) -> 4470 | BE73: 4960 | BF73: 5420 | BG73: =IF(IFERROR($C$50*BG295+(1-$C$50)*BG352,"")=0,"",$C$50*BG295+(1-$C$50)*BG352) -> 5870 | BK73: Nebraska | BL73: 1 | BN73: 1 | BO73: Michigan | BT73: Michigan
A74: 1 | B74: Minnesota | C74: =IF(IFERROR($C$50*C296+(1-$C$50)*C353,"")=0,"",$C$50*C296+(1-$C$50)*C353) -> 201 | D74: 216 | E74: 226 | F74: 231 | G74: 241 | H74: 269 | I74: 338 | J74: 429 | K74: 529 | L74: 672 | M74: 761 | N74: 901 | O74: 1086 | P74: 1281 | Q74: 1272 | R74: 1165 | S74: 1131 | T74: 898 | U74: 694 | V74: 587 | W74: 700 | X74: 747 | Y74: 810 | Z74: 881 | AA74: 884 | AB74: 910 | AC74: 914 | AD74: 950 | AE74: 1030 | AF74: 1090 | AG74: 1160 | AH74: 1230 | AI74: =IF(IFERROR($C$50*AI296+(1-$C$50)*AI353,"")=0,"",$C$50*AI296+(1-$C$50)*AI353) -> 1280 | AJ74: 1350 | AK74: 1430 | AL74: 1520 | AM74: 1680 | AN74: 1920 | AO74: 2130 | AP74: 2420 | AQ74: 2700 | AR74: 2560 | AS74: 2710 | AT74: 3070 | AU74: 3740 | AV74: 4390 | AW74: 4900 | AX74: 4860 | AY74: 4840 | AZ74: 4920 | BA74: 4950 | BB74: 4740 | BC74: 4650 | BD74: =IF(IFERROR($C$50*BD296+(1-$C$50)*BD353,"")=0,"",$C$50*BD296+(1-$C$50)*BD353) -> 5030 | BE74: 5830 | BF74: 6310 | BG74: =IF(IFERROR($C$50*BG296+(1-$C$50)*BG353,"")=0,"",$C$50*BG296+(1-$C$50)*BG353) -> 6540 | BK74: New Jersey | BN74: 1 | BO74: Minnesota | BS74: 1 | BT74: Minnesota
A75: 1 | B75: Mississippi | C75: =IF(IFERROR($C$50*C297+(1-$C$50)*C354,"")=0,"",$C$50*C297+(1-$C$50)*C354) -> 170.0642857 | D75: 185.1438776 | E75: 196.0346939 | F75: 199.3857143 | G75: 202.7367347 | H75: 226.1938776 | I75: 284.8367347 | J75: 317.5091837 | K75: 341.8040816 | L75: 386.205102 | M75: 475.0071429 | N75: 570.5112245 | O75: 686.1214286 | P75: 866.2387755 | Q75: 821.8377551 | R75: 748.9530612 | S75: 795.8673469 | T75: 716.2806122 | U75: 651.7734694 | V75: 573.8622449 | W75: 583.9153061 | X75: 600.6704082 | Y75: 616.5877551 | Z75: 641.7204082 | AA75: 631.6673469 | AB75: 650.9357143 | AC75: 700.3632653 | AD75: 742.2510204 | AE75: 768.2214286 | AF75: 821 | AG75: 878 | AH75: 930 | AI75: =IF(IFERROR($C$50*AI297+(1-$C$50)*AI354,"")=0,"",$C$50*AI297+(1-$C$50)*AI354) -> 985 | AJ75: 1040 | AK75: 1100 | AL75: 1160 | AM75: 1200 | AN75: 1370 | AO75: 1530 | AP75: 1710 | AQ75: 1810 | AR75: 1830 | AS75: 1950 | AT75: 2100 | AU75: 2180 | AV75: 2470 | AW75: 2610 | AX75: 2700 | AY75: 2810 | AZ75: 2900 | BA75: 3000 | BB75: 3130 | BC75: 3220 | BD75: =IF(IFERROR($C$50*BD297+(1-$C$50)*BD354,"")=0,"",$C$50*BD297+(1-$C$50)*BD354) -> 3340 | BE75: 3610 | BF75: 3760 | BG75: =IF(IFERROR($C$50*BG297+(1-$C$50)*BG354,"")=0,"",$C$50*BG297+(1-$C$50)*BG354) -> 3880 | BK75: New Mexico | BN75: 1 | BO75: Mississippi | BS75: 1 | BT75: Mississippi
A76: 1 | B76: Missouri | C76: =IF(IFERROR($C$50*C298+(1-$C$50)*C355,"")=0,"",$C$50*C298+(1-$C$50)*C355) -> 205.9405941 | D76: 223.4455446 | E76: 230.6534653 | F76: 243.009901 | G76: 268.7524752 | H76: 302.7326733 | I76: 395.4059406 | J76: 407.7623762 | K76: 469.5445545 | L76: 564.2772277 | M76: 660.039604 | N76: 747.5643564 | O76: 928.7920792 | P76: 1019.405941 | Q76: 973.0693069 | R76: 881.4257426 | S76: 900.990099 | T76: 709.4653465 | U76: 667.2475248 | V76: 621.9405941 | W76: 659.009901 | X76: 704.3168317 | Y76: 721.8217822 | Z76: 744.4752475 | AA76: 755.8019802 | AB76: 796.990099 | AC76: 849.5049505 | AD76: 906.1386139 | AE76: 978.2178218 | AF76: 1040 | AG76: 1130 | AH76: 1220 | AI76: =IF(IFERROR($C$50*AI298+(1-$C$50)*AI355,"")=0,"",$C$50*AI298+(1-$C$50)*AI355) -> 1300 | AJ76: 1380 | AK76: 1480 | AL76: 1580 | AM76: 1660 | AN76: 1830 | AO76: 2010 | AP76: 2330 | AQ76: 2500 | AR76: 2490 | AS76: 2600 | AT76: 2790 | AU76: 3120 | AV76: 3500 | AW76: 3750 | AX76: 3680 | AY76: 3570 | AZ76: 3560 | BA76: 3490 | BB76: 3510 | BC76: 3560 | BD76: =IF(IFERROR($C$50*BD298+(1-$C$50)*BD355,"")=0,"",$C$50*BD298+(1-$C$50)*BD355) -> 3870 | BE76: 4400 | BF76: 4720 | BG76: =IF(IFERROR($C$50*BG298+(1-$C$50)*BG355,"")=0,"",$C$50*BG298+(1-$C$50)*BG355) -> 4910 | BK76: New York | BL76: 1 | BN76: 1 | BO76: Missouri | BS76: 1 | BT76: Missouri
B77: Montana | C77: =IF(IFERROR($C$50*C299+(1-$C$50)*C356,"")=0,"",$C$50*C299+(1-$C$50)*C356) -> 84.98969072 | D77: 88.13745704 | E77: 94.43298969 | F77: 99.15463918 | G77: 107.024055 | H77: 119.6151203 | I77: 151.0927835 | J77: 176.2749141 | K77: 210.9003436 | L77: 247.0996564 | M77: 277.0034364 | N77: 308.4810997 | O77: 369.862543 | P77: 395.0446735 | Q77: 426.5223368 | R77: 407.6357388 | S77: 434.3917526 | T77: 382.4536082 | U77: 366.7147766 | V77: 314.7766323 | W77: 322.6460481 | X77: 317.9243986 | Y77: 349.4020619 | Z77: 344.6804124 | AA77: 344.6804124 | AB77: 357.2714777 | AC77: 399.766323 | AD77: 435.9656357 | AE77: 454.8522337 | AF77: 458 | AG77: 463 | AH77: 471 | AI77: =IF(IFERROR($C$50*AI299+(1-$C$50)*AI356,"")=0,"",$C$50*AI299+(1-$C$50)*AI356) -> 481 | AJ77: 493 | AK77: 503 | AL77: 520 | AM77: 503 | AN77: 588 | AO77: 756 | AP77: 784 | AQ77: 811 | AR77: 788 | AS77: 779 | AT77: 806 | AU77: 852 | AV77: 890 | AW77: 986 | AX77: 995 | AY77: 1010 | AZ77: 1010 | BA77: 1020 | BB77: 1060 | BC77: 1070 | BD77: =IF(IFERROR($C$50*BD299+(1-$C$50)*BD356,"")=0,"",$C$50*BD299+(1-$C$50)*BD356) -> 1110 | BE77: 1250 | BF77: 1290 | BG77: =IF(IFERROR($C$50*BG299+(1-$C$50)*BG356,"")=0,"",$C$50*BG299+(1-$C$50)*BG356) -> 1280 | BK77: North Carolina | BL77: 1 | BN77: 1 | BO77: Montana | BT77: Montana
A78: 1 | B78: Nebraska | C78: =IF(IFERROR($C$50*C300+(1-$C$50)*C357,"")=0,"",$C$50*C300+(1-$C$50)*C357) -> 235.2580645 | D78: 246.7741935 | E78: 253.3548387 | F78: 258.2903226 | G78: 279.6774194 | H78: 317.516129 | I78: 398.1290323 | J78: 463.9354839 | K78: 597.1935484 | L78: 690.9677419 | M78: 677.8064516 | N78: 863.7096774 | O78: 1044.677419 | P78: 1199.322581 | Q78: 1200.967742 | R78: 1153.258065 | S78: 1061.129032 | T78: 797.9032258 | U78: 684.3870968 | V78: 658.0645161 | W78: 751.8387097 | X78: 840.6774194 | Y78: 862.0645161 | Z78: 850.5483871 | AA78: 850.5483871 | AB78: 845.6129032 | AC78: 904.8387097 | AD78: 954.1935484 | AE78: 1003.548387 | AF78: 1020 | AG78: 1040 | AH78: 1080 | AI78: =IF(IFERROR($C$50*AI300+(1-$C$50)*AI357,"")=0,"",$C$50*AI300+(1-$C$50)*AI357) -> 1130 | AJ78: 1160 | AK78: 1200 | AL78: 1210 | AM78: 1260 | AN78: 1420 | AO78: 1560 | AP78: 1760 | AQ78: 2050 | AR78: 2150 | AS78: 2430 | AT78: 3130 | AU78: 4190 | AV78: 4860 | AW78: 5140 | AX78: 5010 | AY78: 4750 | AZ78: 4430 | BA78: 4380 | BB78: 4300 | BC78: 4170 | BD78: =IF(IFERROR($C$50*BD300+(1-$C$50)*BD357,"")=0,"",$C$50*BD300+(1-$C$50)*BD357) -> 4660 | BE78: 5520 | BF78: 6150 | BG78: =IF(IFERROR($C$50*BG300+(1-$C$50)*BG357,"")=0,"",$C$50*BG300+(1-$C$50)*BG357) -> 6540 | BK78: North Dakota | BL78: 1 | BN78: 1 | BO78: Nebraska | BS78: 1 | BT78: Nebraska
B79: Nevada | C79: =IF(IFERROR($C$50*C301+(1-$C$50)*C358,"")=0,"",$C$50*C301+(1-$C$50)*C358) -> 222.9508197 | D79: 232.2404372 | E79: 246.1748634 | F79: 274.0437158 | G79: 306.557377 | H79: 343.715847 | I79: 394.8087432 | J79: 394.8087432 | K79: 455.1912568 | L79: 520.2185792 | M79: 650.273224 | N79: 887.1584699 | O79: 1151.912568 | P79: 1216.939891 | Q79: 1244.808743 | R79: 1156.557377 | S79: 1216.939891 | T79: 1133.333333 | U79: 1017.213115 | V79: 1114.754098 | W79: 1054.371585 | X79: 1124.043716 | Y79: 961.4754098 | Z79: 1119.398907 | AA79: 1216.939891 | AB79: 1170.491803 | AC79: 1244.808743 | AD79: 1342.349727 | AE79: 1542.076503 | AF79: 1700 | AG79: 1850 | AH79: 1850 | AI79: =IF(IFERROR($C$50*AI301+(1-$C$50)*AI358,"")=0,"",$C$50*AI301+(1-$C$50)*AI358) -> 1850 | AJ79: 1850 | AK79: 1850 | AL79: 1900 | AM79: 1900 | AN79: 2180 | AO79: 2670 | AP79: 2720 | AQ79: 2740 | AR79: 2690 | AW79: 2620 | AX79: 2700.25796 | AY79: 2735.106812 | AZ79: 2803.748489 | BA79: 2872.390165 | BB79: 2964.26441 | BC79: 3001.225312 | BD79: =IF(IFERROR($C$50*BD301+(1-$C$50)*BD358,"")=0,"",$C$50*BD301+(1-$C$50)*BD358) -> 3158.573156 | BE79: 3482.773075 | BF79: 3601.047965 | BG79: =IF(IFERROR($C$50*BG301+(1-$C$50)*BG358,"")=0,"",$C$50*BG301+(1-$C$50)*BG358) -> 3564.227865 | BK79: Ohio | BL79: 1 | BO79: Nevada | BT79: Nevada
B80: New Hampshire | C80: =IF(IFERROR($C$50*C302+(1-$C$50)*C359,"")=0,"",$C$50*C302+(1-$C$50)*C359) ->  | AI80: =IF(IFERROR($C$50*AI302+(1-$C$50)*AI359,"")=0,"",$C$50*AI302+(1-$C$50)*AI359) ->  | BD80: =IF(IFERROR($C$50*BD302+(1-$C$50)*BD359,"")=0,"",$C$50*BD302+(1-$C$50)*BD359) ->  | BG80: =IF(IFERROR($C$50*BG302+(1-$C$50)*BG359,"")=0,"",$C$50*BG302+(1-$C$50)*BG359) ->  | BK80: Oklahoma | BL80: 1 | BO80: New Hampshire | BT80: New Hampshire
B81: New Jersey | C81: =IF(IFERROR($C$50*C303+(1-$C$50)*C360,"")=0,"",$C$50*C303+(1-$C$50)*C360) -> 1042.746479 | D81: 1158.873239 | E81: 1307.323944 | F81: 1355.211268 | G81: 1465.352113 | H81: 1600.633803 | I81: 1893.943662 | J81: 2163.309859 | K81: 2521.267606 | L81: 2646.971831 | M81: 2856.478873 | N81: 3233.591549 | O81: 3528.098592 | P81: 3639.43662 | Q81: 3808.239437 | R81: 3759.15493 | S81: 3542.464789 | T81: 3532.887324 | U81: 3587.957746 | V81: 4464.295775 | W81: 4751.619718 | X81: 5922.464789 | Y81: 6577.323944 | Z81: 7591.338028 | AA81: 8033.098592 | AB81: 8310.84507 | AC81: 8320.422535 | AD81: 8380.28169 | AE81: 8500 | AF81: 8500 | AG81: 8000 | AH81: 8200 | AI81: =IF(IFERROR($C$50*AI303+(1-$C$50)*AI360,"")=0,"",$C$50*AI303+(1-$C$50)*AI360) -> 8400 | AJ81: 8700 | AK81: 9000 | AL81: 9300 | AM81: 11300 | AN81: 13000 | AO81: 14900 | AP81: 16000 | AQ81: 15600 | AR81: 14000 | AS81: 13300 | AT81: 12900 | AU81: 12400 | AV81: 12900 | AW81: 13200 | AX81: 13800 | AY81: 13500 | AZ81: 13600 | BA81: 13700 | BB81: 13400 | BC81: 13300 | BD81: =IF(IFERROR($C$50*BD303+(1-$C$50)*BD360,"")=0,"",$C$50*BD303+(1-$C$50)*BD360) -> 13900 | BE81: 14700 | BF81: 16400 | BG81: =IF(IFERROR($C$50*BG303+(1-$C$50)*BG360,"")=0,"",$C$50*BG303+(1-$C$50)*BG360) -> 16300 | BK81: Oregon | BL81: 1 | BO81: New Jersey | BT81: New Jersey
B82: New Mexico | C82: =IF(IFERROR($C$50*C304+(1-$C$50)*C361,"")=0,"",$C$50*C304+(1-$C$50)*C361) -> 247.4418605 | D82: 253.627907 | E82: 259.8139535 | F82: 278.372093 | G82: 303.1162791 | H82: 346.4186047 | I82: 451.5813953 | J82: 482.5116279 | K82: 532 | L82: 624.7906977 | M82: 692.8372093 | N82: 884.6046512 | O82: 1144.418605 | P82: 1187.72093 | Q82: 1206.27907 | R82: 1101.116279 | S82: 1200.093023 | T82: 1144.418605 | U82: 995.9534884 | V82: 965.0232558 | W82: 1113.488372 | X82: 1144.418605 | Y82: 1144.418605 | Z82: 1299.069767 | AA82: 1311.44186 | AB82: 1200.093023 | AC82: 1224.837209 | AD82: 1292.883721 | AE82: 1311.44186 | AF82: 1330 | AG82: 1380 | AH82: 1390 | AI82: =IF(IFERROR($C$50*AI304+(1-$C$50)*AI361,"")=0,"",$C$50*AI304+(1-$C$50)*AI361) -> 1390 | AJ82: 1420 | AK82: 1440 | AL82: 1470 | AM82: 1010 | AN82: 1140 | AO82: 1370 | AP82: 1570 | AQ82: 1630 | AR82: 1780 | AS82: 1750 | AT82: 1740 | AU82: 1550 | AV82: 1450 | AW82: 1470 | AX82: 1480 | AY82: 1500 | AZ82: 1560 | BA82: 1580 | BB82: 1580 | BC82: 1660 | BD82: =IF(IFERROR($C$50*BD304+(1-$C$50)*BD361,"")=0,"",$C$50*BD304+(1-$C$50)*BD361) -> 1760 | BE82: 1930 | BF82: 1990 | BG82: =IF(IFERROR($C$50*BG304+(1-$C$50)*BG361,"")=0,"",$C$50*BG304+(1-$C$50)*BG361) -> 2000 | BK82: Pennsylvania | BL82: 1 | BO82: New Mexico | BT82: New Mexico
B83: New York | C83: =IF(IFERROR($C$50*C305+(1-$C$50)*C362,"")=0,"",$C$50*C305+(1-$C$50)*C362) -> 186.864 | D83: 204 | E83: 222.768 | F83: 234.192 | G83: 263.568 | H83: 290.496 | I83: 363.12 | J83: 416.16 | K83: 451.248 | L83: 478.992 | M83: 489.6 | N83: 546.72 | O83: 587.52 | P83: 630.768 | Q83: 669.936 | R83: 666.672 | S83: 691.968 | T83: 669.12 | U83: 687.888 | V83: 783.36 | W83: 810.288 | X83: 852.72 | Y83: 827.424 | Z83: 893.52 | AA83: 929.424 | AB83: 1009.392 | AC83: 1028.16 | AD83: 1044.48 | AE83: 1028.16 | AF83: 1020 | AG83: 1040 | AH83: 1110 | AI83: =IF(IFERROR($C$50*AI305+(1-$C$50)*AI362,"")=0,"",$C$50*AI305+(1-$C$50)*AI362) -> 1180 | AJ83: 1250 | AK83: 1320 | AL83: 1390 | AM83: 1460 | AN83: 1520 | AO83: 1800 | AP83: 1900 | AQ83: 2150 | AR83: 2200 | AS83: 2400 | AT83: 2400 | AU83: 2600 | AV83: 2550 | AW83: 2570 | AX83: 2680 | AY83: 2690 | AZ83: 2740 | BA83: 2800 | BB83: 2860 | BC83: 2910 | BD83: =IF(IFERROR($C$50*BD305+(1-$C$50)*BD362,"")=0,"",$C$50*BD305+(1-$C$50)*BD362) -> 3080 | BE83: 3400 | BF83: 3630 | BG83: =IF(IFERROR($C$50*BG305+(1-$C$50)*BG362,"")=0,"",$C$50*BG305+(1-$C$50)*BG362) -> 3850 | BK83: South Carolina | BN83: 1 | BO83: New York | BT83: New York
B84: North Carolina | C84: =IF(IFERROR($C$50*C306+(1-$C$50)*C363,"")=0,"",$C$50*C306+(1-$C$50)*C363) -> 295.16 | D84: 316.78 | E84: 313.02 | F84: 348.74 | G84: 372.24 | H84: 433.34 | I84: 517.94 | J84: 554.6 | K84: 635.44 | L84: 713.46 | M84: 780.2 | N84: 987.94 | O84: 1145.86 | P84: 1259.6 | Q84: 1219.18 | R84: 1235.16 | S84: 1343.26 | T84: 1251.14 | U84: 1178.76 | V84: 1183.46 | W84: 1187.22 | X84: 1282.16 | Y84: 1273.7 | Z84: 1299.08 | AA84: 1367.7 | AB84: 1478.62 | AC84: 1513.4 | AD84: 1645 | AE84: 1786 | AF84: 1880 | AG84: 1950 | AH84: 2150 | AI84: =IF(IFERROR($C$50*AI306+(1-$C$50)*AI363,"")=0,"",$C$50*AI306+(1-$C$50)*AI363) -> 2350 | AJ84: 2550 | AK84: 2750 | AL84: 2950 | AM84: 3100 | AN84: 3350 | AO84: 3450 | AP84: 3720 | AQ84: 3850 | AR84: 3730 | AS84: 3650 | AT84: 3610 | AU84: 3850 | AV84: 4050 | AW84: 4230 | AX84: 4150 | AY84: 4060 | AZ84: 4090 | BA84: 4130 | BB84: 4170 | BC84: 4160 | BD84: =IF(IFERROR($C$50*BD306+(1-$C$50)*BD363,"")=0,"",$C$50*BD306+(1-$C$50)*BD363) -> 4260 | BE84: 4650 | BF84: 4800 | BG84: =IF(IFERROR($C$50*BG306+(1-$C$50)*BG363,"")=0,"",$C$50*BG306+(1-$C$50)*BG363) -> 5120 | BK84: South Dakota | BL84: 1 | BN84: 1 | BO84: North Carolina | BT84: North Carolina
B85: North Dakota | C85: =IF(IFERROR($C$50*C307+(1-$C$50)*C364,"")=0,"",$C$50*C307+(1-$C$50)*C364) -> 91.96923077 | D85: 99.63333333 | E85: 102.9179487 | F85: 104.0128205 | G85: 107.2974359 | H85: 118.2461538 | I85: 157.6615385 | J85: 213.5 | K85: 258.3897436 | L85: 299.9948718 | M85: 328.4615385 | N85: 379.9205128 | O85: 443.4230769 | P85: 477.3641026 | Q85: 498.1666667 | R85: 480.6487179 | S85: 489.4076923 | T85: 408.3871795 | U85: 365.6871795 | V85: 331.7461538 | W85: 349.2641026 | X85: 347.074359 | Y85: 351.4538462 | Z85: 368.9717949 | AA85: 348.1692308 | AB85: 366.7820513 | AC85: 386.4897436 | AD85: 408.3871795 | AE85: 419.3358974 | AF85: 427 | AG85: 440 | AH85: 440 | AI85: =IF(IFERROR($C$50*AI307+(1-$C$50)*AI364,"")=0,"",$C$50*AI307+(1-$C$50)*AI364) -> 440 | AJ85: 445 | AK85: 450 | AL85: 460 | AM85: 490 | AN85: 550 | AO85: 610 | AP85: 670 | AQ85: 810 | AR85: 787 | AS85: 840 | AT85: 987 | AU85: 1260 | AV85: 1750 | AW85: 2020 | AX85: 2080 | AY85: 1910 | AZ85: 1890 | BA85: 1870 | BB85: 1890 | BC85: 1860 | BD85: =IF(IFERROR($C$50*BD307+(1-$C$50)*BD364,"")=0,"",$C$50*BD307+(1-$C$50)*BD364) -> 1960 | BE85: 2200 | BF85: 2450 | BG85: =IF(IFERROR($C$50*BG307+(1-$C$50)*BG364,"")=0,"",$C$50*BG307+(1-$C$50)*BG364) -> 2600 | BK85: Tennessee | BL85: 1 | BN85: 1 | BO85: North Dakota | BT85: North Dakota
A86: 1 | B86: Ohio | C86: =IF(IFERROR($C$50*C308+(1-$C$50)*C365,"")=0,"",$C$50*C308+(1-$C$50)*C365) -> 383.2592593 | D86: 398 | E86: 420.1111111 | F86: 438.010582 | G86: 462.2275132 | H86: 531.7195767 | I86: 660.1746032 | J86: 743.3544974 | K86: 890.7619048 | L86: 1157.148148 | M86: 1288.761905 | N86: 1561.465608 | O86: 1821.534392 | P86: 1927.878307 | Q86: 1715.190476 | R86: 1583.57672 | S86: 1579.365079 | T86: 1279.285714 | U86: 1196.10582 | V86: 1155.042328 | W86: 1262.439153 | X86: 1366.677249 | Y86: 1340.354497 | Z86: 1393 | AA86: 1469.862434 | AB86: 1533.037037 | AC86: 1642.539683 | AD86: 1842.592593 | AE86: 1916.296296 | AF86: 1990 | AG86: 2150 | AH86: 2270 | AI86: =IF(IFERROR($C$50*AI308+(1-$C$50)*AI365,"")=0,"",$C$50*AI308+(1-$C$50)*AI365) -> 2400 | AJ86: 2520 | AK86: 2630 | AL86: 2750 | AM86: 2920 | AN86: 3190 | AO86: 3470 | AP86: 3820 | AQ86: 4140 | AR86: 3830 | AS86: 3900 | AT86: 4160 | AU86: 4640 | AV86: 5190 | AW86: 5740 | AX86: 6030 | AY86: 6070 | AZ86: 6150 | BA86: 6320 | BB86: 6440 | BC86: 6540 | BD86: =IF(IFERROR($C$50*BD308+(1-$C$50)*BD365,"")=0,"",$C$50*BD308+(1-$C$50)*BD365) -> 6920 | BE86: 7740 | BF86: 8450 | BG86: =IF(IFERROR($C$50*BG308+(1-$C$50)*BG365,"")=0,"",$C$50*BG308+(1-$C$50)*BG365) -> 9270 | BK86: Texas | BL86: 1 | BN86: 1 | BO86: Ohio | BS86: 1 | BT86: Ohio
B87: Oklahoma | C87: =IF(IFERROR($C$50*C309+(1-$C$50)*C366,"")=0,"",$C$50*C309+(1-$C$50)*C366) -> 151.3473684 | D87: 157.1684211 | E87: 167.8403509 | F87: 176.5719298 | G87: 188.2140351 | H87: 212.4684211 | I87: 255.1561404 | J87: 292.9929825 | K87: 334.7105263 | L87: 382.2491228 | M87: 436.5789474 | N87: 496.7298246 | O87: 595.6877193 | P87: 660.6894737 | Q87: 703.377193 | R87: 678.1526316 | S87: 696.5859649 | T87: 579.1947368 | U87: 504.4912281 | V87: 460.8333333 | W87: 465.6842105 | X87: 502.5508772 | Y87: 476.3561404 | Z87: 462.7736842 | AA87: 467.6245614 | AB87: 481.2070175 | AC87: 501.5807018 | AD87: 530.6859649 | AE87: 530.6859649 | AF87: 553 | AG87: 577 | AH87: 586 | AI87: =IF(IFERROR($C$50*AI309+(1-$C$50)*AI366,"")=0,"",$C$50*AI309+(1-$C$50)*AI366) -> 600 | AJ87: 619 | AK87: 643 | AL87: 668 | AM87: 695 | AN87: 845 | AO87: 889 | AP87: 979 | AQ87: 1110 | AR87: 1120 | AS87: 1130 | AT87: 1130 | AU87: 1280 | AV87: 1390 | AW87: 1470 | AX87: 1520 | AY87: 1530 | AZ87: 1590 | BA87: 1630 | BB87: 1630 | BC87: 1620 | BD87: =IF(IFERROR($C$50*BD309+(1-$C$50)*BD366,"")=0,"",$C$50*BD309+(1-$C$50)*BD366) -> 1710 | BE87: 1940 | BF87: 2130 | BG87: =IF(IFERROR($C$50*BG309+(1-$C$50)*BG366,"")=0,"",$C$50*BG309+(1-$C$50)*BG366) -> 2310 | BK87: Utah | BN87: 1 | BO87: Oklahoma | BT87: Oklahoma
B88: Oregon | C88: =IF(IFERROR($C$50*C310+(1-$C$50)*C367,"")=0,"",$C$50*C310+(1-$C$50)*C367) -> 199.6041667 | D88: 213.0104167 | E88: 223.4375 | F88: 247.2708333 | G88: 277.0625 | H88: 305.3645833 | I88: 348.5625 | J88: 372.3958333 | K88: 437.9375 | L88: 509.4375 | M88: 616.6875 | N88: 750.75 | O88: 874.3854167 | P88: 995.0416667 | Q88: 1050.15625 | R88: 1050.15625 | S88: 1071.010417 | T88: 916.09375 | U88: 849.0625 | V88: 805.8645833 | W88: 807.3541667 | X88: 798.4166667 | Y88: 853.53125 | Z88: 872.8958333 | AA88: 904.1770833 | AB88: 987.59375 | AC88: 1112.71875 | AD88: 1257.208333 | AE88: 1382.333333 | AF88: 1430 | AG88: 1430 | AH88: 1500 | AI88: =IF(IFERROR($C$50*AI310+(1-$C$50)*AI367,"")=0,"",$C$50*AI310+(1-$C$50)*AI367) -> 1550 | AJ88: 1600 | AK88: 1650 | AL88: 1670 | AM88: 1590 | AN88: 1760 | AO88: 1950 | AP88: 2280 | AQ88: 2380 | AR88: 2300 | AS88: 2210 | AT88: 2180 | AU88: 2340 | AV88: 2400 | AW88: 2520 | AX88: 2630 | AY88: 2780 | AZ88: 2920 | BA88: 3000 | BB88: 3140 | BC88: 3240 | BD88: =IF(IFERROR($C$50*BD310+(1-$C$50)*BD367,"")=0,"",$C$50*BD310+(1-$C$50)*BD367) -> 3500 | BE88: 3940 | BF88: 4090 | BG88: =IF(IFERROR($C$50*BG310+(1-$C$50)*BG367,"")=0,"",$C$50*BG310+(1-$C$50)*BG367) -> 4350 | BK88: Virginia | BL88: 1 | BN88: 1 | BO88: Oregon | BT88: Oregon
B89: Pennsylvania | C89: =IF(IFERROR($C$50*C311+(1-$C$50)*C368,"")=0,"",$C$50*C311+(1-$C$50)*C368) -> 338.7391304 | D89: 375.6086957 | E89: 429.7608696 | F89: 451.6521739 | G89: 482.7608696 | H89: 565.7173913 | I89: 715.5 | J89: 845.6956522 | K89: 944.7826087 | L89: 1145.26087 | M89: 1284.673913 | N89: 1466.717391 | O89: 1686.782609 | P89: 1806.608696 | Q89: 1743.23913 | R89: 1751.304348 | S89: 1838.869565 | T89: 1644.152174 | U89: 1534.695652 | V89: 1774.347826 | W89: 1819.282609 | X89: 2230.608696 | Y89: 2222.543478 | Z89: 2231.76087 | AA89: 2388.456522 | AB89: 2368.869565 | AC89: 2477.173913 | AD89: 2534.782609 | AE89: 2615.434783 | AF89: 2650 | AG89: 2740 | AH89: 2870 | AI89: =IF(IFERROR($C$50*AI311+(1-$C$50)*AI368,"")=0,"",$C$50*AI311+(1-$C$50)*AI368) -> 3000 | AJ89: 3180 | AK89: 3350 | AL89: 3500 | AM89: 3600 | AN89: 4030 | AO89: 4680 | AP89: 5330 | AQ89: 6000 | AR89: 5720 | AS89: 5710 | AT89: 5630 | AU89: 5760 | AV89: 5840 | AW89: 5950 | AX89: 6130 | AY89: 6450 | AZ89: 6470 | BA89: 6890 | BB89: 7110 | BC89: 7250 | BD89: =IF(IFERROR($C$50*BD311+(1-$C$50)*BD368,"")=0,"",$C$50*BD311+(1-$C$50)*BD368) -> 7850 | BE89: 8650 | BF89: 9080 | BG89: =IF(IFERROR($C$50*BG311+(1-$C$50)*BG368,"")=0,"",$C$50*BG311+(1-$C$50)*BG368) -> 9270 | BK89: Washington | BL89: 1 | BN89: 1 | BO89: Pennsylvania | BT89: Pennsylvania
B90: Rhode Island | C90: =IF(IFERROR($C$50*C312+(1-$C$50)*C369,"")=0,"",$C$50*C312+(1-$C$50)*C369) ->  | AI90: =IF(IFERROR($C$50*AI312+(1-$C$50)*AI369,"")=0,"",$C$50*AI312+(1-$C$50)*AI369) ->  | BD90: =IF(IFERROR($C$50*BD312+(1-$C$50)*BD369,"")=0,"",$C$50*BD312+(1-$C$50)*BD369) ->  | BG90: =IF(IFERROR($C$50*BG312+(1-$C$50)*BG369,"")=0,"",$C$50*BG312+(1-$C$50)*BG369) ->  | BK90: West Virginia | BO90: Rhode Island | BT90: Rhode Island
B91: South Carolina | C91: =IF(IFERROR($C$50*C313+(1-$C$50)*C370,"")=0,"",$C$50*C313+(1-$C$50)*C370) -> 178.2928571 | D91: 201.65 | E91: 203.2071429 | F91: 214.8857143 | G91: 243.6928571 | H91: 261.6 | I91: 325.4428571 | J91: 363.5928571 | K91: 400.9642857 | L91: 467.1428571 | M91: 508.4071429 | N91: 601.8357143 | O91: 700.7142857 | P91: 756.7714286 | Q91: 763 | R91: 736.5285714 | S91: 720.9571429 | T91: 699.1571429 | U91: 677.3571429 | V91: 616.6285714 | W91: 678.1357143 | X91: 770.7857143 | Y91: 787.1357143 | Z91: 865.7714286 | AA91: 896.9142857 | AB91: 885.2357143 | AC91: 934.2857143 | AD91: 1043.285714 | AE91: 1058.857143 | AF91: 1090 | AG91: 1160 | AH91: 1250 | AI91: =IF(IFERROR($C$50*AI313+(1-$C$50)*AI370,"")=0,"",$C$50*AI313+(1-$C$50)*AI370) -> 1350 | AJ91: 1450 | AK91: 1600 | AL91: 1750 | AM91: 1840 | AN91: 2020 | AO91: 2110 | AP91: 2430 | AQ91: 2610 | AR91: 2530 | AS91: 2560 | AT91: 2590 | AU91: 2620 | AV91: 2440 | AW91: 2510 | AX91: 2560 | AY91: 2610 | AZ91: 2700 | BA91: 2790 | BB91: 2880 | BC91: 2930 | BD91: =IF(IFERROR($C$50*BD313+(1-$C$50)*BD370,"")=0,"",$C$50*BD313+(1-$C$50)*BD370) -> 3050 | BE91: 3370 | BF91: 3600 | BG91: =IF(IFERROR($C$50*BG313+(1-$C$50)*BG370,"")=0,"",$C$50*BG313+(1-$C$50)*BG370) -> 3800 | BK91: Wisconsin | BL91: 1 | BO91: South Carolina | BT91: South Carolina
A92: 1 | B92: South Dakota | C92: =IF(IFERROR($C$50*C314+(1-$C$50)*C371,"")=0,"",$C$50*C314+(1-$C$50)*C371) -> 112.2461538 | D92: 116.4553846 | E92: 117.8584615 | F92: 119.2615385 | G92: 122.0676923 | H92: 131.8892308 | I92: 166.9661538 | J92: 203.4461538 | K92: 228.7015385 | L92: 272.1969231 | M92: 318.4984615 | N92: 359.1876923 | O92: 409.6984615 | P92: 461.6123077 | Q92: 489.6738462 | R92: 488.2707692 | S92: 509.3169231 | T92: 405.4892308 | U92: 374.6215385 | V92: 333.9323077 | W92: 377.4276923 | X92: 383.04 | Y92: 408.2953846 | Z92: 411.1015385 | AA92: 401.28 | AB92: 383.04 | AC92: 401.28 | AD92: 423.7292308 | AE92: 434.9538462 | AF92: 456 | AG92: 479 | AH92: 505 | AI92: =IF(IFERROR($C$50*AI314+(1-$C$50)*AI371,"")=0,"",$C$50*AI314+(1-$C$50)*AI371) -> 545 | AJ92: 585 | AK92: 626 | AL92: 681 | AM92: 736 | AN92: 876 | AO92: 1040 | AP92: 1180 | AQ92: 1400 | AR92: 1380 | AS92: 1520 | AT92: 1790 | AU92: 2200 | AV92: 2840 | AW92: 3400 | AX92: 3670 | AY92: 3430 | AZ92: 3200 | BA92: 3120 | BB92: 3070 | BC92: 2910 | BD92: =IF(IFERROR($C$50*BD314+(1-$C$50)*BD371,"")=0,"",$C$50*BD314+(1-$C$50)*BD371) -> 3190 | BE92: 3710 | BF92: 4100 | BG92: =IF(IFERROR($C$50*BG314+(1-$C$50)*BG371,"")=0,"",$C$50*BG314+(1-$C$50)*BG371) -> 4350 | BK92: Wyoming | BN92: 1 | BO92: South Dakota | BS92: 1 | BT92: South Dakota
B93: Tennessee | C93: =IF(IFERROR($C$50*C315+(1-$C$50)*C372,"")=0,"",$C$50*C315+(1-$C$50)*C372) -> 255.0909091 | D93: 279.4909091 | E93: 297.2363636 | F93: 307.2181818 | G93: 334.9454545 | H93: 383.7454545 | I93: 460.2727273 | J93: 517.9454545 | K93: 585.6 | L93: 685.4181818 | M93: 816.2909091 | N93: 953.8181818 | O93: 1082.472727 | P93: 1186.727273 | Q93: 1153.454545 | R93: 1124.618182 | S93: 1135.709091 | T93: 1046.981818 | U93: 1037 | V93: 1038.109091 | W93: 1110.2 | X93: 1150.127273 | Y93: 1183.4 | Z93: 1214.454545 | AA93: 1253.272727 | AB93: 1380.818182 | AC93: 1386.363636 | AD93: 1486.181818 | AE93: 1696.909091 | AF93: 1830 | AG93: 1970 | AH93: 2050 | AI93: =IF(IFERROR($C$50*AI315+(1-$C$50)*AI372,"")=0,"",$C$50*AI315+(1-$C$50)*AI372) -> 2120 | AJ93: 2200 | AK93: 2270 | AL93: 2350 | AM93: 2390 | AN93: 2590 | AO93: 2820 | AP93: 3200 | AQ93: 3400 | AR93: 3230 | AS93: 3310 | AT93: 3270 | AU93: 3260 | AV93: 3340 | AW93: 3420 | AX93: 3510 | AY93: 3670 | AZ93: 3730 | BA93: 3830 | BB93: 3920 | BC93: 4010 | BD93: =IF(IFERROR($C$50*BD315+(1-$C$50)*BD372,"")=0,"",$C$50*BD315+(1-$C$50)*BD372) -> 4160 | BE93: 4590 | BF93: 5060 | BG93: =IF(IFERROR($C$50*BG315+(1-$C$50)*BG372,"")=0,"",$C$50*BG315+(1-$C$50)*BG372) -> 5610 | BN93: 1 | BO93: Tennessee | BT93: Tennessee
B94: Texas | C94: =IF(IFERROR($C$50*C316+(1-$C$50)*C373,"")=0,"",$C$50*C316+(1-$C$50)*C373) -> 161.8086643 | D94: 172.7581227 | E94: 180.0577617 | F94: 189.7906137 | G94: 210.4729242 | H94: 238.4548736 | I94: 293.2021661 | J94: 295.6353791 | K94: 333.3501805 | L94: 363.765343 | M94: 409.9963899 | N94: 469.6101083 | O94: 530.4404332 | P94: 569.3718412 | Q94: 655.7509025 | R94: 661.833935 | S94: 744.5631769 | T94: 844.3249097 | U94: 722.6642599 | V94: 664.267148 | W94: 661.833935 | X94: 633.8519856 | Y94: 616.8194946 | Z94: 605.8700361 | AA94: 593.7039711 | AB94: 607.0866426 | AC94: 626.5523466 | AD94: 638.7184116 | AE94: 656.967509 | AF94: 674 | AG94: 701 | AH94: 727 | AI94: =IF(IFERROR($C$50*AI316+(1-$C$50)*AI373,"")=0,"",$C$50*AI316+(1-$C$50)*AI373) -> 769 | AJ94: 805 | AK94: 871 | AL94: 937 | AM94: 960 | AN94: 1030 | AO94: 1190 | AP94: 1360 | AQ94: 1500 | AR94: 1460 | AS94: 1510 | AT94: 1580 | AU94: 1590 | AV94: 1520 | AW94: 1640 | AX94: 1760 | AY94: 1770 | AZ94: 1850 | BA94: 1890 | BB94: 1890 | BC94: 1960 | BD94: =IF(IFERROR($C$50*BD316+(1-$C$50)*BD373,"")=0,"",$C$50*BD316+(1-$C$50)*BD373) -> 2060 | BE94: 2360 | BF94: 2490 | BG94: =IF(IFERROR($C$50*BG316+(1-$C$50)*BG373,"")=0,"",$C$50*BG316+(1-$C$50)*BG373) -> 2570 | BN94: 1 | BO94: Texas | BT94: Texas
B95: Utah | C95: =IF(IFERROR($C$50*C317+(1-$C$50)*C374,"")=0,"",$C$50*C317+(1-$C$50)*C374) -> 247.6923077 | D95: 259.4871795 | E95: 271.2820513 | F95: 321.4102564 | G95: 377.4358974 | H95: 415.7692308 | I95: 504.2307692 | J95: 554.3589744 | K95: 669.3589744 | L95: 799.1025641 | M95: 908.2051282 | N95: 1179.487179 | O95: 1562.820513 | P95: 1671.923077 | Q95: 1736.794872 | R95: 1651.282051 | S95: 1680.769231 | T95: 1512.692308 | U95: 1403.589744 | V95: 1329.871795 | W95: 1253.205128 | X95: 1256.153846 | Y95: 1173.589744 | Z95: 1229.615385 | AA95: 1312.179487 | AB95: 1447.820513 | AC95: 2034.615385 | AD95: 2093.589744 | AE95: 2182.051282 | AF95: 2300 | AG95: 2390 | AH95: 2540 | AI95: =IF(IFERROR($C$50*AI317+(1-$C$50)*AI374,"")=0,"",$C$50*AI317+(1-$C$50)*AI374) -> 2620 | AJ95: 2790 | AK95: 2880 | AL95: 2960 | AM95: 2040 | AN95: 2170 | AO95: 2620 | AP95: 2940 | AQ95: 2700 | AR95: 2810 | AS95: 2720 | AT95: 2690 | AU95: 2690 | AV95: 3230 | AW95: 3320 | AX95: 3430 | AY95: 3530 | AZ95: 3690 | BA95: 3830 | BB95: 4000 | BC95: 4100 | BD95: =IF(IFERROR($C$50*BD317+(1-$C$50)*BD374,"")=0,"",$C$50*BD317+(1-$C$50)*BD374) -> 4290 | BE95: 4680 | BF95: 4870 | BG95: =IF(IFERROR($C$50*BG317+(1-$C$50)*BG374,"")=0,"",$C$50*BG317+(1-$C$50)*BG374) -> 5040 | BO95: Utah | BT95: Utah
B96: Vermont | C96: =IF(IFERROR($C$50*C318+(1-$C$50)*C375,"")=0,"",$C$50*C318+(1-$C$50)*C375) ->  | AI96: =IF(IFERROR($C$50*AI318+(1-$C$50)*AI375,"")=0,"",$C$50*AI318+(1-$C$50)*AI375) ->  | BD96: =IF(IFERROR($C$50*BD318+(1-$C$50)*BD375,"")=0,"",$C$50*BD318+(1-$C$50)*BD375) ->  | BG96: =IF(IFERROR($C$50*BG318+(1-$C$50)*BG375,"")=0,"",$C$50*BG318+(1-$C$50)*BG375) ->  | BO96: Vermont | BT96: Vermont
B97: Virginia | C97: =IF(IFERROR($C$50*C319+(1-$C$50)*C376,"")=0,"",$C$50*C319+(1-$C$50)*C376) -> 237.1808511 | D97: 249.7659574 | E97: 276.8723404 | F97: 299.1382979 | G97: 333.9893617 | H97: 378.5212766 | I97: 485.0106383 | J97: 540.1914894 | K97: 612.7978723 | L97: 678.6276596 | M97: 749.2978723 | N97: 900.3191489 | O97: 995.1914894 | P97: 1082.319149 | Q97: 1061.021277 | R97: 1089.095745 | S97: 1089.095745 | T97: 1076.510638 | U97: 1141.37234 | V97: 1117.170213 | W97: 1159.765957 | X97: 1352.414894 | Y97: 1611.861702 | Z97: 1442.446809 | AA97: 1590.56383 | AB97: 1583.787234 | AC97: 1539.255319 | AD97: 1665.106383 | AE97: 1781.276596 | AF97: 1820 | AG97: 1880 | AH97: 1980 | AI97: =IF(IFERROR($C$50*AI319+(1-$C$50)*AI376,"")=0,"",$C$50*AI319+(1-$C$50)*AI376) -> 2150 | AJ97: 2350 | AK97: 2550 | AL97: 2800 | AM97: 3200 | AN97: 3850 | AO97: 4800 | AP97: 5250 | AQ97: 5350 | AR97: 4950 | AS97: 4600 | AT97: 4350 | AU97: 4500 | AV97: 4450 | AW97: 4520 | AX97: 4560 | AY97: 4610 | AZ97: 4730 | BA97: 4760 | BB97: 4690 | BC97: 4610 | BD97: =IF(IFERROR($C$50*BD319+(1-$C$50)*BD376,"")=0,"",$C$50*BD319+(1-$C$50)*BD376) -> 4690 | BE97: 5100 | BF97: 5490 | BG97: =IF(IFERROR($C$50*BG319+(1-$C$50)*BG376,"")=0,"",$C$50*BG319+(1-$C$50)*BG376) -> 5930 | BN97: 1 | BO97: Virginia | BT97: Virginia
B98: Washington | C98: =IF(IFERROR($C$50*C320+(1-$C$50)*C377,"")=0,"",$C$50*C320+(1-$C$50)*C377) -> 229.8793103 | D98: 248.362069 | E98: 258.7586207 | F98: 258.7586207 | G98: 274.9310345 | H98: 315.362069 | I98: 355.7931034 | J98: 404.3103448 | K98: 505.9655172 | L98: 618.0172414 | M98: 695.4137931 | N98: 799.3793103 | O98: 850.2068966 | P98: 1013.086207 | Q98: 1065.068966 | R98: 1077.775862 | S98: 1122.827586 | T98: 1089.327586 | U98: 970.3448276 | V98: 873.3103448 | W98: 853.6724138 | X98: 897.5689655 | Y98: 948.3965517 | Z98: 998.0689655 | AA98: 1016.551724 | AB98: 1030.413793 | AC98: 1178.275862 | AD98: 1236.034483 | AE98: 1293.793103 | AF98: 1340 | AG98: 1430 | AH98: 1410 | AI98: =IF(IFERROR($C$50*AI320+(1-$C$50)*AI377,"")=0,"",$C$50*AI320+(1-$C$50)*AI377) -> 1420 | AJ98: 1430 | AK98: 1450 | AL98: 1470 | AM98: 1470 | AN98: 1560 | AO98: 1620 | AP98: 1700 | AQ98: 1830 | AR98: 1780 | AS98: 1870 | AT98: 1930 | AU98: 2190 | AV98: 2420 | AW98: 2510 | AX98: 2530 | AY98: 2590 | AZ98: 2660 | BA98: 2630 | BB98: 2680 | BC98: 2710 | BD98: =IF(IFERROR($C$50*BD320+(1-$C$50)*BD377,"")=0,"",$C$50*BD320+(1-$C$50)*BD377) -> 2860 | BE98: 3180 | BF98: 3300 | BG98: =IF(IFERROR($C$50*BG320+(1-$C$50)*BG377,"")=0,"",$C$50*BG320+(1-$C$50)*BG377) -> 3410 | BN98: 1 | BO98: Washington | BT98: Washington
B99: West Virginia | C99: =IF(IFERROR($C$50*C321+(1-$C$50)*C378,"")=0,"",$C$50*C321+(1-$C$50)*C378) -> 167.2 | D99: 186.2666667 | E99: 199.4666667 | F99: 221.4666667 | G99: 253.7333333 | H99: 299.2 | I99: 384.2666667 | J99: 440 | K99: 576.4 | L99: 630.6666667 | M99: 673.2 | N99: 868.2666667 | O99: 981.2 | P99: 998.8 | Q99: 1060.4 | R99: 1009.066667 | S99: 1023.733333 | T99: 890.2666667 | U99: 903.4666667 | V99: 928.4 | W99: 1000.266667 | X99: 1072.133333 | Y99: 973.8666667 | Z99: 1032.533333 | AA99: 1236.4 | AB99: 1245.2 | AC99: 1274.533333 | AD99: 1349.333333 | AE99: 1437.333333 | AF99: 1540 | AG99: 1600 | AH99: 1630 | AI99: =IF(IFERROR($C$50*AI321+(1-$C$50)*AI378,"")=0,"",$C$50*AI321+(1-$C$50)*AI378) -> 1700 | AJ99: 1800 | AK99: 1920 | AL99: 2050 | AM99: 2200 | AN99: 3200 | AO99: 3300 | AP99: 3600 | AQ99: 3800 | AR99: 3440 | AS99: 3300 | AT99: 3340 | AU99: 3250 | AV99: 3200 | AW99: 3240 | AX99: 3290 | AY99: 3220 | AZ99: 3250 | BA99: 3250 | BB99: 3300 | BC99: 3310 | BD99: =IF(IFERROR($C$50*BD321+(1-$C$50)*BD378,"")=0,"",$C$50*BD321+(1-$C$50)*BD378) -> 3390 | BE99: 3700 | BF99: 3920 | BG99: =IF(IFERROR($C$50*BG321+(1-$C$50)*BG378,"")=0,"",$C$50*BG321+(1-$C$50)*BG378) -> 4050 | BO99: West Virginia | BT99: West Virginia
B100: Wisconsin | C100: =IF(IFERROR($C$50*C322+(1-$C$50)*C379,"")=0,"",$C$50*C322+(1-$C$50)*C379) -> 171.5555556 | D100: 189.3333333 | E100: 206.2222222 | F100: 226.6666667 | G100: 243.5555556 | H100: 291.5555556 | I100: 345.7777778 | J100: 385.7777778 | K100: 440.8888889 | L100: 531.5555556 | M100: 638.2222222 | N100: 760.8888889 | O100: 892.4444444 | P100: 1024 | Q100: 1016.888889 | R100: 989.3333333 | S100: 981.3333333 | T100: 839.1111111 | U100: 743.1111111 | V100: 690.6666667 | W100: 734.2222222 | X100: 751.1111111 | Y100: 712 | Z100: 754.6666667 | AA100: 768.8888889 | AB100: 822.2222222 | AC100: 860.4444444 | AD100: 924.4444444 | AE100: 1004.444444 | AF100: 1040 | AG100: 1130 | AH100: 1350 | AI100: =IF(IFERROR($C$50*AI322+(1-$C$50)*AI379,"")=0,"",$C$50*AI322+(1-$C$50)*AI379) -> 1600 | AJ100: 1800 | AK100: 2000 | AL100: 2200 | AM100: 2320 | AN100: 2540 | AO100: 2900 | AP100: 3370 | AQ100: 3600 | AR100: 3600 | AS100: 3550 | AT100: 3780 | AU100: 4000 | AV100: 4010 | AW100: 4280 | AX100: 4550 | AY100: 4660 | AZ100: 4870 | BA100: 4740 | BB100: 4840 | BC100: 4740 | BD100: =IF(IFERROR($C$50*BD322+(1-$C$50)*BD379,"")=0,"",$C$50*BD322+(1-$C$50)*BD379) -> 5240 | BE100: 5940 | BF100: 6620 | BG100: =IF(IFERROR($C$50*BG322+(1-$C$50)*BG379,"")=0,"",$C$50*BG322+(1-$C$50)*BG379) -> 6800 | BN100: 1 | BO100: Wisconsin | BT100: Wisconsin
B101: Wyoming | C101: =IF(IFERROR($C$50*C323+(1-$C$50)*C380,"")=0,"",$C$50*C323+(1-$C$50)*C380) -> 124.5767442 | D101: 131.4976744 | E101: 141.8790698 | F101: 145.3395349 | G101: 166.1023256 | H101: 190.3255814 | I101: 242.2325581 | J101: 276.8372093 | K101: 339.1255814 | L101: 380.6511628 | M101: 418.7162791 | N101: 498.3069767 | O101: 557.1348837 | P101: 622.8837209 | Q101: 667.8697674 | R101: 667.8697674 | S101: 688.6325581 | T101: 626.344186 | U101: 550.2139535 | V101: 543.2930233 | W101: 508.6883721 | X101: 498.3069767 | Y101: 529.4511628 | Z101: 550.2139535 | AA101: 501.7674419 | AB101: 550.2139535 | AC101: 622.8837209 | AD101: 664.4093023 | AE101: 712.855814 | AF101: 744 | AG101: 777 | AH101: 807 | AI101: =IF(IFERROR($C$50*AI323+(1-$C$50)*AI380,"")=0,"",$C$50*AI323+(1-$C$50)*AI380) -> 830 | AJ101: 872 | AK101: 915 | AL101: 957 | AM101: 690 | AN101: 812 | AO101: 970 | AP101: 1150 | AQ101: 1180 | AR101: 1200 | AS101: 1230 | AT101: 1320 | AU101: 1360 | AV101: 1360 | AW101: 1400 | AX101: 1420 | AY101: 1450 | AZ101: 1460 | BA101: 1490 | BB101: 1560 | BC101: 1600 | BD101: =IF(IFERROR($C$50*BD323+(1-$C$50)*BD380,"")=0,"",$C$50*BD323+(1-$C$50)*BD380) -> 1700 | BE101: 1850 | BF101: 1940 | BG101: =IF(IFERROR($C$50*BG323+(1-$C$50)*BG380,"")=0,"",$C$50*BG323+(1-$C$50)*BG380) -> 1960 | BO101: Wyoming | BT101: Wyoming
A102: =SUM(A52:A101) -> 12 | B102: Ave. of Reported | C102: =AVERAGE(C52:C101) -> 278.0358185 | D102: 294.9682479 | E102: 311.2566475 | F102: =AVERAGE(F52:F101) -> 327.1044749 | G102: 353.5683517 | H102: 396.2742232 | I102: 483.8792885 | J102: 546.0014457 | K102: 635.955153 | L102: 742.3482267 | M102: 834.8222283 | N102: 992.162769 | O102: 1169.280279 | P102: 1290.112179 | Q102: 1287.31785 | R102: 1239.869985 | S102: 1258.015625 | T102: 1135.663044 | U102: 1054.315711 | V102: 1039.927929 | W102: 1092.867999 | X102: 1192.941284 | Y102: 1235.366376 | Z102: 1292.870895 | AA102: 1332.773148 | AB102: 1384.63476 | AC102: 1499.169449 | AD102: 1574.105773 | AE102: 1652.178761 | AF102: 1712.666667 | AG102: 1770.928571 | AH102: 1858.166667 | AI102: 1948.52381 | AJ102: 2047.571429 | AK102: 2157.52381 | AL102: 2262.071429 | AM102: 2401.5 | AN102: 2928.738095 | AO102: 3329.738095 | AP102: 3638.02381 | AQ102: 3794.309524 | AR102: 3567.5 | AS102: 3507.04878 | AT102: 3630.804878 | AU102: 3836.634146 | AV102: 4090.97561 | AW102: 4242.52381 | AX102: 4313.934713 | AY102: 4332.264448 | AZ102: 4367.232107 | BA102: 4426.723575 | BB102: 4490.101534 | BC102: 4507.410126 | BD102: 4757.82317 | BE102: 5273.637454 | BF102: 5624.072571 | BG102: 5856.148283
B103: =A102&" State Average" -> 12 State Average | C103: =SUMPRODUCT(C52:C101,$A$52:$A$101)/$A$102 -> 271.4383039 | D103: =SUMPRODUCT(D52:D101,$A$52:$A$101)/$A$102 -> 284.4592877 | E103: 291.2066908 | F103: =SUMPRODUCT(F52:F101,$A$52:$A$101)/$A$102 -> 298.6832248 | G103: 318.0474059 | H103: 355.6735712 | I103: 442.9673315 | J103: 510.7239863 | K103: 615.9532273 | L103: 780.2373331 | M103: 870.3081848 | N103: 1032.317813 | O103: 1216.928657 | P103: 1351.366032 | Q103: 1285.323278 | R103: 1180.156262 | S103: 1170.708908 | T103: 952.7481301 | U103: 827.6472283 | V103: 746.9599371 | W103: 821.0605439 | X103: 884.7383814 | Y103: 894.7290248 | Z103: 923.3836971 | AA103: 939.699889 | AB103: 971.1006564 | AC103: 1030.539748 | AD103: 1107.166494 | AE103: 1170.500065 | AF103: 1232 | AG103: 1315.166667 | AH103: 1371.25 | AI103: 1423 | AJ103: 1474 | AK103: 1535.416667 | AL103: 1601.25 | AM103: 1699.5 | AN103: 1941 | AO103: 2138.666667 | AP103: 2407.833333 | AQ103: 2705.833333 | AR103: 2608.333333 | AS103: 2780.833333 | AT103: 3207.5 | AU103: 3747.5 | AV103: 4300 | AW103: 4655.833333 | AX103: 4623.333333 | AY103: 4529.166667 | AZ103: 4462.5 | BA103: 4472.5 | BB103: 4470.833333 | BC103: 4435.833333 | BD103: 4755 | BE103: 5400 | BF103: 5803.333333 | BG103: 6090.833333
B143: =B50 -> Cropland
B144: Note Mixed Compounding conventions | E144: =(AR148/E148)^(1/40)-1 -> 0.05634987743
B145: Data from Land Returns by State spreadsheet
C147: =MATCH(B148,B52:B103,0) -> 13
B148: =B6 -> Illinois | C148: =INDEX(C52:C103,$C$147) -> 491.3636364 | D148: =INDEX(D52:D103,$C$147) -> 515.4090909 | E148: =INDEX(E52:E103,$C$147) -> 512.2727273 | F148: =INDEX(F52:F103,$C$147) -> 516.4545455 | G148: =INDEX(G52:G103,$C$147) -> 545.7272727 | H148: =INDEX(H52:H103,$C$147) -> 592.7727273 | I148: =INDEX(I52:I103,$C$147) -> 752.7272727 | J148: =INDEX(J52:J103,$C$147) -> 884.4545455 | K148: =INDEX(K52:K103,$C$147) -> 1110.272727 | L148: =INDEX(L52:L103,$C$147) -> 1524.272727 | M148: =INDEX(M52:M103,$C$147) -> 1698.863636 | N148: =INDEX(N52:N103,$C$147) -> 1942.454545 | O148: =INDEX(O52:O103,$C$147) -> 2133.772727 | P148: =INDEX(P52:P103,$C$147) -> 2287.454545 | Q148: =INDEX(Q52:Q103,$C$147) -> 2114.954545 | R148: =INDEX(R52:R103,$C$147) -> 1920.5 | S148: =INDEX(S52:S103,$C$147) -> 1928.863636 | T148: =INDEX(T52:T103,$C$147) -> 1443.772727 | U148: =INDEX(U52:U103,$C$147) -> 1288 | V148: =INDEX(V52:V103,$C$147) -> 1201.227273 | W148: =INDEX(W52:W103,$C$147) -> 1319.363636 | X148: =INDEX(X52:X103,$C$147) -> 1454.227273 | Y148: =INDEX(Y52:Y103,$C$147) -> 1468.863636 | Z148: =INDEX(Z52:Z103,$C$147) -> 1525.318182 | AA148: =INDEX(AA52:AA103,$C$147) -> 1605.818182 | AB148: =INDEX(AB52:AB103,$C$147) -> 1618.363636 | AC148: =INDEX(AC52:AC103,$C$147) -> 1745.909091 | AD148: =INDEX(AD52:AD103,$C$147) -> 1902.727273 | AE148: =INDEX(AE52:AE103,$C$147) -> 1986.363636 | AF148: =INDEX(AF52:AF103,$C$147) -> 2070 | AG148: =INDEX(AG52:AG103,$C$147) -> 2240 | AH148: =INDEX(AH52:AH103,$C$147) -> 2320 | AI148: =INDEX(AI52:AI103,$C$147) -> 2350 | AJ148: =INDEX(AJ52:AJ103,$C$147) -> 2370 | AK148: =INDEX(AK52:AK103,$C$147) -> 2430 | AL148: =INDEX(AL52:AL103,$C$147) -> 2500 | AM148: =INDEX(AM52:AM103,$C$147) -> 2650 | AN148: =INDEX(AN52:AN103,$C$147) -> 3250 | AO148: =INDEX(AO52:AO103,$C$147) -> 3640 | AP148: =INDEX(AP52:AP103,$C$147) -> 4150 | AQ148: =INDEX(AQ52:AQ103,$C$147) -> 4850 | AR148: =INDEX(AR52:AR103,$C$147) -> 4590 | AS148: =INDEX(AS52:AS103,$C$147) -> 4720 | AT148: =INDEX(AT52:AT103,$C$147) -> 5480 | AU148: =INDEX(AU52:AU103,$C$147) -> 6300 | AV148: =INDEX(AV52:AV103,$C$147) -> 7190 | AW148: =INDEX(AW52:AW103,$C$147) -> 7660 | AX148: =INDEX(AX52:AX103,$C$147) -> 7580 | AY148: =INDEX(AY52:AY103,$C$147) -> 7350 | AZ148: =INDEX(AZ52:AZ103,$C$147) -> 7210 | BA148: =INDEX(BA52:BA103,$C$147) -> 7280 | BB148: =INDEX(BB52:BB103,$C$147) -> 7300 | BC148: =INDEX(BC52:BC103,$C$147) -> 7300 | BD148: =INDEX(BD52:BD103,$C$147) -> 7800 | BE148: =INDEX(BE52:BE103,$C$147) -> 8700 | BF148: =INDEX(BF52:BF103,$C$147) -> 9250 | BG148: =INDEX(BG52:BG103,$C$147) -> 9550
B149: ="Ave. "&B143&" Prices - "&$B$148 -> Ave. Cropland Prices - Illinois
B150: ="Total Return - "&$B$148 -> Total Return - Illinois | D150: =INDEX(D159:D211,$C$147,1) -> 0.1052999283 | E150: =INDEX(E159:E211,$C$147,1) -> 0.05038765708 | F150: 0.0635479256 | G150: 0.1101885211 | H150: 0.1403809886 | I150: 0.3276541524 | J150: 0.2352248017 | K150: 0.3140303668 | L150: 0.4237530426 | M150: 0.1620476849 | N150: 0.1875607902 | O150: 0.1422599882 | P150: 0.1153357229 | Q150: -0.02486359927 | R150: -0.03825867181 | S150: 0.05990238688 | T150: -0.18348381 | U150: -0.03956934453 | V150: -0.008629299807 | W150: 0.1549830327 | X150: 0.1567089448 | Y150: 0.06690853426 | Z150: 0.0947263172 | AA150: 0.1080211969 | AB150: 0.06195362673 | AC150: 0.1309768689 | AD150: 0.1336310557 | AE150: 0.08885348578 | AF150: 0.08631994912 | AG150: 0.1171852341 | AH150: 0.08208764235 | AI150: 0.06055773182 | AJ150: 0.05562741076 | AK150: 0.0684436018 | AL150: 0.07532811686 | AM150: 0.09433756394 | AN150: 0.2879718933 | AO150: 0.1490618847 | AP150: 0.1490045104 | AQ150: 0.161126765 | AR150: 0.009070279042 | AS150: 0.09211547323 | AT150: 0.1906644252 | AU150: 0.1795603185 | AV150: 0.1694728465 | AW150: 0.09241908005 | AX150: 0.01675494151 | AY150: -0.002511358178 | AZ150: 0.008704117411 | BA150: 0.03728810294 | BB150: 0.02682010984 | BC150: 0.02249341181 | BD150: =INDEX(BD159:BD211,$C$147,1) -> 0.09089028083 | BE150: 0.1394010507 | BF150: 0.08582825897 | BG150: =INDEX(BG159:BG211,$C$147,1) -> 0.0550474667
B151: Current Income/Value | D151: =INDEX(D216:D268,$C$147,1) -> 0.0702354705 | E151: =INDEX(E216:E268,$C$147,1) -> 0.07105590062 | F151: 0.07086780496 | G151: 0.06963185074 | H151: 0.07000996856 | I151: 0.07041062802 | J151: 0.07123034228 | K151: 0.06827151396 | L151: 0.05838850122 | M151: 0.05474247492 | N151: 0.05096644358 | O151: 0.05014592165 | P151: 0.04974962245 | Q151: 0.05645511401 | R151: 0.06055714658 | S151: 0.06184988806 | T151: 0.07625853981 | U151: 0.0775621118 | V151: 0.07134370152 | W151: 0.06760835113 | X151: 0.06484543494 | Y151: 0.06767136005 | Z151: 0.06615013261 | AA151: 0.0643285779 | AB151: 0.06358274351 | AC151: 0.06145795366 | AD151: 0.05239847109 | AE151: 0.05336384439 | AF151: 0.05265700483 | AG151: 0.04955357143 | AH151: 0.04784482759 | AI151: 0.05063829787 | AJ151: 0.05021097046 | AK151: 0.05020576132 | AL151: 0.0492 | AM151: 0.04754716981 | AN151: 0.03969230769 | AO151: 0.03626373626 | AP151: 0.03397590361 | AQ151: 0.03360824742 | AR151: 0.03551198257 | AS151: 0.03580508475 | AT151: 0.03339416058 | AU151: 0.03365079365 | AV151: 0.03101529903 | AW151: 0.03054830287 | AX151: 0.03007915567 | AY151: 0.03006802721 | AZ151: 0.03023578363 | BA151: 0.03063186813 | BB151: 0.03068493151 | BC151: 0.0304109589 | BD151: =INDEX(BD216:BD268,$C$147,1) -> 0.0291025641 | BE151: 0.02793103448 | BF151: 0.028 | BG151: =INDEX(BG216:BG268,$C$147,1) -> 0.02816753927
B153: discrete used 2023
B154: State | C154: 1968 | D154: 1969 | E154: 1970 | F154: 1971 | G154: 1972 | H154: 1973 | I154: 1974 | J154: 1975 | K154: 1976 | L154: 1977 | M154: 1978 | N154: 1979 | O154: 1980 | P154: 1981 | Q154: 1982 | R154: 1983 | S154: 1984 | T154: 1985 | U154: 1986 | V154: 1987 | W154: 1988 | X154: 1989 | Y154: 1990 | Z154: 1991 | AA154: 1992 | AB154: 1993 | AC154: 1994 | AD154: 1995 | AE154: 1996 | AF154: 1997 | AG154: 1998 | AH154: 1999 | AI154: 2000 | AJ154: 2001 | AK154: 2002 | AL154: 2003 | AM154: 2004 | AN154: 2005 | AO154: 2006 | AP154: 2007 | AQ154: 2008 | AR154: 2009 | AS154: 2010 | AT154: 2011 | AU154: 2012 | AV154: 2013 | AW154: 2014 | AX154: 2015 | AY154: 2016 | AZ154: 2017 | BA154: 2018 | BB154: 2019 | BC154: 2020 | BD154: 2021 | BE154: 2022 | BF154: 2023 | BG154: 2024
B155: Capital Gain Rate | D155: =LN(D156/C156) -> 0.04777647934 | E155: -0.006103782938 | F155: 0.008130126083 | G155: 0.05513207069 | H155: 0.08269171585 | I155: 0.2388919083 | J155: 0.1612681476 | K155: 0.2273898422 | L155: 0.3169117108 | M155: 0.1084421822 | N155: 0.1339928246 | O155: 0.09393924344 | P155: 0.06954800073 | Q155: -0.07840632637 | R155: -0.09644775195 | S155: 0.00434547126 | T155: -0.2896714031 | U155: -0.1141690093 | V155: -0.06974686624 | W155: 0.09380576525 | X155: 0.09732514882 | Y155: 0.01001438984 | Z155: 0.03771396675 | AA155: 0.05143036518 | AB155: 0.007782140442 | AC155: 0.07585985126 | AD155: 0.08601287466 | AE155: 0.04301738508 | AF155: 0.04124295853 | AG155: 0.07892725859 | AH155: 0.03509131981 | AI155: 0.01284814248 | AJ155: 0.008474626991 | AK155: 0.02500130221 | AL155: 0.02839947452 | AM155: 0.05826890812 | AN155: =LN(AN156/AM156) -> 0.2040953563 | AO155: 0.1133286853 | AP155: 0.1311246526 | AQ155: 0.1558703707 | AR155: -0.05509868088 | AS155: 0.02792877553 | AT155: 0.1492963014 | AU155: 0.1394445324 | AV155: 0.1321415383 | AW155: 0.06332081202 | AX155: -0.0104987841 | AY155: =LN(AY156/AX156) -> -0.03081288643 | AZ155: =LN(AZ156/AY156) -> -0.01923136193 | BA155: =LN(BA156/AZ156) -> 0.009661910912 | BB155: =LN(BB156/BA156) -> 0.002743485946 | BC155: =LN(BC156/BB156) -> 0 | BD155: 0.06624938554 | BE155: =LN(BE156/BD156) -> 0.109199292 | BF155: =LN(BF156/BE156) -> 0.06130052586 | BG155: 0.03191760297
B156: =B149 -> Ave. Cropland Prices - Illinois | C156: =C148 -> 491.3636364 | D156: =D148 -> 515.4090909 | E156: 512.2727273 | F156: 516.4545455 | G156: 545.7272727 | H156: 592.7727273 | I156: 752.7272727 | J156: 884.4545455 | K156: 1110.272727 | L156: 1524.272727 | M156: 1698.863636 | N156: 1942.454545 | O156: 2133.772727 | P156: 2287.454545 | Q156: 2114.954545 | R156: 1920.5 | S156: 1928.863636 | T156: 1443.772727 | U156: 1288 | V156: 1201.227273 | W156: 1319.363636 | X156: 1454.227273 | Y156: 1468.863636 | Z156: 1525.318182 | AA156: 1605.818182 | AB156: 1618.363636 | AC156: 1745.909091 | AD156: 1902.727273 | AE156: 1986.363636 | AF156: 2070 | AG156: 2240 | AH156: 2320 | AI156: 2350 | AJ156: 2370 | AK156: 2430 | AL156: 2500 | AM156: 2650 | AN156: 3250 | AO156: =AO148 -> 3640 | AP156: 4150 | AQ156: 4850 | AR156: 4590 | AS156: 4720 | AT156: 5480 | AU156: 6300 | AV156: =AV148 -> 7190 | AW156: 7660 | AX156: 7580 | AY156: =AY148 -> 7350 | AZ156: =AZ148 -> 7210 | BA156: 7280 | BB156: 7300 | BC156: 7300 | BD156: =BD148 -> 7800 | BE156: 8700 | BF156: 9250 | BG156: =BG148 -> 9550
B157: (from cropland)
B158: Total Return (CG + rent - tax)/val | D158: 1969 | E158: 1970 | F158: 1971 | G158: 1972 | H158: 1973 | I158: 1974 | J158: 1975 | K158: 1976 | L158: 1977 | M158: 1978 | N158: 1979 | O158: 1980 | P158: 1981 | Q158: 1982 | R158: 1983 | S158: 1984 | T158: 1985 | U158: 1986 | V158: 1987 | W158: 1988 | X158: 1989 | Y158: 1990 | Z158: 1991 | AA158: 1992 | AB158: 1993 | AC158: 1994 | AD158: 1995 | AE158: 1996 | AF158: 1997 | AG158: 1998 | AH158: 1999 | AI158: 2000 | AJ158: 2001 | AK158: 2002 | AL158: 2003 | AM158: 2004 | AN158: 2005 | AO158: 2006 | AP158: 2007 | AQ158: 2008 | AR158: 2009 | AS158: 2010 | AT158: 2011 | AU158: 2012 | AV158: 2013 | AW158: 2014 | AX158: 2015 | AY158: 2016 | AZ158: 2017 | BA158: 2018 | BB158: 2019 | BC158: 2020 | BD158: 2021 | BE158: 2022 | BF158: 2023 | BG158: 2024
B159: Alabama | D159: 0.1946623886 | E159: 0.1652885364 | F159: 0.21421257 | G159: 0.1267647174 | H159: 0.2093963953 | I159: 0.3097472092 | J159: 0.1675892662 | K159: 0.2299042257 | L159: 0.1856665658 | M159: 0.1656183115 | N159: 0.2672748511 | O159: 0.2704478753 | P159: 0.2097126851 | Q159: 0.01642877803 | R159: -0.01738491832 | S159: 0.03700819769 | T159: 0.006745504481 | U159: 0.04714274462 | V159: 0.01752395115 | W159: 0.05885278188 | X159: 0.09640231338 | Y159: 0.09158775037 | Z159: 0.005895710644 | AA159: 0.1145467396 | AB159: 0.1011889017 | AC159: 0.1550779998 | AD159: 0.1556837831 | AE159: 0.07904578926 | AF159: 0.05742841327 | AG159: 0.08456695435 | AH159: 0.06241962963 | AI159: 0.0672056129 | AJ159: 0.06582251056 | AK159: 0.05705998581 | AL159: 0.05420066102 | AM159: 0.06812675885 | AN159: 0.1254995161 | AO159: 0.03932878811 | AP159: 0.06265956298 | AQ159: 0.05947881106 | AR159: -0.005539118999 | AS159: 0.03841181471 | AT159: 0.03565486558 | AU159: 0.04295252191 | AV159: 0.01788191216 | AW159: 0.06630711004 | AX159: 0.03479664646 | AY159: 0.06299524259 | AZ159: 0.04466403659 | BA159: 0.05730326913 | BB159: 0.06389500891 | BC159: 0.04820953995 | BD159: 0.03796198313 | BE159: 0.1208085916 | BF159: 0.04343657078 | BG159: 0.08278884246
B160: Alaska
B161: Arizona | D161: 0.05856774096 | E161: 0.07252721017 | F161: 0.1137326262 | G161: 0.1594780973 | H161: 0.08671774193 | I161: 0.2374324258 | J161: 0.03726501677 | K161: 0.1276121486 | L161: 0.1599319423 | M161: 0.1454497572 | N161: 0.3222373106 | O161: 0.3728038105 | P161: 0.1062301894 | Q161: 0.08461305422 | R161: -0.01101742185 | S161: 0.1947271757 | T161: 0.06781728187 | U161: 0.04049490923 | V161: 0.2046062181 | W161: 0.06157925569 | X161: 0.1253524142 | Y161: 0.09479539383 | Z161: 0.2111562229 | AA161: 0.1689956338 | AB161: 0.120642368 | AC161: 1.608077956 | AD161: 0.0614969706 | AE161: 0.07292703787 | AF161: 0.07431665011 | AG161: 0.1047032901 | AH161: 0.1160474561 | AI161: 0.1067589408 | AJ161: 0.1190592698 | AK161: 0.1521411375 | AL161: 0.1036998915 | AM161: 0.09896045468 | AN161: 0.4886588767 | AO161: 0.3414614313 | AP161: 0.08144400497 | AQ161: 0.1261112174 | AR161: 0.01527642437 | AS161: 0.005219897895 | AT161: 0.001371120496 | AU161: 0.07007114945 | AV161: 0.0677164356 | AW161: 0.007967440025 | AX161: 0.003529702468 | AY161: 0.004671203622 | AZ161: 0.02035588348 | BA161: 0.01734553179 | BB161: 0.03041957938 | BC161: 0.03507041522 | BD161: 0.04141362144 | BE161: 0.07961089208 | BF161: 0.05406776526 | BG161: 0.03120749451
B162: Arkansas | D162: 0.1706469812 | E162: 0.1395065442 | F162: 0.06898350028 | G162: 0.239642303 | H162: 0.2151763241 | I162: 0.2856188959 | J162: 0.1155117028 | K162: 0.2124739099 | L162: 0.2075200771 | M162: 0.1876263108 | N162: 0.3288765278 | O162: 0.2470227151 | P162: 0.198683382 | Q162: 0.08731901705 | R162: -0.06239466584 | S162: 0.04623411848 | T162: 0.0001902985437 | U162: -0.0761412401 | V162: -0.006774355178 | W162: 0.1203879571 | X162: 0.1205071541 | Y162: 0.05898203441 | Z162: 0.126103311 | AA162: 0.03086966922 | AB162: 0.1395727753 | AC162: 0.1104035771 | AD162: 0.09699501833 | AE162: 0.0646007899 | AF162: 0.09632225276 | AG162: 0.1398653492 | AH162: 0.1207002298 | AI162: 0.117364649 | AJ162: 0.1029730554 | AK162: 0.09986727212 | AL162: 0.1050667854 | AM162: 0.1638895513 | AN162: 0.1774471521 | AO162: 0.126497982 | AP162: 0.1602730173 | AQ162: 0.122327254 | AR162: 0.008485779209 | AS162: 0.06735254428 | AT162: 0.08208106303 | AU162: 0.135341195 | AV162: 0.1285858632 | AW162: 0.09989064013 | AX162: 0.06494645289 | AY162: 0.05825581852 | AZ162: 0.06197508404 | BA162: 0.05498731592 | BB162: 0.07403705149 | BC162: 0.06004000098 | BD162: 0.06365654767 | BE162: 0.112702286 | BF162: 0.06846301559 | BG162: 0.07035756663
B163: California | D163: 0.0176171759 | E163: -0.00430277992 | F163: -0.006459596876 | G163: 0.05936843665 | H163: 0.0412191316 | I163: 0.1313531123 | J163: 0.1594104839 | K163: 0.1033270856 | L163: 0.08218806101 | M163: 0.2265225594 | N163: 0.3211291504 | O163: 0.2245773866 | P163: 0.2408256254 | Q163: 0.1215815073 | R163: 0.03356750988 | S163: 0.07574798393 | T163: -0.02704740197 | U163: -0.02127679198 | V163: -0.05642974665 | W163: 0.06042195249 | X163: 0.1529038309 | Y163: 0.1166257141 | Z163: 0.1372056349 | AA163: 0.07373294499 | AB163: 0.06288448033 | AC163: 0.04246069121 | AD163: 0.02555807824 | AE163: 0.1018311037 | AF163: 0.0625626013 | AG163: 0.06537411787 | AH163: 0.09333294835 | AI163: 0.09261289659 | AJ163: 0.08800186865 | AK163: 0.08494902834 | AL163: 0.08130941823 | AM163: 0.07793791353 | AN163: 0.351871456 | AO163: 0.08401194132 | AP163: 0.1343642355 | AQ163: 0.1046793532 | AR163: 0.04591005019 | AS163: 0.03597812136 | AT163: 0.04245095645 | AU163: 0.0524740943 | AV163: 0.07167586742 | AW163: 0.06281962053 | AX163: 0.08555823379 | AY163: 0.05131721 | AZ163: 0.06515506715 | BA163: 0.06944935475 | BB163: 0.0948283601 | BC163: 0.04127669787 | BD163: 0.1096365905 | BE163: 0.1394431509 | BF163: 0.05527069138 | BG163: 0.04426693737
B164: Colorado | D164: 0.0851922918 | E164: 0.05995708552 | F164: 0.1116274837 | G164: 0.154422214 | H164: 0.2106134945 | I164: 0.307468446 | J164: 0.1044457345 | K164: 0.1957288334 | L164: 0.2002203734 | M164: 0.09799846859 | N164: 0.2114194237 | O164: 0.2342310892 | P164: 0.1540083101 | Q164: 0.07203646256 | R164: 0.03875910713 | S164: 0.1465930247 | T164: 0.07147761337 | U164: -0.04635567926 | V164: 0.1401192289 | W164: 0.1299741981 | X164: 0.1510739482 | Y164: 0.1368154744 | Z164: 0.2877691113 | AA164: 0.04914079339 | AB164: 0.1965508447 | AC164: 0.2399042243 | AD164: 0.1161508084 | AE164: 0.1037949663 | AF164: 0.08830156607 | AG164: 0.112595104 | AH164: 0.08180385112 | AI164: 0.08675304974 | AJ164: 0.1012427414 | AK164: 0.09732286462 | AL164: 0.09571955248 | AM164: 0.1018959343 | AN164: 0.2406579004 | AO164: 0.1805463243 | AP164: 0.1316196676 | AQ164: 0.0433007297 | AR164: -0.0008027319257 | AS164: 0.02462334978 | AT164: 0.08153930451 | AU164: 0.1264177145 | AV164: 0.2570790763 | AW164: 0.1025093119 | AX164: 0.0872366605 | AY164: 0.04850769846 | AZ164: 0.05739967915 | BA164: 0.04729233952 | BB164: 0.08084664628 | BC164: 0.06393005196 | BD164: 0.06795557161 | BE164: 0.1538102427 | BF164: 0.1017025399 | BG164: 0.006544733281
B165: Connecticut
B166: Delaware | D166: 0.1023934451 | E166: 0.1344505983 | F166: 0.1522833044 | G166: 0.05707120801 | H166: 0.1721942393 | I166: 0.2917137792 | J166: 0.2283031028 | K166: 0.1764611811 | L166: 0.1521001614 | M166: 0.110990699 | N166: 0.1411768404 | O166: 0.2274152933 | P166: 0.1031016647 | Q166: -0.04077640152 | R166: 0.05379308914 | S166: 0.04054561199 | T166: -0.09312976756 | U166: 0.09083128285 | V166: 0.02956144457 | W166: 0.07902570343 | X166: 0.1795175588 | Y166: 0.1093182342 | Z166: 0.009719885336 | AA166: -0.036370205 | AB166: 0.1223141431 | AC166: 0.0683398995 | AD166: 0.05989593291 | AE166: 0.06665257805 | AF166: 0.03123214112 | AG166: 0.0489417601 | AH166: 0.1055716014 | AI166: 0.1009646063 | AJ166: 0.0933884031 | AK166: 0.1008600474 | AL166: 0.09311504947 | AM166: 0.5337015903 | AN166: 0.3997897851 | AO166: 0.2286425339 | AP166: 0.03440122073 | AQ166: -0.03179371452 | AR166: -0.128519055 | AS166: -0.08118777451 | AT166: -0.004165673764 | AU166: 0.01022496164 | AV166: 0.01144979892 | AW166: 0.005914912103 | AX166: 0.01551971872 | AY166: 0.03844441353 | AZ166: -0.004097455273 | BA166: 0.03200466721 | BB166: 0.0650947043 | BC166: 0.005116038451 | BD166: 0.005648738858 | BE166: 0.07357129712 | BF166: 0.03918154059 | BG166: 0.01841227687
B167: Florida | D167: 0.05522192901 | E167: 0.1283153597 | F167: 0.07115075571 | G167: 0.08118804806 | H167: 0.1656725502 | I167: 0.3208390962 | J167: 0.1358894608 | K167: 0.1273548285 | L167: 0.148463418 | M167: 0.1552625998 | N167: 0.1879443099 | O167: 0.214680505 | P167: 0.1441364742 | Q167: -0.01844166429 | R167: 0.04836264169 | S167: 0.06198913503 | T167: -0.001556595557 | U167: -0.003500044178 | V167: 0.07869414531 | W167: 0.1488118961 | X167: 0.08389689531 | Y167: 0.1279245061 | Z167: 0.05181025769 | AA167: -0.01246978102 | AB167: 0.02705905839 | AC167: 0.02872860397 | AD167: 0.03420210227 | AE167: 0.02881272104 | AF167: 0.03344031224 | AG167: 0.02879374613 | AH167: 0.05997221815 | AI167: 0.07528612989 | AJ167: 0.05169900621 | AK167: 0.05877755144 | AL167: 0.07821972781 | AM167: 0.01851474002 | AN167: 0.653433686 | AO167: 0.1051008035 | AP167: 0.06378335973 | AQ167: 0.03834116069 | AR167: -0.0506015147 | AS167: -0.02798172949 | AT167: 0.01302618325 | AU167: -0.01297126596 | AV167: 0.01466424956 | AW167: 0.02738122721 | AX167: 0.02944172047 | AY167: 0.04125557244 | AZ167: 0.0267766568 | BA167: 0.02745708241 | BB167: 0.04477688875 | BC167: 0.02736356004 | BD167: 0.04184950014 | BE167: 0.1130076623 | BF167: 0.1255799898 | BG167: 0.1058305435
B168: Georgia | D168: 0.2652896985 | E168: 0.1919817499 | F168: 0.1904760274 | G168: 0.2310901821 | H168: 0.2149672591 | I168: 0.3660189241 | J168: 0.1973197649 | K168: 0.1462728477 | L168: 0.2176028994 | M168: 0.234938459 | N168: 0.1930878779 | O168: 0.202089888 | P168: 0.128667358 | Q168: -0.002634485142 | R168: 0.04887781284 | S168: 0.03448796156 | T168: 0.003045199384 | U168: 0.001364972796 | V168: 0.07645860904 | W168: 0.07540956179 | X168: 0.1578141859 | Y168: 0.07627417353 | Z168: 0.04359106571 | AA168: -0.032732466 | AB168: 0.1342341078 | AC168: 0.0486647208 | AD168: 0.1236650667 | AE168: 0.1072370174 | AF168: 0.07967784928 | AG168: 0.09166920442 | AH168: 0.1081512498 | AI168: 0.09955765287 | AJ168: 0.1114757379 | AK168: 0.1025608204 | AL168: 0.09464253795 | AM168: 0.08065905633 | AN168: 0.3658849405 | AO168: 0.2239466493 | AP168: 0.1551797247 | AQ168: -0.0009207841557 | AR168: -0.04780269085 | AS168: -0.0449048394 | AT168: 0.01209222263 | AU168: -0.04217455758 | AV168: 0.01128174047 | AW168: 0.03081526665 | AX168: 0.05535564354 | AY168: 0.1093347598 | AZ168: 0.03344970834 | BA168: 0.02852348164 | BB168: -0.03201669352 | BC168: 0.06164668186 | BD168: 0.08310416135 | BE168: 0.1196011026 | BF168: 0.1266339657 | BG168: 0.08097072745
B169: Hawaii
B170: Idaho | D170: 0.07289910914 | E170: 0.08947446628 | F170: 0.09772002292 | G170: 0.1263458557 | H170: 0.1532014331 | I170: 0.2902370425 | J170: 0.2187301956 | K170: 0.1763504702 | L170: 0.2141555168 | M170: 0.1729036768 | N170: 0.1753572024 | O170: 0.2328394433 | P170: 0.1490262331 | Q170: 0.1234888447 | R170: 0.009020671098 | S170: 0.08416282713 | T170: 0.01520733444 | U170: -0.05291291868 | V170: -0.02899626423 | W170: 0.1457891599 | X170: 0.1479480193 | Y170: 0.2083144387 | Z170: 0.09029742833 | AA170: 0.1563135414 | AB170: 0.1031435815 | AC170: 0.2551140219 | AD170: 0.1127733026 | AE170: 0.1074159317 | AF170: 0.1028700716 | AG170: 0.1220373849 | AH170: 0.1293897926 | AI170: 0.1159080808 | AJ170: 0.1000713884 | AK170: 0.08758182978 | AL170: 0.08500986473 | AM170: 0.09251541052 | AN170: 0.3028686645 | AO170: 0.3733537199 | AP170: 0.1564565872 | AQ170: 0.03909999191 | AR170: -0.0744483693 | AS170: 0.007733859577 | AT170: 0.04701307011 | AU170: 0.09464558659 | AV170: 0.148938782 | AW170: 0.1247159861 | AX170: 0.1090068473 | AY170: 0.08797079176 | AZ170: 0.08517514995 | BA170: 0.0872141661 | BB170: 0.1112532712 | BC170: 0.09225666558 | BD170: 0.1558911387 | BE170: 0.161539696 | BF170: 0.09348102181 | BG170: 0.06433813964
B171: Illinois | D171: 0.1052999283 | E171: 0.05038765708 | F171: 0.0635479256 | G171: 0.1101885211 | H171: 0.1403809886 | I171: 0.3276541524 | J171: 0.2352248017 | K171: 0.3140303668 | L171: 0.4237530426 | M171: 0.1620476849 | N171: 0.1875607902 | O171: 0.1422599882 | P171: 0.1153357229 | Q171: -0.02486359927 | R171: -0.03825867181 | S171: 0.05990238688 | T171: -0.18348381 | U171: -0.03956934453 | V171: -0.008629299807 | W171: 0.1549830327 | X171: 0.1567089448 | Y171: 0.06690853426 | Z171: 0.0947263172 | AA171: 0.1080211969 | AB171: 0.06195362673 | AC171: 0.1309768689 | AD171: 0.1336310557 | AE171: 0.08885348578 | AF171: 0.08631994912 | AG171: 0.1171852341 | AH171: 0.08208764235 | AI171: 0.06055773182 | AJ171: 0.05562741076 | AK171: 0.0684436018 | AL171: 0.07532811686 | AM171: 0.09433756394 | AN171: 0.2879718933 | AO171: 0.1490618847 | AP171: 0.1490045104 | AQ171: 0.161126765 | AR171: 0.009070279042 | AS171: 0.09211547323 | AT171: 0.1906644252 | AU171: 0.1795603185 | AV171: 0.1694728465 | AW171: 0.09241908005 | AX171: 0.01675494151 | AY171: -0.002511358178 | AZ171: 0.008704117411 | BA171: 0.03728810294 | BB171: 0.02682010984 | BC171: 0.02249341181 | BD171: 0.09089028083 | BE171: 0.1394010507 | BF171: 0.08582825897 | BG171: 0.0550474667
B172: Indiana | D172: 0.07018564987 | E172: 0.04143298504 | F172: 0.1033301014 | G172: 0.09724475654 | H172: 0.1985192719 | I172: 0.2697573594 | J172: 0.2955006542 | K172: 0.3075272048 | L172: 0.4056304452 | M172: 0.2007602758 | N172: 0.2236397266 | O172: 0.2223433706 | P172: 0.1388565316 | Q172: -0.05889462496 | R172: -0.05183929459 | S172: 0.07922251912 | T172: -0.120803539 | U172: -0.06777715959 | V172: -0.02760536113 | W172: 0.1490389263 | X172: 0.1359531471 | Y172: 0.0632349564 | Z172: 0.08700712368 | AA172: 0.08111581849 | AB172: 0.1065330821 | AC172: 0.1262350302 | AD172: 0.1257495522 | AE172: 0.1203700608 | AF172: 0.1190852432 | AG172: 0.1417900199 | AH172: 0.09244448299 | AI172: 0.07976204829 | AJ172: 0.07690530766 | AK172: 0.08226984752 | AL172: 0.07977834332 | AM172: 0.1034856183 | AN172: 0.1219796502 | AO172: 0.1117663948 | AP172: 0.1468112563 | AQ172: 0.1530821423 | AR172: -0.004002167979 | AS172: 0.08073130372 | AT172: 0.2123345904 | AU172: 0.1773847401 | AV172: 0.1537003144 | AW172: 0.07660986266 | AX172: 0.001735285976 | AY172: 0.01171464113 | AZ172: -0.03125999655 | BA172: 0.01276907317 | BB172: 0.01050700363 | BC172: 0.01079522466 | BD172: 0.1045072805 | BE172: 0.1420128841 | BF172: 0.08996928893 | BG172: 0.05991554401
B173: Iowa | D173: 0.1210660351 | E173: 0.1018653988 | F173: 0.07533600795 | G173: 0.1342922345 | H173: 0.2022336914 | I173: 0.3615065659 | J173: 0.291180925 | K173: 0.3543659498 | L173: 0.4327634859 | M173: 0.1192875883 | N173: 0.2216357239 | O173: 0.2393691404 | P173: 0.1373767851 | Q173: 0.001954482127 | R173: -0.04590210517 | S173: -0.02904978695 | T173: -0.1975046558 | U173: -0.1116268679 | V173: -0.01103950787 | W173: 0.2844474202 | X173: 0.2329078377 | Y173: 0.07524980835 | Z173: 0.1224922073 | AA173: 0.09189889335 | AB173: 0.1239662344 | AC173: 0.1241086248 | AD173: 0.1143021313 | AE173: 0.1332596429 | AF173: 0.1601007302 | AG173: 0.1152479322 | AH173: 0.08615443992 | AI173: 0.07369071726 | AJ173: 0.07864584903 | AK173: 0.08821083004 | AL173: 0.09737347342 | AM173: 0.1415757853 | AN173: 0.2405817387 | AO173: 0.1384557382 | AP173: 0.1929982702 | AQ173: 0.2065510967 | AR173: -0.004729518333 | AS173: 0.1852699131 | AT173: 0.2889511892 | AU173: 0.2469585999 | AV173: 0.2036186191 | AW173: 0.09691393978 | AX173: -0.0534219914 | AY173: -0.01685606507 | AZ173: 0.01830415231 | BA173: 0.007546787495 | BB173: 0.01038842859 | BC173: 0.002238703605 | BD173: 0.101201193 | BE173: 0.2036077212 | BF173: 0.0905414682 | BG173: 0.06592078784
B174: Kansas | D174: 0.05849333877 | E174: 0.001502791122 | F174: 0.03866208443 | G174: 0.09486369667 | H174: 0.1661724412 | I174: 0.2944836225 | J174: 0.1944285392 | K174: 0.2986823468 | L174: 0.282998972 | M174: 0.1516762774 | N174: 0.295619962 | O174: 0.2576487193 | P174: 0.1400473915 | Q174: 0.09764019429 | R174: 0.04237197861 | S174: 0.08082668757 | T174: -0.0799519621 | U174: -0.03606545146 | V174: 0.0287232255 | W174: 0.2121934741 | X174: 0.1560064578 | Y174: 0.1582226774 | Z174: 0.1057283929 | AA174: 0.1325535002 | AB174: 0.1199729908 | AC174: 0.203574765 | AD174: 0.08795093138 | AE174: 0.05838051048 | AF174: 0.04638517322 | AG174: 0.06975924167 | AH174: 0.08648971865 | AI174: 0.08831834305 | AJ174: 0.08152625363 | AK174: 0.07965013851 | AL174: 0.08084390437 | AM174: 0.07375115094 | AN174: 0.2010608007 | AO174: 0.117532468 | AP174: 0.1675993124 | AQ174: 0.07908758958 | AR174: 0.0287735463 | AS174: 0.08493970803 | AT174: 0.2378445826 | AU174: 0.2611592657 | AV174: 0.1957403956 | AW174: 0.1987259591 | AX174: 0.005637932216 | AY174: -0.04272586975 | AZ174: -0.008615792677 | BA174: 0.05162541558 | BB174: 0.0489519168 | BC174: -0.02990329694 | BD174: 0.1446583008 | BE174: 0.234974794 | BF174: 0.1551381635 | BG174: 0.08942437513
B175: Kentucky | D175: 0.1420439315 | E175: 0.1561545294 | F175: 0.1430699345 | G175: 0.1840184901 | H175: 0.1845940539 | I175: 0.2560286459 | J175: 0.1852378171 | K175: 0.2710754826 | L175: 0.2730543471 | M175: 0.2151538691 | N175: 0.2560436792 | O175: 0.1844351896 | P175: 0.1106835288 | Q175: 0.07641027256 | R175: 0.04256211916 | S175: 0.03167432167 | T175: -0.03154924291 | U175: 0.03348901874 | V175: -0.01634284926 | W175: 0.06962810574 | X175: 0.07289724888 | Y175: 0.1141317201 | Z175: 0.02461798895 | AA175: 0.07448605583 | AB175: 0.1327170042 | AC175: 0.1017391339 | AD175: 0.1311030566 | AE175: 0.08089692308 | AF175: 0.08178027014 | AG175: 0.1111249172 | AH175: 0.1070162288 | AI175: 0.1025523894 | AJ175: 0.09565628399 | AK175: 0.07666352148 | AL175: 0.06834645636 | AM175: 0.07148646161 | AN175: 0.2640607636 | AO175: 0.1143939736 | AP175: 0.05064567773 | AQ175: 0.06165287828 | AR175: 0.009281204048 | AS175: 0.02284634616 | AT175: 0.03307209483 | AU175: 0.07901509156 | AV175: 0.1087157175 | AW175: 0.09188318051 | AX175: 0.1012287999 | AY175: 0.06393411532 | AZ175: 0.07195011781 | BA175: 0.05802664701 | BB175: 0.05467823386 | BC175: 0.060381319 | BD175: 0.06399695568 | BE175: 0.1441396489 | BF175: 0.1254368425 | BG175: 0.1109424544
B176: Louisiana | D176: 0.09993408236 | E176: 0.1269933984 | F176: 0.1512989163 | G176: 0.1461553517 | H176: 0.1161421741 | I176: 0.2270534111 | J176: 0.1547676598 | K176: 0.1768581127 | L176: 0.2196847355 | M176: 0.2785267623 | N176: 0.2702516632 | O176: 0.2978830178 | P176: 0.1945025094 | Q176: 0.009960000691 | R176: -0.005944887773 | S176: 0.09702981729 | T176: 0.02189504238 | U176: -0.1137227399 | V176: -0.1855700392 | W176: 0.07045247562 | X176: 0.08102792963 | Y176: 0.01705464333 | Z176: 0.05142718682 | AA176: 0.0611351011 | AB176: 0.09968288463 | AC176: 0.07849805262 | AD176: 0.1083768241 | AE176: 0.121265769 | AF176: 0.03689235681 | AG176: 0.06514755667 | AH176: 0.09841072676 | AI176: 0.07688740561 | AJ176: 0.1034836395 | AK176: 0.09153435789 | AL176: 0.08847890295 | AM176: 0.08144115591 | AN176: 0.1382905526 | AO176: 0.09027509088 | AP176: 0.1316867902 | AQ176: 0.08702965191 | AR176: -0.0008699757837 | AS176: 0.07809540284 | AT176: 0.1276702008 | AU176: 0.1084481347 | AV176: 0.0979214863 | AW176: 0.08114367843 | AX176: 0.08067535837 | AY176: 0.07475218545 | AZ176: 0.0728409577 | BA176: 0.06343453741 | BB176: 0.06977695295 | BC176: 0.05462460846 | BD176: 0.05004838049 | BE176: 0.09995702183 | BF176: 0.05382983274 | BG176: 0.07370479039
B177: Maine
B178: Maryland | D178: 0.09363909311 | E178: 0.126191423 | F178: 0.09395978708 | G178: 0.08361657116 | H178: 0.1666050696 | I178: 0.1784856918 | J178: 0.09858902459 | K178: 0.2231047536 | L178: 0.07537369918 | M178: 0.1829609408 | N178: 0.1599327427 | O178: 0.2602047309 | P178: 0.1468573488 | Q178: -0.04160994467 | R178: -0.08665714334 | S178: 0.07735162043 | T178: 0.008286692342 | U178: -0.05623317095 | V178: 0.01370242602 | W178: 0.1437219288 | X178: 0.1385959015 | Y178: 0.02644672121 | Z178: -0.04781453149 | AA178: 0.07392660572 | AB178: 0.1657911147 | AC178: 0.06389634836 | AD178: 0.026817528 | AE178: 0.0143053585 | AF178: 0.02517073025 | AG178: 0.02225258101 | AH178: 0.04854975197 | AI178: 0.1009461876 | AJ178: 0.06515367586 | AK178: 0.06225309337 | AL178: 0.04657420459 | AM178: 0.3565475399 | AN178: 0.3445374726 | AO178: 0.1242425521 | AP178: 0.01597772429 | AQ178: -0.05451337619 | AR178: -0.07189276708 | AS178: -0.04889879869 | AT178: -0.01082357304 | AU178: -0.008048270657 | AV178: -0.005574923766 | AW178: 0.02750702533 | AX178: 0.03008691938 | AY178: 0.03928108726 | AZ178: 0.03109187781 | BA178: 0.04405022636 | BB178: 0.01502786554 | BC178: 0.0002355078748 | BD178: 0.0791409591 | BE178: 0.09828811276 | BF178: 0.02306240121 | BG178: 0.03760178111
B179: Massachusetts
B180: Michigan | D180: 0.1250556826 | E180: 0.07865205481 | F180: 0.06708183569 | G180: 0.1581955813 | H180: 0.2412498123 | I180: 0.2176494352 | J180: 0.1055640675 | K180: 0.1458580505 | L180: 0.3212923273 | M180: 0.1625126653 | N180: 0.1465780521 | O180: 0.1757229873 | P180: 0.1914828475 | Q180: 0.02707163962 | R180: -0.005273122744 | S180: 0.06077534637 | T180: -0.08095533356 | U180: -0.05047741482 | V180: -0.05898146271 | W180: 0.0774056633 | X180: 0.03904022529 | Y180: 0.04338802277 | Z180: 0.1044255396 | AA180: 0.04456340002 | AB180: 0.04588450913 | AC180: 0.09636498366 | AD180: 0.1231558283 | AE180: 0.09233652611 | AF180: 0.1051993915 | AG180: 0.1192424395 | AH180: 0.1565255311 | AI180: 0.1276036 | AJ180: 0.1108617208 | AK180: 0.1021169146 | AL180: 0.1020475029 | AM180: 0.09975793681 | AN180: 0.07461862946 | AO180: 0.1126833 | AP180: 0.1316198027 | AQ180: 0.05323930236 | AR180: -0.04151222524 | AS180: -0.03101328345 | AT180: 0.08570223321 | AU180: 0.1080324983 | AV180: 0.1480638625 | AW180: 0.1192177417 | AX180: 0.03690520541 | AY180: 0.01367146544 | AZ180: 0.01841140278 | BA180: 0.005332140732 | BB180: 0.004476286187 | BC180: 0.000810472001 | BD180: 0.0575980053 | BE180: 0.1325168739 | BF180: 0.1140459838 | BG180: 0.1030369806
B181: Minnesota | D181: 0.156379575 | E181: 0.1239447197 | F181: 0.09769857971 | G181: 0.1170280087 | H181: 0.1875741949 | I181: 0.3376976132 | J181: 0.3530151747 | K181: 0.313718525 | L181: 0.341590296 | M181: 0.1983924692 | N181: 0.2440718314 | O181: 0.2593487719 | P181: 0.2295067559 | Q181: 0.04476777785 | R181: -0.02934767056 | S181: 0.02500137135 | T181: -0.1442003107 | U181: -0.1586078034 | V181: -0.08422637452 | W181: 0.2583060208 | X181: 0.1374047492 | Y181: 0.1503775963 | Z181: 0.1504506509 | AA181: 0.06472411957 | AB181: 0.08973081602 | AC181: 0.06012286026 | AD181: 0.1001260124 | AE181: 0.1429844657 | AF181: 0.1154288199 | AG181: 0.1201121536 | AH181: 0.1202449923 | AI181: 0.1152922793 | AJ181: 0.1108046779 | AK181: 0.1199599137 | AL181: 0.1147424545 | AM181: 0.1627772392 | AN181: 0.1902199372 | AO181: 0.1714547695 | AP181: 0.1866052932 | AQ181: 0.1345040126 | AR181: -0.01602443901 | AS181: 0.05971783391 | AT181: 0.1709992869 | AU181: 0.2532109621 | AV181: 0.2088079313 | AW181: 0.14880785 | AX181: 0.02377593301 | AY181: 0.02564603021 | AZ181: 0.04549691457 | BA181: 0.0341495092 | BB181: -0.01344101565 | BC181: 0.01096935368 | BD181: 0.1105377455 | BE181: 0.1851784642 | BF181: 0.1082885364 | BG181: 0.06163440007
B182: Mississippi | D182: 0.2059719456 | E182: 0.1741545347 | F182: 0.1047783029 | G182: 0.1263583808 | H182: 0.2196982939 | I182: 0.359427183 | J182: 0.2111667815 | K182: 0.1696991759 | L182: 0.2148374335 | M182: 0.301720906 | N182: 0.2669294298 | O182: 0.2614874975 | P182: 0.3128964779 | Q182: 0.003306718068 | R182: -0.03345140676 | S182: 0.1155717455 | T182: -0.04511306331 | U182: -0.03896745238 | V182: -0.06842028097 | W182: 0.07637335748 | X182: 0.09288258502 | Y182: 0.07792112068 | Z182: 0.09673594059 | AA182: 0.04546227767 | AB182: 0.08771095937 | AC182: 0.1345450307 | AD182: 0.09556280136 | AE182: 0.07104399039 | AF182: 0.1043985224 | AG182: 0.1302753498 | AH182: 0.1245509428 | AI182: 0.1288059821 | AJ182: 0.1136001813 | AK182: 0.0980960669 | AL182: 0.1026068331 | AM182: 0.09298259999 | AN182: 0.1681044061 | AO182: 0.1184861835 | AP182: 0.1484611152 | AQ182: 0.09476193411 | AR182: 0.01080159078 | AS182: 0.06937879657 | AT182: 0.1158989934 | AU182: 0.07895774574 | AV182: 0.1707323496 | AW182: 0.09504402765 | AX182: 0.07293923102 | AY182: 0.07743497017 | AZ182: 0.06862382585 | BA182: 0.07090158933 | BB182: 0.08124293662 | BC182: 0.06630909933 | BD182: 0.07470734875 | BE182: 0.1135008519 | BF182: 0.07785458704 | BG182: 0.06678550685
B183: Missouri | D183: 0.1744599412 | E183: 0.1235564517 | F183: 0.1426003982 | G183: 0.1961384814 | H183: 0.2090422918 | I183: 0.3912189998 | J183: 0.1182914796 | K183: 0.2331832724 | L183: 0.2795841959 | M183: 0.2427157066 | N183: 0.2061765932 | O183: 0.3111741838 | P183: 0.1622296605 | Q183: 0.02411366103 | R183: -0.01882542048 | S183: 0.09442756548 | T183: -0.1361667991 | U183: 0.01834104869 | V183: 0.005745800532 | W183: 0.1385419686 | X183: 0.1493959199 | Y183: 0.1061790443 | Z183: 0.1106821826 | AA183: 0.08805212704 | AB183: 0.1309729752 | AC183: 0.1383333999 | AD183: 0.100736298 | AE183: 0.1139707067 | AF183: 0.09781113803 | AG183: 0.09401944343 | AH183: 0.109481967 | AI183: 0.1045057762 | AJ183: 0.09200454374 | AK183: 0.09649748449 | AL183: 0.09910612997 | AM183: 0.09527855826 | AN183: 0.1555963981 | AO183: 0.1249348729 | AP183: 0.1691553137 | AQ183: 0.08892033785 | AR183: -0.02721304155 | AS183: 0.08466639482 | AT183: 0.1071303027 | AU183: 0.1487894453 | AV183: 0.1531845608 | AW183: 0.1028967351 | AX183: 0.0142606457 | AY183: 0.003990182983 | AZ183: 0.03067309733 | BA183: 0.01517076054 | BB183: 0.03329314249 | BC183: 0.03955827434 | BD183: 0.1116854622 | BE183: 0.1669820002 | BF183: 0.09678377869 | BG183: 0.06417575024
B184: Montana | D184: 0.06006834075 | E184: 0.09419156697 | F184: 0.07257062532 | G184: 0.102023695 | H184: 0.1405028994 | I184: 0.287945883 | J184: 0.1920809015 | K184: 0.2227159354 | L184: 0.1984668155 | M184: 0.1481001919 | N184: 0.140588212 | O184: 0.2261872902 | P184: 0.09569946289 | Q184: 0.1077037504 | R184: -0.01670055851 | S184: 0.1771705362 | T184: 0.03746620286 | U184: 0.1071095363 | V184: -0.01400518809 | W184: 0.1502149543 | X184: 0.1514040724 | Y184: 0.2664385639 | Z184: 0.1083569409 | AA184: 0.1421469482 | AB184: 0.1847662128 | AC184: 0.238265822 | AD184: 0.1164812791 | AE184: 0.06917537943 | AF184: 0.03254931688 | AG184: 0.05140527959 | AH184: 0.1020234287 | AI184: 0.1085896127 | AJ184: 0.1052929323 | AK184: 0.09965192872 | AL184: 0.09568032441 | AM184: 0.07004103905 | AN184: 0.2379832816 | AO184: 0.533403859 | AP184: 0.1782497134 | AQ184: 0.1113267251 | AR184: -0.1898043435 | AS184: 0.03592928551 | AT184: 0.06793586501 | AU184: 0.08790573359 | AV184: 0.07679717854 | AW184: 0.1374175097 | AX184: 0.03855859153 | AY184: 0.04323321294 | AZ184: 0.02817237122 | BA184: 0.03840650102 | BB184: 0.06673694549 | BC184: 0.03778292493 | BD184: 0.06567459936 | BE184: 0.1519179251 | BF184: 0.05677597596 | BG184: 0.01725227389
B185: Nebraska | D185: 0.08119870616 | E185: 0.05895782238 | F185: 0.1551980816 | G185: 0.2232810803 | H185: 0.2711859077 | I185: 0.3898970334 | J185: 0.305143641 | K185: 0.4117408198 | L185: 0.2776023409 | M185: 0.1015931166 | N185: 0.3724309413 | O185: 0.2980432829 | P185: 0.2318505706 | Q185: 0.08812392499 | R185: 0.04504431805 | S185: 0.01991971044 | T185: -0.1426232099 | U185: -0.02806162004 | V185: 0.07096838323 | W185: 0.2427285145 | X185: 0.2242724668 | Y185: 0.1294669186 | Z185: 0.08874994201 | AA185: 0.1042377644 | AB185: 0.1004399991 | AC185: 0.1741310938 | AD185: 0.08544932592 | AE185: 0.08334940606 | AF185: 0.04768286571 | AG185: 0.1130183839 | AH185: 0.1150270987 | AI185: 0.1181708715 | AJ185: 0.0998431384 | AK185: 0.09789979969 | AL185: 0.08679743527 | AM185: 0.1116374192 | AN185: 0.1811659568 | AO185: 0.1849191933 | AP185: 0.1536609106 | AQ185: 0.2153584121 | AR185: 0.04079948666 | AS185: 0.158626679 | AT185: 0.327116345 | AU185: 0.3741578576 | AV185: 0.1935777401 | AW185: 0.09041906031 | AX185: 0.007343103138 | AY185: -0.01876085438 | AZ185: -0.03333508733 | BA185: 0.02392302987 | BB185: 0.01562804259 | BC185: 0.005970828257 | BD185: 0.151469743 | BE185: 0.2137836065 | BF185: 0.1407136435 | BG185: 0.08830650332
B186: Nevada | S186: 0.1229212211 | T186: 0.001545984441 | U186: -0.04370205768 | V186: 0.1649079258 | W186: 0.01635726833 | X186: 0.1337499839 | Y186: -0.07333456264 | Z186: 0.2394526239 | AA186: 0.1605832396 | AB186: 0.03399189167 | AC186: 0.1251448918 | AR186: 0.03977189529 | AS186: 0.05002690081 | AX186: 0.07857056305 | AY186: 0.05776902846 | AZ186: 0.07320814572 | BA186: 0.07502662638 | BB186: 0.0867669606 | BC186: 0.04752577132 | BD186: 0.1042571562 | BE186: 0.1471829018 | BF186: 0.07736760497 | BG186: 0.03261674962
B187: New Hampshire
B188: New Jersey | D188: 0.1140567087 | E188: 0.1307023861 | F188: 0.03970686453 | G188: 0.08108549849 | H188: 0.09224658085 | I188: 0.1864480507 | J188: 0.1449301412 | K188: 0.1668071228 | L188: 0.05416161775 | M188: 0.08296181891 | N188: 0.1364169575 | O188: 0.09512363383 | P188: 0.03612867846 | Q188: 0.05126282852 | R188: -0.008314000507 | S188: -0.05332246785 | T188: -0.0001305767047 | U188: 0.01834056104 | V188: 0.2460891553 | W188: 0.06840113564 | X188: 0.2500562755 | Y188: 0.1129215358 | Z188: 0.156107656 | AA188: 0.05831093296 | AB188: 0.03422363099 | AC188: 0.003265488149 | AD188: 0.006419790823 | AE188: 0.01327444471 | AF188: -0.0006953753706 | AG188: -0.01393816453 | AH188: 0.04205712957 | AI188: 0.04049055931 | AJ188: 0.06477484557 | AK188: 0.06158802511 | AL188: 0.05765470112 | AM188: 0.1859802756 | AN188: 0.1554638851 | AO188: 0.1495402093 | AP188: 0.08723640104 | AQ188: -0.02930830877 | AR188: -0.100915294 | AS188: -0.05401903807 | AT188: -0.03404231541 | AU188: -0.04056940522 | AV188: 0.03897202247 | AW188: 0.02027610475 | AX188: 0.04276496862 | AY188: -0.02351456216 | AZ188: 0.005593502516 | BA188: 0.004934221162 | BB188: -0.01968494617 | BC188: -0.006343520728 | BD188: 0.0463101548 | BE188: 0.05364160801 | BF188: 0.1145434142 | BG188: -0.006841863835
B189: New Mexico | S189: 0.1543522685 | T189: 0.02311743571 | U189: -0.05079356841 | V189: 0.03976582751 | W189: 0.2191992764 | X189: 0.08788533151 | Y189: 0.05259905975 | Z189: 0.187990019 | AA189: 0.07506320923 | AB189: -0.01952487165 | AC189: 0.0914712852 | AQ189: 0.114491181 | AR189: -0.03907466343 | AS189: 0.005375728439 | AT189: 0.03083046028 | AU189: -0.06349126062 | AV189: 0.00604280296 | AW189: 0.0749880303 | AX189: 0.06689791042 | AY189: 0.07661601036 | AZ189: 0.0908238058 | BA189: 0.06215838372 | BB189: 0.04863971269 | BC189: 0.09170632194 | BD189: 0.09921391031 | BE189: 0.1322446592 | BF189: 0.06827122913 | BG189: 0.04266719961
B190: New York | D190: 0.1534281968 | E190: 0.1440291899 | F190: 0.104540686 | G190: 0.1783224177 | H190: 0.1470384194 | I190: 0.2944450545 | J190: 0.1862436034 | K190: 0.1248828139 | L190: 0.1024994826 | M190: 0.06070512445 | N190: 0.156079666 | O190: 0.113058328 | P190: 0.1113651251 | Q190: 0.09912820283 | R190: 0.02825512843 | S190: 0.07325067166 | T190: 0.0009695045351 | U190: 0.05270468867 | V190: 0.163580681 | W190: 0.05733683177 | X190: 0.08005768547 | Y190: -0.01204962224 | Z190: 0.09999016497 | AA190: 0.06174162288 | AB190: 0.1036303165 | AC190: 0.03868634186 | AD190: 0.02376922345 | AE190: -0.00421465381 | AF190: 0.003793404582 | AG190: 0.03899050093 | AH190: 0.05693913406 | AI190: 0.07841772347 | AJ190: 0.07425169122 | AK190: 0.07345843491 | AL190: 0.07034533561 | AM190: 0.05638919857 | AN190: 0.08679043796 | AO190: 0.07062351819 | AP190: 0.08481530987 | AQ190: 0.08144166017 | AR190: 0.02767078589 | AS190: 0.004218779343 | AT190: 0.003019442848 | AU190: 0.0886015635 | AV190: -0.01051253692 | AW190: 0.01512525227 | AX190: 0.05220776463 | AY190: 0.01368583439 | AZ190: 0.02937898224 | BA190: 0.03184955339 | BB190: 0.04040570216 | BC190: 0.03552015956 | BD190: 0.07633519318 | BE190: 0.1107270922 | BF190: 0.08200332621 | BG190: 0.07527900557
B191: North Carolina | D191: 0.1438230936 | E191: 0.05784546347 | F191: 0.179774166 | G191: 0.1273810009 | H191: 0.2141545282 | I191: 0.2450773139 | J191: 0.118965333 | K191: 0.1871661566 | L191: 0.1703356161 | M191: 0.1344256059 | N191: 0.3007481001 | O191: 0.190405209 | P191: 0.131599873 | Q191: 0.003488119299 | R191: 0.04526964327 | S191: 0.1159867252 | T191: -0.0399439965 | U191: -0.02915412324 | V191: 0.02725757407 | W191: 0.0269169637 | X191: 0.1050374736 | Y191: 0.01358877212 | Z191: 0.04109364244 | AA191: 0.07431186061 | AB191: 0.1041342906 | AC191: 0.0440178813 | AD191: 0.1023761608 | AE191: 0.1024276894 | AF191: 0.06979474132 | AG191: 0.05720867125 | AH191: 0.09282292354 | AI191: 0.1080047883 | AJ191: 0.1083469465 | AK191: 0.09544491412 | AL191: 0.08328530828 | AM191: 0.06204927268 | AN191: 0.1870211047 | AO191: 0.07325184967 | AP191: 0.07514282291 | AQ191: 0.03588218717 | AR191: -0.04357900426 | AS191: -0.009316138412 | AT191: 0.00178105382 | AU191: 0.07941149452 | AV191: 0.06628387636 | AW191: 0.05849595424 | AX191: -0.002475386241 | AY191: -0.006144730627 | AZ191: 0.02363018439 | BA191: 0.02526712443 | BB191: 0.02941475808 | BC191: 0.01701321136 | BD191: 0.04468488098 | BE191: 0.1052277095 | BF191: 0.04967947605 | BG191: 0.08292644109
B192: North Dakota | D192: 0.183325324 | E192: 0.1297009977 | F192: 0.1029936358 | G192: 0.1225194424 | H192: 0.187893607 | I192: 0.4345247241 | J192: 0.4414687386 | K192: 0.3006005783 | L192: 0.2388999204 | M192: 0.1643581593 | N192: 0.2247078348 | O192: 0.2309447768 | P192: 0.1382840213 | Q192: 0.1053711949 | R192: 0.02747860066 | S192: 0.07894657942 | T192: -0.09501699798 | U192: -0.03186627943 | V192: -0.01664071718 | W192: 0.1262106773 | X192: 0.06877169663 | Y192: 0.07409061947 | Z192: 0.1179592907 | AA192: 0.01514016333 | AB192: 0.1286908685 | AC192: 0.1262562134 | AD192: 0.1277332261 | AE192: 0.09800802471 | AF192: 0.08995346334 | AG192: 0.09788328896 | AH192: 0.06820854752 | AI192: 0.08317949945 | AJ192: 0.08330187868 | AK192: 0.08332733269 | AL192: 0.09169127045 | AM192: 0.1477576982 | AN192: 0.1688175927 | AO192: 0.1908003907 | AP192: 0.1720485257 | AQ192: 0.2279054899 | AR192: 0.04476577327 | AS192: 0.1165559001 | AT192: 0.2185401257 | AU192: 0.3149968862 | AV192: 0.4196455522 | AW192: 0.1836035559 | AX192: 0.05946171077 | AY192: -0.04975007812 | AZ192: 0.01988574508 | BA192: 0.02059932292 | BB192: 0.04424273867 | BC192: 0.01857780151 | BD192: 0.08782337711 | BE192: 0.1521069997 | BF192: 0.1433976763 | BG192: 0.09177395805
B193: Ohio | D193: 0.08824723945 | E193: 0.1103158316 | F193: 0.09810391192 | G193: 0.1115127486 | H193: 0.2004211311 | I193: 0.2914626205 | J193: 0.1797448308 | K193: 0.2517269182 | L193: 0.3475229092 | M193: 0.1635183485 | N193: 0.2581831392 | O193: 0.2091942963 | P193: 0.1017226406 | Q193: -0.06079411967 | R193: -0.02292286582 | S193: 0.04555962013 | T193: -0.136444221 | U193: -0.009868342021 | V193: 0.01617743924 | W193: 0.1411981947 | X193: 0.1307718347 | Y193: 0.02833513163 | Z193: 0.08522118829 | AA193: 0.0993300198 | AB193: 0.0804069865 | AC193: 0.1071310262 | AD193: 0.1517280189 | AE193: 0.07052241849 | AF193: 0.06850230691 | AG193: 0.1071012389 | AH193: 0.09978103765 | AI193: 0.08856016995 | AJ193: 0.08448552298 | AK193: 0.0758155847 | AL193: 0.07501655953 | AM193: 0.08364055821 | AN193: 0.09898252161 | AO193: 0.1080700164 | AP193: 0.1007095122 | AQ193: 0.1058143999 | AR193: -0.0311803393 | AS193: 0.03113110967 | AT193: 0.08804581243 | AU193: 0.1356407114 | AV193: 0.1402687872 | AW193: 0.1252216389 | AX193: 0.06999115121 | AY193: 0.02667241547 | AZ193: 0.03197242552 | BA193: 0.04552491212 | BB193: 0.03703150175 | BC193: 0.03368079078 | BD193: 0.0759105929 | BE193: 0.1346456479 | BF193: 0.1069600626 | BG193: 0.1111227486
B194: Oklahoma | D194: 0.05405742474 | E194: 0.08365784462 | F194: 0.0678695767 | G194: 0.08082737234 | H194: 0.1443927759 | I194: 0.2170427798 | J194: 0.1653860931 | K194: 0.1598792869 | L194: 0.1598395128 | M194: 0.1601974151 | N194: 0.1559519733 | O194: 0.2177466314 | P194: 0.1278346903 | Q194: 0.1359709323 | R194: 0.03593328105 | S194: 0.09867382033 | T194: -0.1030712189 | U194: -0.05636187741 | V194: -0.01009162546 | W194: 0.07846435383 | X194: 0.1468256255 | Y194: 0.03291383776 | Z194: 0.05871337003 | AA194: 0.09064990247 | AB194: 0.1063452536 | AC194: 0.1214626812 | AD194: 0.07457244667 | AE194: 0.01619307142 | AF194: 0.05829296021 | AG194: 0.08570719082 | AH194: 0.04005252867 | AI194: 0.03970010318 | AJ194: 0.03933524118 | AK194: 0.05413989974 | AL194: 0.0525528882 | AM194: 0.07994209402 | AN194: 0.2168680744 | AO194: 0.09466212081 | AP194: 0.1307342086 | AQ194: 0.08786058394 | AR194: 0.02282230552 | AS194: 0.0659442058 | AT194: 0.02238886357 | AU194: 0.1547005937 | AV194: 0.1064104929 | AW194: 0.07611193988 | AX194: 0.05210358978 | AY194: 0.02371294946 | AZ194: 0.05507401228 | BA194: 0.04186721678 | BB194: 0.01722557142 | BC194: 0.01165735359 | BD194: 0.07226223881 | BE194: 0.149483149 | BF194: 0.1098745726 | BG194: 0.09665036654
B195: Oregon | D195: 0.1089347189 | E195: 0.0911848798 | F195: 0.149692095 | G195: 0.1640388409 | H195: 0.1470973 | I195: 0.1845879132 | J195: 0.1112709071 | K195: 0.2199284795 | L195: 0.2083124076 | M195: 0.2573020873 | N195: 0.2654157244 | O195: 0.2127228702 | P195: 0.186125667 | Q195: 0.1027668417 | R195: 0.04679826635 | S195: 0.1215828141 | T195: -0.01818849083 | U195: 0.03191298767 | V195: 0.04894566779 | W195: 0.09351894829 | X195: 0.08371634634 | Y195: 0.162784783 | Z195: 0.1230553118 | AA195: 0.1444074612 | AB195: 0.21050643 | AC195: 0.2420767838 | AD195: 0.1765882216 | AE195: 0.1469538989 | AF195: 0.08252656814 | AG195: 0.0484334018 | AH195: 0.09317807322 | AI195: 0.1033704341 | AJ195: 0.09933204973 | AK195: 0.09932398352 | AL195: 0.0973774648 | AM195: 0.1081650706 | AN195: 0.1466075658 | AO195: 0.1102270059 | AP195: 0.2056507056 | AQ195: 0.1432188651 | AR195: -0.01331881218 | AS195: 0.08965698114 | AT195: 0.04166938262 | AU195: 0.1227590531 | AV195: 0.07114871677 | AW195: 0.1031498574 | AX195: 0.09416061139 | AY195: 0.1017188418 | AZ195: 0.09805727688 | BA195: 0.07638553188 | BB195: 0.09075555049 | BC195: 0.07657129675 | BD195: 0.126748497 | BE195: 0.1666098935 | BF195: 0.07760076565 | BG195: 0.1001600373
B196: Pennsylvania | D196: 0.1413093815 | E196: 0.1693090608 | F196: 0.07563868226 | G196: 0.09434412462 | H196: 0.1932512175 | I196: 0.2826831371 | J196: 0.2009078983 | K196: 0.1363946787 | L196: 0.2297412279 | M196: 0.1394731374 | N196: 0.1584606961 | O196: 0.1666283286 | P196: 0.08647291453 | Q196: -0.01753097347 | R196: 0.0204998005 | S196: 0.06442808523 | T196: -0.08750547909 | U196: -0.05161458934 | V196: 0.1698308347 | W196: 0.04056210118 | X196: 0.2394254372 | Y196: 0.007513595616 | Z196: 0.01478585847 | AA196: 0.07969882382 | AB196: 0.001145309629 | AC196: 0.05331651069 | AD196: 0.02900393273 | AE196: 0.03626298341 | AF196: 0.01869275195 | AG196: 0.044132056 | AH196: 0.09117478968 | AI196: 0.08065219328 | AJ196: 0.07555241778 | AK196: 0.08796290257 | AL196: 0.06586385209 | AM196: 0.03050109794 | AN196: 0.1273229427 | AO196: 0.1021188631 | AP196: 0.1364178533 | AQ196: 0.03006732289 | AR196: 0.001567723292 | AS196: -0.01217081908 | AT196: -0.01350562188 | AU196: 0.02768479185 | AV196: 0.0191470317 | AW196: 0.02400493002 | AX196: 0.03659704038 | AY196: 0.05769433212 | AZ196: 0.009314174227 | BA196: 0.07004604375 | BB196: 0.03880582552 | BC196: 0.02464393046 | BD196: 0.0878222848 | BE196: 0.1059021568 | BF196: 0.05502795671 | BG196: 0.02624466356
B197: Rhode Island
B198: South Carolina | D198: 0.1926387109 | E198: 0.07377879418 | F198: 0.1224837376 | G198: 0.1909263394 | H198: 0.1285501818 | I198: 0.2928009376 | J198: 0.1640030635 | K198: 0.1513749286 | L198: 0.2108377755 | M198: 0.131855223 | N198: 0.2272999216 | O198: 0.201130373 | P198: 0.1164349238 | Q198: 0.04191217582 | R198: 0.0005463386677 | S198: 0.01449110885 | T198: 0.005099723107 | U198: 0.002834368228 | V198: -0.05720796361 | W198: 0.1303440147 | X198: 0.1670621196 | Y198: 0.04693084196 | Z198: 0.1221566306 | AA198: 0.05553687975 | AB198: 0.008867849238 | AC198: 0.07692085561 | AD198: 0.1357082812 | AE198: 0.03363170206 | AF198: 0.04775139904 | AG198: 0.07271144106 | AH198: 0.09455532197 | AI198: 0.07622489562 | AJ198: 0.0733430084 | AK198: 0.06934363884 | AL198: 0.09212428014 | AM198: 0.05612725811 | AN198: 0.1183287088 | AO198: 0.08664801207 | AP198: 0.1145843636 | AQ198: 0.05562116077 | AR198: 0.003823105644 | AS198: 0.01677833581 | AT198: 0.02164804232 | AU198: 0.02293503358 | AV198: -0.05459449604 | AW198: 0.04309700866 | AX198: 0.03270918986 | AY198: 0.03244192556 | AZ198: 0.0468714505 | BA198: 0.04686708505 | BB198: 0.04379558494 | BC198: 0.02935372711 | BD198: 0.05333968669 | BE198: 0.1165032528 | BF198: 0.07877307684 | BG198: 0.06430527365
B199: South Dakota | D199: 0.1168625096 | E199: 0.0900276251 | F199: 0.09066184239 | G199: 0.100902124 | H199: 0.158801537 | I199: 0.3470283748 | J199: 0.2967735054 | K199: 0.2045670003 | L199: 0.2660885372 | M199: 0.2355506132 | N199: 0.1899542314 | O199: 0.1997796924 | P199: 0.1838464347 | Q199: 0.1186806102 | R199: 0.05548663213 | S199: 0.09736896783 | T199: -0.1391617018 | U199: -0.01433467297 | V199: -0.04172287314 | W199: 0.1928774836 | X199: 0.07596338124 | Y199: 0.1440126484 | Z199: 0.08707616463 | AA199: 0.03833136692 | AB199: 0.02194264066 | AC199: 0.1159352371 | AD199: 0.08239521103 | AE199: 0.05326613585 | AF199: 0.07526805249 | AG199: 0.09840078671 | AH199: 0.06213906204 | AI199: 0.08337774148 | AJ199: 0.09393269286 | AK199: 0.0900204773 | AL199: 0.09714888839 | AM199: 0.09331410607 | AN199: 0.2335689718 | AO199: 0.1826833985 | AP199: 0.1632524738 | AQ199: 0.2345731161 | AR199: 0.001030917988 | AS199: 0.1158345299 | AT199: 0.2153476857 | AU199: 0.2652591197 | AV199: 0.3221441877 | AW199: 0.2269516031 | AX199: 0.1098874883 | AY199: -0.03410354298 | AZ199: -0.03545178909 | BA199: 0.008203849939 | BB199: 0.01783710625 | BC199: -0.01581488648 | BD199: 0.1296891198 | BE199: 0.1917186752 | BF199: 0.1320619779 | BG199: 0.08741913434
B200: Tennessee | D200: 0.1830080661 | E200: 0.1398789602 | F200: 0.1095711647 | G200: 0.1682396361 | H200: 0.2101115749 | I200: 0.2700639378 | J200: 0.1907852251 | K200: 0.1910085401 | L200: 0.2266914484 | M200: 0.2404828608 | N200: 0.2147327864 | O200: 0.1789020015 | P200: 0.1362336267 | Q200: 0.01591865943 | R200: 0.01362773628 | S200: 0.0506432367 | T200: -0.03881639749 | U200: 0.03144966105 | V200: 0.03404538393 | W200: 0.1066412411 | X200: 0.07173511358 | Y200: 0.06248878105 | Z200: 0.06329018666 | AA200: 0.06534356247 | AB200: 0.1338271833 | AC200: 0.03536078394 | AD200: 0.09627455856 | AE200: 0.1659216637 | AF200: 0.1051389723 | AG200: 0.1221802752 | AH200: 0.1039795145 | AI200: 0.1016909443 | AJ200: 0.07135036503 | AK200: 0.0685665427 | AL200: 0.06612819611 | AM200: 0.05355373919 | AN200: 0.1515165717 | AO200: 0.08427978695 | AP200: 0.1110712726 | AQ200: 0.07734338501 | AR200: -0.03644631972 | AS200: 0.08105179737 | AT200: 0.007771995218 | AU200: 0.02129569578 | AV200: 0.04878753463 | AW200: 0.04952077841 | AX200: 0.05182374329 | AY200: 0.06900161705 | AZ200: 0.03943682814 | BA200: 0.04876130626 | BB200: 0.04616021605 | BC200: 0.04402142824 | BD200: 0.0592167737 | BE200: 0.1238530543 | BF200: 0.1216871603 | BG200: 0.1264224007
B201: Texas | D201: 0.2370730827 | E201: 0.1913458127 | F201: 0.2086708756 | G201: 0.2357730651 | H201: 0.2483370642 | I201: 0.360088431 | J201: 0.1271057598 | K201: 0.2586599734 | L201: 0.2044225107 | M201: 0.2283784106 | N201: 0.2426063448 | O201: 0.2257136685 | P201: 0.1665726705 | Q201: 0.2323750627 | R201: 0.08538684882 | S201: 0.1907583537 | T201: 0.183511734 | U201: -0.09188961643 | V201: -0.02312108641 | W201: 0.05454725175 | X201: 0.03174688612 | Y201: 0.0387677575 | Z201: 0.04841653183 | AA201: 0.05212200143 | AB201: 0.09939273906 | AC201: 0.09901253789 | AD201: 0.03680100146 | AE201: 0.04585792047 | AF201: 0.04318946194 | AG201: 0.1017458535 | AH201: 0.1066474397 | AI201: 0.09237291351 | AJ201: 0.1022954083 | AK201: 0.08797257998 | AL201: 0.06943669967 | AM201: 0.06343498575 | AN201: 0.2148736458 | AO201: 0.2090901499 | AP201: 0.1766588796 | AQ201: 0.1398615618 | AR201: 0.005972100891 | AS201: 0.06471176654 | AT201: 0.06567436296 | AU201: 0.02526413175 | AV201: -0.02467466147 | AW201: 0.0986254813 | AX201: 0.09160839255 | AY201: 0.0232229016 | AZ201: 0.0629626758 | BA201: 0.04021690189 | BB201: 0.01868413993 | BC201: 0.05563178504 | BD201: 0.06806884641 | BE201: 0.1596876911 | BF201: 0.06921033583 | BG201: 0.04654910811
B202: Utah | D202: 0.05669594262 | E202: 0.05459473481 | F202: 0.1950350563 | G202: 0.1857251151 | H202: 0.1127233102 | I202: 0.2233249931 | J202: 0.1115428984 | K202: 0.2199401533 | L202: 0.207053647 | M202: 0.1501439909 | N202: 0.3129505944 | O202: 0.3397585699 | P202: 0.0846015625 | Q202: 0.0536111843 | R202: -0.03494456044 | S202: 0.04917701125 | T202: -0.06217720818 | U202: -0.02989256941 | V202: -0.01472855198 | W202: -0.01766048605 | X202: 0.04353719045 | Y202: -0.01922366145 | Z202: 0.09338651227 | AA202: 0.1081197775 | AB202: 0.1369945863 | AC202: 0.4296286603 | AD202: 0.04338904312 | AE202: 0.05671062186 | AF202: 0.06866797245 | AG202: 0.04929324247 | AH202: 0.07424882116 | AI202: 0.06743084217 | AJ202: 0.09831027118 | AK202: 0.0816338123 | AL202: 0.07283626789 | AM202: -0.003167529134 | AN202: 0.1722270639 | AO202: 0.2227355007 | AP202: 0.1601081456 | AQ202: 0.08276762895 | AR202: -0.01052153743 | AS202: 0.02170054403 | AT202: 0.008576739525 | AU202: 0.01937372705 | AV202: 0.2165773616 | AW202: 0.04620750507 | AX202: 0.04973965725 | AY202: 0.04536318953 | AZ202: 0.05941909617 | BA202: 0.05187886174 | BB202: 0.06035984239 | BC202: 0.0423567716 | BD202: 0.06173593791 | BE202: 0.1065850645 | BF202: 0.05467559983 | BG202: 0.04905278518
B203: Vermont
B204: Virginia | D204: 0.1173471187 | E204: 0.1684740203 | F204: 0.1475007133 | G204: 0.1744305229 | H204: 0.1813749379 | I204: 0.32376305 | J204: 0.1579014944 | K204: 0.1814712638 | L204: 0.1577862318 | M204: 0.1481621238 | N204: 0.2349661385 | O204: 0.1392049745 | P204: 0.1220877624 | Q204: 0.0159355734 | R204: 0.05804234835 | S204: 0.02974853719 | T204: 0.01921231875 | U204: 0.08913122452 | V204: 0.00807216213 | W204: 0.06519075301 | X204: 0.1898321039 | Y204: 0.2116146963 | Z204: -0.0852292821 | AA204: 0.1199955783 | AB204: 0.01352718389 | AC204: -0.00747534184 | AD204: 0.09935501548 | AE204: 0.08610075189 | AF204: 0.03782629261 | AG204: 0.03625820035 | AH204: 0.09773853724 | AI204: 0.08563128538 | AJ204: 0.07977195649 | AK204: 0.07395144247 | AL204: 0.07668224421 | AM204: 0.1571199415 | AN204: 0.2328313188 | AO204: 0.1708356848 | AP204: 0.1111361536 | AQ204: 0.02427585672 | AR204: -0.04454132199 | AS204: -0.04639691063 | AT204: -0.04829739155 | AU204: 0.04144054281 | AV204: -0.003075258009 | AW204: 0.02365232262 | AX204: 0.01729735809 | AY204: 0.01954268786 | AZ204: 0.03498065063 | BA204: 0.01542902093 | BB204: -0.006258100348 | BC204: -0.008781122858 | BD204: 0.0256195226 | BE204: 0.09489371211 | BF204: 0.08398450294 | BG204: 0.08629171298
B205: Washington | D205: 0.1491666535 | E205: 0.1103513703 | F205: 0.06700936374 | G205: 0.1284040306 | H205: 0.2142775216 | I205: 0.1971745648 | J205: 0.2060903208 | K205: 0.3221999253 | L205: 0.2929263636 | M205: 0.1968378391 | N205: 0.2217736143 | O205: 0.1368039025 | P205: 0.2653445663 | Q205: 0.1250182209 | R205: 0.08513133733 | S205: 0.1493557668 | T205: 0.07758264917 | U205: 0.00752957778 | V205: 0.003952305684 | W205: 0.07617272855 | X205: 0.1480098858 | Y205: 0.1823393638 | Z205: 0.1637186572 | AA205: 0.1227989449 | AB205: 0.1272755653 | AC205: 0.2503466602 | AD205: 0.1191254157 | AE205: 0.1160442646 | AF205: 0.1052801275 | AG205: 0.09601706886 | AH205: 0.0770547956 | AI205: 0.111114226 | AJ205: 0.1095047434 | AK205: 0.1402215475 | AL205: 0.1354371188 | AM205: 0.09734757548 | AN205: 0.1423122789 | AO205: 0.1238397179 | AP205: 0.1443784091 | AQ205: 0.1422306969 | AR205: 0.07335838945 | AS205: 0.106494349 | AT205: 0.1166898595 | AU205: 0.2265983125 | AV205: 0.1858066891 | AW205: 0.1116910901 | AX205: 0.08463243692 | AY205: 0.09322643411 | AZ205: 0.0966880507 | BA205: 0.06023469482 | BB205: 0.08917450312 | BC205: 0.08045033687 | BD205: 0.1271367361 | BE205: 0.1726340022 | BF205: 0.1041798775 | BG205: 0.09637346951
B206: West Virginia | D206: 0.1828716055 | E206: 0.1365961931 | F206: 0.163108326 | G206: 0.2176633632 | H206: 0.2381683687 | I206: 0.3275027695 | J206: 0.1903851729 | K206: 0.354829814 | L206: 0.125233129 | M206: 0.100799258 | N206: 0.3110255176 | O206: 0.1523303297 | P206: 0.04586264135 | Q206: 0.09100121896 | R206: -0.01314050991 | S206: 0.04735102965 | T206: -0.1044508381 | U206: 0.04081675934 | V206: 0.05931016232 | W206: 0.1049042091 | X206: 0.102767522 | Y206: -0.06394035305 | Z206: 0.08622240371 | AA206: 0.2195719719 | AB206: 0.02929904754 | AC206: 0.05056662324 | AD206: 0.07876329952 | AE206: 0.08518078698 | AF206: 0.08987729028 | AG206: 0.05416246473 | AH206: 0.06986170838 | AI206: 0.06513607477 | AJ206: 0.06201503583 | AK206: 0.05900751345 | AL206: 0.06365737744 | AM206: 0.08259530544 | AN206: 0.2728606725 | AO206: 0.05899679359 | AP206: 0.1556341559 | AQ206: 0.09182894279 | AR206: -0.05014734098 | AS206: -0.005448132669 | AT206: 0.01943039221 | AU206: -0.01838738152 | AV206: -0.005739721594 | AW206: 0.02234166426 | AX206: 0.02464592027 | AY206: -0.01163901073 | AZ206: 0.01888849576 | BA206: 0.01000936139 | BB206: 0.02789654588 | BC206: 0.01415477446 | BD206: 0.03451371808 | BE206: 0.09784400599 | BF206: 0.06863189185 | BG206: 0.04247304799
B207: Wisconsin | D207: 0.1926378475 | E207: 0.1828731766 | F207: 0.1823497746 | G207: 0.157527665 | H207: 0.2728177641 | I207: 0.2612426472 | J207: 0.1944163405 | K207: 0.2216760449 | L207: 0.2791954878 | M207: 0.2670031656 | N207: 0.2494412363 | O207: 0.2253466993 | P207: 0.1961002481 | Q207: 0.04533172027 | R207: 0.02450414366 | S207: 0.04519899723 | T207: -0.08896049062 | U207: -0.05705895562 | V207: -0.01583592565 | W207: 0.1157102909 | X207: 0.08091339495 | Y207: 0.006596284969 | Z207: 0.1183651576 | AA207: 0.07555257376 | AB207: 0.112534685 | AC207: 0.08375248971 | AD207: 0.1017322143 | AE207: 0.1136161084 | AF207: 0.06902586542 | AG207: 0.09586208674 | AH207: 0.2009467927 | AI207: 0.2003399696 | AJ207: 0.1728201672 | AK207: 0.1270580886 | AL207: 0.09266098093 | AM207: 0.0963255513 | AN207: 0.1496865127 | AO207: 0.1286518499 | AP207: 0.1886630737 | AQ207: 0.07516781707 | AR207: -0.02165542798 | AS207: 0.005168375866 | AT207: 0.08462924036 | AU207: 0.08099655365 | AV207: 0.02697478147 | AW207: 0.09164947925 | AX207: 0.0861706964 | AY207: 0.04797772822 | AZ207: 0.0685509445 | BA207: -0.00272063203 | BB207: 0.04540790323 | BC207: 0.004287009003 | BD207: 0.125848994 | BE207: 0.1521381748 | BF207: 0.1325697812 | BG207: 0.04563021052
B208: Wyoming | R208: 0.07835434923 | S208: 0.109605042 | T208: -0.01755989266 | U208: -0.04757815601 | V208: 0.06232532858 | W208: 0.02181872374 | X208: 0.05202049976 | Y208: 0.1351666321 | Z208: 0.1259532492 | AA208: 0.01621785762 | AB208: 0.1861385898 | AQ208: 0.1682882915 | AR208: -0.0126120575 | AS208: 0.05340665232 | AT208: 0.1134381614 | AU208: 0.063141282 | AV208: 0.0437063271 | AW208: 0.06889745811 | AX208: 0.05445814338 | AY208: 0.06092165878 | AZ208: 0.0426922857 | BA208: 0.05610406169 | BB208: 0.08094284759 | BC208: 0.05408435323 | BD208: 0.09533972835 | BE208: 0.1185995621 | BF208: 0.07652256849 | BG208: 0.03613287018
B209: US Total | D209: 0.08020237893 | E209: 0.06107216982 | F209: 0.05948521534 | G209: 0.1028966472 | H209: 0.1482067865 | I209: 0.2536192208 | J209: 0.1525870149 | K209: 0.1949125513 | L209: 0.2219552266 | M209: 0.1489112393 | N209: 0.2118352654 | O209: 0.203134351 | P209: 0.1409729052 | Q209: 0.03483401355 | R209: -0.01336262609 | S209: 0.04581800089 | T209: -0.08136222721 | U209: -0.07467440401 | V209: -0.03747551289 | W209: 0.08202033731 | X209: 0.1178896966 | Y209: 0.07947371685 | Z209: 0.08681556207 | AA209: 0.07133331954 | AB209: 0.08887489782 | AC209: 0.1394515265 | AD209: 0.09613576636 | AE209: 0.09027999005 | AF209: 0.08390000439 | AG209: 0.08788772099 | AH209: 0.09221071466 | AI209: 0.09980602386 | AJ209: 0.09598283933 | AK209: 0.09143134865 | AL209: 0.08807385309 | AM209: 0.09345068593 | AN209: 0.2341677494 | AO209: 0.1660587618 | AP209: 0.1236145398 | AQ209: 0.1053962206 | AR209: -0.004606722034 | AS209: 0.06117807534 | AT209: 0.1357180367 | AU209: 0.15668534 | AV209: 0.1685468251 | AW209: 0.1033539649 | AX209: 0.03296616435 | AY209: 0.01464935767 | AZ209: 0.02678794832 | BA209: 0.03444523748 | BB209: 0.0377332099 | BC209: 0.02515983213 | BD209: 0.09977824862 | BE209: 0.1616929987 | BF209: 0.1022613009 | BG209: 0.07737102599
B210: Ave. of Reported | D210: =AVERAGE(D159:D208) -> 0.1264556573 | E210: =AVERAGE(E159:E208) -> 0.1102525755 | F210: 0.1135274294 | G210: 0.1417538261 | H210: 0.1796081405 | I210: 0.2866280981 | J210: 0.1869891672 | K210: 0.2202861335 | L210: 0.2255392045 | M210: 0.1749978071 | N210: 0.2307865979 | O210: 0.2204361657 | P210: 0.1507265529 | Q210: 0.05022427739 | R210: 0.01163386195 | S210: 0.07660469683 | T210: -0.0398176829 | U210: -0.01909326585 | V210: 0.02295224779 | W210: 0.1101666731 | X210: 0.125566657 | Y210: 0.08237557593 | Z210: 0.09544904398 | AA210: 0.07993281975 | AB210: 0.09788244873 | AC210: 0.1540107639 | AD210: 0.09286150638 | AE210: 0.0809812306 | AF210: 0.06968827231 | AG210: 0.08362248839 | AH210: 0.09430210477 | AI210: 0.09368689558 | AJ210: 0.09015035484 | AK210: 0.0880308912 | AL210: 0.0843227437 | AM210: 0.1087789148 | AN210: 0.2202144443 | AO210: 0.1528603929 | AP210: 0.1313051112 | AQ210: 0.09224593487 | AR210: -0.01615649334 | AS210: 0.03805607658 | AT210: 0.07876087658 | AU210: 0.1009796334 | AV210: 0.1028622267 | AW210: 0.08173021511 | AX210: 0.04797915553 | AY210: 0.03333266868 | AZ210: 0.037711636 | BA210: 0.03982964232 | BB210: 0.04273394357 | BC210: 0.0325588899 | BD210: 0.08131217757 | BE210: 0.1355377355 | BF210: 0.08888354094 | BG210: 0.06504083799
B211: =B103 -> 12 State Average | D211: =SUMPRODUCT(D159:D208,$A$52:$A$101)/$A$102 -> 0.1207288277 | E211: =SUMPRODUCT(E159:E208,$A$52:$A$101)/$A$102 -> 0.09522047999 | F211: 0.09918330438 | G211: 0.1414673073 | H211: 0.1904456873 | I211: 0.3235671527 | J211: 0.2292291413 | K211: 0.2707144669 | L211: 0.3082980393 | M211: 0.1952846716 | N211: 0.2554442133 | O211: 0.2454628897 | P211: 0.1789045719 | Q211: 0.02760950353 | R211: -0.013832005 | S211: 0.06100122693 | T211: -0.1086139943 | U211: -0.05636680381 | V211: -0.02603110361 | W211: 0.1701274022 | X211: 0.1411502007 | Y211: 0.08966209285 | Z211: 0.100533384 | AA211: 0.07881098789 | AB211: 0.09690716423 | AC211: 0.1253329639 | AD211: 0.1069169317 | AE211: 0.09348894851 | AF211: 0.08784978423 | AG211: 0.1093268908 | AH211: 0.09979269507 | AI211: 0.09460780963 | AJ211: 0.09115268944 | AK211: 0.09068878122 | AL211: 0.09185731892 | AM211: 0.1081759422 | AN211: 0.1829141649 | AO211: 0.1353448327 | AP211: 0.1558514813 | AQ211: 0.1402613927 | AR211: 0.001245176502 | AS211: 0.09232164076 | AT211: 0.1803403731 | AU211: 0.1970723413 | AV211: 0.1781462568 | AW211: 0.1195870063 | AX211: 0.03454379432 | AY211: 0.0136257128 | AZ211: 0.01916065909 | BA211: 0.03546040696 | BB211: 0.03433943145 | BC211: 0.02174684271 | BD211: 0.100746833 | BE211: 0.1615387503 | BF211: 0.1005360512 | BG211: 0.07448454784
B214: Cropland rental return
B215: Current income/val | C215: 1968 | D215: 1969 | E215: 1970 | F215: 1971 | G215: 1972 | H215: 1973 | I215: 1974 | J215: 1975 | K215: 1976 | L215: 1977 | M215: 1978 | N215: 1979 | O215: 1980 | P215: 1981 | Q215: 1982 | R215: 1983 | S215: 1984 | T215: 1985 | U215: 1986 | V215: 1987 | W215: 1988 | X215: 1989 | Y215: 1990 | Z215: 1991 | AA215: 1992 | AB215: 1993 | AC215: 1994 | AD215: 1995 | AE215: 1996 | AF215: 1997 | AG215: 1998 | AH215: 1999 | AI215: 2000 | AJ215: 2001 | AK215: 2002 | AL215: 2003 | AM215: 2004 | AN215: 2005 | AO215: 2006 | AP215: 2007 | AQ215: 2008 | AR215: 2009 | AS215: 2010 | AT215: 2011 | AU215: 2012 | AV215: 2013 | AW215: 2014 | AX215: 2015 | AY215: 2016 | AZ215: 2017 | BA215: 2018 | BB215: 2019 | BC215: 2020 | BD215: 2021 | BE215: 2022 | BF215: 2023 | BG215: 2024
B216: Alabama | C216: 0.1073333333 | D216: 0.09696969697 | E216: 0.09803333333 | F216: 0.08625368732 | G216: 0.08451977401 | H216: 0.07980024969 | I216: 0.07156092649 | J216: 0.06912087912 | K216: 0.06346666667 | L216: 0.06438853948 | M216: 0.06193548387 | N216: 0.05604590506 | O216: 0.05085470085 | P216: 0.04396336996 | Q216: 0.04622975518 | R216: 0.05186440678 | S216: 0.04181229773 | T216: 0.04194897532 | U216: 0.04191780822 | V216: 0.04109414758 | W216: 0.04306666667 | X216: 0.03974025974 | Y216: 0.04316853933 | Z216: 0.0375154321 | AA216: 0.03402421652 | AB216: 0.03479333333 | AC216: 0.03693452381 | AD216: 0.03256084656 | AE216: 0.03348484848 | AF216: 0.02916666667 | AG216: 0.02777777778 | AH216: 0.02296296296 | AI216: 0.02275862069 | AJ216: 0.02352941176 | AK216: 0.0225 | AL216: 0.02058823529 | AM216: 0.01885714286 | AN216: 0.01951219512 | AO216: 0.01695652174 | AP216: 0.01755102041 | AQ216: 0.01622641509 | AR216: 0.01832061069 | AS216: 0.01825095057 | AT216: 0.01902985075 | AU216: 0.01890909091 | AV216: 0.01981818182 | AW216: 0.01885813149 | AX216: 0.02057823129 | AY216: 0.01850649351 | AZ216: 0.01829652997 | BA216: 0.01863636364 | BB216: 0.01835260116 | BC216: 0.01904761905 | BD216: 0.01821917808 | BE216: 0.01707920792 | BF216: 0.01682692308 | BG216: 0.01677927928
B217: Alaska
B218: Arizona | S218: 0.1196071956 | T218: 0.1203628035 | U218: 0.1232232971 | V218: 0.1032016632 | W218: 0.1304736995 | X218: 0.1381981982 | Y218: 0.1296325539 | Z218: 0.1232135228 | AA218: 0.1024176588 | AB218: 0.1075641464 | AC218: 0.04607674341 | AD218: 0.02587129987 | AE218: 0.02672972973 | AF218: 0.03027027027 | AS218: 0.02064516129 | AT218: 0.02036793693 | AU218: 0.02512562814 | AV218: 0.0271411339 | AW218: 0.02702702703 | AX218: 0.0269761606 | AY218: 0.02846153846 | AZ218: 0.03238341969 | BA218: 0.0332457293 | BB218: 0.03276315789 | BC218: 0.03618421053 | BD218: 0.04276315789 | BE218: 0.04253164557 | BF218: 0.043375 | BG218: 0.042875
B219: Arkansas | C219: 0.105646164 | D219: 0.08672226702 | E219: 0.08715432295 | F219: 0.09319802301 | G219: 0.08327632901 | H219: 0.08068886873 | I219: 0.08467257664 | J219: 0.08679411823 | K219: 0.0819138756 | L219: 0.06934067275 | M219: 0.07241462783 | N219: 0.06058012236 | O219: 0.05683393651 | P219: 0.05013950194 | Q219: 0.05113353592 | R219: 0.05299416726 | S219: 0.0567592418 | T219: 0.06215431857 | U219: 0.06839399951 | V219: 0.06778800055 | W219: 0.07320728489 | X219: 0.07175947421 | Y219: 0.06915517671 | Z219: 0.07294665933 | AA219: 0.06510165796 | AB219: 0.06293083208 | AC219: 0.06045561529 | AG219: 0.06796116505 | AH219: 0.06261682243 | AI219: 0.06272727273 | AJ219: 0.05877192982 | AK219: 0.05847457627 | AL219: 0.05819672131 | AM219: 0.05859375 | AN219: 0.05277777778 | AO219: 0.04903225806 | AP219: 0.04404761905 | AQ219: 0.04491525424 | AR219: 0.04508196721 | AS219: 0.04502617801 | AT219: 0.04396984925 | AU219: 0.04334862385 | AV219: 0.04012605042 | AW219: 0.04031620553 | AX219: 0.04076923077 | AY219: 0.03909774436 | AZ219: 0.03882783883 | BA219: 0.03992805755 | BB219: 0.03620689655 | BC219: 0.03758389262 | BD219: 0.03636363636 | BE219: 0.03543543544 | BF219: 0.03439306358 | BG219: 0.035
B220: California | S220: 0.04662899911 | T220: 0.0479562203 | U220: 0.04338104774 | V220: 0.05073267869 | W220: 0.05211848519 | X220: 0.05203766148 | Y220: 0.04048807195 | Z220: 0.03971127345 | AA220: 0.04097627574 | AB220: 0.0425856873 | AC220: 0.04965796131 | AQ220: 0.02935222672 | AR220: 0.0291799787 | AS220: 0.02912946429 | AT220: 0.02935377875 | AU220: 0.02840425532 | AV220: 0.02839756592 | AW220: 0.03059628543 | AX220: 0.03032258065 | AY220: 0.02768817204 | AZ220: 0.02794496991 | BA220: 0.02793755136 | BB220: 0.03256351039 | BC220: 0.03335866261 | BD220: 0.02303409882 | BE220: 0.02047000618 | BF220: 0.02045184304 | BG220: 0.01933064051
B221: Colorado | S221: 0.1171630743 | T221: 0.143755706 | U221: 0.1345926885 | V221: 0.1227366806 | W221: 0.1321383939 | X221: 0.1400103627 | Y221: 0.1448803026 | Z221: 0.1238187833 | AA221: 0.1389022021 | AB221: 0.1367036415 | AC221: 0.1204609127 | AG221: 0.069592089 | AH221: 0.06689734717 | AI221: 0.05965292842 | AJ221: 0.06728778468 | AK221: 0.06506506507 | AL221: 0.05714285714 | AM221: 0.06509539843 | AN221: 0.061 | AO221: 0.05213675214 | AP221: 0.02952755906 | AQ221: 0.03129770992 | AR221: 0.04807692308 | AS221: 0.0484496124 | AT221: 0.04850746269 | AU221: 0.04965517241 | AV221: 0.0406779661 | AW221: 0.03941798942 | AX221: 0.03743718593 | AY221: 0.03638613861 | AZ221: 0.03550724638 | BA221: 0.03547619048 | BB221: 0.03613636364 | BC221: 0.03070175439 | BD221: 0.03227848101 | BE221: 0.03108614232 | BF221: 0.02926829268 | BG221: 0.02971530249
B222: Connecticut
B223: Delaware | C223: 0.05832 | D223: 0.04448665208 | E223: 0.04673987976 | F223: 0.04388324324 | G223: 0.04102473498 | H223: 0.0352 | I223: 0.03809481481 | J223: 0.03114067971 | K223: 0.03066355476 | L223: 0.0313728 | M223: 0.03248888889 | N223: 0.0313728 | O223: 0.029789099 | P223: 0.03174149378 | Q223: 0.03493900392 | R223: 0.03334674686 | S223: 0.03752217391 | T223: 0.04319398496 | U223: 0.03952731591 | V223: 0.03778461538 | W223: 0.03022912181 | X223: 0.02892842415 | Y223: 0.0260097561 | Z223: 0.02820137552 | AA223: 0.03148560235 | AB223: 0.02660409617 | AC223: 0.02626110638 | AD223: 0.02584229508 | AE223: 0.02602258824 | AF223: 0.024 | AG223: 0.02213740458 | AH223: 0.02 | AI223: 0.01873333333 | AJ223: 0.01769230769 | AK223: 0.01608571429 | AL223: 0.01480519481 | AM223: 0.01051724138 | AN223: 0.007901234568 | AO223: 0.0065 | AP223: 0.007058823529 | AQ223: 0.007346938776 | AR223: 0.008225616921 | AS223: 0.008322824716 | AT223: 0.00943877551 | AU223: 0.01140127389 | AV223: 0.01124523507 | AW223: 0.01256377551 | AX223: 0.01237309645 | AY223: 0.01359703337 | AZ223: 0.01369346734 | BA223: 0.01379310345 | BB223: 0.01391812865 | BC223: 0.01317647059 | BD223: 0.01349112426 | BE223: 0.01302895323 | BF223: 0.01332611051 | BG223: 0.01344953734
B224: Florida | C224: 0.03331881533 | D224: 0.02817493692 | E224: 0.02323943662 | F224: 0.01690172737 | G224: 0.01980572535 | H224: 0.02182769134 | I224: 0.01842305841 | J224: 0.01566672601 | K224: 0.01942748458 | L224: 0.02562958556 | M224: 0.02092190647 | N224: 0.02107346791 | O224: 0.01699899331 | P224: 0.01508610613 | Q224: 0.01525863085 | R224: 0.01450556622 | S224: 0.02246645415 | T224: 0.03139729099 | U224: 0.04128251107 | V224: 0.04145581643 | W224: 0.04005654721 | X224: 0.04070770628 | Y224: 0.03402262283 | Z224: 0.04008496128 | AA224: 0.03348709705 | AB224: 0.03151154855 | AC224: 0.02380120767 | AQ224: 0.01676217765 | AR224: 0.01414523449 | AS224: 0.01709923664 | AT224: 0.01398176292 | AU224: 0.01604361371 | AV224: 0.01348837209 | AW224: 0.01572519084 | AX224: 0.01651651652 | AY224: 0.01486880466 | AZ224: 0.01772334294 | BA224: 0.01633522727 | BB224: 0.015130674 | BC224: 0.01793478261 | BD224: 0.01677675033 | BE224: 0.01450839329 | BF224: 0.0142088267 | BG224: 0.01347099312
B225: Georgia | C225: 0.1356348802 | D225: 0.1141024511 | E225: 0.1037735849 | F225: 0.1058083611 | G225: 0.09908588159 | H225: 0.08569994839 | I225: 0.0827251691 | J225: 0.08424488496 | K225: 0.08142235123 | L225: 0.0763923619 | M225: 0.06026442639 | N225: 0.06267817683 | O225: 0.05269752358 | P225: 0.04890503857 | Q225: 0.04822221769 | R225: 0.05068038264 | S225: 0.04789810092 | T225: 0.04613590868 | U225: 0.04396690924 | V225: 0.03975847359 | W225: 0.04501743232 | X225: 0.04296024913 | Y225: 0.03413275744 | Z225: 0.03437322306 | AA225: 0.03908973769 | AB225: 0.03638039471 | AC225: 0.03753896637 | AG225: 0.04122807018 | AH225: 0.03427536232 | AI225: 0.03125 | AJ225: 0.0308988764 | AK225: 0.02791878173 | AL225: 0.02604651163 | AM225: 0.02589285714 | AN225: 0.02148148148 | AO225: 0.01657458564 | AP225: 0.01398601399 | AQ225: 0.01431718062 | AR225: 0.01922110553 | AS225: 0.02359882006 | AT225: 0.02574404762 | AU225: 0.03130990415 | AV225: 0.03198051948 | AW225: 0.03603896104 | AX225: 0.03481012658 | AY225: 0.03157894737 | AZ225: 0.03498542274 | BA225: 0.03381924198 | BB225: 0.039375 | BC225: 0.03829787234 | BD225: 0.03913043478 | BE225: 0.03590425532 | BF225: 0.03616504854 | BG225: 0.03533487298
B226: Hawaii
B227: Idaho | S227: 0.09531953195 | T227: 0.1049083528 | U227: 0.09842962109 | V227: 0.1025032938 | W227: 0.1159567705 | X227: 0.1177372375 | Y227: 0.1047803261 | Z227: 0.1023074785 | AA227: 0.1222459893 | AB227: 0.107171421 | AC227: 0.118041958 | AG227: 0.06569343066 | AH227: 0.06666666667 | AI227: 0.06666666667 | AJ227: 0.06209150327 | AK227: 0.06 | AL227: 0.05773809524 | AM227: 0.066 | AN227: 0.05745856354 | AO227: 0.04408163265 | AP227: 0.03357400722 | AQ227: 0.03517857143 | AR227: 0.04980842912 | AS227: 0.05322580645 | AT227: 0.05587044534 | AU227: 0.05542635659 | AV227: 0.04877192982 | AW227: 0.04902597403 | AX227: 0.04817073171 | AY227: 0.04912280702 | AZ227: 0.04481792717 | BA227: 0.04278074866 | BB227: 0.03965087282 | BC227: 0.04052132701 | BD227: 0.03813559322 | BE227: 0.03639774859 | BF227: 0.03486725664 | BG227: 0.035395189
B228: Illinois | C228: 0.07326549491 | D228: 0.0702354705 | E228: 0.07105590062 | F228: 0.07086780496 | G228: 0.06963185074 | H228: 0.07000996856 | I228: 0.07041062802 | J228: 0.07123034228 | K228: 0.06827151396 | L228: 0.05838850122 | M228: 0.05474247492 | N228: 0.05096644358 | O228: 0.05014592165 | P228: 0.04974962245 | Q228: 0.05645511401 | R228: 0.06055714658 | S228: 0.06184988806 | T228: 0.07625853981 | U228: 0.0775621118 | V228: 0.07134370152 | W228: 0.06760835113 | X228: 0.06484543494 | Y228: 0.06767136005 | Z228: 0.06615013261 | AA228: 0.0643285779 | AB228: 0.06358274351 | AC228: 0.06145795366 | AD228: 0.05239847109 | AE228: 0.05336384439 | AF228: 0.05265700483 | AG228: 0.04955357143 | AH228: 0.04784482759 | AI228: 0.05063829787 | AJ228: 0.05021097046 | AK228: 0.05020576132 | AL228: 0.0492 | AM228: 0.04754716981 | AN228: 0.03969230769 | AO228: 0.03626373626 | AP228: 0.03397590361 | AQ228: 0.03360824742 | AR228: 0.03551198257 | AS228: 0.03580508475 | AT228: 0.03339416058 | AU228: 0.03365079365 | AV228: 0.03101529903 | AW228: 0.03054830287 | AX228: 0.03007915567 | AY228: 0.03006802721 | AZ228: 0.03023578363 | BA228: 0.03063186813 | BB228: 0.03068493151 | BC228: 0.0304109589 | BD228: 0.0291025641 | BE228: 0.02793103448 | BF228: 0.028 | BG228: 0.02816753927
B229: Indiana | C229: 0.07849968294 | D229: 0.07694307712 | E229: 0.08120948924 | F229: 0.07743078074 | G229: 0.08009437387 | H229: 0.07531003622 | I229: 0.07996710526 | J229: 0.08611842105 | K229: 0.07980085349 | L229: 0.07207602339 | M229: 0.06237443277 | N229: 0.0567980524 | O229: 0.0538330932 | P229: 0.05248153619 | Q229: 0.05723042362 | R229: 0.06125335077 | S229: 0.06161026428 | T229: 0.07008106203 | U229: 0.07219230596 | V229: 0.07142715412 | W229: 0.06544405054 | X229: 0.06548270195 | Y229: 0.06796860572 | Z229: 0.06609686494 | AA229: 0.06365799404 | AB229: 0.06229805697 | AC229: 0.05931508772 | AD229: 0.05370630279 | AE229: 0.05362250454 | AF229: 0.05121052632 | AG229: 0.04666666667 | AH229: 0.04541284404 | AI229: 0.04444444444 | AJ229: 0.04291845494 | AK229: 0.04139344262 | AL229: 0.04039215686 | AM229: 0.03919413919 | AN229: 0.03657718121 | AO229: 0.03415384615 | AP229: 0.03296703297 | AQ229: 0.03260869565 | AR229: 0.03573264781 | AS229: 0.03302107728 | AT229: 0.02998027613 | AU229: 0.02996575342 | AV229: 0.02913505311 | AW229: 0.02809798271 | AX229: 0.0290560472 | AY229: 0.02869955157 | AZ229: 0.03095238095 | BA229: 0.03188405797 | BB229: 0.03185550082 | BC229: 0.0324958124 | BD229: 0.03115264798 | BE229: 0.02956764296 | BF229: 0.02965879265 | BG229: 0.0293519695
B230: Iowa | C230: 0.08535052377 | D230: 0.08845087773 | E230: 0.09027611044 | F230: 0.08979591837 | G230: 0.09138959932 | H230: 0.08826054027 | I230: 0.08986107006 | J230: 0.0909760288 | K230: 0.07867007673 | L230: 0.06728028781 | M230: 0.06505502276 | N230: 0.05981024668 | O230: 0.0547826087 | P230: 0.05348556631 | Q230: 0.05919098185 | R230: 0.0654464161 | S230: 0.07272727273 | T230: 0.0885102712 | U230: 0.0944410754 | V230: 0.09615327047 | W230: 0.08576930244 | X230: 0.08234219715 | Y230: 0.08600107933 | Z230: 0.08329287817 | AA230: 0.08538339881 | AB230: 0.08386721025 | AC230: 0.07867647059 | AD230: 0.0694379085 | AE230: 0.06815415822 | AF230: 0.06470588235 | AG230: 0.06075268817 | AH230: 0.05894736842 | AI230: 0.05927835052 | AJ230: 0.05909090909 | AK230: 0.05882352941 | AL230: 0.05754716981 | AM230: 0.05454545455 | AN230: 0.04746376812 | AO230: 0.04290322581 | AP230: 0.04166666667 | AQ230: 0.03990610329 | AR230: 0.04396984925 | AS230: 0.0395505618 | AT230: 0.035 | AU230: 0.03450807636 | AV230: 0.031875 | AW230: 0.03037383178 | AX230: 0.03180661578 | AY230: 0.03129161119 | AZ230: 0.0310483871 | BA230: 0.0316872428 | BB230: 0.03212290503 | BC230: 0.03299856528 | BD230: 0.03110814419 | BE230: 0.02899207248 | BF230: 0.02858660999 | BG230: 0.02816326531
B231: Kansas | K231: 0.1504406239 | L231: 0.1257733196 | M231: 0.1076757765 | N231: 0.1021746953 | O231: 0.0904681032 | P231: 0.09001047965 | Q231: 0.08705701079 | R231: 0.09053349707 | S231: 0.09259832806 | T231: 0.1097132411 | U231: 0.1225091429 | V231: 0.1393378966 | W231: 0.1140383604 | X231: 0.1268313094 | Y231: 0.1189779147 | Z231: 0.1174978809 | AA231: 0.1186624908 | AB231: 0.1224062938 | AC231: 0.1254797869 | AG231: 0.05618320611 | AH231: 0.05454545455 | AI231: 0.0548048048 | AJ231: 0.05794947994 | AK231: 0.05743740795 | AL231: 0.05701754386 | AM231: 0.05959302326 | AN231: 0.05210918114 | AO231: 0.05152224824 | AP231: 0.04923413567 | AQ231: 0.04656862745 | AR231: 0.04660194175 | AS231: 0.04504504505 | AT231: 0.03768656716 | AU231: 0.03666666667 | AV231: 0.03238341969 | AW231: 0.02731277533 | AX231: 0.02937219731 | AY231: 0.03076923077 | AZ231: 0.03184079602 | BA231: 0.0322815534 | BB231: 0.03056872038 | BC231: 0.03266331658 | BD231: 0.02937219731 | BE231: 0.02564575646 | BF231: 0.02353896104 | BG231: 0.02272727273
B232: Kentucky | C232: 0.1045414847 | D232: 0.1081512605 | E232: 0.09853754941 | F232: 0.09303370787 | G232: 0.08420338983 | H232: 0.08091743119 | I232: 0.08322077922 | J232: 0.08051522248 | K232: 0.07108949416 | L232: 0.07197092084 | M232: 0.06293706294 | N232: 0.05425087108 | O232: 0.05293032787 | P232: 0.05427879961 | Q232: 0.05444234405 | R232: 0.05362249762 | S232: 0.04856866538 | T232: 0.04778010471 | U232: 0.05126461211 | V232: 0.05463553531 | W232: 0.05293526786 | X232: 0.06141758242 | Y232: 0.04371165644 | Z232: 0.04950939457 | AA232: 0.04791497976 | AB232: 0.04621169916 | AC232: 0.04657894737 | AD232: 0.038016 | AE232: 0.04430769231 | AF232: 0.04666666667 | AG232: 0.04012345679 | AH232: 0.04117647059 | AI232: 0.04111111111 | AJ232: 0.03789473684 | AK232: 0.034 | AL232: 0.03333333333 | AM232: 0.03257918552 | AN232: 0.02979591837 | AO232: 0.02775800712 | AP232: 0.02798634812 | AQ232: 0.02532258065 | AR232: 0.03025889968 | AS232: 0.0335504886 | AT232: 0.03409090909 | AU232: 0.04049844237 | AV232: 0.04344023324 | AW232: 0.0408839779 | AX232: 0.03834196891 | AY232: 0.03592964824 | AZ232: 0.03502415459 | BA232: 0.03505882353 | BB232: 0.03471264368 | BC232: 0.03251670379 | BD232: 0.03225806452 | BE232: 0.03019230769 | BF232: 0.02937062937 | BG232: 0.02749196141
B233: Louisiana | C233: 0.0766013445 | D233: 0.06895695364 | E233: 0.06727818161 | F233: 0.06693197495 | G233: 0.06002192982 | H233: 0.05796342248 | I233: 0.06578220011 | J233: 0.06520724826 | K233: 0.05576328502 | L233: 0.06495126706 | M233: 0.05024336684 | N233: 0.0481028231 | O233: 0.04438989148 | P233: 0.03796614703 | Q233: 0.03865053172 | R233: 0.04004509691 | S233: 0.03991323491 | T233: 0.03946932007 | U233: 0.04172419691 | V233: 0.04366731009 | W233: 0.05227935382 | X233: 0.0631927548 | Y233: 0.05515215215 | Z233: 0.05928442029 | AA233: 0.05747240221 | AB233: 0.0530521262 | AC233: 0.05321944444 | AG233: 0.05188679245 | AH233: 0.05220183486 | AI233: 0.04884955752 | AJ233: 0.05344827586 | AK233: 0.05210084034 | AL233: 0.05 | AM233: 0.0515625 | AN233: 0.04551724138 | AO233: 0.04705882353 | AP233: 0.04082840237 | AQ233: 0.03989071038 | AR233: 0.04224137931 | AS233: 0.04138888889 | AT233: 0.03756345178 | AU233: 0.03608490566 | AV233: 0.03539823009 | AW233: 0.03565400844 | AX233: 0.03649193548 | AY233: 0.03262548263 | AZ233: 0.03259259259 | BA233: 0.03189964158 | BB233: 0.0325862069 | BC233: 0.03249158249 | BD233: 0.03184818482 | BE233: 0.02969230769 | BF233: 0.03063063063 | BG233: 0.02988505747
B234: Maine
B235: Maryland | C235: 0.03461748634 | D235: 0.03091213342 | E235: 0.02614241803 | F235: 0.02950819672 | G235: 0.02412657888 | H235: 0.02156233592 | I235: 0.02181498829 | J235: 0.02211722858 | K235: 0.02017161885 | L235: 0.02305259714 | M235: 0.01981851971 | N235: 0.02340983607 | O235: 0.01975124159 | P235: 0.01906369468 | Q235: 0.02216840537 | R235: 0.02459016393 | S235: 0.02692820904 | T235: 0.02989769955 | U235: 0.02782347269 | V235: 0.02611526818 | W235: 0.02306755316 | X235: 0.02245720496 | Y235: 0.0198659358 | Z235: 0.02299396031 | AA235: 0.02218654831 | AB235: 0.0196552365 | AC235: 0.02058801397 | AD235: 0.01489212057 | AE235: 0.01594011913 | AF235: 0.01681967213 | AG235: 0.01741935484 | AH235: 0.0169375 | AI235: 0.01548571429 | AJ235: 0.015 | AK235: 0.01423076923 | AL235: 0.013875 | AM235: 0.01072727273 | AN235: 0.008611111111 | AO235: 0.00756097561 | AP235: 0.007857142857 | AQ235: 0.008525641026 | AR235: 0.009540389972 | AS235: 0.009572901325 | AT235: 0.01047904192 | AU235: 0.01324200913 | AV235: 0.01406491499 | AW235: 0.01433990895 | AX235: 0.01476934524 | AY235: 0.01505065123 | AZ235: 0.01460992908 | BA235: 0.01552197802 | BB235: 0.01491108071 | BC235: 0.01477900552 | BD235: 0.01434108527 | BE235: 0.01387900356 | BF235: 0.0144028103 | BG235: 0.01505131129
B236: Massachusetts
B237: Michigan | C237: 0.07346938776 | D237: 0.06301424051 | E237: 0.06039110429 | F237: 0.0640436747 | G237: 0.05898648649 | H237: 0.05599662162 | I237: 0.05916506718 | J237: 0.05858951175 | K237: 0.05985221675 | L237: 0.05711760925 | M237: 0.0483608894 | N237: 0.048 | O237: 0.05002250225 | P237: 0.04529674166 | Q237: 0.04876760563 | R237: 0.05270850368 | S237: 0.04849601594 | T237: 0.05188402527 | U237: 0.05302618577 | V237: 0.05101461039 | W237: 0.04831359423 | X237: 0.05058494405 | Y237: 0.04634328358 | Z237: 0.0471339779 | AA237: 0.04821428571 | AB237: 0.04535809019 | AC237: 0.04555785124 | AD237: 0.04203947368 | AE237: 0.0413556338 | AF237: 0.04213235294 | AG237: 0.04054054054 | AH237: 0.03636363636 | AI237: 0.03296703297 | AJ237: 0.0303030303 | AK237: 0.02790697674 | AL237: 0.02553191489 | AM237: 0.0246031746 | AN237: 0.02313432836 | AO237: 0.0224137931 | AP237: 0.02225609756 | AQ237: 0.0224137931 | AR237: 0.02454545455 | AS237: 0.02547468354 | AT237: 0.02670623145 | AU237: 0.02950819672 | AV237: 0.0286407767 | AW237: 0.02715231788 | AX237: 0.02554112554 | AY237: 0.02766884532 | AZ237: 0.0268558952 | BA237: 0.02727272727 | BB237: 0.02866817156 | BC237: 0.02956120092 | BD237: 0.03087248322 | BE237: 0.02903225806 | BF237: 0.02730627306 | BG237: 0.02589437819
B238: Minnesota | C238: 0.09950248756 | D238: 0.09583333333 | E238: 0.09336283186 | F238: 0.08961038961 | G238: 0.0867219917 | H238: 0.08289962825 | I238: 0.09171597633 | J238: 0.09184149184 | K238: 0.08809073724 | L238: 0.07633928571 | M238: 0.07095926413 | N238: 0.06470588235 | O238: 0.05791896869 | P238: 0.05370804059 | Q238: 0.05691823899 | R238: 0.06120171674 | S238: 0.06047745358 | T238: 0.06926503341 | U238: 0.07752161383 | V238: 0.08143100511 | W238: 0.07528571429 | X238: 0.08005354752 | Y238: 0.07592592593 | Z238: 0.07185017026 | AA238: 0.07047511312 | AB238: 0.07054945055 | AC238: 0.06772428884 | AD238: 0.07378947368 | AE238: 0.07165048544 | AF238: 0.06935779817 | AG238: 0.06672413793 | AH238: 0.06146341463 | AI238: 0.060859375 | AJ238: 0.05962962963 | AK238: 0.05664335664 | AL238: 0.05394736842 | AM238: 0.04970238095 | AN238: 0.04505208333 | AO238: 0.04131455399 | AP238: 0.03884297521 | AQ238: 0.04037037037 | AR238: 0.044140625 | AS238: 0.04464944649 | AT238: 0.04397394137 | AU238: 0.04037433155 | AV238: 0.04054669704 | AW238: 0.03795918367 | AX238: 0.03724279835 | AY238: 0.03512396694 | AZ238: 0.0337398374 | BA238: 0.03373737374 | BB238: 0.03459915612 | BC238: 0.0352688172 | BD238: 0.0351888668 | BE238: 0.03173241852 | BF238: 0.03137876387 | BG238: 0.03058103976
B239: Mississippi | C239: 0.1370070142 | D239: 0.121527108 | E239: 0.1193666261 | F239: 0.09178190155 | G239: 0.1139408703 | H239: 0.1078720621 | I239: 0.103568102 | J239: 0.09920972879 | K239: 0.09596140527 | L239: 0.0875182638 | M239: 0.07389362566 | N239: 0.06765861624 | O239: 0.06063066721 | P239: 0.05183328347 | Q239: 0.05609379675 | R239: 0.05714643843 | S239: 0.05490864799 | T239: 0.05724013648 | U239: 0.05369963898 | V239: 0.05436844866 | W239: 0.06216654987 | X239: 0.06759114391 | Y239: 0.05481782556 | Z239: 0.05905998861 | AA239: 0.06459095946 | AB239: 0.06083550054 | AC239: 0.06282454003 | AG239: 0.06332574032 | AH239: 0.0623655914 | AI239: 0.06192893401 | AJ239: 0.05961538462 | AK239: 0.05636363636 | AL239: 0.05431034483 | AM239: 0.055 | AN239: 0.0503649635 | AO239: 0.04444444444 | AP239: 0.0418128655 | AQ239: 0.04447513812 | AR239: 0.04508196721 | AS239: 0.04487179487 | AT239: 0.04476190476 | AU239: 0.04541284404 | AV239: 0.04210526316 | AW239: 0.04329501916 | AX239: 0.04296296296 | AY239: 0.04128113879 | AZ239: 0.04103448276 | BA239: 0.04 | BB239: 0.0392971246 | BC239: 0.03881987578 | BD239: 0.03862275449 | BE239: 0.03739612188 | BF239: 0.03829787234 | BG239: 0.03659793814
B240: Missouri | C240: 0.1068269231 | D240: 0.09711538462 | E240: 0.09928313874 | F240: 0.09711538462 | G240: 0.09785956381 | H240: 0.08951792255 | I240: 0.09079276843 | J240: 0.09245580808 | K240: 0.08689271255 | L240: 0.08240630264 | M240: 0.07711658466 | N240: 0.077317758 | O240: 0.07181370459 | P240: 0.06749028749 | Q240: 0.07193732194 | R240: 0.07782845075 | S240: 0.07447362637 | T240: 0.07963743441 | U240: 0.08152896486 | V240: 0.07766015028 | W240: 0.08300330529 | X240: 0.08490497076 | Y240: 0.08575523977 | Z240: 0.08354878179 | AA240: 0.07700429679 | AB240: 0.08042759889 | AC240: 0.07627972028 | AQ240: 0.0332 | AR240: 0.03795180723 | AS240: 0.03788461538 | AT240: 0.03799283154 | AU240: 0.03525641026 | AV240: 0.03457142857 | AW240: 0.0352 | AX240: 0.03586956522 | AY240: 0.03613445378 | AZ240: 0.03595505618 | BA240: 0.03782234957 | BB240: 0.03703703704 | BC240: 0.03651685393 | BD240: 0.0354005168 | BE240: 0.03340909091 | BF240: 0.03156779661 | BG240: 0.03177189409
B241: Montana | S241: 0.1148732675 | T241: 0.1610652865 | U241: 0.1524345447 | V241: 0.1324748908 | W241: 0.1301736074 | X241: 0.1711098621 | Y241: 0.1722943467 | Z241: 0.1264939882 | AA241: 0.146802656 | AB241: 0.1533847604 | AC241: 0.1243226283 | AG241: 0.04665226782 | AH241: 0.05307855626 | AI241: 0.04948024948 | AJ241: 0.04969574037 | AK241: 0.04771371769 | AL241: 0.04615384615 | AM241: 0.04870775348 | AN241: 0.0425170068 | AO241: 0.03703703704 | AP241: 0.02933673469 | AQ241: 0.03020961776 | AR241: 0.03616751269 | AS241: 0.03979460847 | AT241: 0.03722084367 | AU241: 0.03462441315 | AV241: 0.03539325843 | AW241: 0.03296146045 | AX241: 0.03316582915 | AY241: 0.03168316832 | AZ241: 0.03118811881 | BA241: 0.03137254902 | BB241: 0.03066037736 | BC241: 0.03177570093 | BD241: 0.03243243243 | BE241: 0.03 | BF241: 0.02829457364 | BG241: 0.028515625
B242: Nebraska | F242: 0.1490570751 | G242: 0.1537485582 | H242: 0.1477090318 | I242: 0.1459325879 | J242: 0.1493742178 | K242: 0.1329552207 | L242: 0.1277917834 | M242: 0.1295355035 | N242: 0.106054155 | O242: 0.09591477536 | P242: 0.09088463918 | Q242: 0.09242546334 | R242: 0.0914799586 | S242: 0.107244262 | T242: 0.1159288458 | U242: 0.1260982278 | V242: 0.1233921569 | W242: 0.1137211996 | X242: 0.119070642 | Y242: 0.1178566083 | Z242: 0.1162779232 | AA242: 0.1208632002 | AB242: 0.1208590829 | AC242: 0.1180320856 | AG242: 0.085 | AH242: 0.08046296296 | AI242: 0.07787610619 | AJ242: 0.07586206897 | AK242: 0.075 | AL242: 0.07603305785 | AM242: 0.0753968254 | AN242: 0.06830985915 | AO242: 0.06474358974 | AP242: 0.05852272727 | AQ242: 0.05902439024 | AR242: 0.05953488372 | AS242: 0.05555555556 | AT242: 0.04792332268 | AU242: 0.04200477327 | AV242: 0.04176954733 | AW242: 0.03988326848 | AX242: 0.04111776447 | AY242: 0.04126315789 | AZ242: 0.04379232506 | BA242: 0.04452054795 | BB242: 0.04441860465 | BC242: 0.04724220624 | BD242: 0.04227467811 | BE242: 0.03822463768 | BF242: 0.03577235772 | BG242: 0.03409785933
B243: Nevada | S243: 0.0736273013 | T243: 0.07314705882 | U243: 0.06173730862 | V243: 0.07176470588 | W243: 0.07340865509 | X243: 0.07054885756 | Y243: 0.07498891731 | Z243: 0.07834561875 | AA243: 0.07617467445 | AB243: 0.07612184874 | AC243: 0.06563257243 | AR243: 0.04460966543 | AW243: 0.0572519084 | AX243: 0.05258756833 | AY243: 0.04935821863 | AZ243: 0.05171647906 | BA243: 0.05396202851 | BB243: 0.05532569884 | BC243: 0.03565210501 | BD243: 0.05255537605 | BE243: 0.04967306117 | BF243: 0.04581999508 | BG243: 0.04517107382
B244: New Hampshire
B245: New Jersey | C245: 0.0177416087 | D245: 0.01699927078 | E245: 0.01629282482 | F245: 0.01652878819 | G245: 0.01310265283 | H245: 0.01255752563 | I245: 0.01420316799 | J245: 0.01206484586 | K245: 0.009994972348 | L245: 0.01193817011 | M245: 0.01067748139 | N245: 0.01063832567 | O245: 0.010317172 | P245: 0.01107314241 | Q245: 0.01284057917 | R245: 0.01364668415 | S245: 0.01366280341 | T245: 0.01222795862 | U245: 0.0128206638 | V245: 0.01075197577 | W245: 0.01285877314 | X245: 0.01138039691 | Y245: 0.01017891175 | Z245: 0.008759984044 | AA245: 0.006473218199 | AB245: 0.006088430186 | AC245: 0.008545239103 | AD245: 0.005417478992 | AE245: 0.005270588235 | AF245: 0.005541176471 | AG245: 0.006325 | AH245: 0.006475609756 | AI245: 0.006071428571 | AJ245: 0.005402298851 | AK245: 0.005222222222 | AL245: 0.005053763441 | AM245: 0.004203539823 | AN245: 0.003653846154 | AO245: 0.003187919463 | AP245: 0.00315625 | AQ245: 0.003365384615 | AR245: 0.003928571429 | AS245: 0.004135338346 | AT245: 0.00480620155 | AU245: 0.005483870968 | AV245: 0.00523255814 | AW245: 0.005 | AX245: 0.004855072464 | AY245: 0.005333333333 | AZ245: 0.005661764706 | BA245: 0.005656934307 | BB245: 0.006119402985 | BC245: 0.005939849624 | BD245: 0.005467625899 | BE245: 0.00574829932 | BF245: 0.005030487805 | BG245: 0.00527607362
B246: New Mexico | S246: 0.065411596 | T246: 0.07051615525 | U246: 0.0801242236 | V246: 0.07232986312 | W246: 0.06681704261 | X246: 0.06160333266 | Y246: 0.05417598049 | Z246: 0.05419262442 | AA246: 0.0668729607 | AB246: 0.0669948066 | AC246: 0.0725810739 | AQ246: 0.02944785276 | AR246: 0.02275280899 | AS246: 0.02857142857 | AT246: 0.03850574713 | AU246: 0.04774193548 | AV246: 0.0724137931 | AW246: 0.06326530612 | AX246: 0.06283783784 | AY246: 0.06566666667 | AZ246: 0.05320512821 | BA246: 0.05158227848 | BB246: 0.05094936709 | BC246: 0.0436746988 | BD246: 0.04204545455 | BE246: 0.03886010363 | BF246: 0.04020100503 | BG246: 0.04075
B247: New York | C247: 0.07652624369 | D247: 0.07892156863 | E247: 0.06823242117 | F247: 0.07088201134 | G247: 0.07019061495 | H247: 0.0612745098 | I247: 0.06058603217 | J247: 0.05478662053 | K247: 0.05518029997 | L247: 0.05741223235 | M247: 0.05555555556 | N247: 0.05651887621 | O247: 0.05582788671 | P247: 0.05580498694 | Q247: 0.0510496525 | R247: 0.0500995992 | S247: 0.05173649649 | T247: 0.05200860832 | U247: 0.04361175075 | V247: 0.0408496732 | W247: 0.03862824082 | X247: 0.04432873628 | Y247: 0.03649882044 | Z247: 0.03793983347 | AA247: 0.03894885434 | AB247: 0.03457526907 | AC247: 0.03715375039 | AD247: 0.02403109681 | AE247: 0.02820572674 | AF247: 0.02862745098 | AG247: 0.03076923077 | AH247: 0.02792792793 | AI247: 0.02711864407 | AJ247: 0.0264 | AK247: 0.02651515152 | AL247: 0.02661870504 | AM247: 0.02739726027 | AN247: 0.02697368421 | AO247: 0.02166666667 | AP247: 0.02078947368 | AQ247: 0.01930232558 | AR247: 0.02 | AS247: 0.018125 | AT247: 0.01895833333 | AU247: 0.01807692308 | AV247: 0.02098039216 | AW247: 0.02159533074 | AX247: 0.02220149254 | AY247: 0.0219330855 | AZ247: 0.02226277372 | BA247: 0.0225 | BB247: 0.02307692308 | BC247: 0.02319587629 | BD247: 0.0224025974 | BE247: 0.02264705882 | BF247: 0.02190082645 | BG247: 0.02168831169
B248: North Carolina | C248: 0.07961783439 | D248: 0.07481532925 | E248: 0.07411666986 | F248: 0.0699661639 | G248: 0.06420588867 | H248: 0.05399916924 | I248: 0.05386724331 | J248: 0.05192931843 | K248: 0.04500818331 | L248: 0.05101897794 | M248: 0.04421943092 | N248: 0.03755288783 | O248: 0.03351194736 | P248: 0.03524928549 | Q248: 0.03961679161 | R248: 0.03667541047 | S248: 0.0324583476 | T248: 0.03308982208 | U248: 0.03350978995 | V248: 0.02847582512 | W248: 0.02863833156 | X248: 0.03018344044 | Y248: 0.0258302583 | Z248: 0.02663423346 | AA248: 0.02756452438 | AB248: 0.02772855771 | AC248: 0.02517510242 | AD248: 0.02042553191 | AE248: 0.02183650616 | AF248: 0.02234042553 | AG248: 0.02205128205 | AH248: 0.02093023256 | AI248: 0.01914893617 | AJ248: 0.01882352941 | AK248: 0.018 | AL248: 0.01728813559 | AM248: 0.01709677419 | AN248: 0.01582089552 | AO248: 0.01507246377 | AP248: 0.01465053763 | AQ248: 0.01493506494 | AR248: 0.0163538874 | AS248: 0.01726027397 | AT248: 0.01814404432 | AU248: 0.01831168831 | AV248: 0.01913580247 | AW248: 0.01997635934 | AX248: 0.0213253012 | AY248: 0.02056650246 | AZ248: 0.02163814181 | BA248: 0.0210653753 | BB248: 0.02170263789 | BC248: 0.02127403846 | BD248: 0.02218309859 | BE248: 0.02150537634 | BF248: 0.02104166667 | BG248: 0.0197265625
B249: North Dakota | C249: 0.1174305788 | D249: 0.1114084978 | E249: 0.1088245553 | F249: 0.1047947738 | G249: 0.103450748 | H249: 0.09725474889 | I249: 0.1097287276 | J249: 0.09461358314 | K249: 0.09675306633 | L249: 0.08400143592 | M249: 0.07519906323 | N249: 0.07317320087 | O249: 0.06855755052 | P249: 0.06619685022 | Q249: 0.06604215457 | R249: 0.06782500147 | S249: 0.06620247395 | T249: 0.07762241714 | U249: 0.08121695719 | V249: 0.0850047534 | W249: 0.08245908981 | X249: 0.08470807261 | Y249: 0.07170216026 | Z249: 0.07778372331 | AA249: 0.08358004507 | AB249: 0.08533678213 | AC249: 0.08253776595 | AD249: 0.08105053651 | AE249: 0.0810805853 | AF249: 0.08196721311 | AG249: 0.07954545455 | AH249: 0.08068181818 | AI249: 0.08068181818 | AJ249: 0.0808988764 | AK249: 0.08111111111 | AL249: 0.07934782609 | AM249: 0.07653061224 | AN249: 0.07090909091 | AO249: 0.06393442623 | AP249: 0.06119402985 | AQ249: 0.0524691358 | AR249: 0.05781448539 | AS249: 0.05535714286 | AT249: 0.05217831814 | AU249: 0.04603174603 | AV249: 0.03714285714 | AW249: 0.03366336634 | AX249: 0.03317307692 | AY249: 0.03560209424 | AZ249: 0.03439153439 | BA249: 0.03475935829 | BB249: 0.03703703704 | BC249: 0.03790322581 | BD249: 0.0375 | BE249: 0.03363636364 | BF249: 0.03142857143 | BG249: 0.03173076923
B250: Ohio | C250: 0.06288171627 | D250: 0.06005025126 | E250: 0.05998413118 | F250: 0.0607291264 | G250: 0.06144160438 | H250: 0.05491616498 | I250: 0.05422807819 | J250: 0.05757683602 | K250: 0.05702983 | L250: 0.05159235669 | M250: 0.0527638191 | N250: 0.0491845607 | O250: 0.04490719493 | P250: 0.04549042317 | Q250: 0.05153946528 | R250: 0.05626503528 | S250: 0.05065326633 | T250: 0.05675041876 | U250: 0.05877406398 | V250: 0.05471660948 | W250: 0.05196290041 | X250: 0.05180447693 | Y250: 0.05155352568 | Z250: 0.0496051687 | AA250: 0.0477595715 | AB250: 0.04468254735 | AC250: 0.04292133746 | AD250: 0.0364160804 | AE250: 0.03694626981 | AF250: 0.0364321608 | AG250: 0.03404651163 | AH250: 0.03246696035 | AI250: 0.03083333333 | AJ250: 0.03035714286 | AK250: 0.02927756654 | AL250: 0.02836363636 | AM250: 0.02739726027 | AN250: 0.02570532915 | AO250: 0.02478386167 | AP250: 0.02382198953 | AQ250: 0.02415458937 | AR250: 0.02637075718 | AS250: 0.0258974359 | AT250: 0.02644230769 | AU250: 0.02629310345 | AV250: 0.0267822736 | AW250: 0.02508710801 | AX250: 0.02487562189 | AY250: 0.02471169687 | AZ250: 0.02471544715 | BA250: 0.02405063291 | BB250: 0.02406832298 | BC250: 0.02385321101 | BD250: 0.02312138728 | BE250: 0.02196382429 | BF250: 0.02106508876 | BG250: 0.01995685005
B251: Oklahoma | Q251: 0.07336035418 | R251: 0.07417209291 | S251: 0.07378845195 | T251: 0.06837078703 | U251: 0.07611628877 | V251: 0.08072332731 | W251: 0.07236663653 | X251: 0.07183352301 | Y251: 0.08921896119 | Z251: 0.09097319367 | AA251: 0.08361408537 | AB251: 0.08125401038 | AC251: 0.08313716986 | AQ251: 0.02657657658 | AR251: 0.02633928571 | AS251: 0.02610619469 | AT251: 0.02610619469 | AU251: 0.025390625 | AV251: 0.02410071942 | AW251: 0.02278911565 | AX251: 0.02203947368 | AY251: 0.02091503268 | AZ251: 0.02075471698 | BA251: 0.02085889571 | BB251: 0.02116564417 | BC251: 0.02160493827 | BD251: 0.02046783626 | BE251: 0.01932989691 | BF251: 0.0161971831 | BG251: 0.01645021645
B252: Oregon | S252: 0.1076553488 | T252: 0.1336107795 | U252: 0.1130658815 | V252: 0.1093235785 | W252: 0.1009470235 | X252: 0.1052082246 | Y252: 0.103686889 | Z252: 0.1099787584 | AA252: 0.1180078571 | AB252: 0.1262664937 | AC252: 0.1221332884 | AG252: 0.05314685315 | AH252: 0.05666666667 | AI252: 0.05806451613 | AJ252: 0.05625 | AK252: 0.05757575758 | AL252: 0.05868263473 | AM252: 0.06289308176 | AN252: 0.05681818182 | AO252: 0.05128205128 | AP252: 0.04254385965 | AQ252: 0.04495798319 | AR252: 0.06130434783 | AS252: 0.06199095023 | AT252: 0.06146788991 | AU252: 0.05555555556 | AV252: 0.05083333333 | AW252: 0.05912698413 | AX252: 0.05551330798 | AY252: 0.04928057554 | AZ252: 0.05205479452 | BA252: 0.053 | BB252: 0.04840764331 | BC252: 0.04938271605 | BD252: 0.05171428571 | BE252: 0.0461928934 | BF252: 0.04376528117 | BG252: 0.04068965517
B253: Pennsylvania | C253: 0.04398665126 | D253: 0.04366246093 | E253: 0.03560119379 | F253: 0.03542549095 | G253: 0.03583554735 | H253: 0.03093417362 | I253: 0.02683438155 | J253: 0.02577759498 | K253: 0.02635526921 | L253: 0.02427394556 | M253: 0.02389711482 | N253: 0.02222650402 | O253: 0.02169811321 | P253: 0.0207571236 | Q253: 0.02265896819 | R253: 0.02215491559 | S253: 0.02066486972 | T253: 0.02615329693 | U253: 0.02423933367 | V253: 0.02254349424 | W253: 0.02347078997 | X253: 0.02084632777 | Y253: 0.01948218355 | Z253: 0.01886402821 | AA253: 0.01775205017 | AB253: 0.01861647456 | AC253: 0.01691443616 | AD253: 0.01530703259 | AE253: 0.01472030588 | AF253: 0.01547169811 | AG253: 0.01459854015 | AH253: 0.01428571429 | AI253: 0.01333333333 | AJ253: 0.01320754717 | AK253: 0.01194029851 | AL253: 0.01171428571 | AM253: 0.01194444444 | AN253: 0.0111662531 | AO253: 0.009935897436 | AP253: 0.01031894934 | AQ253: 0.009166666667 | AR253: 0.009615384615 | AS253: 0.009894921191 | AT253: 0.01039076377 | AU253: 0.01258680556 | AV253: 0.01258561644 | AW253: 0.01319327731 | AX253: 0.01345840131 | AY253: 0.01224806202 | AZ253: 0.01228748068 | BA253: 0.01168359942 | BB253: 0.01322081575 | BC253: 0.01268965517 | BD253: 0.01197452229 | BE253: 0.01167630058 | BF253: 0.01178414097 | BG253: 0.01165048544
B254: Rhode Island
B255: South Carolina | C255: 0.07459637034 | D255: 0.06545995537 | E255: 0.06987943337 | F255: 0.06887381997 | G255: 0.0607321863 | H255: 0.05886850153 | I255: 0.05254378649 | J255: 0.05005598884 | K255: 0.05162554556 | L255: 0.04859327217 | M255: 0.04622279669 | N255: 0.04585969118 | O255: 0.03896024465 | P255: 0.03858496621 | Q255: 0.03643512451 | R255: 0.03842349245 | S255: 0.03869855549 | T255: 0.03861792771 | U255: 0.03764631446 | V255: 0.03632656844 | W255: 0.03391651481 | X255: 0.03373181355 | Y255: 0.02947395167 | Z255: 0.02575737575 | AA255: 0.02419406218 | AB255: 0.02541695916 | AC255: 0.02504587156 | AD255: 0.02252498973 | AE255: 0.02247706422 | AF255: 0.02201834862 | AG255: 0.01939655172 | AH255: 0.0176 | AI255: 0.01792592593 | AJ255: 0.01896551724 | AK255: 0.0178125 | AL255: 0.01628571429 | AM255: 0.01548913043 | AN255: 0.01435643564 | AO255: 0.01374407583 | AP255: 0.0121399177 | AQ255: 0.01245210728 | AR255: 0.01343873518 | AS255: 0.0126953125 | AT255: 0.01312741313 | AU255: 0.0143129771 | AV255: 0.01700819672 | AW255: 0.0171314741 | AX255: 0.0171875 | AY255: 0.01743295019 | AZ255: 0.01722222222 | BA255: 0.01738351254 | BB255: 0.01631944444 | BC255: 0.0162116041 | BD255: 0.01655737705 | BE255: 0.01646884273 | BF255: 0.01555555556 | BG255: 0.01394736842
B256: South Dakota | C256: 0.08641721491 | D256: 0.09102198267 | E256: 0.09078686299 | F256: 0.09223426213 | G256: 0.09093315185 | H256: 0.09098544233 | I256: 0.09163533835 | J256: 0.08798396854 | K256: 0.08919922506 | L256: 0.08449764876 | M256: 0.07346974264 | N256: 0.07015830592 | O256: 0.06663437275 | P256: 0.06390644164 | Q256: 0.06351166239 | R256: 0.06492299355 | S256: 0.06047315258 | T256: 0.0725050082 | U256: 0.07047112162 | V256: 0.07636278195 | W256: 0.07180183265 | X256: 0.07127192982 | Y256: 0.08866130102 | Z256: 0.09097509131 | AA256: 0.07575757576 | AB256: 0.07962614871 | AC256: 0.08024322169 | AQ256: 0.04642857143 | AR256: 0.05253623188 | AS256: 0.04769736842 | AT256: 0.04413407821 | AU256: 0.04272727273 | AV256: 0.03697183099 | AW256: 0.03411764706 | AX256: 0.03433242507 | AY256: 0.03527696793 | AZ256: 0.0371875 | BA256: 0.03814102564 | BB256: 0.03876221498 | BC256: 0.0412371134 | BD256: 0.03824451411 | BE256: 0.03423180593 | BF256: 0.0312195122 | BG256: 0.03057471264
B257: Tennessee | C257: 0.09996436208 | D257: 0.09266848816 | E257: 0.08208955224 | F257: 0.08202639522 | G257: 0.08389425687 | H257: 0.06957737136 | I257: 0.07539008493 | J257: 0.06969845895 | K257: 0.06454918033 | L257: 0.05996339328 | M257: 0.05279980399 | N257: 0.04938048037 | O257: 0.04711435098 | P257: 0.04289106787 | Q257: 0.04733606557 | R257: 0.04259223332 | S257: 0.04464171363 | T257: 0.04374479022 | U257: 0.04570877531 | V257: 0.03843526692 | W257: 0.04197441902 | X257: 0.04069114881 | Y257: 0.03887104952 | Z257: 0.04215884422 | AA257: 0.0389380531 | AB257: 0.03635525709 | AC257: 0.03570491803 | AD257: 0.02893320284 | AE257: 0.02846351655 | AF257: 0.03087431694 | AG257: 0.02893401015 | AH257: 0.03024390244 | AI257: 0.02830188679 | AJ257: 0.02704545455 | AK257: 0.02665198238 | AL257: 0.02638297872 | AM257: 0.0280334728 | AN257: 0.02586872587 | AO257: 0.02375886525 | AP257: 0.0209375 | AQ257: 0.02014705882 | AR257: 0.0226006192 | AS257: 0.02356495468 | AT257: 0.02431192661 | AU257: 0.02791411043 | AV257: 0.02754491018 | AW257: 0.02953216374 | AX257: 0.02877492877 | AY257: 0.02643051771 | AZ257: 0.0264075067 | BA257: 0.02558746736 | BB257: 0.0262755102 | BC257: 0.02543640898 | BD257: 0.02572115385 | BE257: 0.02483660131 | BF257: 0.02312252964 | BG257: 0.02156862745
B258: Texas | C258: 0.1699538163 | D258: 0.1748108831 | E258: 0.1549502767 | F258: 0.1607034163 | G258: 0.1325586182 | H258: 0.1207775692 | I258: 0.1347193322 | J258: 0.1231246413 | K258: 0.1352931621 | L258: 0.1173833649 | M258: 0.1051228768 | N258: 0.1007218524 | O258: 0.09935140065 | P258: 0.09624641761 | Q258: 0.08311082728 | R258: 0.078871749 | S258: 0.06809361727 | T258: 0.05163888865 | U258: 0.05479723046 | V258: 0.06111998783 | W258: 0.06210017019 | X258: 0.07809394169 | Y258: 0.06987457494 | Z258: 0.07014705707 | AA258: 0.07630065185 | AB258: 0.08137224003 | AC258: 0.07166200916 | AG258: 0.03708987161 | AH258: 0.03301237964 | AI258: 0.03511053316 | AJ258: 0.03354037267 | AK258: 0.03099885189 | AL258: 0.02913553895 | AM258: 0.03104166667 | AN258: 0.02883495146 | AO258: 0.02352941176 | AP258: 0.02132352941 | AQ258: 0.021 | AR258: 0.02363013699 | AS258: 0.0238410596 | AT258: 0.02405063291 | AU258: 0.02264150943 | AV258: 0.02335526316 | AW258: 0.02347560976 | AX258: 0.02215909091 | AY258: 0.02146892655 | AZ258: 0.02189189189 | BA258: 0.02248677249 | BB258: 0.02248677249 | BC258: 0.02193877551 | BD258: 0.02063106796 | BE258: 0.01843220339 | BF258: 0.01767068273 | BG258: 0.01789883268
B259: Utah | S259: 0.03367505721 | T259: 0.0405237732 | U259: 0.04538363171 | V259: 0.04105658922 | W259: 0.04332890026 | X259: 0.04458052664 | Y259: 0.05027310465 | Z259: 0.04903972474 | AA259: 0.04389643381 | AB259: 0.03653767821 | AC259: 0.02654064272 | AQ259: 0.01555555556 | AR259: 0.01850533808 | AS259: 0.01819852941 | AT259: 0.0217472119 | AU259: 0.0217472119 | AV259: 0.01780185759 | AW259: 0.02048192771 | AX259: 0.01997084548 | AY259: 0.01940509915 | AZ259: 0.01707317073 | BA259: 0.01671018277 | BB259: 0.018875 | BC259: 0.02048780488 | BD259: 0.018997669 | BE259: 0.01933760684 | BF259: 0.01776180698 | BG259: 0.01795634921
B260: Vermont
B261: Virginia | C261: 0.07041040592 | D261: 0.06926484368 | E261: 0.06501191117 | F261: 0.07220740425 | G261: 0.06347507565 | H261: 0.05336556027 | I261: 0.04742164024 | J261: 0.04831619993 | K261: 0.05124038679 | L261: 0.05437444154 | M261: 0.04804497828 | N261: 0.03687581236 | O261: 0.03727925771 | P261: 0.03797401168 | Q261: 0.03958450309 | R261: 0.03580952381 | S261: 0.03378949939 | T261: 0.03492766227 | U261: 0.03298660627 | V261: 0.03374597673 | W261: 0.03121319415 | X261: 0.02765423553 | Y261: 0.02338910339 | Z261: 0.02391769305 | AA261: 0.02162755078 | AB261: 0.02134125044 | AC261: 0.02429746354 | AD261: 0.02144007156 | AE261: 0.02021022456 | AF261: 0.02005494505 | AG261: 0.01861702128 | AH261: 0.01803030303 | AI261: 0.01697674419 | AJ261: 0.01553191489 | AK261: 0.01411764706 | AL261: 0.01303571429 | AM261: 0.0121875 | AN261: 0.01038961039 | AO261: 0.008333333333 | AP261: 0.008571428571 | AQ261: 0.007570093458 | AR261: 0.008787878788 | AS261: 0.009782608696 | AT261: 0.01034482759 | AU261: 0.01088888889 | AV261: 0.01168539326 | AW261: 0.01238938053 | AX261: 0.01260964912 | AY261: 0.01247288503 | AZ261: 0.01268498943 | BA261: 0.01323529412 | BB261: 0.01257995736 | BC261: 0.01344902386 | BD261: 0.01300639659 | BE261: 0.01274509804 | BF261: 0.01247723133 | BG261: 0.01121416526
B262: Washington | S262: 0.1115042074 | T262: 0.1117661955 | U262: 0.1219154229 | V262: 0.1106135987 | W262: 0.1050754347 | X262: 0.1030561478 | Y262: 0.1324340538 | Z262: 0.1176271421 | AA262: 0.1112584803 | AB262: 0.1205341008 | AC262: 0.113046532 | AQ262: 0.0606557377 | AR262: 0.09606741573 | AS262: 0.09411764706 | AT262: 0.09119170984 | AU262: 0.09817351598 | AV262: 0.08760330579 | AW262: 0.08167330677 | AX262: 0.08221343874 | AY262: 0.07528957529 | AZ262: 0.07443609023 | BA262: 0.07718631179 | BB262: 0.075 | BC262: 0.07638376384 | BD262: 0.07762237762 | BE262: 0.06823899371 | BF262: 0.07212121212 | BG262: 0.06862170088
B263: West Virginia | C263: 0.07476076555 | D263: 0.07247673586 | E263: 0.06918449198 | F263: 0.05599036725 | G263: 0.07488176563 | H263: 0.0614973262 | I263: 0.04554129077 | J263: 0.04704545455 | K263: 0.04632199861 | L263: 0.03250528541 | M263: 0.03475935829 | N263: 0.02234336609 | O263: 0.02323685283 | P263: 0.02893472167 | Q263: 0.03130894002 | R263: 0.03760901163 | S263: 0.03497004428 | T263: 0.0284184514 | U263: 0.02833530106 | V263: 0.03414476519 | W263: 0.02969208211 | X263: 0.03329809725 | Y263: 0.03049698795 | Z263: 0.0285705062 | AA263: 0.02458751213 | AB263: 0.02417282364 | AC263: 0.0289517732 | AD263: 0.02223320158 | AE263: 0.02226345083 | AF263: 0.02077922078 | AG263: 0.018125 | AH263: 0.01717791411 | AI263: 0.01529411765 | AJ263: 0.01444444444 | AK263: 0.0140625 | AL263: 0.01365853659 | AM263: 0.01363636364 | AN263: 0.00875 | AO263: 0.009090909091 | AP263: 0.008333333333 | AQ263: 0.007368421053 | AR263: 0.008139534884 | AS263: 0.009696969697 | AT263: 0.009880239521 | AU263: 0.01076923077 | AV263: 0.01171875 | AW263: 0.01234567901 | AX263: 0.01215805471 | AY263: 0.01242236025 | AZ263: 0.01292307692 | BA263: 0.01384615385 | BB263: 0.01303030303 | BC263: 0.01178247734 | BD263: 0.01091445428 | BE263: 0.01121621622 | BF263: 0.01147959184 | BG263: 0.01160493827
B264: Wisconsin | C264: 0.107253886 | D264: 0.1072183099 | E264: 0.1028017241 | F264: 0.09264705882 | G264: 0.09156021898 | H264: 0.08266006098 | I264: 0.08271208226 | J264: 0.08605990783 | K264: 0.08596270161 | L264: 0.08014214047 | M264: 0.07238857939 | N264: 0.06308411215 | O264: 0.05815488048 | P264: 0.05439453125 | Q264: 0.05713505245 | R264: 0.05761455526 | S264: 0.05940896739 | T264: 0.06328125 | U264: 0.06566985646 | V264: 0.06486486486 | W264: 0.06183414044 | X264: 0.06776627219 | Y264: 0.0702247191 | Z264: 0.06930212014 | AA264: 0.06684971098 | AB264: 0.06385135135 | AC264: 0.05950413223 | AD264: 0.04997596154 | AE264: 0.04828539823 | AF264: 0.05288461538 | AG264: 0.05309734513 | AH264: 0.04592592593 | AI264: 0.040625 | AJ264: 0.03666666667 | AK264: 0.0335 | AL264: 0.03090909091 | AM264: 0.03017241379 | AN264: 0.02755905512 | AO264: 0.02448275862 | AP264: 0.02136498516 | AQ264: 0.02361111111 | AR264: 0.02416666667 | AS264: 0.02591549296 | AT264: 0.02619047619 | AU264: 0.02875 | AV264: 0.03092269327 | AW264: 0.03154205607 | AX264: 0.02945054945 | AY264: 0.02939914163 | AZ264: 0.02854209446 | BA264: 0.02953586498 | BB264: 0.02933884298 | BC264: 0.03080168776 | BD264: 0.02633587786 | BE264: 0.02508417508 | BF264: 0.02356495468 | BG264: 0.02382352941
B265: Wyoming | R265: 0.08130327595 | S265: 0.08117536608 | T265: 0.07583689776 | U265: 0.07724267938 | V265: 0.07822666256 | W265: 0.08905255651 | X265: 0.07605753435 | Y265: 0.07611655773 | Z265: 0.08978325556 | AA265: 0.1076195773 | AB265: 0.09305471022 | AQ265: 0.02923728814 | AR265: 0.04458333333 | AS265: 0.03821138211 | AT265: 0.04393939394 | AU265: 0.03713235294 | AV265: 0.04742647059 | AW265: 0.04357142857 | AX265: 0.04330985915 | AY265: 0.04275862069 | AZ265: 0.03869863014 | BA265: 0.03825503356 | BB265: 0.03685897436 | BC265: 0.0315625 | BD265: 0.03647058824 | BE265: 0.03405405405 | BF265: 0.03092783505 | BG265: 0.02882653061
B266: US Total | X266: 0.06821737877 | Y266: 0.06471147911 | Z266: 0.06489413914 | AA266: 0.06484973059 | AB266: 0.0640693956 | AC266: 0.06239306837 | AD266: 0.04571279301 | AE266: 0.04644035054 | AF266: 0.04680539933 | AG266: 0.04264323544 | AH266: 0.04138018433 | AI266: 0.04794520548 | AJ266: 0.04701986755 | AK266: 0.04503144654 | AL266: 0.04397590361 | AM266: 0.04371428571 | AN266: 0.03786407767 | AO266: 0.03456521739 | AP266: 0.03063241107 | AQ266: 0.03097826087 | AR266: 0.0375 | AS266: 0.03777777778 | AT266: 0.03724832215 | AU266: 0.03731343284 | AV266: 0.03569553806 | AW266: 0.03447432763 | AX266: 0.03512195122 | AY266: 0.03366336634 | AZ266: 0.03374689826 | BA266: 0.03407407407 | BB266: 0.03414634146 | BC266: 0.03390243902 | BD266: 0.03190045249 | BE266: 0.02930693069 | BF266: 0.02838827839 | BG266: (p)
B267: Ave. of Reported | C267: =AVERAGE(C216:C265) -> 0.08540987417 | D267: =AVERAGE(D216:D265) -> 0.08037051503 | E267: 0.07727142702 | F267: 0.07752520447 | G267: 0.07567930923 | H267: 0.06999668562 | I267: 0.07059031049 | J267: 0.06909089506 | K267: 0.06931225042 | L267: 0.06464955956 | M267: 0.05886194861 | N267: 0.05429059426 | O267: 0.05051090946 | P267: 0.04845294395 | Q267: 0.05073066201 | R267: 0.05305594003 | S267: 0.06124136528 | T267: 0.06674530259 | U267: 0.06742653556 | V267: 0.06622518182 | W267: 0.06565755572 | X267: 0.06810978347 | Y267: 0.06632723935 | Z267: 0.0650409297 | AA267: 0.06554916167 | AB267: 0.06473001645 | AC267: 0.06051253937 | AD267: 0.0360147322 | AE267: 0.03639958289 | AF267: 0.03637992439 | AG267: 0.04306325911 | AH267: 0.04147241865 | AI267: 0.04029029089 | AJ267: 0.03965884709 | AK267: 0.03834352143 | AL267: 0.03704309394 | AM267: 0.03716576741 | AN267: 0.03342200845 | AO267: 0.03016963457 | AP267: 0.0271025116 | AQ267: 0.02799804785 | AR267: 0.032314251 | AS267: 0.03173104433 | AT267: 0.03143792932 | AU267: 0.031754899 | AV267: 0.03129834374 | AW267: 0.0314390716 | AX267: 0.03116201589 | AY267: 0.03035402204 | AZ267: 0.03020965091 | BA267: 0.03040784878 | BB267: 0.03040048044 | BC267: 0.0299716349 | BD267: 0.02971668418 | BE267: 0.02780988609 | BF267: 0.02699579987 | BG267: 0.02639939712
B268: =B103 -> 12 State Average | C268: =SUMPRODUCT(C216:C265,$A$52:$A$101)/$A$102 -> 0.07599988051 | D268: =SUMPRODUCT(D216:D265,$A$52:$A$101)/$A$102 -> 0.07140472549 | E268: =SUMPRODUCT(E216:E265,$A$52:$A$101)/$A$102 -> 0.07164646631 | F268: 0.08156272012 | G268: 0.08242165192 | H268: 0.07884442402 | I268: 0.08071386928 | J268: 0.08156401747 | K268: 0.08874911329 | L268: 0.08066297607 | M268: 0.07418702011 | N268: 0.06779263847 | O268: 0.06235610319 | P268: 0.05892883076 | Q268: 0.06184529555 | R268: 0.06497285567 | S268: 0.06614071989 | T268: 0.07479280248 | U268: 0.07874303862 | V268: 0.07980404048 | W268: 0.07635735045 | X268: 0.07909588195 | Y268: 0.07829139291 | Z268: 0.07804883001 | AA268: 0.07592143655 | AB268: 0.07542646598 | AC268: 0.07388579604 | AD268: 0.02381235304 | AE268: 0.02364477187 | AF268: 0.02286361437 | AG268: 0.04850837331 | AH268: 0.0465273401 | AI268: 0.0460200397 | AJ268: 0.04565452052 | AK268: 0.04464334312 | AL268: 0.04375066661 | AM268: 0.04321104195 | AN268: 0.03863080771 | AO268: 0.03635171566 | AP268: 0.03381002649 | AQ268: 0.04042922483 | AR268: 0.04289633668 | AS268: 0.0413660877 | AT268: 0.0385685576 | AU268: 0.03719112958 | AV268: 0.03522334108 | AW268: 0.03398711109 | AX268: 0.03449802668 | AY268: 0.03386191916 | AZ268: 0.03432686897 | BA268: 0.0347153626 | BB268: 0.03435063513 | BC268: 0.03513185049 | BD268: 0.03348334103 | BE268: 0.03118517906 | BF268: 0.03034245412 | BG268: 0.02973961652
B272: Values
B273: Cropland | C273: 1968 | D273: 1969 | E273: 1970 | F273: 1971 | G273: 1972 | H273: 1973 | I273: 1974 | J273: 1975 | K273: 1976 | L273: 1977 | M273: 1978 | N273: 1979 | O273: 1980 | P273: 1981 | Q273: 1982 | R273: 1983 | S273: 1984 | T273: 1985 | U273: 1986 | V273: 1987 | W273: 1988 | X273: 1989 | Y273: 1990 | Z273: 1991 | AA273: 1992 | AB273: 1993 | AC273: 1994 | AD273: 1995 | AE273: 1996 | AF273: 1997 | AG273: 1998 | AH273: 1999 | AI273: 2000 | AJ273: 2001 | AK273: 2002 | AL273: 2003 | AM273: 2004 | AN273: 2005 | AO273: 2006 | AP273: 2007 | AQ273: 2008 | AR273: 2009 | AS273: 2010 | AT273: 2011 | AU273: 2012 | AV273: 2013 | AW273: 2014 | AX273: 2015 | AY273: 2016 | AZ273: 2017 | BA273: 2018 | BB273: 2019 | BC273: 2020 | BD273: 2021 | BE273: 2022 | BF273: 2023 | BG273: 2024
B274: Alabama | C274: 150 | D274: 165 | E274: 176.4705882 | F274: 199.4117647 | G274: 208.2352941 | H274: 235.5882353 | I274: 292.0588235 | J274: 321.1764706 | K274: 375 | L274: 420.8823529 | M274: 465 | N274: 563.8235294 | O274: 688.2352941 | P274: 802.9411765 | Q274: 780.8823529 | R274: 728.8235294 | S274: 727.0588235 | T274: 703.2352941 | U274: 708.5294118 | V274: 693.5294118 | W274: 705.8823529 | X274: 747.3529412 | Y274: 785.2941176 | Z274: 762.3529412 | AA274: 825.8823529 | AB274: 882.3529412 | AC274: 988.2352941 | AD274: 1111.764706 | AE274: 1164.705882 | AF274: 1200 | AG274: 1260 | AH274: 1350 | AI274: 1450 | AJ274: 1530 | AK274: 1600 | AL274: 1700 | AM274: 1750 | AN274: 2050 | AO274: 2300 | AP274: 2450 | AQ274: 2650 | AR274: 2620 | AS274: 2630 | AT274: 2680 | AU274: 2750 | AV274: 2750 | AW274: 2890 | AX274: 2940 | AY274: 3080 | AZ274: 3170 | BA274: 3300 | BB274: 3460 | BC274: 3570 | BD274: 3650 | BE274: 4040 | BF274: 4160 | BG274: 4440
B275: Alaska
B276: Arizona | C276: 261.4130435 | D276: 269.4565217 | E276: 281.5217391 | F276: 305.6521739 | G276: 345.8695652 | H276: 365.9782609 | I276: 442.3913043 | J276: 446.4130435 | K276: 490.6521739 | L276: 555 | M276: 619.3478261 | N276: 800.326087 | O276: 1073.804348 | P276: 1154.23913 | Q276: 1214.565217 | R276: 1162.282609 | S276: 1250.76087 | T276: 1186.413043 | U276: 1089.891304 | V276: 1202.5 | W276: 1122.065217 | X276: 1110 | Y276: 1073.804348 | Z276: 1170.326087 | AA276: 1250.76087 | AB276: 1270.869565 | AC276: 3257.608696 | AD276: 3378.26087 | AE276: 3539.130435 | AF276: 3700 | AG276: 3800 | AH276: 4100 | AI276: 4400 | AJ276: 4800 | AK276: 5600 | AL276: 6000 | AM276: 6400 | AN276: 9000 | AO276: 10500 | AP276: 10800 | AQ276: 11500 | AR276: 9830 | AS276: 7750 | AT276: 7610 | AU276: 7960 | AV276: 8290 | AW276: 8140 | AX276: 7970 | AY276: 7800 | AZ276: 7720 | BA276: 7610 | BB276: 7600 | BC276: 7600 | BD276: 7600 | BE276: 7900 | BF276: 8000 | BG276: 8000
B277: Arkansas | C277: 204.4560748 | D277: 222.5495327 | E277: 235.2149533 | F277: 230.6915888 | G277: 267.7831776 | H277: 304.8747664 | I277: 367.2971963 | J277: 379.0579439 | K277: 429.7196262 | L277: 490.3327103 | M277: 548.2317757 | N277: 696.5981308 | O277: 830.4897196 | P277: 955.3345794 | Q277: 991.5214953 | R277: 879.3420561 | S277: 872.1046729 | T277: 820.5383178 | U277: 704.7401869 | V277: 654.9831776 | W277: 688.4560748 | X277: 724.6429907 | Y277: 720.1196262 | Z277: 760.8299065 | AA277: 737.3084112 | AB277: 796.1121495 | AC277: 838.6317757 | AD277: 889.2934579 | AE277: 913.7196262 | AF277: 968 | AG277: 1030 | AH277: 1070 | AI277: 1100 | AJ277: 1140 | AK277: 1180 | AL277: 1220 | AM277: 1280 | AN277: 1440 | AO277: 1550 | AP277: 1680 | AQ277: 1770 | AR277: 1830 | AS277: 1910 | AT277: 1990 | AU277: 2180 | AV277: 2380 | AW277: 2530 | AX277: 2600 | AY277: 2660 | AZ277: 2730 | BA277: 2780 | BB277: 2900 | BC277: 2980 | BD277: 3080 | BE277: 3330 | BF277: 3460 | BG277: 3600
B278: California | C278: 985.52 | D278: 989.584 | E278: 973.328 | F278: 957.072 | G278: 1003.808 | H278: 1034.288 | I278: 1158.24 | J278: 1326.896 | K278: 1444.752 | L278: 1542.288 | M278: 1857.248 | N278: 2409.952 | O278: 2893.568 | P278: 3519.424 | Q278: 3860.8 | R278: 3897.376 | S278: 4025.392 | T278: 3740.912 | U278: 3515.36 | V278: 3157.728 | W278: 3200.4 | X278: 3539.744 | Y278: 3828.288 | Z278: 4220.464 | AA278: 4383.024 | AB278: 4496.816 | AC278: 4490.72 | AD278: 4511.04 | AE278: 4876.8 | AF278: 5080 | AG278: 5260 | AH278: 5360 | AI278: 5450 | AJ278: 5550 | AK278: 5730 | AL278: 5920 | AM278: 5500 | AN278: 7730 | AO278: 8290 | AP278: 9700 | AQ278: 9880 | AR278: 9390 | AS278: 8960 | AT278: 9130 | AU278: 9400 | AV278: 9860 | AW278: 10230 | AX278: 10850 | AY278: 11160 | AZ278: 11630 | BA278: 12170 | BB278: 12990 | BC278: 13160 | BD278: 14370 | BE278: 16170 | BF278: 16820 | BG278: 17330
B279: Colorado | C279: 113.8372881 | D279: 120.379661 | E279: 124.3050847 | F279: 134.7728814 | G279: 151.7830508 | H279: 179.2610169 | I279: 228.9830508 | J279: 245.9932203 | K279: 286.5559322 | L279: 334.9694915 | M279: 357.2135593 | N279: 421.3288136 | O279: 506.379661 | P279: 567.8779661 | Q279: 590.1220339 | R279: 594.0474576 | S279: 613.6745763 | T279: 571.8033898 | U279: 471.0508475 | V279: 481.5186441 | W279: 482.8271186 | X279: 490.6779661 | Y279: 489.3694915 | Z279: 571.8033898 | AA279: 523.3898305 | AB279: 557.4101695 | AC279: 626.759322 | AD279: 680.4067797 | AE279: 730.1288136 | AF279: 772 | AG279: 809 | AH279: 867 | AI279: 922 | AJ279: 966 | AK279: 999 | AL279: 1050 | AM279: 891 | AN279: 1000 | AO279: 1170 | AP279: 1270 | AQ279: 1310 | AR279: 1300 | AS279: 1290 | AT279: 1340 | AU279: 1450 | AV279: 1770 | AW279: 1890 | AX279: 1990 | AY279: 2020 | AZ279: 2070 | BA279: 2100 | BB279: 2200 | BC279: 2280 | BD279: 2370 | BE279: 2670 | BF279: 2870 | BG279: 2810
B280: Connecticut | AM280: 0 | AN280: 0 | AO280: 0 | AP280: 0 | AQ280: 0 | AR280: 0 | AS280: 0 | AT280: 0 | AU280: 0 | AV280: 0
B281: Delaware | C281: 416.6666667 | D281: 442.8294574 | E281: 483.5271318 | F281: 537.7906977 | G281: 548.4496124 | H281: 625 | I281: 784.8837209 | J281: 940.8914729 | K281: 1079.457364 | L281: 1211.24031 | M281: 1308.139535 | N281: 1453.488372 | O281: 1742.248062 | P281: 1868.217054 | Q281: 1731.589147 | R281: 1772.286822 | S281: 1782.945736 | T281: 1546.511628 | U281: 1631.782946 | V281: 1625 | W281: 1710.271318 | X281: 1973.837209 | Y281: 2145.348837 | Z281: 2113.372093 | AA281: 1978.682171 | AB281: 2176.356589 | AC281: 2277.131783 | AD281: 2364.341085 | AE281: 2470.930233 | AF281: 2500 | AG281: 2620 | AH281: 2800 | AI281: 3000 | AJ281: 3250 | AK281: 3500 | AL281: 3850 | AM281: 5800 | AN281: 8100 | AO281: 10000 | AP281: 10200 | AQ281: 9800 | AR281: 8510 | AS281: 7930 | AT281: 7840 | AU281: 7850 | AV281: 7870 | AW281: 7840 | AX281: 7880 | AY281: 8090 | AZ281: 7960 | BA281: 8120 | BB281: 8550 | BC281: 8500 | BD281: 8450 | BE281: 8980 | BF281: 9230 | BG281: 9294
B282: Florida | C282: 459.2 | D282: 475.6 | E282: 529.2727273 | F282: 562.0727273 | G282: 600.8363636 | H282: 691.7818182 | I282: 906.4727273 | J282: 1021.272727 | K282: 1137.563636 | L282: 1283.672727 | M282: 1462.581818 | N282: 1713.054545 | O282: 2058.945455 | P282: 2333.272727 | Q282: 2263.2 | R282: 2349.672727 | S282: 2452.545455 | T282: 2383.963636 | U282: 2291.527273 | V282: 2392.909091 | W282: 2668.727273 | X282: 2802.909091 | Y282: 3086.181818 | Z282: 3145.818182 | AA282: 3031.018182 | AB282: 3036.981818 | AC282: 3071.272727 | AD282: 3145.818182 | AE282: 3205.454545 | AF282: 3280 | AG282: 3230 | AH282: 3460 | AI282: 3550 | AJ282: 3720 | AK282: 3730 | AL282: 3690 | AM282: 3400 | AN282: 6260 | AO282: 6540 | AP282: 6860 | AQ282: 6980 | AR282: 6610 | AS282: 6550 | AT282: 6580 | AU282: 6420 | AV282: 6450 | AW282: 6550 | AX282: 6660 | AY282: 6860 | AZ282: 6940 | BA282: 7040 | BB282: 7270 | BC282: 7360 | BD282: 7570 | BE282: 8340 | BF282: 9290 | BG282: 10170
B283: Georgia | C283: 137.1328671 | D283: 158.6293706 | E283: 173.4545455 | F283: 189.020979 | G283: 214.965035 | H283: 243.8741259 | I283: 314.2937063 | J283: 351.3566434 | K283: 375.8181818 | L283: 430.6713287 | M283: 507.7622378 | N283: 575.958042 | O283: 664.1678322 | P283: 719.7622378 | Q283: 686.4055944 | R283: 688.6293706 | S283: 682.6993007 | T283: 656.7552448 | U283: 632.2937063 | V283: 658.979021 | W283: 681.958042 | X283: 763.4965035 | Y283: 799.8181818 | Z283: 811.6783217 | AA283: 759.7902098 | AB283: 838.3636364 | AC283: 852.4475524 | AD283: 933.986014 | AE283: 1008.111888 | AF283: 1060 | AG283: 1140 | AH283: 1380 | AI283: 1600 | AJ283: 1780 | AK283: 1970 | AL283: 2150 | AM283: 2240 | AN283: 2700 | AO283: 3620 | AP283: 4290 | AQ283: 4540 | AR283: 3980 | AS283: 3390 | AT283: 3360 | AU283: 3130 | AV283: 3080 | AW283: 3080 | AX283: 3160 | AY283: 3420 | AZ283: 3430 | BA283: 3430 | BB283: 3200 | BC283: 3290 | BD283: 3450 | BE283: 3760 | BF283: 4120 | BG283: 4330
B284: Hawaii
B285: Idaho | C285: 222.75 | D285: 231 | E285: 243.375 | F285: 258.5 | G285: 281.875 | H285: 314.875 | I285: 394.625 | J285: 466.125 | K285: 530.75 | L285: 624.25 | M285: 708.125 | N285: 804.375 | O285: 959.75 | P285: 1064.25 | Q285: 1153.625 | R285: 1119.25 | S285: 1111 | T285: 1016.125 | U285: 867.625 | V285: 759 | W285: 786.5 | X285: 815.375 | Y285: 904.75 | Z285: 899.25 | AA285: 935 | AB285: 937.75 | AC285: 1072.5 | AD285: 1155 | AE285: 1237.5 | AF285: 1320 | AG285: 1370 | AH285: 1410 | AI285: 1470 | AJ285: 1530 | AK285: 1600 | AL285: 1680 | AM285: 1500 | AN285: 1810 | AO285: 2450 | AP285: 2770 | AQ285: 2800 | AR285: 2610 | AS285: 2480 | AT285: 2470 | AU285: 2580 | AV285: 2850 | AW285: 3080 | AX285: 3280 | AY285: 3420 | AZ285: 3570 | BA285: 3740 | BB285: 4010 | BC285: 4220 | BD285: 4720 | BE285: 5330 | BF285: 5650 | BG285: 5820
B286: Illinois | C286: 491.3636364 | D286: 515.4090909 | E286: 512.2727273 | F286: 516.4545455 | G286: 545.7272727 | H286: 592.7727273 | I286: 752.7272727 | J286: 884.4545455 | K286: 1110.272727 | L286: 1524.272727 | M286: 1698.863636 | N286: 1942.454545 | O286: 2133.772727 | P286: 2287.454545 | Q286: 2114.954545 | R286: 1920.5 | S286: 1928.863636 | T286: 1443.772727 | U286: 1288 | V286: 1201.227273 | W286: 1319.363636 | X286: 1454.227273 | Y286: 1468.863636 | Z286: 1525.318182 | AA286: 1605.818182 | AB286: 1618.363636 | AC286: 1745.909091 | AD286: 1902.727273 | AE286: 1986.363636 | AF286: 2070 | AG286: 2240 | AH286: 2320 | AI286: 2350 | AJ286: 2370 | AK286: 2430 | AL286: 2500 | AM286: 2650 | AN286: 3250 | AO286: 3640 | AP286: 4150 | AQ286: 4850 | AR286: 4590 | AS286: 4720 | AT286: 5480 | AU286: 6300 | AV286: 7190 | AW286: 7660 | AX286: 7580 | AY286: 7350 | AZ286: 7210 | BA286: 7280 | BB286: 7300 | BC286: 7300 | BD286: 7800 | BE286: 8700 | BF286: 9250 | BG286: 9550
B287: Indiana | C287: 421.657754 | D287: 423.6898396 | E287: 412.513369 | F287: 428.7700535 | G287: 441.9786096 | H287: 501.9251337 | I287: 601.4973262 | J287: 731.5508021 | K287: 902.2459893 | L287: 1207.058824 | M287: 1378.770053 | N287: 1614.491979 | O287: 1892.887701 | P287: 2063.582888 | Q287: 1832.941176 | R287: 1635.828877 | S287: 1673.42246 | T287: 1365.561497 | U287: 1185.721925 | V287: 1078.02139 | W287: 1176.57754 | X287: 1269.037433 | Y287: 1274.117647 | Z287: 1311.71123 | AA287: 1346.256684 | AB287: 1417.379679 | AC287: 1524.064171 | AD287: 1645.989305 | AE287: 1767.914439 | AF287: 1900 | AG287: 2100 | AH287: 2180 | AI287: 2250 | AJ287: 2330 | AK287: 2440 | AL287: 2550 | AM287: 2730 | AN287: 2980 | AO287: 3250 | AP287: 3640 | AQ287: 4140 | AR287: 3890 | AS287: 4270 | AT287: 5070 | AU287: 5840 | AV287: 6590 | AW287: 6940 | AX287: 6780 | AY287: 6690 | AZ287: 6300 | BA287: 6210 | BB287: 6090 | BC287: 5970 | BD287: 6420 | BE287: 7170 | BF287: 7620 | BG287: 7870
B288: Iowa | C288: 387.8125 | D288: 405.875 | E288: 416.5 | F288: 416.5 | G288: 439.875 | H288: 495.125 | I288: 634.3125 | J288: 763.9375 | K288: 977.5 | L288: 1337.6875 | M288: 1414.1875 | N288: 1646.875 | O288: 1955 | P288: 2123.9375 | Q288: 2007.0625 | R288: 1789.25 | S288: 1612.875 | T288: 1159.1875 | U288: 927.5625 | V288: 835.125 | W288: 1006.1875 | X288: 1163.4375 | Y288: 1158.125 | Z288: 1210.1875 | AA288: 1225.0625 | AB288: 1287.75 | AC288: 1360 | AD288: 1434.375 | AE288: 1540.625 | AF288: 1700 | AG288: 1860 | AH288: 1900 | AI288: 1940 | AJ288: 1980 | AK288: 2040 | AL288: 2120 | AM288: 2310 | AN288: 2760 | AO288: 3100 | AP288: 3600 | AQ288: 4260 | AR288: 3980 | AS288: 4450 | AT288: 5600 | AU288: 6810 | AV288: 8000 | AW288: 8560 | AX288: 7860 | AY288: 7510 | AZ288: 7440 | BA288: 7290 | BB288: 7160 | BC288: 6970 | BD288: 7490 | BE288: 8830 | BF288: 9410 | BG288: 9800
B289: Kansas | C289: 179.1929204 | D289: 186.0849558 | E289: 182.6389381 | F289: 186.0849558 | G289: 199.8690265 | H289: 228.5858407 | I289: 290.6141593 | J289: 340.0070796 | K289: 392.8460177 | L289: 457.1716814 | M289: 480.1451327 | N289: 575.4849558 | O289: 674.2707965 | P289: 711.0283186 | Q289: 721.3663717 | R289: 690.3522124 | S289: 685.7575221 | T289: 560.5522124 | U289: 476.699115 | V289: 428.4548673 | W289: 474.4017699 | X289: 492.780531 | Y289: 516.9026549 | Z289: 515.7539823 | AA289: 528.3893805 | AB289: 531.8353982 | AC289: 577.7823009 | AD289: 614.539823 | AE289: 635.2159292 | AF289: 649 | AG289: 655 | AH289: 660 | AI289: 666 | AJ289: 673 | AK289: 679 | AL289: 684 | AM289: 688 | AN289: 806 | AO289: 854 | AP289: 914 | AQ289: 1020 | AR289: 1030 | AS289: 1110 | AT289: 1340 | AU289: 1650 | AV289: 1930 | AW289: 2270 | AX289: 2230 | AY289: 2080 | AZ289: 2010 | BA289: 2060 | BB289: 2110 | BC289: 1990 | BD289: 2230 | BE289: 2710 | BF289: 3080 | BG289: 3300
B290: Kentucky | C290: 254.4444444 | D290: 264.4444444 | E290: 281.1111111 | F290: 296.6666667 | G290: 327.7777778 | H290: 363.3333333 | I290: 427.7777778 | J290: 474.4444444 | K290: 571.1111111 | L290: 687.7777778 | M290: 794.4444444 | N290: 956.6666667 | O290: 1084.444444 | P290: 1147.777778 | Q290: 1175.555556 | R290: 1165.555556 | S290: 1148.888889 | T290: 1061.111111 | U290: 1045.555556 | V290: 975.5555556 | W290: 995.5555556 | X290: 1011.111111 | Y290: 1086.666667 | Z290: 1064.444444 | AA290: 1097.777778 | AB290: 1196.666667 | AC290: 1266.666667 | AD290: 1388.888889 | AE290: 1444.444444 | AF290: 1500 | AG290: 1620 | AH290: 1700 | AI290: 1800 | AJ290: 1900 | AK290: 2000 | AL290: 2100 | AM290: 2210 | AN290: 2450 | AO290: 2810 | AP290: 2930 | AQ290: 3100 | AR290: 3090 | AS290: 3070 | AT290: 3080 | AU290: 3210 | AV290: 3430 | AW290: 3620 | AX290: 3860 | AY290: 3980 | AZ290: 4140 | BA290: 4250 | BB290: 4350 | BC290: 4490 | BD290: 4650 | BE290: 5200 | BF290: 5720 | BG290: 6220
B291: Louisiana | C291: 265.0084034 | D291: 274.0840336 | E291: 291.3277311 | F291: 316.7394958 | G291: 344.8739496 | H291: 365.7478992 | I291: 425.6470588 | J291: 464.6722689 | K291: 521.8487395 | L291: 603.5294118 | M291: 742.3865546 | N291: 908.4705882 | O291: 1139.89916 | P291: 1319.596639 | Q291: 1283.294118 | R291: 1226.117647 | S291: 1297.815126 | T291: 1276.941176 | U291: 1080.907563 | V291: 835.8655462 | W291: 853.1092437 | X291: 870.3529412 | Y291: 839.4957983 | Z291: 834.9579832 | AA291: 840.4033613 | AB291: 882.1512605 | AC291: 907.5630252 | AD291: 980.1680672 | AE291: 1070.92437 | AF291: 1080 | AG291: 1060 | AH291: 1090 | AI291: 1130 | AJ291: 1160 | AK291: 1190 | AL291: 1240 | AM291: 1280 | AN291: 1450 | AO291: 1530 | AP291: 1690 | AQ291: 1830 | AR291: 1740 | AS291: 1800 | AT291: 1970 | AU291: 2120 | AV291: 2260 | AW291: 2370 | AX291: 2480 | AY291: 2590 | AZ291: 2700 | BA291: 2790 | BB291: 2900 | BC291: 2970 | BD291: 3030 | BE291: 3250 | BF291: 3330 | BG291: 3480
B292: Maine | AM292: 0 | AN292: 0 | AO292: 0 | AP292: 0 | AQ292: 0 | AR292: 0 | AS292: 0 | AT292: 0 | AU292: 0 | AV292: 0
... 144 more rows

Sheet Farmland Value Indexing Utility (hidden)
V1: Alabama | W1: Cropland
V2: Alaska | W2: Farm Real Estate
B3: Farmland and Cropland Index and Return Utility | V3: Arizona
B4: This utility allows a user to retrieve USDA state level data on cropland and farm real estate values and calculate the rates of return | V4: Arkansas
B5: over selected intervals. It also allows relative values to be recovered at any date based on a known value at a given date. --V24.8 August 2024 | V5: California
V6: Colorado
V7: Connecticut
B8: Select State | C8: Illinois | V8: Delaware
B9: Type | C9: Farm Real Estate | V9: Florida
B10: Start Year | C10: 2000 | V10: Georgia
B11: End Year | C11: 2024 | D11: =IF(C11<=C10," Must be later than start year","") ->  | V11: Hawaii
V12: Idaho
C13: Ave Value/acre | V13: Illinois
B14: ="Ave. Value "&C8&" "&C9&" in "&C10 -> Ave. Value Illinois Farm Real Estate in 2000 | C14: =HLOOKUP($C10,$C$53:$BB$58,((C9="cropland")*2)+((C9<>"cropland")*3),0) -> 2260 | V14: Indiana
B15: ="Ave. Value "&C8&" "&C9&" in "&C11 -> Ave. Value Illinois Farm Real Estate in 2024 | C15: =HLOOKUP($C11,$C$53:$BF$59,((C9="cropland")*2)+((C9<>"cropland")*3),0) -> 8700 | V15: Iowa
V16: Kansas
V17: Kentucky
B18: ="Ave Rates of Return from "&C10& " to "&C11 -> Ave Rates of Return from 2000 to 2024 | V18: Louisiana
B19: CCAGR | C19: =LN(C15/C14)/(C11-C10) -> 0.05616492552 | E19: (continunously compounded annual growth rate, end-beginning) | V19: Maine
B20: Ave Income rate | C20: =IFERROR(SUMPRODUCT(B52:BB52,B58:BB58)/(C11-C10+1),"NotAvail") -> 0.03093514972 | E20: (ave rental inclusive years) | V20: Maryland
B21: Ave Total Annual Return | C21: =IFERROR(C19+C20,"NotAvail") -> 0.08710007523 | E21: (before property taxes) | V21: Massachusetts
B22: Total Period Return | C22: =IFERROR(BB61,"NotAvail") -> 5.004675273 | E22: (before property taxes) | V22: Michigan
V23: Minnesota
B24: Parcel level indexing - assuming same growth rates as State Average | V24: Mississippi
B25: Enter years and known price. Indexed relative value at other date returned. | V25: Missouri
B26: Year | C26: 2024 | E26: =HLOOKUP($C26,$C$53:$BF$58,((C9="cropland")*2)+((C9<>"cropland")*3),0) -> 8700 | V26: Montana
B27: Land Value | C27: 12500 | V27: Nebraska
V28: Nevada
B29: Enter year of interest | V29: New Hampshire
B30: Year | C30: 2012 | E30: =HLOOKUP($C30,$C$53:$BF$61,((C9="cropland")*2)+((C9<>"cropland")*3),0) -> 6210 | V30: New Jersey
B31: Land Value | C31: =C27*E30/E26 -> 8922.413793 | E31: USDA index values calibrated to selected dates | V31: New Mexico
V32: New York
V33: North Carolina
V34: North Dakota
V35: Ohio
V36: Oklahoma
V37: Oregon
V38: Pennsylvania
V39: Rhode Island
V40: South Carolina
V41: South Dakota
V42: Tennessee
V43: Texas
V44: Utah
V45: Vermont
A46: zzz Update main page first then copy block below at A64 shifted label by 1zzz | V46: Virginia
V47: Washington
A48: =C8 -> Illinois | B48: =MATCH(C8,statenames) -> 13 | V48: West Virginia
V49: Wisconsin
V50: Wyoming
A52: Included | B52: =--AND(B53>=$C$10,B53<=$C$11) -> 0 | C52: =--AND(C53>=$C$10,C53<=$C$11) -> 0 | D52: 0 | E52: 0 | F52: 0 | G52: 0 | H52: 0 | I52: 0 | J52: 0 | K52: 0 | L52: 0 | M52: 0 | N52: 0 | O52: 0 | P52: 0 | Q52: 0 | R52: 0 | S52: 0 | T52: 0 | U52: 0 | V52: 0 | W52: 0 | X52: 0 | Y52: 0 | Z52: 0 | AA52: 0 | AB52: 0 | AC52: 0 | AD52: 0 | AE52: 0 | AF52: 0 | AG52: 0 | AH52: 1 | AI52: 1 | AJ52: 1 | AK52: 1 | AL52: 1 | AM52: 1 | AN52: 1 | AO52: 1 | AP52: 1 | AQ52: 1 | AR52: 1 | AS52: 1 | AT52: 1 | AU52: 1 | AV52: 1 | AW52: 1 | AX52: 1 | AY52: 1 | AZ52: 1 | BA52: 1 | BB52: 1 | BC52: 1 | BD52: 1 | BE52: 1 | BF52: 1
B53: 1968 | C53: 1969 | D53: 1970 | E53: 1971 | F53: 1972 | G53: 1973 | H53: 1974 | I53: 1975 | J53: 1976 | K53: 1977 | L53: 1978 | M53: 1979 | N53: 1980 | O53: 1981 | P53: 1982 | Q53: 1983 | R53: 1984 | S53: 1985 | T53: 1986 | U53: 1987 | V53: 1988 | W53: 1989 | X53: 1990 | Y53: 1991 | Z53: 1992 | AA53: 1993 | AB53: 1994 | AC53: 1995 | AD53: 1996 | AE53: 1997 | AF53: 1998 | AG53: 1999 | AH53: 2000 | AI53: 2001 | AJ53: 2002 | AK53: 2003 | AL53: 2004 | AM53: 2005 | AN53: 2006 | AO53: 2007 | AP53: 2008 | AQ53: 2009 | AR53: 2010 | AS53: 2011 | AT53: 2012 | AU53: 2013 | AV53: 2014 | AW53: 2015 | AX53: 2016 | AY53: 2017 | AZ53: 2018 | BA53: 2019 | BB53: 2020 | BC53: 2021 | BD53: 2022 | BE53: 2023 | BF53: 2024
A54: Crop values | B54: =INDEX(B180:B229,$B$48,0) -> 491.3636364 | C54: =INDEX(C180:C229,$B$48,0) -> 515.4090909 | D54: 512.2727273 | E54: 516.4545455 | F54: 545.7272727 | G54: 592.7727273 | H54: 752.7272727 | I54: 884.4545455 | J54: 1110.272727 | K54: 1524.272727 | L54: 1698.863636 | M54: 1942.454545 | N54: 2133.772727 | O54: 2287.454545 | P54: 2114.954545 | Q54: 1920.5 | R54: 1928.863636 | S54: 1443.772727 | T54: 1288 | U54: 1201.227273 | V54: 1319.363636 | W54: 1454.227273 | X54: 1468.863636 | Y54: 1525.318182 | Z54: 1605.818182 | AA54: 1618.363636 | AB54: 1745.909091 | AC54: 1902.727273 | AD54: 1986.363636 | AE54: 2070 | AF54: 2240 | AG54: 2320 | AH54: 2350 | AI54: 2370 | AJ54: 2430 | AK54: 2500 | AL54: 2650 | AM54: 3250 | AN54: 3640 | AO54: 4150 | AP54: 4850 | AQ54: 4590 | AR54: 4720 | AS54: 5480 | AT54: 6300 | AU54: 7190 | AV54: 7660 | AW54: 7580 | AX54: 7350 | AY54: 7210 | AZ54: 7280 | BA54: 7300 | BB54: 7300 | BC54: 7800 | BD54: 8700 | BE54: 9250 | BF54: =INDEX(BF180:BF229,$B$48,0) -> 9550
A55: Real Estate | B55: =INDEX(B237:B286,$B$48,0) -> 470 | C55: =INDEX(C237:C286,$B$48,0) -> 493 | D55: 490 | E55: 494 | F55: 522 | G55: 567 | H55: 720 | I55: 846 | J55: 1062 | K55: 1458 | L55: 1625 | M55: 1858 | N55: 2041 | O55: 2188 | P55: 2023 | Q55: 1837 | R55: 1845 | S55: 1381 | T55: 1232 | U55: 1149 | V55: 1262 | W55: 1391 | X55: 1405 | Y55: 1459 | Z55: 1536 | AA55: 1548 | AB55: 1670 | AC55: 1820 | AD55: 1900 | AE55: 1980 | AF55: 2130 | AG55: 2220 | AH55: 2260 | AI55: 2290 | AJ55: 2350 | AK55: 2430 | AL55: 2560 | AM55: 3210 | AN55: 3590 | AO55: 4020 | AP55: 4550 | AQ55: 4450 | AR55: 4720 | AS55: 5390 | AT55: 6210 | AU55: 7100 | AV55: 7480 | AW55: 7430 | AX55: 7300 | AY55: 7160 | AZ55: 7280 | BA55: 7140 | BB55: 7110 | BC55: 7440 | BD55: 8220 | BE55: 8420 | BF55: =INDEX(BF237:BF286,$B$48,0) -> 8700
A56: Crop Rent | B56: =INDEX(B293:B342,$B$48,0) -> 36 | C56: =INDEX(C293:C342,$B$48,0) -> 36.2 | D56: 36.4 | E56: 36.6 | F56: 38 | G56: 41.5 | H56: 53 | I56: 63 | J56: 75.8 | K56: 89 | L56: 93 | M56: 99 | N56: 107 | O56: 113.8 | P56: 119.4 | Q56: 116.3 | R56: 119.3 | S56: 110.1 | T56: 99.9 | U56: 85.7 | V56: 89.2 | W56: 94.3 | X56: 99.4 | Y56: 100.9 | Z56: 103.3 | AA56: 102.9 | AB56: 107.3 | AC56: 99.7 | AD56: 106 | AE56: 109 | AF56: 111 | AG56: 111 | AH56: 119 | AI56: 119 | AJ56: 122 | AK56: 123 | AL56: 126 | AM56: 129 | AN56: 132 | AO56: 141 | AP56: 163 | AQ56: 163 | AR56: 169 | AS56: 183 | AT56: 212 | AU56: 223 | AV56: 234 | AW56: 228 | AX56: 221 | AY56: 218 | AZ56: 223 | BA56: 224 | BB56: 222 | BC56: 227 | BD56: 243 | BE56: 259 | BF56: =INDEX(BF293:BF342,$B$48,0) -> 269
A57: Total Return | B57: =INDEX(B65:B114,$B$48,0) -> 0 | C57: =INDEX(C65:C114,$B$48,0) -> 0.1052999283 | D57: 0.05038765708 | E57: 0.0635479256 | F57: 0.1101885211 | G57: 0.1403809886 | H57: 0.3276541524 | I57: 0.2352248017 | J57: 0.3140303668 | K57: 0.4237530426 | L57: 0.1620476849 | M57: 0.1875607902 | N57: 0.1422599882 | O57: 0.1153357229 | P57: -0.02486359927 | Q57: -0.03825867181 | R57: 0.05990238688 | S57: -0.18348381 | T57: -0.03956934453 | U57: -0.008629299807 | V57: 0.1549830327 | W57: 0.1567089448 | X57: 0.06690853426 | Y57: 0.0947263172 | Z57: 0.1080211969 | AA57: 0.06195362673 | AB57: 0.1309768689 | AC57: 0.1336310557 | AD57: 0.08885348578 | AE57: 0.08631994912 | AF57: 0.1171852341 | AG57: 0.08208764235 | AH57: 0.06055773182 | AI57: 0.05562741076 | AJ57: 0.0684436018 | AK57: 0.07532811686 | AL57: 0.09433756394 | AM57: 0.2879718933 | AN57: 0.1490618847 | AO57: 0.1490045104 | AP57: 0.161126765 | AQ57: 0.009070279042 | AR57: 0.09211547323 | AS57: 0.1906644252 | AT57: 0.1795603185 | AU57: 0.1694728465 | AV57: 0.09241908005 | AW57: 0.01675494151 | AX57: -0.002511358178 | AY57: 0.008704117411 | AZ57: 0.03728810294 | BA57: 0.02682010984 | BB57: 0.02249341181 | BC57: 0.09089028083 | BD57: 0.1394010507 | BE57: 0.08582825897 | BF57: =INDEX(BF65:BF114,$B$48,0) -> 0.0550474667
A58: Crop Return | C58: =C56/C54 -> 0.0702354705 | D58: 0.07105590062 | E58: 0.07086780496 | F58: 0.06963185074 | G58: 0.07000996856 | H58: 0.07041062802 | I58: 0.07123034228 | J58: 0.06827151396 | K58: 0.05838850122 | L58: 0.05474247492 | M58: 0.05096644358 | N58: 0.05014592165 | O58: 0.04974962245 | P58: 0.05645511401 | Q58: 0.06055714658 | R58: 0.06184988806 | S58: 0.07625853981 | T58: 0.0775621118 | U58: 0.07134370152 | V58: 0.06760835113 | W58: 0.06484543494 | X58: 0.06767136005 | Y58: 0.06615013261 | Z58: 0.0643285779 | AA58: 0.06358274351 | AB58: 0.06145795366 | AC58: 0.05239847109 | AD58: 0.05336384439 | AE58: 0.05265700483 | AF58: 0.04955357143 | AG58: 0.04784482759 | AH58: 0.05063829787 | AI58: 0.05021097046 | AJ58: 0.05020576132 | AK58: 0.0492 | AL58: 0.04754716981 | AM58: 0.03969230769 | AN58: 0.03626373626 | AO58: 0.03397590361 | AP58: 0.03360824742 | AQ58: 0.03551198257 | AR58: 0.03580508475 | AS58: 0.03339416058 | AT58: 0.03365079365 | AU58: 0.03101529903 | AV58: 0.03054830287 | AW58: 0.03007915567 | AX58: 0.03006802721 | AY58: 0.03023578363 | AZ58: 0.03063186813 | BA58: 0.03068493151 | BB58: 0.0304109589 | BC58: =BC56/BC54 -> 0.0291025641 | BD58: 0.02793103448 | BE58: 0.028 | BF58: =BF56/BF54 -> 0.02816753927
A59: CropCG | C59: =LN(C54/B54) -> 0.04777647934 | D59: =LN(D54/C54) -> -0.006103782938 | E59: 0.008130126083 | F59: 0.05513207069 | G59: 0.08269171585 | H59: 0.2388919083 | I59: 0.1612681476 | J59: 0.2273898422 | K59: 0.3169117108 | L59: 0.1084421822 | M59: 0.1339928246 | N59: 0.09393924344 | O59: 0.06954800073 | P59: -0.07840632637 | Q59: -0.09644775195 | R59: 0.00434547126 | S59: -0.2896714031 | T59: -0.1141690093 | U59: -0.06974686624 | V59: 0.09380576525 | W59: 0.09732514882 | X59: 0.01001438984 | Y59: 0.03771396675 | Z59: 0.05143036518 | AA59: 0.007782140442 | AB59: 0.07585985126 | AC59: 0.08601287466 | AD59: 0.04301738508 | AE59: 0.04124295853 | AF59: 0.07892725859 | AG59: 0.03509131981 | AH59: 0.01284814248 | AI59: 0.008474626991 | AJ59: 0.02500130221 | AK59: 0.02839947452 | AL59: 0.05826890812 | AM59: 0.2040953563 | AN59: 0.1133286853 | AO59: 0.1311246526 | AP59: 0.1558703707 | AQ59: -0.05509868088 | AR59: 0.02792877553 | AS59: 0.1492963014 | AT59: 0.1394445324 | AU59: 0.1321415383 | AV59: 0.06332081202 | AW59: -0.0104987841 | AX59: -0.03081288643 | AY59: -0.01923136193 | AZ59: 0.009661910912 | BA59: 0.002743485946 | BB59: 0 | BC59: =LN(BC54/BB54) -> 0.06624938554 | BD59: =LN(BD54/BC54) -> 0.109199292 | BE59: =LN(BE54/BD54) -> 0.06130052586 | BF59: 0.03191760297
A60: R | C60: =1+C52*(C59+C58) -> 1 | D60: =1+D52*(D59+D58) -> 1 | E60: 1 | F60: 1 | G60: 1 | H60: 1 | I60: 1 | J60: 1 | K60: 1 | L60: 1 | M60: 1 | N60: 1 | O60: 1 | P60: 1 | Q60: 1 | R60: 1 | S60: 1 | T60: 1 | U60: 1 | V60: 1 | W60: 1 | X60: 1 | Y60: 1 | Z60: 1 | AA60: 1 | AB60: 1 | AC60: 1 | AD60: 1 | AE60: 1 | AF60: 1 | AG60: 1 | AH60: 1.06348644 | AI60: 1.058685597 | AJ60: 1.075207064 | AK60: 1.077599475 | AL60: 1.105816078 | AM60: 1.243787664 | AN60: 1.149592422 | AO60: 1.165100556 | AP60: 1.189478618 | AQ60: 0.9804133017 | AR60: 1.06373386 | AS60: 1.182690462 | AT60: 1.173095326 | AU60: 1.163156837 | AV60: 1.093869115 | AW60: 1.019580372 | AX60: 0.9992551408 | AY60: 1.011004422 | AZ60: 1.040293779 | BA60: 1.033428417 | BB60: 1.030410959 | BC60: =1+BC52*(BC59+BC58) -> 1.09535195 | BD60: 1.137130326 | BE60: 1.089300526 | BF60: =1+BF52*(BF59+BF58) -> 1.060085142
BB61: =PRODUCT(C60:BB60)-1 -> 5.004675273 | BC61: =PRODUCT(D60:BC60)-1 -> 5.577232768 | BD61: =PRODUCT(E60:BD60)-1 -> 6.479170844 | BE61: 7.147064734 | BF61: 7.636582277
A63: Total Return (CG + rent - tax)/val
A64: Total Return (CG + rent - tax)/val | C64: 1969 | D64: 1970 | E64: 1971 | F64: 1972 | G64: 1973 | H64: 1974 | I64: 1975 | J64: 1976 | K64: 1977 | L64: 1978 | M64: 1979 | N64: 1980 | O64: 1981 | P64: 1982 | Q64: 1983 | R64: 1984 | S64: 1985 | T64: 1986 | U64: 1987 | V64: 1988 | W64: 1989 | X64: 1990 | Y64: 1991 | Z64: 1992 | AA64: 1993 | AB64: 1994 | AC64: 1995 | AD64: 1996 | AE64: 1997 | AF64: 1998 | AG64: 1999 | AH64: 2000 | AI64: 2001 | AJ64: 2002 | AK64: 2003 | AL64: 2004 | AM64: 2005 | AN64: 2006 | AO64: 2007 | AP64: 2008 | AQ64: 2009 | AR64: 2010 | AS64: 2011 | AT64: 2012 | AU64: 2013 | AV64: 2014 | AW64: 2015 | AX64: 2016 | AY64: 2017 | AZ64: 2018 | BA64: 2019 | BB64: 2020 | BC64: 2021 | BD64: 2022 | BE64: 2023 | BF64: 2024
A65: Alabama | C65: 0.1946623886 | D65: 0.1652885364 | E65: 0.21421257 | F65: 0.1267647174 | G65: 0.2093963953 | H65: 0.3097472092 | I65: 0.1675892662 | J65: 0.2299042257 | K65: 0.1856665658 | L65: 0.1656183115 | M65: 0.2672748511 | N65: 0.2704478753 | O65: 0.2097126851 | P65: 0.01642877803 | Q65: -0.01738491832 | R65: 0.03700819769 | S65: 0.006745504481 | T65: 0.04714274462 | U65: 0.01752395115 | V65: 0.05885278188 | W65: 0.09640231338 | X65: 0.09158775037 | Y65: 0.005895710644 | Z65: 0.1145467396 | AA65: 0.1011889017 | AB65: 0.1550779998 | AC65: 0.1556837831 | AD65: 0.07904578926 | AE65: 0.05742841327 | AF65: 0.08456695435 | AG65: 0.06241962963 | AH65: 0.0672056129 | AI65: 0.06582251056 | AJ65: 0.05705998581 | AK65: 0.05420066102 | AL65: 0.06812675885 | AM65: 0.1254995161 | AN65: 0.03932878811 | AO65: 0.06265956298 | AP65: 0.05947881106 | AQ65: -0.005539118999 | AR65: 0.03841181471 | AS65: 0.03565486558 | AT65: 0.04295252191 | AU65: 0.01788191216 | AV65: 0.06630711004 | AW65: 0.03479664646 | AX65: 0.06299524259 | AY65: 0.04466403659 | AZ65: 0.05730326913 | BA65: 0.06389500891 | BB65: 0.04820953995 | BC65: 0.03796198313 | BD65: 0.1208085916 | BE65: 0.04343657078 | BF65: 0.08278884246
A66: Alaska
A67: Arizona | C67: 0.05856774096 | D67: 0.07252721017 | E67: 0.1137326262 | F67: 0.1594780973 | G67: 0.08671774193 | H67: 0.2374324258 | I67: 0.03726501677 | J67: 0.1276121486 | K67: 0.1599319423 | L67: 0.1454497572 | M67: 0.3222373106 | N67: 0.3728038105 | O67: 0.1062301894 | P67: 0.08461305422 | Q67: -0.01101742185 | R67: 0.1947271757 | S67: 0.06781728187 | T67: 0.04049490923 | U67: 0.2046062181 | V67: 0.06157925569 | W67: 0.1253524142 | X67: 0.09479539383 | Y67: 0.2111562229 | Z67: 0.1689956338 | AA67: 0.120642368 | AB67: 1.608077956 | AC67: 0.0614969706 | AD67: 0.07292703787 | AE67: 0.07431665011 | AF67: 0.1047032901 | AG67: 0.1160474561 | AH67: 0.1067589408 | AI67: 0.1190592698 | AJ67: 0.1521411375 | AK67: 0.1036998915 | AL67: 0.09896045468 | AM67: 0.4886588767 | AN67: 0.3414614313 | AO67: 0.08144400497 | AP67: 0.1261112174 | AQ67: 0.01527642437 | AR67: 0.005219897895 | AS67: 0.001371120496 | AT67: 0.07007114945 | AU67: 0.0677164356 | AV67: 0.007967440025 | AW67: 0.003529702468 | AX67: 0.004671203622 | AY67: 0.02035588348 | AZ67: 0.01734553179 | BA67: 0.03041957938 | BB67: 0.03507041522 | BC67: 0.04141362144 | BD67: 0.07961089208 | BE67: 0.05406776526 | BF67: 0.03120749451
A68: Arkansas | C68: 0.1706469812 | D68: 0.1395065442 | E68: 0.06898350028 | F68: 0.239642303 | G68: 0.2151763241 | H68: 0.2856188959 | I68: 0.1155117028 | J68: 0.2124739099 | K68: 0.2075200771 | L68: 0.1876263108 | M68: 0.3288765278 | N68: 0.2470227151 | O68: 0.198683382 | P68: 0.08731901705 | Q68: -0.06239466584 | R68: 0.04623411848 | S68: 0.0001902985437 | T68: -0.0761412401 | U68: -0.006774355178 | V68: 0.1203879571 | W68: 0.1205071541 | X68: 0.05898203441 | Y68: 0.126103311 | Z68: 0.03086966922 | AA68: 0.1395727753 | AB68: 0.1104035771 | AC68: 0.09699501833 | AD68: 0.0646007899 | AE68: 0.09632225276 | AF68: 0.1398653492 | AG68: 0.1207002298 | AH68: 0.117364649 | AI68: 0.1029730554 | AJ68: 0.09986727212 | AK68: 0.1050667854 | AL68: 0.1638895513 | AM68: 0.1774471521 | AN68: 0.126497982 | AO68: 0.1602730173 | AP68: 0.122327254 | AQ68: 0.008485779209 | AR68: 0.06735254428 | AS68: 0.08208106303 | AT68: 0.135341195 | AU68: 0.1285858632 | AV68: 0.09989064013 | AW68: 0.06494645289 | AX68: 0.05825581852 | AY68: 0.06197508404 | AZ68: 0.05498731592 | BA68: 0.07403705149 | BB68: 0.06004000098 | BC68: 0.06365654767 | BD68: 0.112702286 | BE68: 0.06846301559 | BF68: 0.07035756663
A69: California | C69: 0.0176171759 | D69: -0.00430277992 | E69: -0.006459596876 | F69: 0.05936843665 | G69: 0.0412191316 | H69: 0.1313531123 | I69: 0.1594104839 | J69: 0.1033270856 | K69: 0.08218806101 | L69: 0.2265225594 | M69: 0.3211291504 | N69: 0.2245773866 | O69: 0.2408256254 | P69: 0.1215815073 | Q69: 0.03356750988 | R69: 0.07574798393 | S69: -0.02704740197 | T69: -0.02127679198 | U69: -0.05642974665 | V69: 0.06042195249 | W69: 0.1529038309 | X69: 0.1166257141 | Y69: 0.1372056349 | Z69: 0.07373294499 | AA69: 0.06288448033 | AB69: 0.04246069121 | AC69: 0.02555807824 | AD69: 0.1018311037 | AE69: 0.0625626013 | AF69: 0.06537411787 | AG69: 0.09333294835 | AH69: 0.09261289659 | AI69: 0.08800186865 | AJ69: 0.08494902834 | AK69: 0.08130941823 | AL69: 0.07793791353 | AM69: 0.351871456 | AN69: 0.08401194132 | AO69: 0.1343642355 | AP69: 0.1046793532 | AQ69: 0.04591005019 | AR69: 0.03597812136 | AS69: 0.04245095645 | AT69: 0.0524740943 | AU69: 0.07167586742 | AV69: 0.06281962053 | AW69: 0.08555823379 | AX69: 0.05131721 | AY69: 0.06515506715 | AZ69: 0.06944935475 | BA69: 0.0948283601 | BB69: 0.04127669787 | BC69: 0.1096365905 | BD69: 0.1394431509 | BE69: 0.05527069138 | BF69: 0.04426693737
A70: Colorado | C70: 0.0851922918 | D70: 0.05995708552 | E70: 0.1116274837 | F70: 0.154422214 | G70: 0.2106134945 | H70: 0.307468446 | I70: 0.1044457345 | J70: 0.1957288334 | K70: 0.2002203734 | L70: 0.09799846859 | M70: 0.2114194237 | N70: 0.2342310892 | O70: 0.1540083101 | P70: 0.07203646256 | Q70: 0.03875910713 | R70: 0.1465930247 | S70: 0.07147761337 | T70: -0.04635567926 | U70: 0.1401192289 | V70: 0.1299741981 | W70: 0.1510739482 | X70: 0.1368154744 | Y70: 0.2877691113 | Z70: 0.04914079339 | AA70: 0.1965508447 | AB70: 0.2399042243 | AC70: 0.1161508084 | AD70: 0.1037949663 | AE70: 0.08830156607 | AF70: 0.112595104 | AG70: 0.08180385112 | AH70: 0.08675304974 | AI70: 0.1012427414 | AJ70: 0.09732286462 | AK70: 0.09571955248 | AL70: 0.1018959343 | AM70: 0.2406579004 | AN70: 0.1805463243 | AO70: 0.1316196676 | AP70: 0.0433007297 | AQ70: -0.0008027319257 | AR70: 0.02462334978 | AS70: 0.08153930451 | AT70: 0.1264177145 | AU70: 0.2570790763 | AV70: 0.1025093119 | AW70: 0.0872366605 | AX70: 0.04850769846 | AY70: 0.05739967915 | AZ70: 0.04729233952 | BA70: 0.08084664628 | BB70: 0.06393005196 | BC70: 0.06795557161 | BD70: 0.1538102427 | BE70: 0.1017025399 | BF70: 0.006544733281
A71: Connecticut
A72: Delaware | C72: 0.1023934451 | D72: 0.1344505983 | E72: 0.1522833044 | F72: 0.05707120801 | G72: 0.1721942393 | H72: 0.2917137792 | I72: 0.2283031028 | J72: 0.1764611811 | K72: 0.1521001614 | L72: 0.110990699 | M72: 0.1411768404 | N72: 0.2274152933 | O72: 0.1031016647 | P72: -0.04077640152 | Q72: 0.05379308914 | R72: 0.04054561199 | S72: -0.09312976756 | T72: 0.09083128285 | U72: 0.02956144457 | V72: 0.07902570343 | W72: 0.1795175588 | X72: 0.1093182342 | Y72: 0.009719885336 | Z72: -0.036370205 | AA72: 0.1223141431 | AB72: 0.0683398995 | AC72: 0.05989593291 | AD72: 0.06665257805 | AE72: 0.03123214112 | AF72: 0.0489417601 | AG72: 0.1055716014 | AH72: 0.1009646063 | AI72: 0.0933884031 | AJ72: 0.1008600474 | AK72: 0.09311504947 | AL72: 0.5337015903 | AM72: 0.3997897851 | AN72: 0.2286425339 | AO72: 0.03440122073 | AP72: -0.03179371452 | AQ72: -0.128519055 | AR72: -0.08118777451 | AS72: -0.004165673764 | AT72: 0.01022496164 | AU72: 0.01144979892 | AV72: 0.005914912103 | AW72: 0.01551971872 | AX72: 0.03844441353 | AY72: -0.004097455273 | AZ72: 0.03200466721 | BA72: 0.0650947043 | BB72: 0.005116038451 | BC72: 0.005648738858 | BD72: 0.07357129712 | BE72: 0.03918154059 | BF72: 0.01841227687
A73: Florida | C73: 0.05522192901 | D73: 0.1283153597 | E73: 0.07115075571 | F73: 0.08118804806 | G73: 0.1656725502 | H73: 0.3208390962 | I73: 0.1358894608 | J73: 0.1273548285 | K73: 0.148463418 | L73: 0.1552625998 | M73: 0.1879443099 | N73: 0.214680505 | O73: 0.1441364742 | P73: -0.01844166429 | Q73: 0.04836264169 | R73: 0.06198913503 | S73: -0.001556595557 | T73: -0.003500044178 | U73: 0.07869414531 | V73: 0.1488118961 | W73: 0.08389689531 | X73: 0.1279245061 | Y73: 0.05181025769 | Z73: -0.01246978102 | AA73: 0.02705905839 | AB73: 0.02872860397 | AC73: 0.03420210227 | AD73: 0.02881272104 | AE73: 0.03344031224 | AF73: 0.02879374613 | AG73: 0.05997221815 | AH73: 0.07528612989 | AI73: 0.05169900621 | AJ73: 0.05877755144 | AK73: 0.07821972781 | AL73: 0.01851474002 | AM73: 0.653433686 | AN73: 0.1051008035 | AO73: 0.06378335973 | AP73: 0.03834116069 | AQ73: -0.0506015147 | AR73: -0.02798172949 | AS73: 0.01302618325 | AT73: -0.01297126596 | AU73: 0.01466424956 | AV73: 0.02738122721 | AW73: 0.02944172047 | AX73: 0.04125557244 | AY73: 0.0267766568 | AZ73: 0.02745708241 | BA73: 0.04477688875 | BB73: 0.02736356004 | BC73: 0.04184950014 | BD73: 0.1130076623 | BE73: 0.1255799898 | BF73: 0.1058305435
A74: Georgia | C74: 0.2652896985 | D74: 0.1919817499 | E74: 0.1904760274 | F74: 0.2310901821 | G74: 0.2149672591 | H74: 0.3660189241 | I74: 0.1973197649 | J74: 0.1462728477 | K74: 0.2176028994 | L74: 0.234938459 | M74: 0.1930878779 | N74: 0.202089888 | O74: 0.128667358 | P74: -0.002634485142 | Q74: 0.04887781284 | R74: 0.03448796156 | S74: 0.003045199384 | T74: 0.001364972796 | U74: 0.07645860904 | V74: 0.07540956179 | W74: 0.1578141859 | X74: 0.07627417353 | Y74: 0.04359106571 | Z74: -0.032732466 | AA74: 0.1342341078 | AB74: 0.0486647208 | AC74: 0.1236650667 | AD74: 0.1072370174 | AE74: 0.07967784928 | AF74: 0.09166920442 | AG74: 0.1081512498 | AH74: 0.09955765287 | AI74: 0.1114757379 | AJ74: 0.1025608204 | AK74: 0.09464253795 | AL74: 0.08065905633 | AM74: 0.3658849405 | AN74: 0.2239466493 | AO74: 0.1551797247 | AP74: -0.0009207841557 | AQ74: -0.04780269085 | AR74: -0.0449048394 | AS74: 0.01209222263 | AT74: -0.04217455758 | AU74: 0.01128174047 | AV74: 0.03081526665 | AW74: 0.05535564354 | AX74: 0.1093347598 | AY74: 0.03344970834 | AZ74: 0.02852348164 | BA74: -0.03201669352 | BB74: 0.06164668186 | BC74: 0.08310416135 | BD74: 0.1196011026 | BE74: 0.1266339657 | BF74: 0.08097072745
A75: Hawaii
A76: Idaho | C76: 0.07289910914 | D76: 0.08947446628 | E76: 0.09772002292 | F76: 0.1263458557 | G76: 0.1532014331 | H76: 0.2902370425 | I76: 0.2187301956 | J76: 0.1763504702 | K76: 0.2141555168 | L76: 0.1729036768 | M76: 0.1753572024 | N76: 0.2328394433 | O76: 0.1490262331 | P76: 0.1234888447 | Q76: 0.009020671098 | R76: 0.08416282713 | S76: 0.01520733444 | T76: -0.05291291868 | U76: -0.02899626423 | V76: 0.1457891599 | W76: 0.1479480193 | X76: 0.2083144387 | Y76: 0.09029742833 | Z76: 0.1563135414 | AA76: 0.1031435815 | AB76: 0.2551140219 | AC76: 0.1127733026 | AD76: 0.1074159317 | AE76: 0.1028700716 | AF76: 0.1220373849 | AG76: 0.1293897926 | AH76: 0.1159080808 | AI76: 0.1000713884 | AJ76: 0.08758182978 | AK76: 0.08500986473 | AL76: 0.09251541052 | AM76: 0.3028686645 | AN76: 0.3733537199 | AO76: 0.1564565872 | AP76: 0.03909999191 | AQ76: -0.0744483693 | AR76: 0.007733859577 | AS76: 0.04701307011 | AT76: 0.09464558659 | AU76: 0.148938782 | AV76: 0.1247159861 | AW76: 0.1090068473 | AX76: 0.08797079176 | AY76: 0.08517514995 | AZ76: 0.0872141661 | BA76: 0.1112532712 | BB76: 0.09225666558 | BC76: 0.1558911387 | BD76: 0.161539696 | BE76: 0.09348102181 | BF76: 0.06433813964
A77: Illinois | C77: 0.1052999283 | D77: 0.05038765708 | E77: 0.0635479256 | F77: 0.1101885211 | G77: 0.1403809886 | H77: 0.3276541524 | I77: 0.2352248017 | J77: 0.3140303668 | K77: 0.4237530426 | L77: 0.1620476849 | M77: 0.1875607902 | N77: 0.1422599882 | O77: 0.1153357229 | P77: -0.02486359927 | Q77: -0.03825867181 | R77: 0.05990238688 | S77: -0.18348381 | T77: -0.03956934453 | U77: -0.008629299807 | V77: 0.1549830327 | W77: 0.1567089448 | X77: 0.06690853426 | Y77: 0.0947263172 | Z77: 0.1080211969 | AA77: 0.06195362673 | AB77: 0.1309768689 | AC77: 0.1336310557 | AD77: 0.08885348578 | AE77: 0.08631994912 | AF77: 0.1171852341 | AG77: 0.08208764235 | AH77: 0.06055773182 | AI77: 0.05562741076 | AJ77: 0.0684436018 | AK77: 0.07532811686 | AL77: 0.09433756394 | AM77: 0.2879718933 | AN77: 0.1490618847 | AO77: 0.1490045104 | AP77: 0.161126765 | AQ77: 0.009070279042 | AR77: 0.09211547323 | AS77: 0.1906644252 | AT77: 0.1795603185 | AU77: 0.1694728465 | AV77: 0.09241908005 | AW77: 0.01675494151 | AX77: -0.002511358178 | AY77: 0.008704117411 | AZ77: 0.03728810294 | BA77: 0.02682010984 | BB77: 0.02249341181 | BC77: 0.09089028083 | BD77: 0.1394010507 | BE77: 0.08582825897 | BF77: 0.0550474667
A78: Indiana | C78: 0.07018564987 | D78: 0.04143298504 | E78: 0.1033301014 | F78: 0.09724475654 | G78: 0.1985192719 | H78: 0.2697573594 | I78: 0.2955006542 | J78: 0.3075272048 | K78: 0.4056304452 | L78: 0.2007602758 | M78: 0.2236397266 | N78: 0.2223433706 | O78: 0.1388565316 | P78: -0.05889462496 | Q78: -0.05183929459 | R78: 0.07922251912 | S78: -0.120803539 | T78: -0.06777715959 | U78: -0.02760536113 | V78: 0.1490389263 | W78: 0.1359531471 | X78: 0.0632349564 | Y78: 0.08700712368 | Z78: 0.08111581849 | AA78: 0.1065330821 | AB78: 0.1262350302 | AC78: 0.1257495522 | AD78: 0.1203700608 | AE78: 0.1190852432 | AF78: 0.1417900199 | AG78: 0.09244448299 | AH78: 0.07976204829 | AI78: 0.07690530766 | AJ78: 0.08226984752 | AK78: 0.07977834332 | AL78: 0.1034856183 | AM78: 0.1219796502 | AN78: 0.1117663948 | AO78: 0.1468112563 | AP78: 0.1530821423 | AQ78: -0.004002167979 | AR78: 0.08073130372 | AS78: 0.2123345904 | AT78: 0.1773847401 | AU78: 0.1537003144 | AV78: 0.07660986266 | AW78: 0.001735285976 | AX78: 0.01171464113 | AY78: -0.03125999655 | AZ78: 0.01276907317 | BA78: 0.01050700363 | BB78: 0.01079522466 | BC78: 0.1045072805 | BD78: 0.1420128841 | BE78: 0.08996928893 | BF78: 0.05991554401
A79: Iowa | C79: 0.1210660351 | D79: 0.1018653988 | E79: 0.07533600795 | F79: 0.1342922345 | G79: 0.2022336914 | H79: 0.3615065659 | I79: 0.291180925 | J79: 0.3543659498 | K79: 0.4327634859 | L79: 0.1192875883 | M79: 0.2216357239 | N79: 0.2393691404 | O79: 0.1373767851 | P79: 0.001954482127 | Q79: -0.04590210517 | R79: -0.02904978695 | S79: -0.1975046558 | T79: -0.1116268679 | U79: -0.01103950787 | V79: 0.2844474202 | W79: 0.2329078377 | X79: 0.07524980835 | Y79: 0.1224922073 | Z79: 0.09189889335 | AA79: 0.1239662344 | AB79: 0.1241086248 | AC79: 0.1143021313 | AD79: 0.1332596429 | AE79: 0.1601007302 | AF79: 0.1152479322 | AG79: 0.08615443992 | AH79: 0.07369071726 | AI79: 0.07864584903 | AJ79: 0.08821083004 | AK79: 0.09737347342 | AL79: 0.1415757853 | AM79: 0.2405817387 | AN79: 0.1384557382 | AO79: 0.1929982702 | AP79: 0.2065510967 | AQ79: -0.004729518333 | AR79: 0.1852699131 | AS79: 0.2889511892 | AT79: 0.2469585999 | AU79: 0.2036186191 | AV79: 0.09691393978 | AW79: -0.0534219914 | AX79: -0.01685606507 | AY79: 0.01830415231 | AZ79: 0.007546787495 | BA79: 0.01038842859 | BB79: 0.002238703605 | BC79: 0.101201193 | BD79: 0.2036077212 | BE79: 0.0905414682 | BF79: 0.06592078784
A80: Kansas | C80: 0.05849333877 | D80: 0.001502791122 | E80: 0.03866208443 | F80: 0.09486369667 | G80: 0.1661724412 | H80: 0.2944836225 | I80: 0.1944285392 | J80: 0.2986823468 | K80: 0.282998972 | L80: 0.1516762774 | M80: 0.295619962 | N80: 0.2576487193 | O80: 0.1400473915 | P80: 0.09764019429 | Q80: 0.04237197861 | R80: 0.08082668757 | S80: -0.0799519621 | T80: -0.03606545146 | U80: 0.0287232255 | V80: 0.2121934741 | W80: 0.1560064578 | X80: 0.1582226774 | Y80: 0.1057283929 | Z80: 0.1325535002 | AA80: 0.1199729908 | AB80: 0.203574765 | AC80: 0.08795093138 | AD80: 0.05838051048 | AE80: 0.04638517322 | AF80: 0.06975924167 | AG80: 0.08648971865 | AH80: 0.08831834305 | AI80: 0.08152625363 | AJ80: 0.07965013851 | AK80: 0.08084390437 | AL80: 0.07375115094 | AM80: 0.2010608007 | AN80: 0.117532468 | AO80: 0.1675993124 | AP80: 0.07908758958 | AQ80: 0.0287735463 | AR80: 0.08493970803 | AS80: 0.2378445826 | AT80: 0.2611592657 | AU80: 0.1957403956 | AV80: 0.1987259591 | AW80: 0.005637932216 | AX80: -0.04272586975 | AY80: -0.008615792677 | AZ80: 0.05162541558 | BA80: 0.0489519168 | BB80: -0.02990329694 | BC80: 0.1446583008 | BD80: 0.234974794 | BE80: 0.1551381635 | BF80: 0.08942437513
A81: Kentucky | C81: 0.1420439315 | D81: 0.1561545294 | E81: 0.1430699345 | F81: 0.1840184901 | G81: 0.1845940539 | H81: 0.2560286459 | I81: 0.1852378171 | J81: 0.2710754826 | K81: 0.2730543471 | L81: 0.2151538691 | M81: 0.2560436792 | N81: 0.1844351896 | O81: 0.1106835288 | P81: 0.07641027256 | Q81: 0.04256211916 | R81: 0.03167432167 | S81: -0.03154924291 | T81: 0.03348901874 | U81: -0.01634284926 | V81: 0.06962810574 | W81: 0.07289724888 | X81: 0.1141317201 | Y81: 0.02461798895 | Z81: 0.07448605583 | AA81: 0.1327170042 | AB81: 0.1017391339 | AC81: 0.1311030566 | AD81: 0.08089692308 | AE81: 0.08178027014 | AF81: 0.1111249172 | AG81: 0.1070162288 | AH81: 0.1025523894 | AI81: 0.09565628399 | AJ81: 0.07666352148 | AK81: 0.06834645636 | AL81: 0.07148646161 | AM81: 0.2640607636 | AN81: 0.1143939736 | AO81: 0.05064567773 | AP81: 0.06165287828 | AQ81: 0.009281204048 | AR81: 0.02284634616 | AS81: 0.03307209483 | AT81: 0.07901509156 | AU81: 0.1087157175 | AV81: 0.09188318051 | AW81: 0.1012287999 | AX81: 0.06393411532 | AY81: 0.07195011781 | AZ81: 0.05802664701 | BA81: 0.05467823386 | BB81: 0.060381319 | BC81: 0.06399695568 | BD81: 0.1441396489 | BE81: 0.1254368425 | BF81: 0.1109424544
A82: Louisiana | C82: 0.09993408236 | D82: 0.1269933984 | E82: 0.1512989163 | F82: 0.1461553517 | G82: 0.1161421741 | H82: 0.2270534111 | I82: 0.1547676598 | J82: 0.1768581127 | K82: 0.2196847355 | L82: 0.2785267623 | M82: 0.2702516632 | N82: 0.2978830178 | O82: 0.1945025094 | P82: 0.009960000691 | Q82: -0.005944887773 | R82: 0.09702981729 | S82: 0.02189504238 | T82: -0.1137227399 | U82: -0.1855700392 | V82: 0.07045247562 | W82: 0.08102792963 | X82: 0.01705464333 | Y82: 0.05142718682 | Z82: 0.0611351011 | AA82: 0.09968288463 | AB82: 0.07849805262 | AC82: 0.1083768241 | AD82: 0.121265769 | AE82: 0.03689235681 | AF82: 0.06514755667 | AG82: 0.09841072676 | AH82: 0.07688740561 | AI82: 0.1034836395 | AJ82: 0.09153435789 | AK82: 0.08847890295 | AL82: 0.08144115591 | AM82: 0.1382905526 | AN82: 0.09027509088 | AO82: 0.1316867902 | AP82: 0.08702965191 | AQ82: -0.0008699757837 | AR82: 0.07809540284 | AS82: 0.1276702008 | AT82: 0.1084481347 | AU82: 0.0979214863 | AV82: 0.08114367843 | AW82: 0.08067535837 | AX82: 0.07475218545 | AY82: 0.0728409577 | AZ82: 0.06343453741 | BA82: 0.06977695295 | BB82: 0.05462460846 | BC82: 0.05004838049 | BD82: 0.09995702183 | BE82: 0.05382983274 | BF82: 0.07370479039
A83: Maine
A84: Maryland | C84: 0.09363909311 | D84: 0.126191423 | E84: 0.09395978708 | F84: 0.08361657116 | G84: 0.1666050696 | H84: 0.1784856918 | I84: 0.09858902459 | J84: 0.2231047536 | K84: 0.07537369918 | L84: 0.1829609408 | M84: 0.1599327427 | N84: 0.2602047309 | O84: 0.1468573488 | P84: -0.04160994467 | Q84: -0.08665714334 | R84: 0.07735162043 | S84: 0.008286692342 | T84: -0.05623317095 | U84: 0.01370242602 | V84: 0.1437219288 | W84: 0.1385959015 | X84: 0.02644672121 | Y84: -0.04781453149 | Z84: 0.07392660572 | AA84: 0.1657911147 | AB84: 0.06389634836 | AC84: 0.026817528 | AD84: 0.0143053585 | AE84: 0.02517073025 | AF84: 0.02225258101 | AG84: 0.04854975197 | AH84: 0.1009461876 | AI84: 0.06515367586 | AJ84: 0.06225309337 | AK84: 0.04657420459 | AL84: 0.3565475399 | AM84: 0.3445374726 | AN84: 0.1242425521 | AO84: 0.01597772429 | AP84: -0.05451337619 | AQ84: -0.07189276708 | AR84: -0.04889879869 | AS84: -0.01082357304 | AT84: -0.008048270657 | AU84: -0.005574923766 | AV84: 0.02750702533 | AW84: 0.03008691938 | AX84: 0.03928108726 | AY84: 0.03109187781 | AZ84: 0.04405022636 | BA84: 0.01502786554 | BB84: 0.0002355078748 | BC84: 0.0791409591 | BD84: 0.09828811276 | BE84: 0.02306240121 | BF84: 0.03760178111
A85: Massachusetts
A86: Michigan | C86: 0.1250556826 | D86: 0.07865205481 | E86: 0.06708183569 | F86: 0.1581955813 | G86: 0.2412498123 | H86: 0.2176494352 | I86: 0.1055640675 | J86: 0.1458580505 | K86: 0.3212923273 | L86: 0.1625126653 | M86: 0.1465780521 | N86: 0.1757229873 | O86: 0.1914828475 | P86: 0.02707163962 | Q86: -0.005273122744 | R86: 0.06077534637 | S86: -0.08095533356 | T86: -0.05047741482 | U86: -0.05898146271 | V86: 0.0774056633 | W86: 0.03904022529 | X86: 0.04338802277 | Y86: 0.1044255396 | Z86: 0.04456340002 | AA86: 0.04588450913 | AB86: 0.09636498366 | AC86: 0.1231558283 | AD86: 0.09233652611 | AE86: 0.1051993915 | AF86: 0.1192424395 | AG86: 0.1565255311 | AH86: 0.1276036 | AI86: 0.1108617208 | AJ86: 0.1021169146 | AK86: 0.1020475029 | AL86: 0.09975793681 | AM86: 0.07461862946 | AN86: 0.1126833 | AO86: 0.1316198027 | AP86: 0.05323930236 | AQ86: -0.04151222524 | AR86: -0.03101328345 | AS86: 0.08570223321 | AT86: 0.1080324983 | AU86: 0.1480638625 | AV86: 0.1192177417 | AW86: 0.03690520541 | AX86: 0.01367146544 | AY86: 0.01841140278 | AZ86: 0.005332140732 | BA86: 0.004476286187 | BB86: 0.000810472001 | BC86: 0.0575980053 | BD86: 0.1325168739 | BE86: 0.1140459838 | BF86: 0.1030369806
A87: Minnesota | C87: 0.156379575 | D87: 0.1239447197 | E87: 0.09769857971 | F87: 0.1170280087 | G87: 0.1875741949 | H87: 0.3376976132 | I87: 0.3530151747 | J87: 0.313718525 | K87: 0.341590296 | L87: 0.1983924692 | M87: 0.2440718314 | N87: 0.2593487719 | O87: 0.2295067559 | P87: 0.04476777785 | Q87: -0.02934767056 | R87: 0.02500137135 | S87: -0.1442003107 | T87: -0.1586078034 | U87: -0.08422637452 | V87: 0.2583060208 | W87: 0.1374047492 | X87: 0.1503775963 | Y87: 0.1504506509 | Z87: 0.06472411957 | AA87: 0.08973081602 | AB87: 0.06012286026 | AC87: 0.1001260124 | AD87: 0.1429844657 | AE87: 0.1154288199 | AF87: 0.1201121536 | AG87: 0.1202449923 | AH87: 0.1152922793 | AI87: 0.1108046779 | AJ87: 0.1199599137 | AK87: 0.1147424545 | AL87: 0.1627772392 | AM87: 0.1902199372 | AN87: 0.1714547695 | AO87: 0.1866052932 | AP87: 0.1345040126 | AQ87: -0.01602443901 | AR87: 0.05971783391 | AS87: 0.1709992869 | AT87: 0.2532109621 | AU87: 0.2088079313 | AV87: 0.14880785 | AW87: 0.02377593301 | AX87: 0.02564603021 | AY87: 0.04549691457 | AZ87: 0.0341495092 | BA87: -0.01344101565 | BB87: 0.01096935368 | BC87: 0.1105377455 | BD87: 0.1851784642 | BE87: 0.1082885364 | BF87: 0.06163440007
A88: Mississippi | C88: 0.2059719456 | D88: 0.1741545347 | E88: 0.1047783029 | F88: 0.1263583808 | G88: 0.2196982939 | H88: 0.359427183 | I88: 0.2111667815 | J88: 0.1696991759 | K88: 0.2148374335 | L88: 0.301720906 | M88: 0.2669294298 | N88: 0.2614874975 | O88: 0.3128964779 | P88: 0.003306718068 | Q88: -0.03345140676 | R88: 0.1155717455 | S88: -0.04511306331 | T88: -0.03896745238 | U88: -0.06842028097 | V88: 0.07637335748 | W88: 0.09288258502 | X88: 0.07792112068 | Y88: 0.09673594059 | Z88: 0.04546227767 | AA88: 0.08771095937 | AB88: 0.1345450307 | AC88: 0.09556280136 | AD88: 0.07104399039 | AE88: 0.1043985224 | AF88: 0.1302753498 | AG88: 0.1245509428 | AH88: 0.1288059821 | AI88: 0.1136001813 | AJ88: 0.0980960669 | AK88: 0.1026068331 | AL88: 0.09298259999 | AM88: 0.1681044061 | AN88: 0.1184861835 | AO88: 0.1484611152 | AP88: 0.09476193411 | AQ88: 0.01080159078 | AR88: 0.06937879657 | AS88: 0.1158989934 | AT88: 0.07895774574 | AU88: 0.1707323496 | AV88: 0.09504402765 | AW88: 0.07293923102 | AX88: 0.07743497017 | AY88: 0.06862382585 | AZ88: 0.07090158933 | BA88: 0.08124293662 | BB88: 0.06630909933 | BC88: 0.07470734875 | BD88: 0.1135008519 | BE88: 0.07785458704 | BF88: 0.06678550685
A89: Missouri | C89: 0.1744599412 | D89: 0.1235564517 | E89: 0.1426003982 | F89: 0.1961384814 | G89: 0.2090422918 | H89: 0.3912189998 | I89: 0.1182914796 | J89: 0.2331832724 | K89: 0.2795841959 | L89: 0.2427157066 | M89: 0.2061765932 | N89: 0.3111741838 | O89: 0.1622296605 | P89: 0.02411366103 | Q89: -0.01882542048 | R89: 0.09442756548 | S89: -0.1361667991 | T89: 0.01834104869 | U89: 0.005745800532 | V89: 0.1385419686 | W89: 0.1493959199 | X89: 0.1061790443 | Y89: 0.1106821826 | Z89: 0.08805212704 | AA89: 0.1309729752 | AB89: 0.1383333999 | AC89: 0.100736298 | AD89: 0.1139707067 | AE89: 0.09781113803 | AF89: 0.09401944343 | AG89: 0.109481967 | AH89: 0.1045057762 | AI89: 0.09200454374 | AJ89: 0.09649748449 | AK89: 0.09910612997 | AL89: 0.09527855826 | AM89: 0.1555963981 | AN89: 0.1249348729 | AO89: 0.1691553137 | AP89: 0.08892033785 | AQ89: -0.02721304155 | AR89: 0.08466639482 | AS89: 0.1071303027 | AT89: 0.1487894453 | AU89: 0.1531845608 | AV89: 0.1028967351 | AW89: 0.0142606457 | AX89: 0.003990182983 | AY89: 0.03067309733 | AZ89: 0.01517076054 | BA89: 0.03329314249 | BB89: 0.03955827434 | BC89: 0.1116854622 | BD89: 0.1669820002 | BE89: 0.09678377869 | BF89: 0.06417575024
A90: Montana | C90: 0.06006834075 | D90: 0.09419156697 | E90: 0.07257062532 | F90: 0.102023695 | G90: 0.1405028994 | H90: 0.287945883 | I90: 0.1920809015 | J90: 0.2227159354 | K90: 0.1984668155 | L90: 0.1481001919 | M90: 0.140588212 | N90: 0.2261872902 | O90: 0.09569946289 | P90: 0.1077037504 | Q90: -0.01670055851 | R90: 0.1771705362 | S90: 0.03746620286 | T90: 0.1071095363 | U90: -0.01400518809 | V90: 0.1502149543 | W90: 0.1514040724 | X90: 0.2664385639 | Y90: 0.1083569409 | Z90: 0.1421469482 | AA90: 0.1847662128 | AB90: 0.238265822 | AC90: 0.1164812791 | AD90: 0.06917537943 | AE90: 0.03254931688 | AF90: 0.05140527959 | AG90: 0.1020234287 | AH90: 0.1085896127 | AI90: 0.1052929323 | AJ90: 0.09965192872 | AK90: 0.09568032441 | AL90: 0.07004103905 | AM90: 0.2379832816 | AN90: 0.533403859 | AO90: 0.1782497134 | AP90: 0.1113267251 | AQ90: -0.1898043435 | AR90: 0.03592928551 | AS90: 0.06793586501 | AT90: 0.08790573359 | AU90: 0.07679717854 | AV90: 0.1374175097 | AW90: 0.03855859153 | AX90: 0.04323321294 | AY90: 0.02817237122 | AZ90: 0.03840650102 | BA90: 0.06673694549 | BB90: 0.03778292493 | BC90: 0.06567459936 | BD90: 0.1519179251 | BE90: 0.05677597596 | BF90: 0.01725227389
A91: Nebraska | C91: 0.08119870616 | D91: 0.05895782238 | E91: 0.1551980816 | F91: 0.2232810803 | G91: 0.2711859077 | H91: 0.3898970334 | I91: 0.305143641 | J91: 0.4117408198 | K91: 0.2776023409 | L91: 0.1015931166 | M91: 0.3724309413 | N91: 0.2980432829 | O91: 0.2318505706 | P91: 0.08812392499 | Q91: 0.04504431805 | R91: 0.01991971044 | S91: -0.1426232099 | T91: -0.02806162004 | U91: 0.07096838323 | V91: 0.2427285145 | W91: 0.2242724668 | X91: 0.1294669186 | Y91: 0.08874994201 | Z91: 0.1042377644 | AA91: 0.1004399991 | AB91: 0.1741310938 | AC91: 0.08544932592 | AD91: 0.08334940606 | AE91: 0.04768286571 | AF91: 0.1130183839 | AG91: 0.1150270987 | AH91: 0.1181708715 | AI91: 0.0998431384 | AJ91: 0.09789979969 | AK91: 0.08679743527 | AL91: 0.1116374192 | AM91: 0.1811659568 | AN91: 0.1849191933 | AO91: 0.1536609106 | AP91: 0.2153584121 | AQ91: 0.04079948666 | AR91: 0.158626679 | AS91: 0.327116345 | AT91: 0.3741578576 | AU91: 0.1935777401 | AV91: 0.09041906031 | AW91: 0.007343103138 | AX91: -0.01876085438 | AY91: -0.03333508733 | AZ91: 0.02392302987 | BA91: 0.01562804259 | BB91: 0.005970828257 | BC91: 0.151469743 | BD91: 0.2137836065 | BE91: 0.1407136435 | BF91: 0.08830650332
A92: Nevada | R92: 0.1229212211 | S92: 0.001545984441 | T92: -0.04370205768 | U92: 0.1649079258 | V92: 0.01635726833 | W92: 0.1337499839 | X92: -0.07333456264 | Y92: 0.2394526239 | Z92: 0.1605832396 | AA92: 0.03399189167 | AB92: 0.1251448918 | AQ92: 0.03977189529 | AR92: 0.05002690081 | AW92: 0.07857056305 | AX92: 0.05776902846 | AY92: 0.07320814572 | AZ92: 0.07502662638 | BA92: 0.0867669606 | BB92: 0.04752577132 | BC92: 0.1042571562 | BD92: 0.1471829018 | BE92: 0.07736760497 | BF92: 0.03261674962
A93: New Hampshire
A94: New Jersey | C94: 0.1140567087 | D94: 0.1307023861 | E94: 0.03970686453 | F94: 0.08108549849 | G94: 0.09224658085 | H94: 0.1864480507 | I94: 0.1449301412 | J94: 0.1668071228 | K94: 0.05416161775 | L94: 0.08296181891 | M94: 0.1364169575 | N94: 0.09512363383 | O94: 0.03612867846 | P94: 0.05126282852 | Q94: -0.008314000507 | R94: -0.05332246785 | S94: -0.0001305767047 | T94: 0.01834056104 | U94: 0.2460891553 | V94: 0.06840113564 | W94: 0.2500562755 | X94: 0.1129215358 | Y94: 0.156107656 | Z94: 0.05831093296 | AA94: 0.03422363099 | AB94: 0.003265488149 | AC94: 0.006419790823 | AD94: 0.01327444471 | AE94: -0.0006953753706 | AF94: -0.01393816453 | AG94: 0.04205712957 | AH94: 0.04049055931 | AI94: 0.06477484557 | AJ94: 0.06158802511 | AK94: 0.05765470112 | AL94: 0.1859802756 | AM94: 0.1554638851 | AN94: 0.1495402093 | AO94: 0.08723640104 | AP94: -0.02930830877 | AQ94: -0.100915294 | AR94: -0.05401903807 | AS94: -0.03404231541 | AT94: -0.04056940522 | AU94: 0.03897202247 | AV94: 0.02027610475 | AW94: 0.04276496862 | AX94: -0.02351456216 | AY94: 0.005593502516 | AZ94: 0.004934221162 | BA94: -0.01968494617 | BB94: -0.006343520728 | BC94: 0.0463101548 | BD94: 0.05364160801 | BE94: 0.1145434142 | BF94: -0.006841863835
A95: New Mexico | R95: 0.1543522685 | S95: 0.02311743571 | T95: -0.05079356841 | U95: 0.03976582751 | V95: 0.2191992764 | W95: 0.08788533151 | X95: 0.05259905975 | Y95: 0.187990019 | Z95: 0.07506320923 | AA95: -0.01952487165 | AB95: 0.0914712852 | AP95: 0.114491181 | AQ95: -0.03907466343 | AR95: 0.005375728439 | AS95: 0.03083046028 | AT95: -0.06349126062 | AU95: 0.00604280296 | AV95: 0.0749880303 | AW95: 0.06689791042 | AX95: 0.07661601036 | AY95: 0.0908238058 | AZ95: 0.06215838372 | BA95: 0.04863971269 | BB95: 0.09170632194 | BC95: 0.09921391031 | BD95: 0.1322446592 | BE95: 0.06827122913 | BF95: 0.04266719961
A96: New York | C96: 0.1534281968 | D96: 0.1440291899 | E96: 0.104540686 | F96: 0.1783224177 | G96: 0.1470384194 | H96: 0.2944450545 | I96: 0.1862436034 | J96: 0.1248828139 | K96: 0.1024994826 | L96: 0.06070512445 | M96: 0.156079666 | N96: 0.113058328 | O96: 0.1113651251 | P96: 0.09912820283 | Q96: 0.02825512843 | R96: 0.07325067166 | S96: 0.0009695045351 | T96: 0.05270468867 | U96: 0.163580681 | V96: 0.05733683177 | W96: 0.08005768547 | X96: -0.01204962224 | Y96: 0.09999016497 | Z96: 0.06174162288 | AA96: 0.1036303165 | AB96: 0.03868634186 | AC96: 0.02376922345 | AD96: -0.00421465381 | AE96: 0.003793404582 | AF96: 0.03899050093 | AG96: 0.05693913406 | AH96: 0.07841772347 | AI96: 0.07425169122 | AJ96: 0.07345843491 | AK96: 0.07034533561 | AL96: 0.05638919857 | AM96: 0.08679043796 | AN96: 0.07062351819 | AO96: 0.08481530987 | AP96: 0.08144166017 | AQ96: 0.02767078589 | AR96: 0.004218779343 | AS96: 0.003019442848 | AT96: 0.0886015635 | AU96: -0.01051253692 | AV96: 0.01512525227 | AW96: 0.05220776463 | AX96: 0.01368583439 | AY96: 0.02937898224 | AZ96: 0.03184955339 | BA96: 0.04040570216 | BB96: 0.03552015956 | BC96: 0.07633519318 | BD96: 0.1107270922 | BE96: 0.08200332621 | BF96: 0.07527900557
A97: North Carolina | C97: 0.1438230936 | D97: 0.05784546347 | E97: 0.179774166 | F97: 0.1273810009 | G97: 0.2141545282 | H97: 0.2450773139 | I97: 0.118965333 | J97: 0.1871661566 | K97: 0.1703356161 | L97: 0.1344256059 | M97: 0.3007481001 | N97: 0.190405209 | O97: 0.131599873 | P97: 0.003488119299 | Q97: 0.04526964327 | R97: 0.1159867252 | S97: -0.0399439965 | T97: -0.02915412324 | U97: 0.02725757407 | V97: 0.0269169637 | W97: 0.1050374736 | X97: 0.01358877212 | Y97: 0.04109364244 | Z97: 0.07431186061 | AA97: 0.1041342906 | AB97: 0.0440178813 | AC97: 0.1023761608 | AD97: 0.1024276894 | AE97: 0.06979474132 | AF97: 0.05720867125 | AG97: 0.09282292354 | AH97: 0.1080047883 | AI97: 0.1083469465 | AJ97: 0.09544491412 | AK97: 0.08328530828 | AL97: 0.06204927268 | AM97: 0.1870211047 | AN97: 0.07325184967 | AO97: 0.07514282291 | AP97: 0.03588218717 | AQ97: -0.04357900426 | AR97: -0.009316138412 | AS97: 0.00178105382 | AT97: 0.07941149452 | AU97: 0.06628387636 | AV97: 0.05849595424 | AW97: -0.002475386241 | AX97: -0.006144730627 | AY97: 0.02363018439 | AZ97: 0.02526712443 | BA97: 0.02941475808 | BB97: 0.01701321136 | BC97: 0.04468488098 | BD97: 0.1052277095 | BE97: 0.04967947605 | BF97: 0.08292644109
A98: North Dakota | C98: 0.183325324 | D98: 0.1297009977 | E98: 0.1029936358 | F98: 0.1225194424 | G98: 0.187893607 | H98: 0.4345247241 | I98: 0.4414687386 | J98: 0.3006005783 | K98: 0.2388999204 | L98: 0.1643581593 | M98: 0.2247078348 | N98: 0.2309447768 | O98: 0.1382840213 | P98: 0.1053711949 | Q98: 0.02747860066 | R98: 0.07894657942 | S98: -0.09501699798 | T98: -0.03186627943 | U98: -0.01664071718 | V98: 0.1262106773 | W98: 0.06877169663 | X98: 0.07409061947 | Y98: 0.1179592907 | Z98: 0.01514016333 | AA98: 0.1286908685 | AB98: 0.1262562134 | AC98: 0.1277332261 | AD98: 0.09800802471 | AE98: 0.08995346334 | AF98: 0.09788328896 | AG98: 0.06820854752 | AH98: 0.08317949945 | AI98: 0.08330187868 | AJ98: 0.08332733269 | AK98: 0.09169127045 | AL98: 0.1477576982 | AM98: 0.1688175927 | AN98: 0.1908003907 | AO98: 0.1720485257 | AP98: 0.2279054899 | AQ98: 0.04476577327 | AR98: 0.1165559001 | AS98: 0.2185401257 | AT98: 0.3149968862 | AU98: 0.4196455522 | AV98: 0.1836035559 | AW98: 0.05946171077 | AX98: -0.04975007812 | AY98: 0.01988574508 | AZ98: 0.02059932292 | BA98: 0.04424273867 | BB98: 0.01857780151 | BC98: 0.08782337711 | BD98: 0.1521069997 | BE98: 0.1433976763 | BF98: 0.09177395805
A99: Ohio | C99: 0.08824723945 | D99: 0.1103158316 | E99: 0.09810391192 | F99: 0.1115127486 | G99: 0.2004211311 | H99: 0.2914626205 | I99: 0.1797448308 | J99: 0.2517269182 | K99: 0.3475229092 | L99: 0.1635183485 | M99: 0.2581831392 | N99: 0.2091942963 | O99: 0.1017226406 | P99: -0.06079411967 | Q99: -0.02292286582 | R99: 0.04555962013 | S99: -0.136444221 | T99: -0.009868342021 | U99: 0.01617743924 | V99: 0.1411981947 | W99: 0.1307718347 | X99: 0.02833513163 | Y99: 0.08522118829 | Z99: 0.0993300198 | AA99: 0.0804069865 | AB99: 0.1071310262 | AC99: 0.1517280189 | AD99: 0.07052241849 | AE99: 0.06850230691 | AF99: 0.1071012389 | AG99: 0.09978103765 | AH99: 0.08856016995 | AI99: 0.08448552298 | AJ99: 0.0758155847 | AK99: 0.07501655953 | AL99: 0.08364055821 | AM99: 0.09898252161 | AN99: 0.1080700164 | AO99: 0.1007095122 | AP99: 0.1058143999 | AQ99: -0.0311803393 | AR99: 0.03113110967 | AS99: 0.08804581243 | AT99: 0.1356407114 | AU99: 0.1402687872 | AV99: 0.1252216389 | AW99: 0.06999115121 | AX99: 0.02667241547 | AY99: 0.03197242552 | AZ99: 0.04552491212 | BA99: 0.03703150175 | BB99: 0.03368079078 | BC99: 0.0759105929 | BD99: 0.1346456479 | BE99: 0.1069600626 | BF99: 0.1111227486
A100: Oklahoma | C100: 0.05405742474 | D100: 0.08365784462 | E100: 0.0678695767 | F100: 0.08082737234 | G100: 0.1443927759 | H100: 0.2170427798 | I100: 0.1653860931 | J100: 0.1598792869 | K100: 0.1598395128 | L100: 0.1601974151 | M100: 0.1559519733 | N100: 0.2177466314 | O100: 0.1278346903 | P100: 0.1359709323 | Q100: 0.03593328105 | R100: 0.09867382033 | S100: -0.1030712189 | T100: -0.05636187741 | U100: -0.01009162546 | V100: 0.07846435383 | W100: 0.1468256255 | X100: 0.03291383776 | Y100: 0.05871337003 | Z100: 0.09064990247 | AA100: 0.1063452536 | AB100: 0.1214626812 | AC100: 0.07457244667 | AD100: 0.01619307142 | AE100: 0.05829296021 | AF100: 0.08570719082 | AG100: 0.04005252867 | AH100: 0.03970010318 | AI100: 0.03933524118 | AJ100: 0.05413989974 | AK100: 0.0525528882 | AL100: 0.07994209402 | AM100: 0.2168680744 | AN100: 0.09466212081 | AO100: 0.1307342086 | AP100: 0.08786058394 | AQ100: 0.02282230552 | AR100: 0.0659442058 | AS100: 0.02238886357 | AT100: 0.1547005937 | AU100: 0.1064104929 | AV100: 0.07611193988 | AW100: 0.05210358978 | AX100: 0.02371294946 | AY100: 0.05507401228 | AZ100: 0.04186721678 | BA100: 0.01722557142 | BB100: 0.01165735359 | BC100: 0.07226223881 | BD100: 0.149483149 | BE100: 0.1098745726 | BF100: 0.09665036654
A101: Oregon | C101: 0.1089347189 | D101: 0.0911848798 | E101: 0.149692095 | F101: 0.1640388409 | G101: 0.1470973 | H101: 0.1845879132 | I101: 0.1112709071 | J101: 0.2199284795 | K101: 0.2083124076 | L101: 0.2573020873 | M101: 0.2654157244 | N101: 0.2127228702 | O101: 0.186125667 | P101: 0.1027668417 | Q101: 0.04679826635 | R101: 0.1215828141 | S101: -0.01818849083 | T101: 0.03191298767 | U101: 0.04894566779 | V101: 0.09351894829 | W101: 0.08371634634 | X101: 0.162784783 | Y101: 0.1230553118 | Z101: 0.1444074612 | AA101: 0.21050643 | AB101: 0.2420767838 | AC101: 0.1765882216 | AD101: 0.1469538989 | AE101: 0.08252656814 | AF101: 0.0484334018 | AG101: 0.09317807322 | AH101: 0.1033704341 | AI101: 0.09933204973 | AJ101: 0.09932398352 | AK101: 0.0973774648 | AL101: 0.1081650706 | AM101: 0.1466075658 | AN101: 0.1102270059 | AO101: 0.2056507056 | AP101: 0.1432188651 | AQ101: -0.01331881218 | AR101: 0.08965698114 | AS101: 0.04166938262 | AT101: 0.1227590531 | AU101: 0.07114871677 | AV101: 0.1031498574 | AW101: 0.09416061139 | AX101: 0.1017188418 | AY101: 0.09805727688 | AZ101: 0.07638553188 | BA101: 0.09075555049 | BB101: 0.07657129675 | BC101: 0.126748497 | BD101: 0.1666098935 | BE101: 0.07760076565 | BF101: 0.1001600373
A102: Pennsylvania | C102: 0.1413093815 | D102: 0.1693090608 | E102: 0.07563868226 | F102: 0.09434412462 | G102: 0.1932512175 | H102: 0.2826831371 | I102: 0.2009078983 | J102: 0.1363946787 | K102: 0.2297412279 | L102: 0.1394731374 | M102: 0.1584606961 | N102: 0.1666283286 | O102: 0.08647291453 | P102: -0.01753097347 | Q102: 0.0204998005 | R102: 0.06442808523 | S102: -0.08750547909 | T102: -0.05161458934 | U102: 0.1698308347 | V102: 0.04056210118 | W102: 0.2394254372 | X102: 0.007513595616 | Y102: 0.01478585847 | Z102: 0.07969882382 | AA102: 0.001145309629 | AB102: 0.05331651069 | AC102: 0.02900393273 | AD102: 0.03626298341 | AE102: 0.01869275195 | AF102: 0.044132056 | AG102: 0.09117478968 | AH102: 0.08065219328 | AI102: 0.07555241778 | AJ102: 0.08796290257 | AK102: 0.06586385209 | AL102: 0.03050109794 | AM102: 0.1273229427 | AN102: 0.1021188631 | AO102: 0.1364178533 | AP102: 0.03006732289 | AQ102: 0.001567723292 | AR102: -0.01217081908 | AS102: -0.01350562188 | AT102: 0.02768479185 | AU102: 0.0191470317 | AV102: 0.02400493002 | AW102: 0.03659704038 | AX102: 0.05769433212 | AY102: 0.009314174227 | AZ102: 0.07004604375 | BA102: 0.03880582552 | BB102: 0.02464393046 | BC102: 0.0878222848 | BD102: 0.1059021568 | BE102: 0.05502795671 | BF102: 0.02624466356
A103: Rhode Island
A104: South Carolina | C104: 0.1926387109 | D104: 0.07377879418 | E104: 0.1224837376 | F104: 0.1909263394 | G104: 0.1285501818 | H104: 0.2928009376 | I104: 0.1640030635 | J104: 0.1513749286 | K104: 0.2108377755 | L104: 0.131855223 | M104: 0.2272999216 | N104: 0.201130373 | O104: 0.1164349238 | P104: 0.04191217582 | Q104: 0.0005463386677 | R104: 0.01449110885 | S104: 0.005099723107 | T104: 0.002834368228 | U104: -0.05720796361 | V104: 0.1303440147 | W104: 0.1670621196 | X104: 0.04693084196 | Y104: 0.1221566306 | Z104: 0.05553687975 | AA104: 0.008867849238 | AB104: 0.07692085561 | AC104: 0.1357082812 | AD104: 0.03363170206 | AE104: 0.04775139904 | AF104: 0.07271144106 | AG104: 0.09455532197 | AH104: 0.07622489562 | AI104: 0.0733430084 | AJ104: 0.06934363884 | AK104: 0.09212428014 | AL104: 0.05612725811 | AM104: 0.1183287088 | AN104: 0.08664801207 | AO104: 0.1145843636 | AP104: 0.05562116077 | AQ104: 0.003823105644 | AR104: 0.01677833581 | AS104: 0.02164804232 | AT104: 0.02293503358 | AU104: -0.05459449604 | AV104: 0.04309700866 | AW104: 0.03270918986 | AX104: 0.03244192556 | AY104: 0.0468714505 | AZ104: 0.04686708505 | BA104: 0.04379558494 | BB104: 0.02935372711 | BC104: 0.05333968669 | BD104: 0.1165032528 | BE104: 0.07877307684 | BF104: 0.06430527365
A105: South Dakota | C105: 0.1168625096 | D105: 0.0900276251 | E105: 0.09066184239 | F105: 0.100902124 | G105: 0.158801537 | H105: 0.3470283748 | I105: 0.2967735054 | J105: 0.2045670003 | K105: 0.2660885372 | L105: 0.2355506132 | M105: 0.1899542314 | N105: 0.1997796924 | O105: 0.1838464347 | P105: 0.1186806102 | Q105: 0.05548663213 | R105: 0.09736896783 | S105: -0.1391617018 | T105: -0.01433467297 | U105: -0.04172287314 | V105: 0.1928774836 | W105: 0.07596338124 | X105: 0.1440126484 | Y105: 0.08707616463 | Z105: 0.03833136692 | AA105: 0.02194264066 | AB105: 0.1159352371 | AC105: 0.08239521103 | AD105: 0.05326613585 | AE105: 0.07526805249 | AF105: 0.09840078671 | AG105: 0.06213906204 | AH105: 0.08337774148 | AI105: 0.09393269286 | AJ105: 0.0900204773 | AK105: 0.09714888839 | AL105: 0.09331410607 | AM105: 0.2335689718 | AN105: 0.1826833985 | AO105: 0.1632524738 | AP105: 0.2345731161 | AQ105: 0.001030917988 | AR105: 0.1158345299 | AS105: 0.2153476857 | AT105: 0.2652591197 | AU105: 0.3221441877 | AV105: 0.2269516031 | AW105: 0.1098874883 | AX105: -0.03410354298 | AY105: -0.03545178909 | AZ105: 0.008203849939 | BA105: 0.01783710625 | BB105: -0.01581488648 | BC105: 0.1296891198 | BD105: 0.1917186752 | BE105: 0.1320619779 | BF105: 0.08741913434
A106: Tennessee | C106: 0.1830080661 | D106: 0.1398789602 | E106: 0.1095711647 | F106: 0.1682396361 | G106: 0.2101115749 | H106: 0.2700639378 | I106: 0.1907852251 | J106: 0.1910085401 | K106: 0.2266914484 | L106: 0.2404828608 | M106: 0.2147327864 | N106: 0.1789020015 | O106: 0.1362336267 | P106: 0.01591865943 | Q106: 0.01362773628 | R106: 0.0506432367 | S106: -0.03881639749 | T106: 0.03144966105 | U106: 0.03404538393 | V106: 0.1066412411 | W106: 0.07173511358 | X106: 0.06248878105 | Y106: 0.06329018666 | Z106: 0.06534356247 | AA106: 0.1338271833 | AB106: 0.03536078394 | AC106: 0.09627455856 | AD106: 0.1659216637 | AE106: 0.1051389723 | AF106: 0.1221802752 | AG106: 0.1039795145 | AH106: 0.1016909443 | AI106: 0.07135036503 | AJ106: 0.0685665427 | AK106: 0.06612819611 | AL106: 0.05355373919 | AM106: 0.1515165717 | AN106: 0.08427978695 | AO106: 0.1110712726 | AP106: 0.07734338501 | AQ106: -0.03644631972 | AR106: 0.08105179737 | AS106: 0.007771995218 | AT106: 0.02129569578 | AU106: 0.04878753463 | AV106: 0.04952077841 | AW106: 0.05182374329 | AX106: 0.06900161705 | AY106: 0.03943682814 | AZ106: 0.04876130626 | BA106: 0.04616021605 | BB106: 0.04402142824 | BC106: 0.0592167737 | BD106: 0.1238530543 | BE106: 0.1216871603 | BF106: 0.1264224007
A107: Texas | C107: 0.2370730827 | D107: 0.1913458127 | E107: 0.2086708756 | F107: 0.2357730651 | G107: 0.2483370642 | H107: 0.360088431 | I107: 0.1271057598 | J107: 0.2586599734 | K107: 0.2044225107 | L107: 0.2283784106 | M107: 0.2426063448 | N107: 0.2257136685 | O107: 0.1665726705 | P107: 0.2323750627 | Q107: 0.08538684882 | R107: 0.1907583537 | S107: 0.183511734 | T107: -0.09188961643 | U107: -0.02312108641 | V107: 0.05454725175 | W107: 0.03174688612 | X107: 0.0387677575 | Y107: 0.04841653183 | Z107: 0.05212200143 | AA107: 0.09939273906 | AB107: 0.09901253789 | AC107: 0.03680100146 | AD107: 0.04585792047 | AE107: 0.04318946194 | AF107: 0.1017458535 | AG107: 0.1066474397 | AH107: 0.09237291351 | AI107: 0.1022954083 | AJ107: 0.08797257998 | AK107: 0.06943669967 | AL107: 0.06343498575 | AM107: 0.2148736458 | AN107: 0.2090901499 | AO107: 0.1766588796 | AP107: 0.1398615618 | AQ107: 0.005972100891 | AR107: 0.06471176654 | AS107: 0.06567436296 | AT107: 0.02526413175 | AU107: -0.02467466147 | AV107: 0.0986254813 | AW107: 0.09160839255 | AX107: 0.0232229016 | AY107: 0.0629626758 | AZ107: 0.04021690189 | BA107: 0.01868413993 | BB107: 0.05563178504 | BC107: 0.06806884641 | BD107: 0.1596876911 | BE107: 0.06921033583 | BF107: 0.04654910811
A108: Utah | C108: 0.05669594262 | D108: 0.05459473481 | E108: 0.1950350563 | F108: 0.1857251151 | G108: 0.1127233102 | H108: 0.2233249931 | I108: 0.1115428984 | J108: 0.2199401533 | K108: 0.207053647 | L108: 0.1501439909 | M108: 0.3129505944 | N108: 0.3397585699 | O108: 0.0846015625 | P108: 0.0536111843 | Q108: -0.03494456044 | R108: 0.04917701125 | S108: -0.06217720818 | T108: -0.02989256941 | U108: -0.01472855198 | V108: -0.01766048605 | W108: 0.04353719045 | X108: -0.01922366145 | Y108: 0.09338651227 | Z108: 0.1081197775 | AA108: 0.1369945863 | AB108: 0.4296286603 | AC108: 0.04338904312 | AD108: 0.05671062186 | AE108: 0.06866797245 | AF108: 0.04929324247 | AG108: 0.07424882116 | AH108: 0.06743084217 | AI108: 0.09831027118 | AJ108: 0.0816338123 | AK108: 0.07283626789 | AL108: -0.003167529134 | AM108: 0.1722270639 | AN108: 0.2227355007 | AO108: 0.1601081456 | AP108: 0.08276762895 | AQ108: -0.01052153743 | AR108: 0.02170054403 | AS108: 0.008576739525 | AT108: 0.01937372705 | AU108: 0.2165773616 | AV108: 0.04620750507 | AW108: 0.04973965725 | AX108: 0.04536318953 | AY108: 0.05941909617 | AZ108: 0.05187886174 | BA108: 0.06035984239 | BB108: 0.0423567716 | BC108: 0.06173593791 | BD108: 0.1065850645 | BE108: 0.05467559983 | BF108: 0.04905278518
A109: Vermont
A110: Virginia | C110: 0.1173471187 | D110: 0.1684740203 | E110: 0.1475007133 | F110: 0.1744305229 | G110: 0.1813749379 | H110: 0.32376305 | I110: 0.1579014944 | J110: 0.1814712638 | K110: 0.1577862318 | L110: 0.1481621238 | M110: 0.2349661385 | N110: 0.1392049745 | O110: 0.1220877624 | P110: 0.0159355734 | Q110: 0.05804234835 | R110: 0.02974853719 | S110: 0.01921231875 | T110: 0.08913122452 | U110: 0.00807216213 | V110: 0.06519075301 | W110: 0.1898321039 | X110: 0.2116146963 | Y110: -0.0852292821 | Z110: 0.1199955783 | AA110: 0.01352718389 | AB110: -0.00747534184 | AC110: 0.09935501548 | AD110: 0.08610075189 | AE110: 0.03782629261 | AF110: 0.03625820035 | AG110: 0.09773853724 | AH110: 0.08563128538 | AI110: 0.07977195649 | AJ110: 0.07395144247 | AK110: 0.07668224421 | AL110: 0.1571199415 | AM110: 0.2328313188 | AN110: 0.1708356848 | AO110: 0.1111361536 | AP110: 0.02427585672 | AQ110: -0.04454132199 | AR110: -0.04639691063 | AS110: -0.04829739155 | AT110: 0.04144054281 | AU110: -0.003075258009 | AV110: 0.02365232262 | AW110: 0.01729735809 | AX110: 0.01954268786 | AY110: 0.03498065063 | AZ110: 0.01542902093 | BA110: -0.006258100348 | BB110: -0.008781122858 | BC110: 0.0256195226 | BD110: 0.09489371211 | BE110: 0.08398450294 | BF110: 0.08629171298
A111: Washington | C111: 0.1491666535 | D111: 0.1103513703 | E111: 0.06700936374 | F111: 0.1284040306 | G111: 0.2142775216 | H111: 0.1971745648 | I111: 0.2060903208 | J111: 0.3221999253 | K111: 0.2929263636 | L111: 0.1968378391 | M111: 0.2217736143 | N111: 0.1368039025 | O111: 0.2653445663 | P111: 0.1250182209 | Q111: 0.08513133733 | R111: 0.1493557668 | S111: 0.07758264917 | T111: 0.00752957778 | U111: 0.003952305684 | V111: 0.07617272855 | W111: 0.1480098858 | X111: 0.1823393638 | Y111: 0.1637186572 | Z111: 0.1227989449 | AA111: 0.1272755653 | AB111: 0.2503466602 | AC111: 0.1191254157 | AD111: 0.1160442646 | AE111: 0.1052801275 | AF111: 0.09601706886 | AG111: 0.0770547956 | AH111: 0.111114226 | AI111: 0.1095047434 | AJ111: 0.1402215475 | AK111: 0.1354371188 | AL111: 0.09734757548 | AM111: 0.1423122789 | AN111: 0.1238397179 | AO111: 0.1443784091 | AP111: 0.1422306969 | AQ111: 0.07335838945 | AR111: 0.106494349 | AS111: 0.1166898595 | AT111: 0.2265983125 | AU111: 0.1858066891 | AV111: 0.1116910901 | AW111: 0.08463243692 | AX111: 0.09322643411 | AY111: 0.0966880507 | AZ111: 0.06023469482 | BA111: 0.08917450312 | BB111: 0.08045033687 | BC111: 0.1271367361 | BD111: 0.1726340022 | BE111: 0.1041798775 | BF111: 0.09637346951
A112: West Virginia | C112: 0.1828716055 | D112: 0.1365961931 | E112: 0.163108326 | F112: 0.2176633632 | G112: 0.2381683687 | H112: 0.3275027695 | I112: 0.1903851729 | J112: 0.354829814 | K112: 0.125233129 | L112: 0.100799258 | M112: 0.3110255176 | N112: 0.1523303297 | O112: 0.04586264135 | P112: 0.09100121896 | Q112: -0.01314050991 | R112: 0.04735102965 | S112: -0.1044508381 | T112: 0.04081675934 | U112: 0.05931016232 | V112: 0.1049042091 | W112: 0.102767522 | X112: -0.06394035305 | Y112: 0.08622240371 | Z112: 0.2195719719 | AA112: 0.02929904754 | AB112: 0.05056662324 | AC112: 0.07876329952 | AD112: 0.08518078698 | AE112: 0.08987729028 | AF112: 0.05416246473 | AG112: 0.06986170838 | AH112: 0.06513607477 | AI112: 0.06201503583 | AJ112: 0.05900751345 | AK112: 0.06365737744 | AL112: 0.08259530544 | AM112: 0.2728606725 | AN112: 0.05899679359 | AO112: 0.1556341559 | AP112: 0.09182894279 | AQ112: -0.05014734098 | AR112: -0.005448132669 | AS112: 0.01943039221 | AT112: -0.01838738152 | AU112: -0.005739721594 | AV112: 0.02234166426 | AW112: 0.02464592027 | AX112: -0.01163901073 | AY112: 0.01888849576 | AZ112: 0.01000936139 | BA112: 0.02789654588 | BB112: 0.01415477446 | BC112: 0.03451371808 | BD112: 0.09784400599 | BE112: 0.06863189185 | BF112: 0.04247304799
A113: Wisconsin | C113: 0.1926378475 | D113: 0.1828731766 | E113: 0.1823497746 | F113: 0.157527665 | G113: 0.2728177641 | H113: 0.2612426472 | I113: 0.1944163405 | J113: 0.2216760449 | K113: 0.2791954878 | L113: 0.2670031656 | M113: 0.2494412363 | N113: 0.2253466993 | O113: 0.1961002481 | P113: 0.04533172027 | Q113: 0.02450414366 | R113: 0.04519899723 | S113: -0.08896049062 | T113: -0.05705895562 | U113: -0.01583592565 | V113: 0.1157102909 | W113: 0.08091339495 | X113: 0.006596284969 | Y113: 0.1183651576 | Z113: 0.07555257376 | AA113: 0.112534685 | AB113: 0.08375248971 | AC113: 0.1017322143 | AD113: 0.1136161084 | AE113: 0.06902586542 | AF113: 0.09586208674 | AG113: 0.2009467927 | AH113: 0.2003399696 | AI113: 0.1728201672 | AJ113: 0.1270580886 | AK113: 0.09266098093 | AL113: 0.0963255513 | AM113: 0.1496865127 | AN113: 0.1286518499 | AO113: 0.1886630737 | AP113: 0.07516781707 | AQ113: -0.02165542798 | AR113: 0.005168375866 | AS113: 0.08462924036 | AT113: 0.08099655365 | AU113: 0.02697478147 | AV113: 0.09164947925 | AW113: 0.0861706964 | AX113: 0.04797772822 | AY113: 0.0685509445 | AZ113: -0.00272063203 | BA113: 0.04540790323 | BB113: 0.004287009003 | BC113: 0.125848994 | BD113: 0.1521381748 | BE113: 0.1325697812 | BF113: 0.04563021052
A114: Wyoming | Q114: 0.07835434923 | R114: 0.109605042 | S114: -0.01755989266 | T114: -0.04757815601 | U114: 0.06232532858 | V114: 0.02181872374 | W114: 0.05202049976 | X114: 0.1351666321 | Y114: 0.1259532492 | Z114: 0.01621785762 | AA114: 0.1861385898 | AP114: 0.1682882915 | AQ114: -0.0126120575 | AR114: 0.05340665232 | AS114: 0.1134381614 | AT114: 0.063141282 | AU114: 0.0437063271 | AV114: 0.06889745811 | AW114: 0.05445814338 | AX114: 0.06092165878 | AY114: 0.0426922857 | AZ114: 0.05610406169 | BA114: 0.08094284759 | BB114: 0.05408435323 | BC114: 0.09533972835 | BD114: 0.1185995621 | BE114: 0.07652256849 | BF114: 0.03613287018
A115: US Total | C115: 0.08020237893 | D115: 0.06107216982 | E115: 0.05948521534 | F115: 0.1028966472 | G115: 0.1482067865 | H115: 0.2536192208 | I115: 0.1525870149 | J115: 0.1949125513 | K115: 0.2219552266 | L115: 0.1489112393 | M115: 0.2118352654 | N115: 0.203134351 | O115: 0.1409729052 | P115: 0.03483401355 | Q115: -0.01336262609 | R115: 0.04581800089 | S115: -0.08136222721 | T115: -0.07467440401 | U115: -0.03747551289 | V115: 0.08202033731 | W115: 0.1178896966 | X115: 0.07947371685 | Y115: 0.08681556207 | Z115: 0.07133331954 | AA115: 0.08887489782 | AB115: 0.1394515265 | AC115: 0.09613576636 | AD115: 0.09027999005 | AE115: 0.08390000439 | AF115: 0.08788772099 | AG115: 0.09221071466 | AH115: 0.09980602386 | AI115: 0.09598283933 | AJ115: 0.09143134865 | AK115: 0.08807385309 | AL115: 0.09345068593 | AM115: 0.2341677494 | AN115: 0.1660587618 | AO115: 0.1236145398 | AP115: 0.1053962206 | AQ115: -0.004606722034 | AR115: 0.06117807534 | AS115: 0.1357180367 | AT115: 0.15668534 | AU115: 0.1685468251 | AV115: 0.1033539649 | AW115: 0.03296616435 | AX115: 0.01464935767 | AY115: 0.02678794832 | AZ115: 0.03444523748 | BA115: 0.0377332099 | BB115: 0.02515983213 | BC115: 0.09977824862 | BD115: 0.1616929987 | BE115: 0.1022613009 | BF115: 0.07737102599
A116: Ave. of Reported | C116: 0.1264556573 | D116: 0.1102525755 | E116: 0.1135274294 | F116: 0.1417538261 | G116: 0.1796081405 | H116: 0.2866280981 | I116: 0.1869891672 | J116: 0.2202861335 | K116: 0.2255392045 | L116: 0.1749978071 | M116: 0.2307865979 | N116: 0.2204361657 | O116: 0.1507265529 | P116: 0.05022427739 | Q116: 0.01163386195 | R116: 0.07660469683 | S116: -0.0398176829 | T116: -0.01909326585 | U116: 0.02295224779 | V116: 0.1101666731 | W116: 0.125566657 | X116: 0.08237557593 | Y116: 0.09544904398 | Z116: 0.07993281975 | AA116: 0.09788244873 | AB116: 0.1540107639 | AC116: 0.09286150638 | AD116: 0.0809812306 | AE116: 0.06968827231 | AF116: 0.08362248839 | AG116: 0.09430210477 | AH116: 0.09368689558 | AI116: 0.09015035484 | AJ116: 0.0880308912 | AK116: 0.0843227437 | AL116: 0.1087789148 | AM116: 0.2202144443 | AN116: 0.1528603929 | AO116: 0.1313051112 | AP116: 0.09224593487 | AQ116: -0.01615649334 | AR116: 0.03776410526 | AS116: 0.07746801752 | AT116: 0.09703300951 | AU116: 0.08527906657 | AV116: 0.0902115271 | AW116: 0.05668776504 | AX116: 0.03163106473 | AY116: 0.04683252637 | AZ116: 0.04259123064 | BA116: 0.04484506391 | BB116: 0.02918860792 | BC116: 0.0779941403 | BD116: 0.1246286272 | BE116: 0.08781431142
A117: 12 State Average | C117: 0.1207288277 | D117: 0.09522047999 | E117: 0.09918330438 | F117: 0.1414673073 | G117: 0.1904456873 | H117: 0.3235671527 | I117: 0.2292291413 | J117: 0.2707144669 | K117: 0.3082980393 | L117: 0.1952846716 | M117: 0.2554442133 | N117: 0.2454628897 | O117: 0.1789045719 | P117: 0.02760950353 | Q117: -0.013832005 | R117: 0.06100122693 | S117: -0.1086139943 | T117: -0.05636680381 | U117: -0.02603110361 | V117: 0.1701274022 | W117: 0.1411502007 | X117: 0.08966209285 | Y117: 0.100533384 | Z117: 0.07881098789 | AA117: 0.09690716423 | AB117: 0.1253329639 | AC117: 0.1069169317 | AD117: 0.09348894851 | AE117: 0.08784978423 | AF117: 0.1093268908 | AG117: 0.09979269507 | AH117: 0.09460780963 | AI117: 0.09115268944 | AJ117: 0.09068878122 | AK117: 0.09185731892 | AL117: 0.1081759422 | AM117: 0.1829141649 | AN117: 0.1353448327 | AO117: 0.1558514813 | AP117: 0.1402613927 | AQ117: 0.001245176502 | AR117: 0.09232164076 | AS117: 0.1641770525 | AT117: 0.1880800704 | AU117: 0.1479457765 | AV117: 0.123431111 | AW117: 0.05305187418 | AX117: 0.01737012524 | AY117: 0.02583851096 | AZ117: 0.04092409128 | BA117: 0.0456881657 | BB117: 0.02594629664 | BC117: 0.09431375687 | BD117: 0.1640484674 | BE117: 0.1047449497
A120: Cropland rental return
A121: Current income/val | B121: 1968 | C121: 1969 | D121: 1970 | E121: 1971 | F121: 1972 | G121: 1973 | H121: 1974 | I121: 1975 | J121: 1976 | K121: 1977 | L121: 1978 | M121: 1979 | N121: 1980 | O121: 1981 | P121: 1982 | Q121: 1983 | R121: 1984 | S121: 1985 | T121: 1986 | U121: 1987 | V121: 1988 | W121: 1989 | X121: 1990 | Y121: 1991 | Z121: 1992 | AA121: 1993 | AB121: 1994 | AC121: 1995 | AD121: 1996 | AE121: 1997 | AF121: 1998 | AG121: 1999 | AH121: 2000 | AI121: 2001 | AJ121: 2002 | AK121: 2003 | AL121: 2004 | AM121: 2005 | AN121: 2006 | AO121: 2007 | AP121: 2008 | AQ121: 2009 | AR121: 2010 | AS121: 2011 | AT121: 2012 | AU121: 2013 | AV121: 2014 | AW121: 2015 | AX121: 2016 | AY121: 2017 | AZ121: 2018 | BA121: 2019 | BB121: 2020 | BC121: 2021 | BD121: 2022 | BE121: 2023 | BF121: 2024
A122: Alabama | B122: 0.1073333333 | C122: 0.09696969697 | D122: 0.09803333333 | E122: 0.08625368732 | F122: 0.08451977401 | G122: 0.07980024969 | H122: 0.07156092649 | I122: 0.06912087912 | J122: 0.06346666667 | K122: 0.06438853948 | L122: 0.06193548387 | M122: 0.05604590506 | N122: 0.05085470085 | O122: 0.04396336996 | P122: 0.04622975518 | Q122: 0.05186440678 | R122: 0.04181229773 | S122: 0.04194897532 | T122: 0.04191780822 | U122: 0.04109414758 | V122: 0.04306666667 | W122: 0.03974025974 | X122: 0.04316853933 | Y122: 0.0375154321 | Z122: 0.03402421652 | AA122: 0.03479333333 | AB122: 0.03693452381 | AC122: 0.03256084656 | AD122: 0.03348484848 | AE122: 0.02916666667 | AF122: 0.02777777778 | AG122: 0.02296296296 | AH122: 0.02275862069 | AI122: 0.02352941176 | AJ122: 0.0225 | AK122: 0.02058823529 | AL122: 0.01885714286 | AM122: 0.01951219512 | AN122: 0.01695652174 | AO122: 0.01755102041 | AP122: 0.01622641509 | AQ122: 0.01832061069 | AR122: 0.01825095057 | AS122: 0.01902985075 | AT122: 0.01890909091 | AU122: 0.01981818182 | AV122: 0.01885813149 | AW122: 0.02057823129 | AX122: 0.01850649351 | AY122: 0.01829652997 | AZ122: 0.01863636364 | BA122: 0.01835260116 | BB122: 0.01904761905 | BC122: 0.01821917808 | BD122: 0.01707920792 | BE122: 0.01682692308 | BF122: 0.01677927928
A123: Alaska
A124: Arizona | R124: 0.1196071956 | S124: 0.1203628035 | T124: 0.1232232971 | U124: 0.1032016632 | V124: 0.1304736995 | W124: 0.1381981982 | X124: 0.1296325539 | Y124: 0.1232135228 | Z124: 0.1024176588 | AA124: 0.1075641464 | AB124: 0.04607674341 | AC124: 0.02587129987 | AD124: 0.02672972973 | AE124: 0.03027027027 | AR124: 0.02064516129 | AS124: 0.02036793693 | AT124: 0.02512562814 | AU124: 0.0271411339 | AV124: 0.02702702703 | AW124: 0.0269761606 | AX124: 0.02846153846 | AY124: 0.03238341969 | AZ124: 0.0332457293 | BA124: 0.03276315789 | BB124: 0.03618421053 | BC124: 0.04276315789 | BD124: 0.04253164557 | BE124: 0.043375 | BF124: 0.042875
A125: Arkansas | B125: 0.105646164 | C125: 0.08672226702 | D125: 0.08715432295 | E125: 0.09319802301 | F125: 0.08327632901 | G125: 0.08068886873 | H125: 0.08467257664 | I125: 0.08679411823 | J125: 0.0819138756 | K125: 0.06934067275 | L125: 0.07241462783 | M125: 0.06058012236 | N125: 0.05683393651 | O125: 0.05013950194 | P125: 0.05113353592 | Q125: 0.05299416726 | R125: 0.0567592418 | S125: 0.06215431857 | T125: 0.06839399951 | U125: 0.06778800055 | V125: 0.07320728489 | W125: 0.07175947421 | X125: 0.06915517671 | Y125: 0.07294665933 | Z125: 0.06510165796 | AA125: 0.06293083208 | AB125: 0.06045561529 | AF125: 0.06796116505 | AG125: 0.06261682243 | AH125: 0.06272727273 | AI125: 0.05877192982 | AJ125: 0.05847457627 | AK125: 0.05819672131 | AL125: 0.05859375 | AM125: 0.05277777778 | AN125: 0.04903225806 | AO125: 0.04404761905 | AP125: 0.04491525424 | AQ125: 0.04508196721 | AR125: 0.04502617801 | AS125: 0.04396984925 | AT125: 0.04334862385 | AU125: 0.04012605042 | AV125: 0.04031620553 | AW125: 0.04076923077 | AX125: 0.03909774436 | AY125: 0.03882783883 | AZ125: 0.03992805755 | BA125: 0.03620689655 | BB125: 0.03758389262 | BC125: 0.03636363636 | BD125: 0.03543543544 | BE125: 0.03439306358 | BF125: 0.035
A126: California | R126: 0.04662899911 | S126: 0.0479562203 | T126: 0.04338104774 | U126: 0.05073267869 | V126: 0.05211848519 | W126: 0.05203766148 | X126: 0.04048807195 | Y126: 0.03971127345 | Z126: 0.04097627574 | AA126: 0.0425856873 | AB126: 0.04965796131 | AP126: 0.02935222672 | AQ126: 0.0291799787 | AR126: 0.02912946429 | AS126: 0.02935377875 | AT126: 0.02840425532 | AU126: 0.02839756592 | AV126: 0.03059628543 | AW126: 0.03032258065 | AX126: 0.02768817204 | AY126: 0.02794496991 | AZ126: 0.02793755136 | BA126: 0.03256351039 | BB126: 0.03335866261 | BC126: 0.02303409882 | BD126: 0.02047000618 | BE126: 0.02045184304 | BF126: 0.01933064051
A127: Colorado | R127: 0.1171630743 | S127: 0.143755706 | T127: 0.1345926885 | U127: 0.1227366806 | V127: 0.1321383939 | W127: 0.1400103627 | X127: 0.1448803026 | Y127: 0.1238187833 | Z127: 0.1389022021 | AA127: 0.1367036415 | AB127: 0.1204609127 | AF127: 0.069592089 | AG127: 0.06689734717 | AH127: 0.05965292842 | AI127: 0.06728778468 | AJ127: 0.06506506507 | AK127: 0.05714285714 | AL127: 0.06509539843 | AM127: 0.061 | AN127: 0.05213675214 | AO127: 0.02952755906 | AP127: 0.03129770992 | AQ127: 0.04807692308 | AR127: 0.0484496124 | AS127: 0.04850746269 | AT127: 0.04965517241 | AU127: 0.0406779661 | AV127: 0.03941798942 | AW127: 0.03743718593 | AX127: 0.03638613861 | AY127: 0.03550724638 | AZ127: 0.03547619048 | BA127: 0.03613636364 | BB127: 0.03070175439 | BC127: 0.03227848101 | BD127: 0.03108614232 | BE127: 0.02926829268 | BF127: 0.02971530249
A128: Connecticut
A129: Delaware | B129: 0.05832 | C129: 0.04448665208 | D129: 0.04673987976 | E129: 0.04388324324 | F129: 0.04102473498 | G129: 0.0352 | H129: 0.03809481481 | I129: 0.03114067971 | J129: 0.03066355476 | K129: 0.0313728 | L129: 0.03248888889 | M129: 0.0313728 | N129: 0.029789099 | O129: 0.03174149378 | P129: 0.03493900392 | Q129: 0.03334674686 | R129: 0.03752217391 | S129: 0.04319398496 | T129: 0.03952731591 | U129: 0.03778461538 | V129: 0.03022912181 | W129: 0.02892842415 | X129: 0.0260097561 | Y129: 0.02820137552 | Z129: 0.03148560235 | AA129: 0.02660409617 | AB129: 0.02626110638 | AC129: 0.02584229508 | AD129: 0.02602258824 | AE129: 0.024 | AF129: 0.02213740458 | AG129: 0.02 | AH129: 0.01873333333 | AI129: 0.01769230769 | AJ129: 0.01608571429 | AK129: 0.01480519481 | AL129: 0.01051724138 | AM129: 0.007901234568 | AN129: 0.0065 | AO129: 0.007058823529 | AP129: 0.007346938776 | AQ129: 0.008225616921 | AR129: 0.008322824716 | AS129: 0.00943877551 | AT129: 0.01140127389 | AU129: 0.01124523507 | AV129: 0.01256377551 | AW129: 0.01237309645 | AX129: 0.01359703337 | AY129: 0.01369346734 | AZ129: 0.01379310345 | BA129: 0.01391812865 | BB129: 0.01317647059 | BC129: 0.01349112426 | BD129: 0.01302895323 | BE129: 0.01332611051 | BF129: 0.01344953734
A130: Florida | B130: 0.03331881533 | C130: 0.02817493692 | D130: 0.02323943662 | E130: 0.01690172737 | F130: 0.01980572535 | G130: 0.02182769134 | H130: 0.01842305841 | I130: 0.01566672601 | J130: 0.01942748458 | K130: 0.02562958556 | L130: 0.02092190647 | M130: 0.02107346791 | N130: 0.01699899331 | O130: 0.01508610613 | P130: 0.01525863085 | Q130: 0.01450556622 | R130: 0.02246645415 | S130: 0.03139729099 | T130: 0.04128251107 | U130: 0.04145581643 | V130: 0.04005654721 | W130: 0.04070770628 | X130: 0.03402262283 | Y130: 0.04008496128 | Z130: 0.03348709705 | AA130: 0.03151154855 | AB130: 0.02380120767 | AP130: 0.01676217765 | AQ130: 0.01414523449 | AR130: 0.01709923664 | AS130: 0.01398176292 | AT130: 0.01604361371 | AU130: 0.01348837209 | AV130: 0.01572519084 | AW130: 0.01651651652 | AX130: 0.01486880466 | AY130: 0.01772334294 | AZ130: 0.01633522727 | BA130: 0.015130674 | BB130: 0.01793478261 | BC130: 0.01677675033 | BD130: 0.01450839329 | BE130: 0.0142088267 | BF130: 0.01347099312
A131: Georgia | B131: 0.1356348802 | C131: 0.1141024511 | D131: 0.1037735849 | E131: 0.1058083611 | F131: 0.09908588159 | G131: 0.08569994839 | H131: 0.0827251691 | I131: 0.08424488496 | J131: 0.08142235123 | K131: 0.0763923619 | L131: 0.06026442639 | M131: 0.06267817683 | N131: 0.05269752358 | O131: 0.04890503857 | P131: 0.04822221769 | Q131: 0.05068038264 | R131: 0.04789810092 | S131: 0.04613590868 | T131: 0.04396690924 | U131: 0.03975847359 | V131: 0.04501743232 | W131: 0.04296024913 | X131: 0.03413275744 | Y131: 0.03437322306 | Z131: 0.03908973769 | AA131: 0.03638039471 | AB131: 0.03753896637 | AF131: 0.04122807018 | AG131: 0.03427536232 | AH131: 0.03125 | AI131: 0.0308988764 | AJ131: 0.02791878173 | AK131: 0.02604651163 | AL131: 0.02589285714 | AM131: 0.02148148148 | AN131: 0.01657458564 | AO131: 0.01398601399 | AP131: 0.01431718062 | AQ131: 0.01922110553 | AR131: 0.02359882006 | AS131: 0.02574404762 | AT131: 0.03130990415 | AU131: 0.03198051948 | AV131: 0.03603896104 | AW131: 0.03481012658 | AX131: 0.03157894737 | AY131: 0.03498542274 | AZ131: 0.03381924198 | BA131: 0.039375 | BB131: 0.03829787234 | BC131: 0.03913043478 | BD131: 0.03590425532 | BE131: 0.03616504854 | BF131: 0.03533487298
A132: Hawaii
A133: Idaho | R133: 0.09531953195 | S133: 0.1049083528 | T133: 0.09842962109 | U133: 0.1025032938 | V133: 0.1159567705 | W133: 0.1177372375 | X133: 0.1047803261 | Y133: 0.1023074785 | Z133: 0.1222459893 | AA133: 0.107171421 | AB133: 0.118041958 | AF133: 0.06569343066 | AG133: 0.06666666667 | AH133: 0.06666666667 | AI133: 0.06209150327 | AJ133: 0.06 | AK133: 0.05773809524 | AL133: 0.066 | AM133: 0.05745856354 | AN133: 0.04408163265 | AO133: 0.03357400722 | AP133: 0.03517857143 | AQ133: 0.04980842912 | AR133: 0.05322580645 | AS133: 0.05587044534 | AT133: 0.05542635659 | AU133: 0.04877192982 | AV133: 0.04902597403 | AW133: 0.04817073171 | AX133: 0.04912280702 | AY133: 0.04481792717 | AZ133: 0.04278074866 | BA133: 0.03965087282 | BB133: 0.04052132701 | BC133: 0.03813559322 | BD133: 0.03639774859 | BE133: 0.03486725664 | BF133: 0.035395189
A134: Illinois | B134: 0.07326549491 | C134: 0.0702354705 | D134: 0.07105590062 | E134: 0.07086780496 | F134: 0.06963185074 | G134: 0.07000996856 | H134: 0.07041062802 | I134: 0.07123034228 | J134: 0.06827151396 | K134: 0.05838850122 | L134: 0.05474247492 | M134: 0.05096644358 | N134: 0.05014592165 | O134: 0.04974962245 | P134: 0.05645511401 | Q134: 0.06055714658 | R134: 0.06184988806 | S134: 0.07625853981 | T134: 0.0775621118 | U134: 0.07134370152 | V134: 0.06760835113 | W134: 0.06484543494 | X134: 0.06767136005 | Y134: 0.06615013261 | Z134: 0.0643285779 | AA134: 0.06358274351 | AB134: 0.06145795366 | AC134: 0.05239847109 | AD134: 0.05336384439 | AE134: 0.05265700483 | AF134: 0.04955357143 | AG134: 0.04784482759 | AH134: 0.05063829787 | AI134: 0.05021097046 | AJ134: 0.05020576132 | AK134: 0.0492 | AL134: 0.04754716981 | AM134: 0.03969230769 | AN134: 0.03626373626 | AO134: 0.03397590361 | AP134: 0.03360824742 | AQ134: 0.03551198257 | AR134: 0.03580508475 | AS134: 0.03339416058 | AT134: 0.03365079365 | AU134: 0.03101529903 | AV134: 0.03054830287 | AW134: 0.03007915567 | AX134: 0.03006802721 | AY134: 0.03023578363 | AZ134: 0.03063186813 | BA134: 0.03068493151 | BB134: 0.0304109589 | BC134: 0.0291025641 | BD134: 0.02793103448 | BE134: 0.028 | BF134: 0.02816753927
A135: Indiana | B135: 0.07849968294 | C135: 0.07694307712 | D135: 0.08120948924 | E135: 0.07743078074 | F135: 0.08009437387 | G135: 0.07531003622 | H135: 0.07996710526 | I135: 0.08611842105 | J135: 0.07980085349 | K135: 0.07207602339 | L135: 0.06237443277 | M135: 0.0567980524 | N135: 0.0538330932 | O135: 0.05248153619 | P135: 0.05723042362 | Q135: 0.06125335077 | R135: 0.06161026428 | S135: 0.07008106203 | T135: 0.07219230596 | U135: 0.07142715412 | V135: 0.06544405054 | W135: 0.06548270195 | X135: 0.06796860572 | Y135: 0.06609686494 | Z135: 0.06365799404 | AA135: 0.06229805697 | AB135: 0.05931508772 | AC135: 0.05370630279 | AD135: 0.05362250454 | AE135: 0.05121052632 | AF135: 0.04666666667 | AG135: 0.04541284404 | AH135: 0.04444444444 | AI135: 0.04291845494 | AJ135: 0.04139344262 | AK135: 0.04039215686 | AL135: 0.03919413919 | AM135: 0.03657718121 | AN135: 0.03415384615 | AO135: 0.03296703297 | AP135: 0.03260869565 | AQ135: 0.03573264781 | AR135: 0.03302107728 | AS135: 0.02998027613 | AT135: 0.02996575342 | AU135: 0.02913505311 | AV135: 0.02809798271 | AW135: 0.0290560472 | AX135: 0.02869955157 | AY135: 0.03095238095 | AZ135: 0.03188405797 | BA135: 0.03185550082 | BB135: 0.0324958124 | BC135: 0.03115264798 | BD135: 0.02956764296 | BE135: 0.02965879265 | BF135: 0.0293519695
A136: Iowa | B136: 0.08535052377 | C136: 0.08845087773 | D136: 0.09027611044 | E136: 0.08979591837 | F136: 0.09138959932 | G136: 0.08826054027 | H136: 0.08986107006 | I136: 0.0909760288 | J136: 0.07867007673 | K136: 0.06728028781 | L136: 0.06505502276 | M136: 0.05981024668 | N136: 0.0547826087 | O136: 0.05348556631 | P136: 0.05919098185 | Q136: 0.0654464161 | R136: 0.07272727273 | S136: 0.0885102712 | T136: 0.0944410754 | U136: 0.09615327047 | V136: 0.08576930244 | W136: 0.08234219715 | X136: 0.08600107933 | Y136: 0.08329287817 | Z136: 0.08538339881 | AA136: 0.08386721025 | AB136: 0.07867647059 | AC136: 0.0694379085 | AD136: 0.06815415822 | AE136: 0.06470588235 | AF136: 0.06075268817 | AG136: 0.05894736842 | AH136: 0.05927835052 | AI136: 0.05909090909 | AJ136: 0.05882352941 | AK136: 0.05754716981 | AL136: 0.05454545455 | AM136: 0.04746376812 | AN136: 0.04290322581 | AO136: 0.04166666667 | AP136: 0.03990610329 | AQ136: 0.04396984925 | AR136: 0.0395505618 | AS136: 0.035 | AT136: 0.03450807636 | AU136: 0.031875 | AV136: 0.03037383178 | AW136: 0.03180661578 | AX136: 0.03129161119 | AY136: 0.0310483871 | AZ136: 0.0316872428 | BA136: 0.03212290503 | BB136: 0.03299856528 | BC136: 0.03110814419 | BD136: 0.02899207248 | BE136: 0.02858660999 | BF136: 0.02816326531
A137: Kansas | J137: 0.1504406239 | K137: 0.1257733196 | L137: 0.1076757765 | M137: 0.1021746953 | N137: 0.0904681032 | O137: 0.09001047965 | P137: 0.08705701079 | Q137: 0.09053349707 | R137: 0.09259832806 | S137: 0.1097132411 | T137: 0.1225091429 | U137: 0.1393378966 | V137: 0.1140383604 | W137: 0.1268313094 | X137: 0.1189779147 | Y137: 0.1174978809 | Z137: 0.1186624908 | AA137: 0.1224062938 | AB137: 0.1254797869 | AF137: 0.05618320611 | AG137: 0.05454545455 | AH137: 0.0548048048 | AI137: 0.05794947994 | AJ137: 0.05743740795 | AK137: 0.05701754386 | AL137: 0.05959302326 | AM137: 0.05210918114 | AN137: 0.05152224824 | AO137: 0.04923413567 | AP137: 0.04656862745 | AQ137: 0.04660194175 | AR137: 0.04504504505 | AS137: 0.03768656716 | AT137: 0.03666666667 | AU137: 0.03238341969 | AV137: 0.02731277533 | AW137: 0.02937219731 | AX137: 0.03076923077 | AY137: 0.03184079602 | AZ137: 0.0322815534 | BA137: 0.03056872038 | BB137: 0.03266331658 | BC137: 0.02937219731 | BD137: 0.02564575646 | BE137: 0.02353896104 | BF137: 0.02272727273
A138: Kentucky | B138: 0.1045414847 | C138: 0.1081512605 | D138: 0.09853754941 | E138: 0.09303370787 | F138: 0.08420338983 | G138: 0.08091743119 | H138: 0.08322077922 | I138: 0.08051522248 | J138: 0.07108949416 | K138: 0.07197092084 | L138: 0.06293706294 | M138: 0.05425087108 | N138: 0.05293032787 | O138: 0.05427879961 | P138: 0.05444234405 | Q138: 0.05362249762 | R138: 0.04856866538 | S138: 0.04778010471 | T138: 0.05126461211 | U138: 0.05463553531 | V138: 0.05293526786 | W138: 0.06141758242 | X138: 0.04371165644 | Y138: 0.04950939457 | Z138: 0.04791497976 | AA138: 0.04621169916 | AB138: 0.04657894737 | AC138: 0.038016 | AD138: 0.04430769231 | AE138: 0.04666666667 | AF138: 0.04012345679 | AG138: 0.04117647059 | AH138: 0.04111111111 | AI138: 0.03789473684 | AJ138: 0.034 | AK138: 0.03333333333 | AL138: 0.03257918552 | AM138: 0.02979591837 | AN138: 0.02775800712 | AO138: 0.02798634812 | AP138: 0.02532258065 | AQ138: 0.03025889968 | AR138: 0.0335504886 | AS138: 0.03409090909 | AT138: 0.04049844237 | AU138: 0.04344023324 | AV138: 0.0408839779 | AW138: 0.03834196891 | AX138: 0.03592964824 | AY138: 0.03502415459 | AZ138: 0.03505882353 | BA138: 0.03471264368 | BB138: 0.03251670379 | BC138: 0.03225806452 | BD138: 0.03019230769 | BE138: 0.02937062937 | BF138: 0.02749196141
A139: Louisiana | B139: 0.0766013445 | C139: 0.06895695364 | D139: 0.06727818161 | E139: 0.06693197495 | F139: 0.06002192982 | G139: 0.05796342248 | H139: 0.06578220011 | I139: 0.06520724826 | J139: 0.05576328502 | K139: 0.06495126706 | L139: 0.05024336684 | M139: 0.0481028231 | N139: 0.04438989148 | O139: 0.03796614703 | P139: 0.03865053172 | Q139: 0.04004509691 | R139: 0.03991323491 | S139: 0.03946932007 | T139: 0.04172419691 | U139: 0.04366731009 | V139: 0.05227935382 | W139: 0.0631927548 | X139: 0.05515215215 | Y139: 0.05928442029 | Z139: 0.05747240221 | AA139: 0.0530521262 | AB139: 0.05321944444 | AF139: 0.05188679245 | AG139: 0.05220183486 | AH139: 0.04884955752 | AI139: 0.05344827586 | AJ139: 0.05210084034 | AK139: 0.05 | AL139: 0.0515625 | AM139: 0.04551724138 | AN139: 0.04705882353 | AO139: 0.04082840237 | AP139: 0.03989071038 | AQ139: 0.04224137931 | AR139: 0.04138888889 | AS139: 0.03756345178 | AT139: 0.03608490566 | AU139: 0.03539823009 | AV139: 0.03565400844 | AW139: 0.03649193548 | AX139: 0.03262548263 | AY139: 0.03259259259 | AZ139: 0.03189964158 | BA139: 0.0325862069 | BB139: 0.03249158249 | BC139: 0.03184818482 | BD139: 0.02969230769 | BE139: 0.03063063063 | BF139: 0.02988505747
A140: Maine
A141: Maryland | B141: 0.03461748634 | C141: 0.03091213342 | D141: 0.02614241803 | E141: 0.02950819672 | F141: 0.02412657888 | G141: 0.02156233592 | H141: 0.02181498829 | I141: 0.02211722858 | J141: 0.02017161885 | K141: 0.02305259714 | L141: 0.01981851971 | M141: 0.02340983607 | N141: 0.01975124159 | O141: 0.01906369468 | P141: 0.02216840537 | Q141: 0.02459016393 | R141: 0.02692820904 | S141: 0.02989769955 | T141: 0.02782347269 | U141: 0.02611526818 | V141: 0.02306755316 | W141: 0.02245720496 | X141: 0.0198659358 | Y141: 0.02299396031 | Z141: 0.02218654831 | AA141: 0.0196552365 | AB141: 0.02058801397 | AC141: 0.01489212057 | AD141: 0.01594011913 | AE141: 0.01681967213 | AF141: 0.01741935484 | AG141: 0.0169375 | AH141: 0.01548571429 | AI141: 0.015 | AJ141: 0.01423076923 | AK141: 0.013875 | AL141: 0.01072727273 | AM141: 0.008611111111 | AN141: 0.00756097561 | AO141: 0.007857142857 | AP141: 0.008525641026 | AQ141: 0.009540389972 | AR141: 0.009572901325 | AS141: 0.01047904192 | AT141: 0.01324200913 | AU141: 0.01406491499 | AV141: 0.01433990895 | AW141: 0.01476934524 | AX141: 0.01505065123 | AY141: 0.01460992908 | AZ141: 0.01552197802 | BA141: 0.01491108071 | BB141: 0.01477900552 | BC141: 0.01434108527 | BD141: 0.01387900356 | BE141: 0.0144028103 | BF141: 0.01505131129
A142: Massachusetts
A143: Michigan | B143: 0.07346938776 | C143: 0.06301424051 | D143: 0.06039110429 | E143: 0.0640436747 | F143: 0.05898648649 | G143: 0.05599662162 | H143: 0.05916506718 | I143: 0.05858951175 | J143: 0.05985221675 | K143: 0.05711760925 | L143: 0.0483608894 | M143: 0.048 | N143: 0.05002250225 | O143: 0.04529674166 | P143: 0.04876760563 | Q143: 0.05270850368 | R143: 0.04849601594 | S143: 0.05188402527 | T143: 0.05302618577 | U143: 0.05101461039 | V143: 0.04831359423 | W143: 0.05058494405 | X143: 0.04634328358 | Y143: 0.0471339779 | Z143: 0.04821428571 | AA143: 0.04535809019 | AB143: 0.04555785124 | AC143: 0.04203947368 | AD143: 0.0413556338 | AE143: 0.04213235294 | AF143: 0.04054054054 | AG143: 0.03636363636 | AH143: 0.03296703297 | AI143: 0.0303030303 | AJ143: 0.02790697674 | AK143: 0.02553191489 | AL143: 0.0246031746 | AM143: 0.02313432836 | AN143: 0.0224137931 | AO143: 0.02225609756 | AP143: 0.0224137931 | AQ143: 0.02454545455 | AR143: 0.02547468354 | AS143: 0.02670623145 | AT143: 0.02950819672 | AU143: 0.0286407767 | AV143: 0.02715231788 | AW143: 0.02554112554 | AX143: 0.02766884532 | AY143: 0.0268558952 | AZ143: 0.02727272727 | BA143: 0.02866817156 | BB143: 0.02956120092 | BC143: 0.03087248322 | BD143: 0.02903225806 | BE143: 0.02730627306 | BF143: 0.02589437819
A144: Minnesota | B144: 0.09950248756 | C144: 0.09583333333 | D144: 0.09336283186 | E144: 0.08961038961 | F144: 0.0867219917 | G144: 0.08289962825 | H144: 0.09171597633 | I144: 0.09184149184 | J144: 0.08809073724 | K144: 0.07633928571 | L144: 0.07095926413 | M144: 0.06470588235 | N144: 0.05791896869 | O144: 0.05370804059 | P144: 0.05691823899 | Q144: 0.06120171674 | R144: 0.06047745358 | S144: 0.06926503341 | T144: 0.07752161383 | U144: 0.08143100511 | V144: 0.07528571429 | W144: 0.08005354752 | X144: 0.07592592593 | Y144: 0.07185017026 | Z144: 0.07047511312 | AA144: 0.07054945055 | AB144: 0.06772428884 | AC144: 0.07378947368 | AD144: 0.07165048544 | AE144: 0.06935779817 | AF144: 0.06672413793 | AG144: 0.06146341463 | AH144: 0.060859375 | AI144: 0.05962962963 | AJ144: 0.05664335664 | AK144: 0.05394736842 | AL144: 0.04970238095 | AM144: 0.04505208333 | AN144: 0.04131455399 | AO144: 0.03884297521 | AP144: 0.04037037037 | AQ144: 0.044140625 | AR144: 0.04464944649 | AS144: 0.04397394137 | AT144: 0.04037433155 | AU144: 0.04054669704 | AV144: 0.03795918367 | AW144: 0.03724279835 | AX144: 0.03512396694 | AY144: 0.0337398374 | AZ144: 0.03373737374 | BA144: 0.03459915612 | BB144: 0.0352688172 | BC144: 0.0351888668 | BD144: 0.03173241852 | BE144: 0.03137876387 | BF144: 0.03058103976
A145: Mississippi | B145: 0.1370070142 | C145: 0.121527108 | D145: 0.1193666261 | E145: 0.09178190155 | F145: 0.1139408703 | G145: 0.1078720621 | H145: 0.103568102 | I145: 0.09920972879 | J145: 0.09596140527 | K145: 0.0875182638 | L145: 0.07389362566 | M145: 0.06765861624 | N145: 0.06063066721 | O145: 0.05183328347 | P145: 0.05609379675 | Q145: 0.05714643843 | R145: 0.05490864799 | S145: 0.05724013648 | T145: 0.05369963898 | U145: 0.05436844866 | V145: 0.06216654987 | W145: 0.06759114391 | X145: 0.05481782556 | Y145: 0.05905998861 | Z145: 0.06459095946 | AA145: 0.06083550054 | AB145: 0.06282454003 | AF145: 0.06332574032 | AG145: 0.0623655914 | AH145: 0.06192893401 | AI145: 0.05961538462 | AJ145: 0.05636363636 | AK145: 0.05431034483 | AL145: 0.055 | AM145: 0.0503649635 | AN145: 0.04444444444 | AO145: 0.0418128655 | AP145: 0.04447513812 | AQ145: 0.04508196721 | AR145: 0.04487179487 | AS145: 0.04476190476 | AT145: 0.04541284404 | AU145: 0.04210526316 | AV145: 0.04329501916 | AW145: 0.04296296296 | AX145: 0.04128113879 | AY145: 0.04103448276 | AZ145: 0.04 | BA145: 0.0392971246 | BB145: 0.03881987578 | BC145: 0.03862275449 | BD145: 0.03739612188 | BE145: 0.03829787234 | BF145: 0.03659793814
A146: Missouri | B146: 0.1068269231 | C146: 0.09711538462 | D146: 0.09928313874 | E146: 0.09711538462 | F146: 0.09785956381 | G146: 0.08951792255 | H146: 0.09079276843 | I146: 0.09245580808 | J146: 0.08689271255 | K146: 0.08240630264 | L146: 0.07711658466 | M146: 0.077317758 | N146: 0.07181370459 | O146: 0.06749028749 | P146: 0.07193732194 | Q146: 0.07782845075 | R146: 0.07447362637 | S146: 0.07963743441 | T146: 0.08152896486 | U146: 0.07766015028 | V146: 0.08300330529 | W146: 0.08490497076 | X146: 0.08575523977 | Y146: 0.08354878179 | Z146: 0.07700429679 | AA146: 0.08042759889 | AB146: 0.07627972028 | AP146: 0.0332 | AQ146: 0.03795180723 | AR146: 0.03788461538 | AS146: 0.03799283154 | AT146: 0.03525641026 | AU146: 0.03457142857 | AV146: 0.0352 | AW146: 0.03586956522 | AX146: 0.03613445378 | AY146: 0.03595505618 | AZ146: 0.03782234957 | BA146: 0.03703703704 | BB146: 0.03651685393 | BC146: 0.0354005168 | BD146: 0.03340909091 | BE146: 0.03156779661 | BF146: 0.03177189409
A147: Montana | R147: 0.1148732675 | S147: 0.1610652865 | T147: 0.1524345447 | U147: 0.1324748908 | V147: 0.1301736074 | W147: 0.1711098621 | X147: 0.1722943467 | Y147: 0.1264939882 | Z147: 0.146802656 | AA147: 0.1533847604 | AB147: 0.1243226283 | AF147: 0.04665226782 | AG147: 0.05307855626 | AH147: 0.04948024948 | AI147: 0.04969574037 | AJ147: 0.04771371769 | AK147: 0.04615384615 | AL147: 0.04870775348 | AM147: 0.0425170068 | AN147: 0.03703703704 | AO147: 0.02933673469 | AP147: 0.03020961776 | AQ147: 0.03616751269 | AR147: 0.03979460847 | AS147: 0.03722084367 | AT147: 0.03462441315 | AU147: 0.03539325843 | AV147: 0.03296146045 | AW147: 0.03316582915 | AX147: 0.03168316832 | AY147: 0.03118811881 | AZ147: 0.03137254902 | BA147: 0.03066037736 | BB147: 0.03177570093 | BC147: 0.03243243243 | BD147: 0.03 | BE147: 0.02829457364 | BF147: 0.028515625
A148: Nebraska | E148: 0.1490570751 | F148: 0.1537485582 | G148: 0.1477090318 | H148: 0.1459325879 | I148: 0.1493742178 | J148: 0.1329552207 | K148: 0.1277917834 | L148: 0.1295355035 | M148: 0.106054155 | N148: 0.09591477536 | O148: 0.09088463918 | P148: 0.09242546334 | Q148: 0.0914799586 | R148: 0.107244262 | S148: 0.1159288458 | T148: 0.1260982278 | U148: 0.1233921569 | V148: 0.1137211996 | W148: 0.119070642 | X148: 0.1178566083 | Y148: 0.1162779232 | Z148: 0.1208632002 | AA148: 0.1208590829 | AB148: 0.1180320856 | AF148: 0.085 | AG148: 0.08046296296 | AH148: 0.07787610619 | AI148: 0.07586206897 | AJ148: 0.075 | AK148: 0.07603305785 | AL148: 0.0753968254 | AM148: 0.06830985915 | AN148: 0.06474358974 | AO148: 0.05852272727 | AP148: 0.05902439024 | AQ148: 0.05953488372 | AR148: 0.05555555556 | AS148: 0.04792332268 | AT148: 0.04200477327 | AU148: 0.04176954733 | AV148: 0.03988326848 | AW148: 0.04111776447 | AX148: 0.04126315789 | AY148: 0.04379232506 | AZ148: 0.04452054795 | BA148: 0.04441860465 | BB148: 0.04724220624 | BC148: 0.04227467811 | BD148: 0.03822463768 | BE148: 0.03577235772 | BF148: 0.03409785933
A149: Nevada | R149: 0.0736273013 | S149: 0.07314705882 | T149: 0.06173730862 | U149: 0.07176470588 | V149: 0.07340865509 | W149: 0.07054885756 | X149: 0.07498891731 | Y149: 0.07834561875 | Z149: 0.07617467445 | AA149: 0.07612184874 | AB149: 0.06563257243 | AQ149: 0.04460966543 | AV149: 0.0572519084 | AW149: 0.05258756833 | AX149: 0.04935821863 | AY149: 0.05171647906 | AZ149: 0.05396202851 | BA149: 0.05532569884 | BB149: 0.03565210501 | BC149: 0.05255537605 | BD149: 0.04967306117 | BE149: 0.04581999508 | BF149: 0.04517107382
A150: New Hampshire
A151: New Jersey | B151: 0.0177416087 | C151: 0.01699927078 | D151: 0.01629282482 | E151: 0.01652878819 | F151: 0.01310265283 | G151: 0.01255752563 | H151: 0.01420316799 | I151: 0.01206484586 | J151: 0.009994972348 | K151: 0.01193817011 | L151: 0.01067748139 | M151: 0.01063832567 | N151: 0.010317172 | O151: 0.01107314241 | P151: 0.01284057917 | Q151: 0.01364668415 | R151: 0.01366280341 | S151: 0.01222795862 | T151: 0.0128206638 | U151: 0.01075197577 | V151: 0.01285877314 | W151: 0.01138039691 | X151: 0.01017891175 | Y151: 0.008759984044 | Z151: 0.006473218199 | AA151: 0.006088430186 | AB151: 0.008545239103 | AC151: 0.005417478992 | AD151: 0.005270588235 | AE151: 0.005541176471 | AF151: 0.006325 | AG151: 0.006475609756 | AH151: 0.006071428571 | AI151: 0.005402298851 | AJ151: 0.005222222222 | AK151: 0.005053763441 | AL151: 0.004203539823 | AM151: 0.003653846154 | AN151: 0.003187919463 | AO151: 0.00315625 | AP151: 0.003365384615 | AQ151: 0.003928571429 | AR151: 0.004135338346 | AS151: 0.00480620155 | AT151: 0.005483870968 | AU151: 0.00523255814 | AV151: 0.005 | AW151: 0.004855072464 | AX151: 0.005333333333 | AY151: 0.005661764706 | AZ151: 0.005656934307 | BA151: 0.006119402985 | BB151: 0.005939849624 | BC151: 0.005467625899 | BD151: 0.00574829932 | BE151: 0.005030487805 | BF151: 0.00527607362
A152: New Mexico | R152: 0.065411596 | S152: 0.07051615525 | T152: 0.0801242236 | U152: 0.07232986312 | V152: 0.06681704261 | W152: 0.06160333266 | X152: 0.05417598049 | Y152: 0.05419262442 | Z152: 0.0668729607 | AA152: 0.0669948066 | AB152: 0.0725810739 | AP152: 0.02944785276 | AQ152: 0.02275280899 | AR152: 0.02857142857 | AS152: 0.03850574713 | AT152: 0.04774193548 | AU152: 0.0724137931 | AV152: 0.06326530612 | AW152: 0.06283783784 | AX152: 0.06566666667 | AY152: 0.05320512821 | AZ152: 0.05158227848 | BA152: 0.05094936709 | BB152: 0.0436746988 | BC152: 0.04204545455 | BD152: 0.03886010363 | BE152: 0.04020100503 | BF152: 0.04075
A153: New York | B153: 0.07652624369 | C153: 0.07892156863 | D153: 0.06823242117 | E153: 0.07088201134 | F153: 0.07019061495 | G153: 0.0612745098 | H153: 0.06058603217 | I153: 0.05478662053 | J153: 0.05518029997 | K153: 0.05741223235 | L153: 0.05555555556 | M153: 0.05651887621 | N153: 0.05582788671 | O153: 0.05580498694 | P153: 0.0510496525 | Q153: 0.0500995992 | R153: 0.05173649649 | S153: 0.05200860832 | T153: 0.04361175075 | U153: 0.0408496732 | V153: 0.03862824082 | W153: 0.04432873628 | X153: 0.03649882044 | Y153: 0.03793983347 | Z153: 0.03894885434 | AA153: 0.03457526907 | AB153: 0.03715375039 | AC153: 0.02403109681 | AD153: 0.02820572674 | AE153: 0.02862745098 | AF153: 0.03076923077 | AG153: 0.02792792793 | AH153: 0.02711864407 | AI153: 0.0264 | AJ153: 0.02651515152 | AK153: 0.02661870504 | AL153: 0.02739726027 | AM153: 0.02697368421 | AN153: 0.02166666667 | AO153: 0.02078947368 | AP153: 0.01930232558 | AQ153: 0.02 | AR153: 0.018125 | AS153: 0.01895833333 | AT153: 0.01807692308 | AU153: 0.02098039216 | AV153: 0.02159533074 | AW153: 0.02220149254 | AX153: 0.0219330855 | AY153: 0.02226277372 | AZ153: 0.0225 | BA153: 0.02307692308 | BB153: 0.02319587629 | BC153: 0.0224025974 | BD153: 0.02264705882 | BE153: 0.02190082645 | BF153: 0.02168831169
A154: North Carolina | B154: 0.07961783439 | C154: 0.07481532925 | D154: 0.07411666986 | E154: 0.0699661639 | F154: 0.06420588867 | G154: 0.05399916924 | H154: 0.05386724331 | I154: 0.05192931843 | J154: 0.04500818331 | K154: 0.05101897794 | L154: 0.04421943092 | M154: 0.03755288783 | N154: 0.03351194736 | O154: 0.03524928549 | P154: 0.03961679161 | Q154: 0.03667541047 | R154: 0.0324583476 | S154: 0.03308982208 | T154: 0.03350978995 | U154: 0.02847582512 | V154: 0.02863833156 | W154: 0.03018344044 | X154: 0.0258302583 | Y154: 0.02663423346 | Z154: 0.02756452438 | AA154: 0.02772855771 | AB154: 0.02517510242 | AC154: 0.02042553191 | AD154: 0.02183650616 | AE154: 0.02234042553 | AF154: 0.02205128205 | AG154: 0.02093023256 | AH154: 0.01914893617 | AI154: 0.01882352941 | AJ154: 0.018 | AK154: 0.01728813559 | AL154: 0.01709677419 | AM154: 0.01582089552 | AN154: 0.01507246377 | AO154: 0.01465053763 | AP154: 0.01493506494 | AQ154: 0.0163538874 | AR154: 0.01726027397 | AS154: 0.01814404432 | AT154: 0.01831168831 | AU154: 0.01913580247 | AV154: 0.01997635934 | AW154: 0.0213253012 | AX154: 0.02056650246 | AY154: 0.02163814181 | AZ154: 0.0210653753 | BA154: 0.02170263789 | BB154: 0.02127403846 | BC154: 0.02218309859 | BD154: 0.02150537634 | BE154: 0.02104166667 | BF154: 0.0197265625
A155: North Dakota | B155: 0.1174305788 | C155: 0.1114084978 | D155: 0.1088245553 | E155: 0.1047947738 | F155: 0.103450748 | G155: 0.09725474889 | H155: 0.1097287276 | I155: 0.09461358314 | J155: 0.09675306633 | K155: 0.08400143592 | L155: 0.07519906323 | M155: 0.07317320087 | N155: 0.06855755052 | O155: 0.06619685022 | P155: 0.06604215457 | Q155: 0.06782500147 | R155: 0.06620247395 | S155: 0.07762241714 | T155: 0.08121695719 | U155: 0.0850047534 | V155: 0.08245908981 | W155: 0.08470807261 | X155: 0.07170216026 | Y155: 0.07778372331 | Z155: 0.08358004507 | AA155: 0.08533678213 | AB155: 0.08253776595 | AC155: 0.08105053651 | AD155: 0.0810805853 | AE155: 0.08196721311 | AF155: 0.07954545455 | AG155: 0.08068181818 | AH155: 0.08068181818 | AI155: 0.0808988764 | AJ155: 0.08111111111 | AK155: 0.07934782609 | AL155: 0.07653061224 | AM155: 0.07090909091 | AN155: 0.06393442623 | AO155: 0.06119402985 | AP155: 0.0524691358 | AQ155: 0.05781448539 | AR155: 0.05535714286 | AS155: 0.05217831814 | AT155: 0.04603174603 | AU155: 0.03714285714 | AV155: 0.03366336634 | AW155: 0.03317307692 | AX155: 0.03560209424 | AY155: 0.03439153439 | AZ155: 0.03475935829 | BA155: 0.03703703704 | BB155: 0.03790322581 | BC155: 0.0375 | BD155: 0.03363636364 | BE155: 0.03142857143 | BF155: 0.03173076923
A156: Ohio | B156: 0.06288171627 | C156: 0.06005025126 | D156: 0.05998413118 | E156: 0.0607291264 | F156: 0.06144160438 | G156: 0.05491616498 | H156: 0.05422807819 | I156: 0.05757683602 | J156: 0.05702983 | K156: 0.05159235669 | L156: 0.0527638191 | M156: 0.0491845607 | N156: 0.04490719493 | O156: 0.04549042317 | P156: 0.05153946528 | Q156: 0.05626503528 | R156: 0.05065326633 | S156: 0.05675041876 | T156: 0.05877406398 | U156: 0.05471660948 | V156: 0.05196290041 | W156: 0.05180447693 | X156: 0.05155352568 | Y156: 0.0496051687 | Z156: 0.0477595715 | AA156: 0.04468254735 | AB156: 0.04292133746 | AC156: 0.0364160804 | AD156: 0.03694626981 | AE156: 0.0364321608 | AF156: 0.03404651163 | AG156: 0.03246696035 | AH156: 0.03083333333 | AI156: 0.03035714286 | AJ156: 0.02927756654 | AK156: 0.02836363636 | AL156: 0.02739726027 | AM156: 0.02570532915 | AN156: 0.02478386167 | AO156: 0.02382198953 | AP156: 0.02415458937 | AQ156: 0.02637075718 | AR156: 0.0258974359 | AS156: 0.02644230769 | AT156: 0.02629310345 | AU156: 0.0267822736 | AV156: 0.02508710801 | AW156: 0.02487562189 | AX156: 0.02471169687 | AY156: 0.02471544715 | AZ156: 0.02405063291 | BA156: 0.02406832298 | BB156: 0.02385321101 | BC156: 0.02312138728 | BD156: 0.02196382429 | BE156: 0.02106508876 | BF156: 0.01995685005
A157: Oklahoma | P157: 0.07336035418 | Q157: 0.07417209291 | R157: 0.07378845195 | S157: 0.06837078703 | T157: 0.07611628877 | U157: 0.08072332731 | V157: 0.07236663653 | W157: 0.07183352301 | X157: 0.08921896119 | Y157: 0.09097319367 | Z157: 0.08361408537 | AA157: 0.08125401038 | AB157: 0.08313716986 | AP157: 0.02657657658 | AQ157: 0.02633928571 | AR157: 0.02610619469 | AS157: 0.02610619469 | AT157: 0.025390625 | AU157: 0.02410071942 | AV157: 0.02278911565 | AW157: 0.02203947368 | AX157: 0.02091503268 | AY157: 0.02075471698 | AZ157: 0.02085889571 | BA157: 0.02116564417 | BB157: 0.02160493827 | BC157: 0.02046783626 | BD157: 0.01932989691 | BE157: 0.0161971831 | BF157: 0.01645021645
A158: Oregon | R158: 0.1076553488 | S158: 0.1336107795 | T158: 0.1130658815 | U158: 0.1093235785 | V158: 0.1009470235 | W158: 0.1052082246 | X158: 0.103686889 | Y158: 0.1099787584 | Z158: 0.1180078571 | AA158: 0.1262664937 | AB158: 0.1221332884 | AF158: 0.05314685315 | AG158: 0.05666666667 | AH158: 0.05806451613 | AI158: 0.05625 | AJ158: 0.05757575758 | AK158: 0.05868263473 | AL158: 0.06289308176 | AM158: 0.05681818182 | AN158: 0.05128205128 | AO158: 0.04254385965 | AP158: 0.04495798319 | AQ158: 0.06130434783 | AR158: 0.06199095023 | AS158: 0.06146788991 | AT158: 0.05555555556 | AU158: 0.05083333333 | AV158: 0.05912698413 | AW158: 0.05551330798 | AX158: 0.04928057554 | AY158: 0.05205479452 | AZ158: 0.053 | BA158: 0.04840764331 | BB158: 0.04938271605 | BC158: 0.05171428571 | BD158: 0.0461928934 | BE158: 0.04376528117 | BF158: 0.04068965517
A159: Pennsylvania | B159: 0.04398665126 | C159: 0.04366246093 | D159: 0.03560119379 | E159: 0.03542549095 | F159: 0.03583554735 | G159: 0.03093417362 | H159: 0.02683438155 | I159: 0.02577759498 | J159: 0.02635526921 | K159: 0.02427394556 | L159: 0.02389711482 | M159: 0.02222650402 | N159: 0.02169811321 | O159: 0.0207571236 | P159: 0.02265896819 | Q159: 0.02215491559 | R159: 0.02066486972 | S159: 0.02615329693 | T159: 0.02423933367 | U159: 0.02254349424 | V159: 0.02347078997 | W159: 0.02084632777 | X159: 0.01948218355 | Y159: 0.01886402821 | Z159: 0.01775205017 | AA159: 0.01861647456 | AB159: 0.01691443616 | AC159: 0.01530703259 | AD159: 0.01472030588 | AE159: 0.01547169811 | AF159: 0.01459854015 | AG159: 0.01428571429 | AH159: 0.01333333333 | AI159: 0.01320754717 | AJ159: 0.01194029851 | AK159: 0.01171428571 | AL159: 0.01194444444 | AM159: 0.0111662531 | AN159: 0.009935897436 | AO159: 0.01031894934 | AP159: 0.009166666667 | AQ159: 0.009615384615 | AR159: 0.009894921191 | AS159: 0.01039076377 | AT159: 0.01258680556 | AU159: 0.01258561644 | AV159: 0.01319327731 | AW159: 0.01345840131 | AX159: 0.01224806202 | AY159: 0.01228748068 | AZ159: 0.01168359942 | BA159: 0.01322081575 | BB159: 0.01268965517 | BC159: 0.01197452229 | BD159: 0.01167630058 | BE159: 0.01178414097 | BF159: 0.01165048544
A160: Rhode Island
A161: South Carolina | B161: 0.07459637034 | C161: 0.06545995537 | D161: 0.06987943337 | E161: 0.06887381997 | F161: 0.0607321863 | G161: 0.05886850153 | H161: 0.05254378649 | I161: 0.05005598884 | J161: 0.05162554556 | K161: 0.04859327217 | L161: 0.04622279669 | M161: 0.04585969118 | N161: 0.03896024465 | O161: 0.03858496621 | P161: 0.03643512451 | Q161: 0.03842349245 | R161: 0.03869855549 | S161: 0.03861792771 | T161: 0.03764631446 | U161: 0.03632656844 | V161: 0.03391651481 | W161: 0.03373181355 | X161: 0.02947395167 | Y161: 0.02575737575 | Z161: 0.02419406218 | AA161: 0.02541695916 | AB161: 0.02504587156 | AC161: 0.02252498973 | AD161: 0.02247706422 | AE161: 0.02201834862 | AF161: 0.01939655172 | AG161: 0.0176 | AH161: 0.01792592593 | AI161: 0.01896551724 | AJ161: 0.0178125 | AK161: 0.01628571429 | AL161: 0.01548913043 | AM161: 0.01435643564 | AN161: 0.01374407583 | AO161: 0.0121399177 | AP161: 0.01245210728 | AQ161: 0.01343873518 | AR161: 0.0126953125 | AS161: 0.01312741313 | AT161: 0.0143129771 | AU161: 0.01700819672 | AV161: 0.0171314741 | AW161: 0.0171875 | AX161: 0.01743295019 | AY161: 0.01722222222 | AZ161: 0.01738351254 | BA161: 0.01631944444 | BB161: 0.0162116041 | BC161: 0.01655737705 | BD161: 0.01646884273 | BE161: 0.01555555556 | BF161: 0.01394736842
A162: South Dakota | B162: 0.08641721491 | C162: 0.09102198267 | D162: 0.09078686299 | E162: 0.09223426213 | F162: 0.09093315185 | G162: 0.09098544233 | H162: 0.09163533835 | I162: 0.08798396854 | J162: 0.08919922506 | K162: 0.08449764876 | L162: 0.07346974264 | M162: 0.07015830592 | N162: 0.06663437275 | O162: 0.06390644164 | P162: 0.06351166239 | Q162: 0.06492299355 | R162: 0.06047315258 | S162: 0.0725050082 | T162: 0.07047112162 | U162: 0.07636278195 | V162: 0.07180183265 | W162: 0.07127192982 | X162: 0.08866130102 | Y162: 0.09097509131 | Z162: 0.07575757576 | AA162: 0.07962614871 | AB162: 0.08024322169 | AP162: 0.04642857143 | AQ162: 0.05253623188 | AR162: 0.04769736842 | AS162: 0.04413407821 | AT162: 0.04272727273 | AU162: 0.03697183099 | AV162: 0.03411764706 | AW162: 0.03433242507 | AX162: 0.03527696793 | AY162: 0.0371875 | AZ162: 0.03814102564 | BA162: 0.03876221498 | BB162: 0.0412371134 | BC162: 0.03824451411 | BD162: 0.03423180593 | BE162: 0.0312195122 | BF162: 0.03057471264
A163: Tennessee | B163: 0.09996436208 | C163: 0.09266848816 | D163: 0.08208955224 | E163: 0.08202639522 | F163: 0.08389425687 | G163: 0.06957737136 | H163: 0.07539008493 | I163: 0.06969845895 | J163: 0.06454918033 | K163: 0.05996339328 | L163: 0.05279980399 | M163: 0.04938048037 | N163: 0.04711435098 | O163: 0.04289106787 | P163: 0.04733606557 | Q163: 0.04259223332 | R163: 0.04464171363 | S163: 0.04374479022 | T163: 0.04570877531 | U163: 0.03843526692 | V163: 0.04197441902 | W163: 0.04069114881 | X163: 0.03887104952 | Y163: 0.04215884422 | Z163: 0.0389380531 | AA163: 0.03635525709 | AB163: 0.03570491803 | AC163: 0.02893320284 | AD163: 0.02846351655 | AE163: 0.03087431694 | AF163: 0.02893401015 | AG163: 0.03024390244 | AH163: 0.02830188679 | AI163: 0.02704545455 | AJ163: 0.02665198238 | AK163: 0.02638297872 | AL163: 0.0280334728 | AM163: 0.02586872587 | AN163: 0.02375886525 | AO163: 0.0209375 | AP163: 0.02014705882 | AQ163: 0.0226006192 | AR163: 0.02356495468 | AS163: 0.02431192661 | AT163: 0.02791411043 | AU163: 0.02754491018 | AV163: 0.02953216374 | AW163: 0.02877492877 | AX163: 0.02643051771 | AY163: 0.0264075067 | AZ163: 0.02558746736 | BA163: 0.0262755102 | BB163: 0.02543640898 | BC163: 0.02572115385 | BD163: 0.02483660131 | BE163: 0.02312252964 | BF163: 0.02156862745
A164: Texas | B164: 0.1699538163 | C164: 0.1748108831 | D164: 0.1549502767 | E164: 0.1607034163 | F164: 0.1325586182 | G164: 0.1207775692 | H164: 0.1347193322 | I164: 0.1231246413 | J164: 0.1352931621 | K164: 0.1173833649 | L164: 0.1051228768 | M164: 0.1007218524 | N164: 0.09935140065 | O164: 0.09624641761 | P164: 0.08311082728 | Q164: 0.078871749 | R164: 0.06809361727 | S164: 0.05163888865 | T164: 0.05479723046 | U164: 0.06111998783 | V164: 0.06210017019 | W164: 0.07809394169 | X164: 0.06987457494 | Y164: 0.07014705707 | Z164: 0.07630065185 | AA164: 0.08137224003 | AB164: 0.07166200916 | AF164: 0.03708987161 | AG164: 0.03301237964 | AH164: 0.03511053316 | AI164: 0.03354037267 | AJ164: 0.03099885189 | AK164: 0.02913553895 | AL164: 0.03104166667 | AM164: 0.02883495146 | AN164: 0.02352941176 | AO164: 0.02132352941 | AP164: 0.021 | AQ164: 0.02363013699 | AR164: 0.0238410596 | AS164: 0.02405063291 | AT164: 0.02264150943 | AU164: 0.02335526316 | AV164: 0.02347560976 | AW164: 0.02215909091 | AX164: 0.02146892655 | AY164: 0.02189189189 | AZ164: 0.02248677249 | BA164: 0.02248677249 | BB164: 0.02193877551 | BC164: 0.02063106796 | BD164: 0.01843220339 | BE164: 0.01767068273 | BF164: 0.01789883268
A165: Utah | R165: 0.03367505721 | S165: 0.0405237732 | T165: 0.04538363171 | U165: 0.04105658922 | V165: 0.04332890026 | W165: 0.04458052664 | X165: 0.05027310465 | Y165: 0.04903972474 | Z165: 0.04389643381 | AA165: 0.03653767821 | AB165: 0.02654064272 | AP165: 0.01555555556 | AQ165: 0.01850533808 | AR165: 0.01819852941 | AS165: 0.0217472119 | AT165: 0.0217472119 | AU165: 0.01780185759 | AV165: 0.02048192771 | AW165: 0.01997084548 | AX165: 0.01940509915 | AY165: 0.01707317073 | AZ165: 0.01671018277 | BA165: 0.018875 | BB165: 0.02048780488 | BC165: 0.018997669 | BD165: 0.01933760684 | BE165: 0.01776180698 | BF165: 0.01795634921
A166: Vermont
A167: Virginia | B167: 0.07041040592 | C167: 0.06926484368 | D167: 0.06501191117 | E167: 0.07220740425 | F167: 0.06347507565 | G167: 0.05336556027 | H167: 0.04742164024 | I167: 0.04831619993 | J167: 0.05124038679 | K167: 0.05437444154 | L167: 0.04804497828 | M167: 0.03687581236 | N167: 0.03727925771 | O167: 0.03797401168 | P167: 0.03958450309 | Q167: 0.03580952381 | R167: 0.03378949939 | S167: 0.03492766227 | T167: 0.03298660627 | U167: 0.03374597673 | V167: 0.03121319415 | W167: 0.02765423553 | X167: 0.02338910339 | Y167: 0.02391769305 | Z167: 0.02162755078 | AA167: 0.02134125044 | AB167: 0.02429746354 | AC167: 0.02144007156 | AD167: 0.02021022456 | AE167: 0.02005494505 | AF167: 0.01861702128 | AG167: 0.01803030303 | AH167: 0.01697674419 | AI167: 0.01553191489 | AJ167: 0.01411764706 | AK167: 0.01303571429 | AL167: 0.0121875 | AM167: 0.01038961039 | AN167: 0.008333333333 | AO167: 0.008571428571 | AP167: 0.007570093458 | AQ167: 0.008787878788 | AR167: 0.009782608696 | AS167: 0.01034482759 | AT167: 0.01088888889 | AU167: 0.01168539326 | AV167: 0.01238938053 | AW167: 0.01260964912 | AX167: 0.01247288503 | AY167: 0.01268498943 | AZ167: 0.01323529412 | BA167: 0.01257995736 | BB167: 0.01344902386 | BC167: 0.01300639659 | BD167: 0.01274509804 | BE167: 0.01247723133 | BF167: 0.01121416526
